Workbook

Sheet Cover
C2: Powercor
C3: Regulatory proposal 2026-31
C5: =REPLACE(LEFT(_xlfn.TEXTAFTER(CELL("filename")," - ",1),FIND("Jan2025",_xlfn.TEXTAFTER(CELL("filename")," - "),1)-4),1,1,UPPER(LEFT(LEFT(_xlfn.TEXTAFTER(CELL("filename")," - ",1),FIND("Jan2025",_xlfn.TEXTAFTER(CELL("filename")," - "),1)-4),1))) -> Connections
C6: Model number: | D6: =LEFT(_xlfn.TEXTAFTER(CELL("filename")," MOD "),FIND(" - ",_xlfn.TEXTAFTER(CELL("filename")," MOD "),1)-1) -> 6.01
C8: 2025-01-31

Sheet Assumptions
A1: =business -> Powercor
A2: =title -> Connections
A3: Assumptions
B5: Business: | C5: Powercor
B6: Title | C6: Connections
B8: Output dollars | C8: 2026-06-30
B12: Input
B13: Link/Calculated
B16: Forecast | D16: 2025 | G16: =AND(G$19>=$D16, G$19<$D$17) -> FALSE | H16: FALSE | I16: FALSE | J16: FALSE | K16: FALSE | L16: FALSE | M16: FALSE | N16: FALSE | O16: FALSE | P16: FALSE | Q16: FALSE | R16: FALSE | S16: FALSE | T16: TRUE | U16: TRUE | V16: FALSE | W16: FALSE | X16: FALSE | Y16: FALSE | Z16: FALSE
B17: 2026/27 - 2030/31 reg period | D17: 2027 | G17: =AND(G$19>=$D$17, SUM(F$17:F$17)<5) -> FALSE | H17: =AND(H19>=$D$17, SUM(G17:G17)<5) -> FALSE | I17: FALSE | J17: FALSE | K17: FALSE | L17: FALSE | M17: FALSE | N17: FALSE | O17: FALSE | P17: FALSE | Q17: FALSE | R17: FALSE | S17: FALSE | T17: FALSE | U17: FALSE | V17: TRUE | W17: TRUE | X17: TRUE | Y17: TRUE | Z17: TRUE
B18: Forecast period | G18: =OR(G16:G17) -> FALSE | H18: =OR(H16:H17) -> FALSE | I18: FALSE | J18: FALSE | K18: FALSE | L18: FALSE | M18: FALSE | N18: FALSE | O18: FALSE | P18: FALSE | Q18: FALSE | R18: FALSE | S18: FALSE | T18: TRUE | U18: TRUE | V18: TRUE | W18: TRUE | X18: TRUE | Y18: TRUE | Z18: TRUE
B19: Fin year end | G19: 2012 | H19: =G19+1 -> 2013 | I19: 2014 | J19: 2015 | K19: 2016 | L19: 2017 | M19: 2018 | N19: 2019 | O19: 2020 | P19: 2021 | Q19: 2022 | R19: 2023 | S19: 2024 | T19: 2025 | U19: 2026 | V19: 2027 | W19: 2028 | X19: 2029 | Y19: 2030 | Z19: 2031
B20: Basis | G20: Actual | H20: Actual | I20: Actual | J20: Actual | K20: Actual | L20: Actual | M20: Actual | N20: Actual | O20: Actual | P20: Actual | Q20: Actual | R20: Actual | S20: Actual | T20: Forecast | U20: Forecast | V20: Forecast | W20: Forecast | X20: Forecast | Y20: Forecast | Z20: Forecast
G24: =G19-1&"/"&RIGHT(G19,2) -> 2011/12 | H24: =H19-1&"/"&RIGHT(H19,2) -> 2012/13 | I24: 2013/14 | J24: 2014/15 | K24: 2015/16 | L24: 2016/17 | M24: 2017/18 | N24: 2018/19 | O24: 2019/20 | P24: 2020/21 | Q24: 2021/22 | R24: 2022/23 | S24: 2023/24 | T24: 2024/25 | U24: 2025/26 | V24: 2026/27 | W24: 2027/28 | X24: 2028/29 | Y24: 2029/30 | Z24: 2030/31
B25: Inflation conversions
B27: Cumulative escalation
B29: Conversion to June 2026 | D29: 2025/26 | G29: 1.411271192 | H29: 1.383544843 | I29: 1.354277548 | J29: 1.323729934 | K29: 1.304027907 | L29: 1.290819521 | M29: 1.26633243 | N29: 1.240557522 | O29: 1.221106272 | P29: 1.206394148 | Q29: 1.20123639 | R29: 1.175712522 | S29: 1.112912646 | T29: 1.050660525 | U29: 1.014889157 | V29: 0.9870079234 | W29: 0.9615279594 | X29: 0.9367057698 | Y29: 0.9125243739 | Z29: 0.8889672295

Sheet Hist_vol
A1: =Assumptions!$A$1 -> Powercor
A2: =Assumptions!$A$2 -> Connections
A3: Historical volumes
B7: =Assumptions!B17 -> 2026/27 - 2030/31 reg period | G7: =Assumptions!G17 -> FALSE | H7: =Assumptions!H17 -> FALSE | I7: =Assumptions!I17 -> FALSE | J7: =Assumptions!J17 -> FALSE | K7: =Assumptions!K17 -> FALSE | L7: =Assumptions!L17 -> FALSE | M7: =Assumptions!M17 -> FALSE | N7: =Assumptions!N17 -> FALSE | O7: =Assumptions!O17 -> FALSE | P7: =Assumptions!P17 -> FALSE | Q7: =Assumptions!Q17 -> FALSE | R7: =Assumptions!R17 -> FALSE | S7: =Assumptions!S17 -> FALSE | T7: =Assumptions!T17 -> FALSE | U7: =Assumptions!U17 -> FALSE | V7: =Assumptions!V17 -> TRUE | W7: =Assumptions!W17 -> TRUE | X7: =Assumptions!X17 -> TRUE | Y7: =Assumptions!Y17 -> TRUE | Z7: =Assumptions!Z17 -> TRUE
B8: =Assumptions!B18 -> Forecast period | G8: =Assumptions!G18 -> FALSE | H8: =Assumptions!H18 -> FALSE | I8: =Assumptions!I18 -> FALSE | J8: =Assumptions!J18 -> FALSE | K8: =Assumptions!K18 -> FALSE | L8: =Assumptions!L18 -> FALSE | M8: =Assumptions!M18 -> FALSE | N8: =Assumptions!N18 -> FALSE | O8: =Assumptions!O18 -> FALSE | P8: =Assumptions!P18 -> FALSE | Q8: =Assumptions!Q18 -> FALSE | R8: =Assumptions!R18 -> FALSE | S8: =Assumptions!S18 -> FALSE | T8: =Assumptions!T18 -> TRUE | U8: =Assumptions!U18 -> TRUE | V8: =Assumptions!V18 -> TRUE | W8: =Assumptions!W18 -> TRUE | X8: =Assumptions!X18 -> TRUE | Y8: =Assumptions!Y18 -> TRUE | Z8: =Assumptions!Z18 -> TRUE
B9: =Assumptions!B19 -> Fin year end | G9: =Assumptions!G19 -> 2012 | H9: =Assumptions!H19 -> 2013 | I9: =Assumptions!I19 -> 2014 | J9: =Assumptions!J19 -> 2015 | K9: =Assumptions!K19 -> 2016 | L9: =Assumptions!L19 -> 2017 | M9: =Assumptions!M19 -> 2018 | N9: =Assumptions!N19 -> 2019 | O9: =Assumptions!O19 -> 2020 | P9: =Assumptions!P19 -> 2021 | Q9: =Assumptions!Q19 -> 2022 | R9: =Assumptions!R19 -> 2023 | S9: =Assumptions!S19 -> 2024 | T9: =Assumptions!T19 -> 2025 | U9: =Assumptions!U19 -> 2026 | V9: =Assumptions!V19 -> 2027 | W9: =Assumptions!W19 -> 2028 | X9: =Assumptions!X19 -> 2029 | Y9: =Assumptions!Y19 -> 2030 | Z9: =Assumptions!Z19 -> 2031
B10: =Assumptions!B20 -> Basis | G10: =Assumptions!G20 -> Actual | H10: =Assumptions!H20 -> Actual | I10: =Assumptions!I20 -> Actual | J10: =Assumptions!J20 -> Actual | K10: =Assumptions!K20 -> Actual | L10: =Assumptions!L20 -> Actual | M10: =Assumptions!M20 -> Actual | N10: =Assumptions!N20 -> Actual | O10: =Assumptions!O20 -> Actual | P10: =Assumptions!P20 -> Actual | Q10: =Assumptions!Q20 -> Actual | R10: =Assumptions!R20 -> Actual | S10: =Assumptions!S20 -> Actual | T10: =Assumptions!T20 -> Forecast | U10: =Assumptions!U20 -> Forecast | V10: =Assumptions!V20 -> Forecast | W10: =Assumptions!W20 -> Forecast | X10: =Assumptions!X20 -> Forecast | Y10: =Assumptions!Y20 -> Forecast | Z10: =Assumptions!Z20 -> Forecast
B13: Category | C13: Type | D13: RIN category | E13: Description | G13: =Assumptions!G$24 -> 2011/12 | H13: =Assumptions!H$24 -> 2012/13 | I13: =Assumptions!I$24 -> 2013/14 | J13: =Assumptions!J$24 -> 2014/15 | K13: =Assumptions!K$24 -> 2015/16 | L13: =Assumptions!L$24 -> 2016/17 | M13: =Assumptions!M$24 -> 2017/18 | N13: =Assumptions!N$24 -> 2018/19 | O13: =Assumptions!O$24 -> 2019/20 | P13: =Assumptions!P$24 -> 2020/21 | Q13: =Assumptions!Q$24 -> 2021/22 | R13: =Assumptions!R$24 -> 2022/23 | S13: =Assumptions!S$24 -> 2023/24 | T13: =Assumptions!T$24 -> 2024/25 | U13: =Assumptions!U$24 -> 2025/26 | V13: =Assumptions!V$24 -> 2026/27 | W13: =Assumptions!W$24 -> 2027/28 | X13: =Assumptions!X$24 -> 2028/29 | Y13: =Assumptions!Y$24 -> 2029/30 | Z13: =Assumptions!Z$24 -> 2030/31
B14: Volumes
B15: Connections | C15: R1 | D15: =IF(ISBLANK($C15), "", INDEX(Lists!T$7:T$21, MATCH($C15, Lists!$S$7:$S$21,0))) -> Residential | E15: =IF(ISBLANK($C15), "", INDEX(Lists!U$7:U$21, MATCH($C15, Lists!$S$7:$S$21,0))) -> Simple connection LV | G15: 15246 | H15: 13350 | I15: 12650.84 | J15: 12805.84 | K15: 6511.5 | L15: 0 | M15: 0 | N15: 0 | O15: 0 | P15: 0 | Q15: 0 | R15: 0 | S15: 0
B16: Connections | C16: R2 | D16: =IF(ISBLANK($C16), "", INDEX(Lists!T$7:T$21, MATCH($C16, Lists!$S$7:$S$21,0))) -> Residential | E16: =IF(ISBLANK($C16), "", INDEX(Lists!U$7:U$21, MATCH($C16, Lists!$S$7:$S$21,0))) -> Complex connection LV | G16: 2981 | H16: 3148.5 | I16: 3279.160469 | J16: 2935.660469 | K16: 2333.5 | L16: 2102.5 | M16: 2216.220566 | N16: 2305.720566 | O16: 2420 | P16: 2464 | Q16: 2202 | R16: 1804 | S16: 1775
B17: Connections | C17: R3 | D17: =IF(ISBLANK($C17), "", INDEX(Lists!T$7:T$21, MATCH($C17, Lists!$S$7:$S$21,0))) -> Residential | E17: =IF(ISBLANK($C17), "", INDEX(Lists!U$7:U$21, MATCH($C17, Lists!$S$7:$S$21,0))) -> Complex connection HV | G17: 352 | H17: 374.5 | I17: 342.5151479 | J17: 270.5151479 | K17: 184 | L17: 177 | M17: 238.2530479 | N17: 215.7530479 | O17: 169.5 | P17: 184 | Q17: 225 | R17: 200 | S17: 175
B18: Connections | C18: CI1 | D18: =IF(ISBLANK($C18), "", INDEX(Lists!T$7:T$21, MATCH($C18, Lists!$S$7:$S$21,0))) -> Commercial/Industrial | E18: =IF(ISBLANK($C18), "", INDEX(Lists!U$7:U$21, MATCH($C18, Lists!$S$7:$S$21,0))) -> Simple connection LV | G18: 2119 | H18: 2108 | I18: 2117.488909 | J18: 1969.488909 | K18: 911.5 | L18: 0 | M18: 0 | N18: 0 | O18: 0 | P18: 0 | Q18: 0 | R18: 0 | S18: 0
B19: Connections | C19: CI2 | D19: =IF(ISBLANK($C19), "", INDEX(Lists!T$7:T$21, MATCH($C19, Lists!$S$7:$S$21,0))) -> Commercial/Industrial | E19: =IF(ISBLANK($C19), "", INDEX(Lists!U$7:U$21, MATCH($C19, Lists!$S$7:$S$21,0))) -> Complex connection HV (customer connected at LV, minor HV works) | G19: 0 | H19: 0 | I19: 0 | J19: 0 | K19: 325.5 | L19: 305.5 | M19: 399.5 | N19: 357 | O19: 182 | P19: 182 | Q19: 144 | R19: 135 | S19: 156
B20: Connections | C20: CI3 | D20: =IF(ISBLANK($C20), "", INDEX(Lists!T$7:T$21, MATCH($C20, Lists!$S$7:$S$21,0))) -> Commercial/Industrial | E20: =IF(ISBLANK($C20), "", INDEX(Lists!U$7:U$21, MATCH($C20, Lists!$S$7:$S$21,0))) -> Complex connection HV (customer connected at LV, upstream asset works) | G20: 371.2556342 | H20: 359.2739723 | I20: 345.5442312 | J20: 323.3831283 | K20: 290.5 | L20: 331.5 | M20: 378.7711871 | N20: 361.2711871 | O20: 330.5 | P20: 300 | Q20: 347 | R20: 377 | S20: 366
B21: Connections | C21: CI4 | D21: =IF(ISBLANK($C21), "", INDEX(Lists!T$7:T$21, MATCH($C21, Lists!$S$7:$S$21,0))) -> Commercial/Industrial | E21: =IF(ISBLANK($C21), "", INDEX(Lists!U$7:U$21, MATCH($C21, Lists!$S$7:$S$21,0))) -> Complex connection HV (customer connected at HV) | G21: 4 | H21: 6.10306982 | I21: 6.153944173 | J21: 4.550874353 | K21: 8 | L21: 9.5 | M21: 4.948891292 | N21: 1.948891292 | O21: 6 | P21: 18 | Q21: 11 | R21: 7 | S21: 4
B22: Connections | C22: CI5 | D22: =IF(ISBLANK($C22), "", INDEX(Lists!T$7:T$21, MATCH($C22, Lists!$S$7:$S$21,0))) -> Commercial/Industrial | E22: =IF(ISBLANK($C22), "", INDEX(Lists!U$7:U$21, MATCH($C22, Lists!$S$7:$S$21,0))) -> Complex connection sub-transmission | G22: 0 | H22: 0 | I22: 0 | J22: 0 | K22: 0 | L22: 0.5 | M22: 0.5 | N22: 0 | O22: 0 | P22: 0 | Q22: 0 | R22: 0 | S22: 0
B23: Connections | C23: S1 | D23: =IF(ISBLANK($C23), "", INDEX(Lists!T$7:T$21, MATCH($C23, Lists!$S$7:$S$21,0))) -> Subdivision | E23: =IF(ISBLANK($C23), "", INDEX(Lists!U$7:U$21, MATCH($C23, Lists!$S$7:$S$21,0))) -> Complex connection LV | G23: 0 | H23: 0 | I23: 0 | J23: 0 | K23: 0 | L23: 0 | M23: 0 | N23: 0 | O23: 0 | P23: 0 | Q23: 0 | R23: 0 | S23: 0
B24: Connections | C24: S2 | D24: =IF(ISBLANK($C24), "", INDEX(Lists!T$7:T$21, MATCH($C24, Lists!$S$7:$S$21,0))) -> Subdivision | E24: =IF(ISBLANK($C24), "", INDEX(Lists!U$7:U$21, MATCH($C24, Lists!$S$7:$S$21,0))) -> Complex connection HV (no upstream asset works) | G24: 0 | H24: 0 | I24: 0 | J24: 0 | K24: 0 | L24: 0 | M24: 0 | N24: 0 | O24: 0 | P24: 0 | Q24: 0 | R24: 0 | S24: 0
B25: Connections | C25: S3 | D25: =IF(ISBLANK($C25), "", INDEX(Lists!T$7:T$21, MATCH($C25, Lists!$S$7:$S$21,0))) -> Subdivision | E25: =IF(ISBLANK($C25), "", INDEX(Lists!U$7:U$21, MATCH($C25, Lists!$S$7:$S$21,0))) -> Complex connection HV (with upstream asset works) | G25: 339.8103795 | H25: 337.1990873 | I25: 339.0642954 | J25: 340.0150544 | K25: 355 | L25: 388 | M25: 515.8202121 | N25: 545.3202121 | O25: 571.5 | P25: 565 | Q25: 744 | R25: 762 | S25: 822
B26: Connections | C26: EG1 | D26: =IF(ISBLANK($C26), "", INDEX(Lists!T$7:T$21, MATCH($C26, Lists!$S$7:$S$21,0))) -> Embedded generation | E26: =IF(ISBLANK($C26), "", INDEX(Lists!U$7:U$21, MATCH($C26, Lists!$S$7:$S$21,0))) -> Simple connection LV | G26: 0 | H26: 0 | I26: 0 | J26: 0 | K26: 0 | L26: 0 | M26: 0 | N26: 0 | O26: 0 | P26: 0 | Q26: 0 | R26: 0 | S26: 0
B27: Connections | C27: EG2 | D27: =IF(ISBLANK($C27), "", INDEX(Lists!T$7:T$21, MATCH($C27, Lists!$S$7:$S$21,0))) -> Embedded generation | E27: =IF(ISBLANK($C27), "", INDEX(Lists!U$7:U$21, MATCH($C27, Lists!$S$7:$S$21,0))) -> Complex connection HV (small capacity) | G27: 2.5 | H27: 2.5 | I27: 4.505145205 | J27: 22.00514521 | K27: 33.5 | L27: 45 | M27: 33.82543044 | N27: 5.325430441 | O27: 6.5 | P27: 10 | Q27: 11 | R27: 6 | S27: 4
B28: Connections | C28: EG3 | D28: =IF(ISBLANK($C28), "", INDEX(Lists!T$7:T$21, MATCH($C28, Lists!$S$7:$S$21,0))) -> Embedded generation | E28: =IF(ISBLANK($C28), "", INDEX(Lists!U$7:U$21, MATCH($C28, Lists!$S$7:$S$21,0))) -> Complex connection HV (large capacity) | G28: 1 | H28: 0.5 | I28: 0 | J28: 1.5 | K28: 2 | L28: 3.5 | M28: 4.862937069 | N28: 2.862937069 | O28: 1 | P28: 0 | Q28: 0.3 | R28: 1 | S28: 1

Sheet Hist_expenditure
A1: =Assumptions!$A$1 -> Powercor
A2: =Assumptions!$A$2 -> Connections
A3: Historical expenditure (nominal)
B7: =Assumptions!B17 -> 2026/27 - 2030/31 reg period | G7: =Assumptions!G17 -> FALSE | H7: =Assumptions!H17 -> FALSE | I7: =Assumptions!I17 -> FALSE | J7: =Assumptions!J17 -> FALSE | K7: =Assumptions!K17 -> FALSE | L7: =Assumptions!L17 -> FALSE | M7: =Assumptions!M17 -> FALSE | N7: =Assumptions!N17 -> FALSE | O7: =Assumptions!O17 -> FALSE | P7: =Assumptions!P17 -> FALSE | Q7: =Assumptions!Q17 -> FALSE | R7: =Assumptions!R17 -> FALSE | S7: =Assumptions!S17 -> FALSE | T7: =Assumptions!T17 -> FALSE | U7: =Assumptions!U17 -> FALSE | V7: =Assumptions!V17 -> TRUE | W7: =Assumptions!W17 -> TRUE | X7: =Assumptions!X17 -> TRUE | Y7: =Assumptions!Y17 -> TRUE | Z7: =Assumptions!Z17 -> TRUE
B8: =Assumptions!B18 -> Forecast period | G8: =Assumptions!G18 -> FALSE | H8: =Assumptions!H18 -> FALSE | I8: =Assumptions!I18 -> FALSE | J8: =Assumptions!J18 -> FALSE | K8: =Assumptions!K18 -> FALSE | L8: =Assumptions!L18 -> FALSE | M8: =Assumptions!M18 -> FALSE | N8: =Assumptions!N18 -> FALSE | O8: =Assumptions!O18 -> FALSE | P8: =Assumptions!P18 -> FALSE | Q8: =Assumptions!Q18 -> FALSE | R8: =Assumptions!R18 -> FALSE | S8: =Assumptions!S18 -> FALSE | T8: =Assumptions!T18 -> TRUE | U8: =Assumptions!U18 -> TRUE | V8: =Assumptions!V18 -> TRUE | W8: =Assumptions!W18 -> TRUE | X8: =Assumptions!X18 -> TRUE | Y8: =Assumptions!Y18 -> TRUE | Z8: =Assumptions!Z18 -> TRUE
B9: =Assumptions!B19 -> Fin year end | G9: =Assumptions!G19 -> 2012 | H9: =Assumptions!H19 -> 2013 | I9: =Assumptions!I19 -> 2014 | J9: =Assumptions!J19 -> 2015 | K9: =Assumptions!K19 -> 2016 | L9: =Assumptions!L19 -> 2017 | M9: =Assumptions!M19 -> 2018 | N9: =Assumptions!N19 -> 2019 | O9: =Assumptions!O19 -> 2020 | P9: =Assumptions!P19 -> 2021 | Q9: =Assumptions!Q19 -> 2022 | R9: =Assumptions!R19 -> 2023 | S9: =Assumptions!S19 -> 2024 | T9: =Assumptions!T19 -> 2025 | U9: =Assumptions!U19 -> 2026 | V9: =Assumptions!V19 -> 2027 | W9: =Assumptions!W19 -> 2028 | X9: =Assumptions!X19 -> 2029 | Y9: =Assumptions!Y19 -> 2030 | Z9: =Assumptions!Z19 -> 2031
B10: =Assumptions!B20 -> Basis | G10: =Assumptions!G20 -> Actual | H10: =Assumptions!H20 -> Actual | I10: =Assumptions!I20 -> Actual | J10: =Assumptions!J20 -> Actual | K10: =Assumptions!K20 -> Actual | L10: =Assumptions!L20 -> Actual | M10: =Assumptions!M20 -> Actual | N10: =Assumptions!N20 -> Actual | O10: =Assumptions!O20 -> Actual | P10: =Assumptions!P20 -> Actual | Q10: =Assumptions!Q20 -> Actual | R10: =Assumptions!R20 -> Actual | S10: =Assumptions!S20 -> Actual | T10: =Assumptions!T20 -> Forecast | U10: =Assumptions!U20 -> Forecast | V10: =Assumptions!V20 -> Forecast | W10: =Assumptions!W20 -> Forecast | X10: =Assumptions!X20 -> Forecast | Y10: =Assumptions!Y20 -> Forecast | Z10: =Assumptions!Z20 -> Forecast
B13: =Hist_vol!B$13 -> Category | C13: Type | D13: =Hist_vol!D$13 -> RIN category | E13: =Hist_vol!E$13 -> Description | G13: =Assumptions!G$24 -> 2011/12 | H13: =Assumptions!H$24 -> 2012/13 | I13: =Assumptions!I$24 -> 2013/14 | J13: =Assumptions!J$24 -> 2014/15 | K13: =Assumptions!K$24 -> 2015/16 | L13: =Assumptions!L$24 -> 2016/17 | M13: =Assumptions!M$24 -> 2017/18 | N13: =Assumptions!N$24 -> 2018/19 | O13: =Assumptions!O$24 -> 2019/20 | P13: =Assumptions!P$24 -> 2020/21 | Q13: =Assumptions!Q$24 -> 2021/22 | R13: =Assumptions!R$24 -> 2022/23 | S13: =Assumptions!S$24 -> 2023/24 | T13: =Assumptions!T$24 -> 2024/25 | U13: =Assumptions!U$24 -> 2025/26 | V13: =Assumptions!V$24 -> 2026/27 | W13: =Assumptions!W$24 -> 2027/28 | X13: =Assumptions!X$24 -> 2028/29 | Y13: =Assumptions!Y$24 -> 2029/30 | Z13: =Assumptions!Z$24 -> 2030/31
B14: Spend ($ nominal)
B15: =Hist_vol!B15 -> Connections | C15: =Hist_vol!C15 -> R1 | D15: =Hist_vol!D15 -> Residential | E15: =Hist_vol!E15 -> Simple connection LV | G15: 4150616.021 | H15: 4032572.754 | I15: 4133306.415 | J15: 4176432.5 | K15: 2064772 | L15: 0 | M15: 0 | N15: 0 | O15: 0 | P15: 0 | Q15: 0 | R15: 0 | S15: 0
B16: =Hist_vol!B16 -> Connections | C16: =Hist_vol!C16 -> R2 | D16: =Hist_vol!D16 -> Residential | E16: =Hist_vol!E16 -> Complex connection LV | G16: 16413889.87 | H16: 18078915.03 | I16: 19386223.7 | J16: 18210392.12 | K16: 15819933.12 | L16: 15202905.96 | M16: 15764602.92 | N16: 18036166.96 | O16: 20969203.93 | P16: 21943934.62 | Q16: 25797993.76 | R16: 29211145 | S16: 28303389
B17: =Hist_vol!B17 -> Connections | C17: =Hist_vol!C17 -> R3 | D17: =Hist_vol!D17 -> Residential | E17: =Hist_vol!E17 -> Complex connection HV | G17: 7962583.8 | H17: 9029489.63 | I17: 8698155.106 | J17: 7149917.202 | K17: 5236533.535 | L17: 4758427.705 | M17: 5424535.122 | N17: 5794957.017 | O17: 6253504.935 | P17: 6378187.42 | Q17: 8502291.13 | R17: 9208312 | S17: 7870279
B18: =Hist_vol!B18 -> Connections | C18: =Hist_vol!C18 -> CI1 | D18: =Hist_vol!D18 -> Commercial/Industrial | E18: =Hist_vol!E18 -> Simple connection LV | G18: 572661.079 | H18: 638455.5557 | I18: 681483.9896 | J18: 680642 | K18: 336125.5 | L18: 0 | M18: 0 | N18: 0 | O18: 0 | P18: 0 | Q18: 0 | R18: 0 | S18: 0
B19: =Hist_vol!B19 -> Connections | C19: =Hist_vol!C19 -> CI2 | D19: =Hist_vol!D19 -> Commercial/Industrial | E19: =Hist_vol!E19 -> Complex connection HV (customer connected at LV, minor HV works) | G19: 11920524.52 | H19: 12652027.02 | I19: 14517672.74 | J19: 21460597.21 | K19: 25307641.74 | L19: 24369820.14 | M19: 29420368.06 | N19: 36414488.91 | O19: 32163312 | P19: 21370241 | Q19: 16398707 | R19: 19615700 | S19: 20612576
B20: =Hist_vol!B20 -> Connections | C20: =Hist_vol!C20 -> CI3 | D20: =Hist_vol!D20 -> Commercial/Industrial | E20: =Hist_vol!E20 -> Complex connection HV (customer connected at LV, upstream asset works) | G20: 25628849.99 | H20: 27232391.85 | I20: 27981651.93 | J20: 25255357.11 | K20: 22868775.45 | L20: 25539319.95 | M20: 26115451.33 | N20: 26321892.28 | O20: 31108437.64 | P20: 31825876.56 | Q20: 36894348.2 | R20: 42674696 | S20: 46831206
B21: =Hist_vol!B21 -> Connections | C21: =Hist_vol!C21 -> CI4 | D21: =Hist_vol!D21 -> Commercial/Industrial | E21: =Hist_vol!E21 -> Complex connection HV (customer connected at HV) | G21: 2725418.6 | H21: 3287566.685 | I21: 3467661.385 | J21: 1896616.5 | K21: 1181901.5 | L21: 1578575 | M21: 1312211.9 | N21: 1360278.9 | O21: 3466680.5 | P21: 13718605.96 | Q21: 15077957.39 | R21: 9956800 | S21: 15240651
B22: =Hist_vol!B22 -> Connections | C22: =Hist_vol!C22 -> CI5 | D22: =Hist_vol!D22 -> Commercial/Industrial | E22: =Hist_vol!E22 -> Complex connection sub-transmission | G22: 0 | H22: 0 | I22: 0 | J22: 0 | K22: 0 | L22: 3531095 | M22: 3531095 | N22: 0 | O22: 0 | P22: 0 | Q22: 0 | R22: 4794000 | S22: 1392000
B23: =Hist_vol!B23 -> Connections | C23: =Hist_vol!C23 -> S1 | D23: =Hist_vol!D23 -> Subdivision | E23: =Hist_vol!E23 -> Complex connection LV | G23: 0 | H23: 0 | I23: 0 | J23: 0 | K23: 0 | L23: 0 | M23: 0 | N23: 0 | O23: 0 | P23: 0 | Q23: 0 | R23: 0 | S23: 0
B24: =Hist_vol!B24 -> Connections | C24: =Hist_vol!C24 -> S2 | D24: =Hist_vol!D24 -> Subdivision | E24: =Hist_vol!E24 -> Complex connection HV (no upstream asset works) | G24: 0 | H24: 0 | I24: 0 | J24: 0 | K24: 0 | L24: 0 | M24: 0 | N24: 0 | O24: 0 | P24: 0 | Q24: 0 | R24: 0 | S24: 0
B25: =Hist_vol!B25 -> Connections | C25: =Hist_vol!C25 -> S3 | D25: =Hist_vol!D25 -> Subdivision | E25: =Hist_vol!E25 -> Complex connection HV (with upstream asset works) | G25: 23458451.68 | H25: 27309038.4 | I25: 25396993.75 | J25: 25260384.31 | K25: 31177524.91 | L25: 34166605.87 | M25: 33416326.15 | N25: 28822572.15 | O25: 30661216 | P25: 36071499.31 | Q25: 32142123.71 | R25: 35981982 | S25: 45988027
B26: =Hist_vol!B26 -> Connections | C26: =Hist_vol!C26 -> EG1 | D26: =Hist_vol!D26 -> Embedded generation | E26: =Hist_vol!E26 -> Simple connection LV | G26: 0 | H26: 0 | I26: 0 | J26: 0 | K26: 0 | L26: 0 | M26: 0 | N26: 0 | O26: 0 | P26: 0 | Q26: 0 | R26: 0 | S26: 0
B27: =Hist_vol!B27 -> Connections | C27: =Hist_vol!C27 -> EG2 | D27: =Hist_vol!D27 -> Embedded generation | E27: =Hist_vol!E27 -> Complex connection HV (small capacity) | G27: 839714.844 | H27: 794454.765 | I27: 959487.265 | J27: 1054125.5 | K27: 702632.5 | L27: 1834074 | M27: 2400153.67 | N27: 2029107.17 | O27: 4208256.5 | P27: 3538915 | Q27: 3173870.44 | R27: 2181577 | S27: 3594375
B28: =Hist_vol!B28 -> Connections | C28: =Hist_vol!C28 -> EG3 | D28: =Hist_vol!D28 -> Embedded generation | E28: =Hist_vol!E28 -> Complex connection HV (large capacity) | G28: 5696026.395 | H28: 1419587.485 | I28: 0 | J28: 2457579.5 | K28: 3016802.5 | L28: 6059223 | M28: 16305035 | N28: 17126694 | O28: 6563910 | P28: 1123000 | Q28: 1353000 | R28: 3556123 | S28: 10167000
C29: Total | G29: =SUM(G15:G28) -> 99368736.8 | H29: 104474499.2 | I29: 105222636.3 | J29: 107602044 | K29: 107712642.8 | L29: 117040046.6 | M29: 133689779.1 | N29: 135906157.4 | O29: 135394521.5 | P29: 135970259.9 | Q29: 139340291.6 | R29: 157180335 | S29: =SUM(S15:S28) -> 179999503

Sheet Hist_contributions
A1: =Assumptions!$A$1 -> Powercor
A2: =Assumptions!$A$2 -> Connections
A3: Historical Type 1 Contributions (nominal)
B7: =Assumptions!B17 -> 2026/27 - 2030/31 reg period | G7: =Assumptions!G17 -> FALSE | H7: =Assumptions!H17 -> FALSE | I7: =Assumptions!I17 -> FALSE | J7: =Assumptions!J17 -> FALSE | K7: =Assumptions!K17 -> FALSE | L7: =Assumptions!L17 -> FALSE | M7: =Assumptions!M17 -> FALSE | N7: =Assumptions!N17 -> FALSE | O7: =Assumptions!O17 -> FALSE | P7: =Assumptions!P17 -> FALSE | Q7: =Assumptions!Q17 -> FALSE | R7: =Assumptions!R17 -> FALSE | S7: =Assumptions!S17 -> FALSE | T7: =Assumptions!T17 -> FALSE | U7: =Assumptions!U17 -> FALSE | V7: =Assumptions!V17 -> TRUE | W7: =Assumptions!W17 -> TRUE | X7: =Assumptions!X17 -> TRUE | Y7: =Assumptions!Y17 -> TRUE | Z7: =Assumptions!Z17 -> TRUE
B8: =Assumptions!B18 -> Forecast period | G8: =Assumptions!G18 -> FALSE | H8: =Assumptions!H18 -> FALSE | I8: =Assumptions!I18 -> FALSE | J8: =Assumptions!J18 -> FALSE | K8: =Assumptions!K18 -> FALSE | L8: =Assumptions!L18 -> FALSE | M8: =Assumptions!M18 -> FALSE | N8: =Assumptions!N18 -> FALSE | O8: =Assumptions!O18 -> FALSE | P8: =Assumptions!P18 -> FALSE | Q8: =Assumptions!Q18 -> FALSE | R8: =Assumptions!R18 -> FALSE | S8: =Assumptions!S18 -> FALSE | T8: =Assumptions!T18 -> TRUE | U8: =Assumptions!U18 -> TRUE | V8: =Assumptions!V18 -> TRUE | W8: =Assumptions!W18 -> TRUE | X8: =Assumptions!X18 -> TRUE | Y8: =Assumptions!Y18 -> TRUE | Z8: =Assumptions!Z18 -> TRUE
B9: =Assumptions!B19 -> Fin year end | G9: =Assumptions!G19 -> 2012 | H9: =Assumptions!H19 -> 2013 | I9: =Assumptions!I19 -> 2014 | J9: =Assumptions!J19 -> 2015 | K9: =Assumptions!K19 -> 2016 | L9: =Assumptions!L19 -> 2017 | M9: =Assumptions!M19 -> 2018 | N9: =Assumptions!N19 -> 2019 | O9: =Assumptions!O19 -> 2020 | P9: =Assumptions!P19 -> 2021 | Q9: =Assumptions!Q19 -> 2022 | R9: =Assumptions!R19 -> 2023 | S9: =Assumptions!S19 -> 2024 | T9: =Assumptions!T19 -> 2025 | U9: =Assumptions!U19 -> 2026 | V9: =Assumptions!V19 -> 2027 | W9: =Assumptions!W19 -> 2028 | X9: =Assumptions!X19 -> 2029 | Y9: =Assumptions!Y19 -> 2030 | Z9: =Assumptions!Z19 -> 2031
B10: =Assumptions!B20 -> Basis | G10: =Assumptions!G20 -> Actual | H10: =Assumptions!H20 -> Actual | I10: =Assumptions!I20 -> Actual | J10: =Assumptions!J20 -> Actual | K10: =Assumptions!K20 -> Actual | L10: =Assumptions!L20 -> Actual | M10: =Assumptions!M20 -> Actual | N10: =Assumptions!N20 -> Actual | O10: =Assumptions!O20 -> Actual | P10: =Assumptions!P20 -> Actual | Q10: =Assumptions!Q20 -> Actual | R10: =Assumptions!R20 -> Actual | S10: =Assumptions!S20 -> Actual | T10: =Assumptions!T20 -> Forecast | U10: =Assumptions!U20 -> Forecast | V10: =Assumptions!V20 -> Forecast | W10: =Assumptions!W20 -> Forecast | X10: =Assumptions!X20 -> Forecast | Y10: =Assumptions!Y20 -> Forecast | Z10: =Assumptions!Z20 -> Forecast
B13: =Hist_vol!B$13 -> Category | C13: Type | D13: =Hist_vol!D$13 -> RIN category | E13: =Hist_vol!E$13 -> Description | G13: =Assumptions!G$24 -> 2011/12 | H13: =Assumptions!H$24 -> 2012/13 | I13: =Assumptions!I$24 -> 2013/14 | J13: =Assumptions!J$24 -> 2014/15 | K13: =Assumptions!K$24 -> 2015/16 | L13: =Assumptions!L$24 -> 2016/17 | M13: =Assumptions!M$24 -> 2017/18 | N13: =Assumptions!N$24 -> 2018/19 | O13: =Assumptions!O$24 -> 2019/20 | P13: =Assumptions!P$24 -> 2020/21 | Q13: =Assumptions!Q$24 -> 2021/22 | R13: =Assumptions!R$24 -> 2022/23 | S13: =Assumptions!S$24 -> 2023/24 | T13: =Assumptions!T$24 -> 2024/25 | U13: =Assumptions!U$24 -> 2025/26 | V13: =Assumptions!V$24 -> 2026/27 | W13: =Assumptions!W$24 -> 2027/28 | X13: =Assumptions!X$24 -> 2028/29 | Y13: =Assumptions!Y$24 -> 2029/30 | Z13: =Assumptions!Z$24 -> 2030/31
B14: Contributions ($ nominal)
B15: =Hist_expenditure!B15 -> Connections | C15: =Hist_expenditure!C15 -> R1 | D15: =Hist_expenditure!D15 -> Residential | E15: =Hist_expenditure!E15 -> Simple connection LV | G15: 1985256.726 | H15: 1510445.918 | I15: 1353901.495 | J15: 1528437.167 | K15: 855080.5665 | L15: 0 | M15: 0 | N15: 0 | O15: 0 | P15: 0 | Q15: 0 | R15: 0 | S15: 0
B16: =Hist_expenditure!B16 -> Connections | C16: =Hist_expenditure!C16 -> R2 | D16: =Hist_expenditure!D16 -> Residential | E16: =Hist_expenditure!E16 -> Complex connection LV | G16: 7623470.662 | H16: 6712217.9 | I16: 6343300.337 | J16: 6605176.688 | K16: 7853978.612 | L16: 10402989.32 | M16: 13382741.99 | N16: 13030698.76 | O16: 13483902.45 | P16: 16921069 | Q16: 17765004 | R16: 16162449 | S16: 21748013
B17: =Hist_expenditure!B17 -> Connections | C17: =Hist_expenditure!C17 -> R3 | D17: =Hist_expenditure!D17 -> Residential | E17: =Hist_expenditure!E17 -> Complex connection HV | G17: 3786470.284 | H17: 3350453.889 | I17: 2849862.413 | J17: 2577062.474 | K17: 2527035.698 | L17: 3284577.423 | M17: 4571117.678 | N17: 4213053.654 | O17: 3234213.079 | P17: 3487001 | Q17: 4639849 | R17: 4572277 | S17: 4201601
B18: =Hist_expenditure!B18 -> Connections | C18: =Hist_expenditure!C18 -> CI1 | D18: =Hist_expenditure!D18 -> Commercial/Industrial | E18: =Hist_expenditure!E18 -> Simple connection LV | G18: 274293.5928 | H18: 237855.9241 | I18: 223290.9101 | J18: 249056.9287 | K18: 139199.0898 | L18: 0 | M18: 0 | N18: 0 | O18: 0 | P18: 0 | Q18: 0 | R18: 0 | S18: 0
B19: =Hist_expenditure!B19 -> Connections | C19: =Hist_expenditure!C19 -> CI2 | D19: =Hist_expenditure!D19 -> Commercial/Industrial | E19: =Hist_expenditure!E19 -> Complex connection HV (customer connected at LV, minor HV works) | G19: 5186941.16 | H19: 12402412.54 | I19: 14603217.08 | J19: 24794843.95 | K19: 28862076.74 | L19: 24466217.09 | M19: 25966991.49 | N19: 37257341.98 | O19: 42869693.03 | P19: 23682397.98 | Q19: 18459514.58 | R19: 21306708 | S19: 18979101
B20: =Hist_expenditure!B20 -> Connections | C20: =Hist_expenditure!C20 -> CI3 | D20: =Hist_expenditure!D20 -> Commercial/Industrial | E20: =Hist_expenditure!E20 -> Complex connection HV (customer connected at LV, upstream asset works) | G20: 12058423.25 | H20: 9722402.06 | I20: 8765342.533 | J20: 8685004.188 | K20: 10852693.05 | L20: 16378583.36 | M20: 20325293.53 | N20: 17849721.29 | O20: 11192899.03 | P20: 9166512 | Q20: 9676385 | R20: 14105659 | S20: 16734897
B21: =Hist_expenditure!B21 -> Connections | C21: =Hist_expenditure!C21 -> CI4 | D21: =Hist_expenditure!D21 -> Commercial/Industrial | E21: =Hist_expenditure!E21 -> Complex connection HV (customer connected at HV) | G21: 1299566.509 | H21: 1197965.065 | I21: 1137240.408 | J21: 634520.6481 | K21: 639012.9072 | L21: 1051148.331 | M21: 1087742.175 | N21: 977880.972 | O21: 2089608.563 | P21: 9629558 | Q21: 10784273 | R21: 14924840 | S21: 8367591
B22: =Hist_expenditure!B22 -> Connections | C22: =Hist_expenditure!C22 -> CI5 | D22: =Hist_expenditure!D22 -> Commercial/Industrial | E22: =Hist_expenditure!E22 -> Complex connection sub-transmission | G22: 0 | H22: 0 | I22: 0 | J22: 0 | K22: 0 | L22: 2737202.687 | M22: 2737202.687 | N22: 0 | O22: 0 | P22: 0 | Q22: 0 | R22: 0 | S22: 764251
B23: =Hist_expenditure!B23 -> Connections | C23: =Hist_expenditure!C23 -> S1 | D23: =Hist_expenditure!D23 -> Subdivision | E23: =Hist_expenditure!E23 -> Complex connection LV | G23: 0 | H23: 0 | I23: 0 | J23: 0 | K23: 0 | L23: 0 | M23: 0 | N23: 0 | O23: 0 | P23: 0 | Q23: 0 | R23: 0 | S23: 0
B24: =Hist_expenditure!B24 -> Connections | C24: =Hist_expenditure!C24 -> S2 | D24: =Hist_expenditure!D24 -> Subdivision | E24: =Hist_expenditure!E24 -> Complex connection HV (no upstream asset works) | G24: 0 | H24: 0 | I24: 0 | J24: 0 | K24: 0 | L24: 0 | M24: 0 | N24: 0 | O24: 0 | P24: 0 | Q24: 0 | R24: 0 | S24: 0
B25: =Hist_expenditure!B25 -> Connections | C25: =Hist_expenditure!C25 -> S3 | D25: =Hist_expenditure!D25 -> Subdivision | E25: =Hist_expenditure!E25 -> Complex connection HV (with upstream asset works) | G25: 4957249.576 | H25: 3842172.988 | I25: 3286545.756 | J25: 4086101.638 | K25: 6298453.382 | L25: 9321808.401 | M25: 13800072.86 | N25: 13111146.22 | O25: 12573585.26 | P25: 15456049 | Q25: 9808561 | R25: 8973722 | S25: 7441041
B26: =Hist_expenditure!B26 -> Connections | C26: =Hist_expenditure!C26 -> EG1 | D26: =Hist_expenditure!D26 -> Embedded generation | E26: =Hist_expenditure!E26 -> Simple connection LV | G26: 0 | H26: 0 | I26: 0 | J26: 0 | K26: 0 | L26: 0 | M26: 0 | N26: 0 | O26: 0 | P26: 0 | Q26: 0 | R26: 0 | S26: 0
B27: =Hist_expenditure!B27 -> Connections | C27: =Hist_expenditure!C27 -> EG2 | D27: =Hist_expenditure!D27 -> Embedded generation | E27: =Hist_expenditure!E27 -> Complex connection HV (small capacity) | G27: 377249.1814 | H27: 314626.8827 | I27: 309047.3571 | J27: 361730.3467 | K27: 367813.5463 | L27: 1341890.963 | M27: 2012166.855 | N27: 1508396.275 | O27: 8608713.294 | P27: 11205732 | Q27: 7400758 | R27: 3115794 | S27: 4728584
B28: =Hist_expenditure!B28 -> Connections | C28: =Hist_expenditure!C28 -> EG3 | D28: =Hist_expenditure!D28 -> Embedded generation | E28: =Hist_expenditure!E28 -> Complex connection HV (large capacity) | G28: 2949341.714 | H28: 585857.7664 | I28: 0 | J28: 1017753.278 | K28: 1348364.092 | L28: 4594051.696 | M28: 14277636.86 | N28: 13586809.02 | O28: 4184279.54 | P28: 3555903 | Q28: 3154894 | R28: 5078962 | S28: 13365148
C29: Total | G29: =SUM(G15:G28) -> 40498262.65 | H29: =SUM(H15:H28) -> 39876410.93 | I29: 38871748.29 | J29: 50539687.31 | K29: 59743707.68 | L29: 73578469.27 | M29: 98160966.12 | N29: 101535048.2 | O29: 98236894.24 | P29: 93104221.98 | Q29: 81689238.58 | R29: 88240411 | S29: 96330227

Sheet Unit_rates
A1: =Assumptions!$A$1 -> Powercor
A2: =Assumptions!$A$2 -> Connections
A3: Unit rates
B7: =Assumptions!B17 -> 2026/27 - 2030/31 reg period | G7: =Assumptions!G17 -> FALSE | H7: =Assumptions!H17 -> FALSE | I7: =Assumptions!I17 -> FALSE | J7: =Assumptions!J17 -> FALSE | K7: =Assumptions!K17 -> FALSE | L7: =Assumptions!L17 -> FALSE | M7: =Assumptions!M17 -> FALSE | N7: =Assumptions!N17 -> FALSE | O7: =Assumptions!O17 -> FALSE | P7: =Assumptions!P17 -> FALSE | Q7: =Assumptions!Q17 -> FALSE | R7: =Assumptions!R17 -> FALSE | S7: =Assumptions!S17 -> FALSE
B8: =Assumptions!B18 -> Forecast period | G8: =Assumptions!G18 -> FALSE | H8: =Assumptions!H18 -> FALSE | I8: =Assumptions!I18 -> FALSE | J8: =Assumptions!J18 -> FALSE | K8: =Assumptions!K18 -> FALSE | L8: =Assumptions!L18 -> FALSE | M8: =Assumptions!M18 -> FALSE | N8: =Assumptions!N18 -> FALSE | O8: =Assumptions!O18 -> FALSE | P8: =Assumptions!P18 -> FALSE | Q8: =Assumptions!Q18 -> FALSE | R8: =Assumptions!R18 -> FALSE | S8: =Assumptions!S18 -> FALSE
B9: =Assumptions!B19 -> Fin year end | G9: =Assumptions!G19 -> 2012 | H9: =Assumptions!H19 -> 2013 | I9: =Assumptions!I19 -> 2014 | J9: =Assumptions!J19 -> 2015 | K9: =Assumptions!K19 -> 2016 | L9: =Assumptions!L19 -> 2017 | M9: =Assumptions!M19 -> 2018 | N9: =Assumptions!N19 -> 2019 | O9: =Assumptions!O19 -> 2020 | P9: =Assumptions!P19 -> 2021 | Q9: =Assumptions!Q19 -> 2022 | R9: =Assumptions!R19 -> 2023 | S9: =Assumptions!S19 -> 2024
B10: =Assumptions!B20 -> Basis | G10: =Assumptions!G20 -> Actual | H10: =Assumptions!H20 -> Actual | I10: =Assumptions!I20 -> Actual | J10: =Assumptions!J20 -> Actual | K10: =Assumptions!K20 -> Actual | L10: =Assumptions!L20 -> Actual | M10: =Assumptions!M20 -> Actual | N10: =Assumptions!N20 -> Actual | O10: =Assumptions!O20 -> Actual | P10: =Assumptions!P20 -> Actual | Q10: =Assumptions!Q20 -> Actual | R10: =Assumptions!R20 -> Actual | S10: =Assumptions!S20 -> Actual
B13: =Hist_vol!B$13 -> Category | C13: Type | D13: =Hist_vol!D$13 -> RIN category | E13: =Hist_vol!E$13 -> Description | G13: =Assumptions!G$24 -> 2011/12 | H13: =Assumptions!H$24 -> 2012/13 | I13: =Assumptions!I$24 -> 2013/14 | J13: =Assumptions!J$24 -> 2014/15 | K13: =Assumptions!K$24 -> 2015/16 | L13: =Assumptions!L$24 -> 2016/17 | M13: =Assumptions!M$24 -> 2017/18 | N13: =Assumptions!N$24 -> 2018/19 | O13: =Assumptions!O$24 -> 2019/20 | P13: =Assumptions!P$24 -> 2020/21 | Q13: =Assumptions!Q$24 -> 2021/22 | R13: =Assumptions!R$24 -> 2022/23 | S13: =Assumptions!S$24 -> 2023/24
B14: Unit rate ($ June 2026) | S14: Base year
B15: =Hist_vol!B15 -> Connections | C15: =Hist_vol!C15 -> R1 | D15: =Hist_vol!D15 -> Residential | E15: =Hist_vol!E15 -> Simple connection LV | G15: =IF(Hist_vol!G15=0,0, Hist_expenditure!G15*Assumptions!G$29/Hist_vol!G15) -> 384.2086331 | H15: =IF(Hist_vol!H15=0,0, Hist_expenditure!H15*Assumptions!H$29/Hist_vol!H15) -> 417.9209915 | I15: =IF(Hist_vol!I15=0,0, Hist_expenditure!I15*Assumptions!I$29/Hist_vol!I15) -> 442.4721265 | J15: =IF(Hist_vol!J15=0,0, Hist_expenditure!J15*Assumptions!J$29/Hist_vol!J15) -> 431.7146487 | K15: =IF(Hist_vol!K15=0,0, Hist_expenditure!K15*Assumptions!K$29/Hist_vol!K15) -> 413.5023128 | L15: =IF(Hist_vol!L15=0,0, Hist_expenditure!L15*Assumptions!L$29/Hist_vol!L15) -> 0 | M15: =IF(Hist_vol!M15=0,0, Hist_expenditure!M15*Assumptions!M$29/Hist_vol!M15) -> 0 | N15: =IF(Hist_vol!N15=0,0, Hist_expenditure!N15*Assumptions!N$29/Hist_vol!N15) -> 0 | O15: =IF(Hist_vol!O15=0,0, Hist_expenditure!O15*Assumptions!O$29/Hist_vol!O15) -> 0 | P15: =IF(Hist_vol!P15=0,0, Hist_expenditure!P15*Assumptions!P$29/Hist_vol!P15) -> 0 | Q15: =IF(Hist_vol!Q15=0,0, Hist_expenditure!Q15*Assumptions!Q$29/Hist_vol!Q15) -> 0 | R15: =IF(Hist_vol!R15=0,0, Hist_expenditure!R15*Assumptions!R$29/Hist_vol!R15) -> 0 | S15: =IF(Hist_vol!S15=0,0, Hist_expenditure!S15*Assumptions!S$29/Hist_vol!S15) -> 0
B16: =Hist_vol!B16 -> Connections | C16: =Hist_vol!C16 -> R2 | D16: =Hist_vol!D16 -> Residential | E16: =Hist_vol!E16 -> Complex connection LV | G16: =IF(Hist_vol!G16=0,0, Hist_expenditure!G16*Assumptions!G$29/Hist_vol!G16) -> 7770.697727 | H16: =IF(Hist_vol!H16=0,0, Hist_expenditure!H16*Assumptions!H$29/Hist_vol!H16) -> 7944.414689 | I16: =IF(Hist_vol!I16=0,0, Hist_expenditure!I16*Assumptions!I$29/Hist_vol!I16) -> 8006.417417 | J16: =IF(Hist_vol!J16=0,0, Hist_expenditure!J16*Assumptions!J$29/Hist_vol!J16) -> 8211.317833 | K16: =IF(Hist_vol!K16=0,0, Hist_expenditure!K16*Assumptions!K$29/Hist_vol!K16) -> 8840.640361 | L16: =IF(Hist_vol!L16=0,0, Hist_expenditure!L16*Assumptions!L$29/Hist_vol!L16) -> 9333.749244 | M16: =IF(Hist_vol!M16=0,0, Hist_expenditure!M16*Assumptions!M$29/Hist_vol!M16) -> 9007.780286 | N16: =IF(Hist_vol!N16=0,0, Hist_expenditure!N16*Assumptions!N$29/Hist_vol!N16) -> 9704.082502 | O16: =IF(Hist_vol!O16=0,0, Hist_expenditure!O16*Assumptions!O$29/Hist_vol!O16) -> 10580.83737 | P16: =IF(Hist_vol!P16=0,0, Hist_expenditure!P16*Assumptions!P$29/Hist_vol!P16) -> 10743.92626 | Q16: =IF(Hist_vol!Q16=0,0, Hist_expenditure!Q16*Assumptions!Q$29/Hist_vol!Q16) -> 14073.33737 | R16: =IF(Hist_vol!R16=0,0, Hist_expenditure!R16*Assumptions!R$29/Hist_vol!R16) -> 19037.64354 | S16: =IF(Hist_vol!S16=0,0, Hist_expenditure!S16*Assumptions!S$29/Hist_vol!S16) -> 17746.02792
B17: =Hist_vol!B17 -> Connections | C17: =Hist_vol!C17 -> R3 | D17: =Hist_vol!D17 -> Residential | E17: =Hist_vol!E17 -> Complex connection HV | G17: =IF(Hist_vol!G17=0,0, Hist_expenditure!G17*Assumptions!G$29/Hist_vol!G17) -> 31924.33276 | H17: =IF(Hist_vol!H17=0,0, Hist_expenditure!H17*Assumptions!H$29/Hist_vol!H17) -> 33358.35463 | I17: =IF(Hist_vol!I17=0,0, Hist_expenditure!I17*Assumptions!I$29/Hist_vol!I17) -> 34391.81082 | J17: =IF(Hist_vol!J17=0,0, Hist_expenditure!J17*Assumptions!J$29/Hist_vol!J17) -> 34987.16984 | K17: =IF(Hist_vol!K17=0,0, Hist_expenditure!K17*Assumptions!K$29/Hist_vol!K17) -> 37111.8797 | L17: =IF(Hist_vol!L17=0,0, Hist_expenditure!L17*Assumptions!L$29/Hist_vol!L17) -> 34702.09815 | M17: =IF(Hist_vol!M17=0,0, Hist_expenditure!M17*Assumptions!M$29/Hist_vol!M17) -> 28831.80217 | N17: =IF(Hist_vol!N17=0,0, Hist_expenditure!N17*Assumptions!N$29/Hist_vol!N17) -> 33320.39843 | O17: =IF(Hist_vol!O17=0,0, Hist_expenditure!O17*Assumptions!O$29/Hist_vol!O17) -> 45051.29261 | P17: =IF(Hist_vol!P17=0,0, Hist_expenditure!P17*Assumptions!P$29/Hist_vol!P17) -> 41818.52162 | Q17: =IF(Hist_vol!Q17=0,0, Hist_expenditure!Q17*Assumptions!Q$29/Hist_vol!Q17) -> 45392.27334 | R17: =IF(Hist_vol!R17=0,0, Hist_expenditure!R17*Assumptions!R$29/Hist_vol!R17) -> 54131.63862 | S17: =IF(Hist_vol!S17=0,0, Hist_expenditure!S17*Assumptions!S$29/Hist_vol!S17) -> 50051.04589
B18: =Hist_vol!B18 -> Connections | C18: =Hist_vol!C18 -> CI1 | D18: =Hist_vol!D18 -> Commercial/Industrial | E18: =Hist_vol!E18 -> Simple connection LV | G18: =IF(Hist_vol!G18=0,0, Hist_expenditure!G18*Assumptions!G$29/Hist_vol!G18) -> 381.3969247 | H18: =IF(Hist_vol!H18=0,0, Hist_expenditure!H18*Assumptions!H$29/Hist_vol!H18) -> 419.0378991 | I18: =IF(Hist_vol!I18=0,0, Hist_expenditure!I18*Assumptions!I$29/Hist_vol!I18) -> 435.8551595 | J18: =IF(Hist_vol!J18=0,0, Hist_expenditure!J18*Assumptions!J$29/Hist_vol!J18) -> 457.472081 | K18: =IF(Hist_vol!K18=0,0, Hist_expenditure!K18*Assumptions!K$29/Hist_vol!K18) -> 480.8744183 | L18: =IF(Hist_vol!L18=0,0, Hist_expenditure!L18*Assumptions!L$29/Hist_vol!L18) -> 0 | M18: =IF(Hist_vol!M18=0,0, Hist_expenditure!M18*Assumptions!M$29/Hist_vol!M18) -> 0 | N18: =IF(Hist_vol!N18=0,0, Hist_expenditure!N18*Assumptions!N$29/Hist_vol!N18) -> 0 | O18: =IF(Hist_vol!O18=0,0, Hist_expenditure!O18*Assumptions!O$29/Hist_vol!O18) -> 0 | P18: =IF(Hist_vol!P18=0,0, Hist_expenditure!P18*Assumptions!P$29/Hist_vol!P18) -> 0 | Q18: =IF(Hist_vol!Q18=0,0, Hist_expenditure!Q18*Assumptions!Q$29/Hist_vol!Q18) -> 0 | R18: =IF(Hist_vol!R18=0,0, Hist_expenditure!R18*Assumptions!R$29/Hist_vol!R18) -> 0 | S18: =IF(Hist_vol!S18=0,0, Hist_expenditure!S18*Assumptions!S$29/Hist_vol!S18) -> 0
B19: =Hist_vol!B19 -> Connections | C19: =Hist_vol!C19 -> CI2 | D19: =Hist_vol!D19 -> Commercial/Industrial | E19: =Hist_vol!E19 -> Complex connection HV (customer connected at LV, minor HV works) | G19: =IF(Hist_vol!G19=0,0, Hist_expenditure!G19*Assumptions!G$29/Hist_vol!G19) -> 0 | H19: =IF(Hist_vol!H19=0,0, Hist_expenditure!H19*Assumptions!H$29/Hist_vol!H19) -> 0 | I19: =IF(Hist_vol!I19=0,0, Hist_expenditure!I19*Assumptions!I$29/Hist_vol!I19) -> 0 | J19: =IF(Hist_vol!J19=0,0, Hist_expenditure!J19*Assumptions!J$29/Hist_vol!J19) -> 0 | K19: =IF(Hist_vol!K19=0,0, Hist_expenditure!K19*Assumptions!K$29/Hist_vol!K19) -> 101388.2368 | L19: =IF(Hist_vol!L19=0,0, Hist_expenditure!L19*Assumptions!L$29/Hist_vol!L19) -> 102969.0329 | M19: =IF(Hist_vol!M19=0,0, Hist_expenditure!M19*Assumptions!M$29/Hist_vol!M19) -> 93256.48605 | N19: =IF(Hist_vol!N19=0,0, Hist_expenditure!N19*Assumptions!N$29/Hist_vol!N19) -> 126538.5662 | O19: =IF(Hist_vol!O19=0,0, Hist_expenditure!O19*Assumptions!O$29/Hist_vol!O19) -> 215795.7253 | P19: =IF(Hist_vol!P19=0,0, Hist_expenditure!P19*Assumptions!P$29/Hist_vol!P19) -> 141653.4818 | Q19: =IF(Hist_vol!Q19=0,0, Hist_expenditure!Q19*Assumptions!Q$29/Hist_vol!Q19) -> 136796.6916 | R19: =IF(Hist_vol!R19=0,0, Hist_expenditure!R19*Assumptions!R$29/Hist_vol!R19) -> 170832.7712 | S19: =IF(Hist_vol!S19=0,0, Hist_expenditure!S19*Assumptions!S$29/Hist_vol!S19) -> 147051.2597
B20: =Hist_vol!B20 -> Connections | C20: =Hist_vol!C20 -> CI3 | D20: =Hist_vol!D20 -> Commercial/Industrial | E20: =Hist_vol!E20 -> Complex connection HV (customer connected at LV, upstream asset works) | G20: =IF(Hist_vol!G20=0,0, Hist_expenditure!G20*Assumptions!G$29/Hist_vol!G20) -> 97424.13139 | H20: =IF(Hist_vol!H20=0,0, Hist_expenditure!H20*Assumptions!H$29/Hist_vol!H20) -> 104870.4838 | I20: =IF(Hist_vol!I20=0,0, Hist_expenditure!I20*Assumptions!I$29/Hist_vol!I20) -> 109667.3581 | J20: =IF(Hist_vol!J20=0,0, Hist_expenditure!J20*Assumptions!J$29/Hist_vol!J20) -> 103379.7662 | K20: =IF(Hist_vol!K20=0,0, Hist_expenditure!K20*Assumptions!K$29/Hist_vol!K20) -> 102655.8395 | L20: =IF(Hist_vol!L20=0,0, Hist_expenditure!L20*Assumptions!L$29/Hist_vol!L20) -> 99446.91627 | M20: =IF(Hist_vol!M20=0,0, Hist_expenditure!M20*Assumptions!M$29/Hist_vol!M20) -> 87310.87279 | N20: =IF(Hist_vol!N20=0,0, Hist_expenditure!N20*Assumptions!N$29/Hist_vol!N20) -> 90385.9002 | O20: =IF(Hist_vol!O20=0,0, Hist_expenditure!O20*Assumptions!O$29/Hist_vol!O20) -> 114937.0902 | P20: =IF(Hist_vol!P20=0,0, Hist_expenditure!P20*Assumptions!P$29/Hist_vol!P20) -> 127981.8375 | Q20: =IF(Hist_vol!Q20=0,0, Hist_expenditure!Q20*Assumptions!Q$29/Hist_vol!Q20) -> 127719.9816 | R20: =IF(Hist_vol!R20=0,0, Hist_expenditure!R20*Assumptions!R$29/Hist_vol!R20) -> 133085.3434 | S20: =IF(Hist_vol!S20=0,0, Hist_expenditure!S20*Assumptions!S$29/Hist_vol!S20) -> 142401.7525
B21: =Hist_vol!B21 -> Connections | C21: =Hist_vol!C21 -> CI4 | D21: =Hist_vol!D21 -> Commercial/Industrial | E21: =Hist_vol!E21 -> Complex connection HV (customer connected at HV) | G21: =IF(Hist_vol!G21=0,0, Hist_expenditure!G21*Assumptions!G$29/Hist_vol!G21) -> 961576.1891 | H21: =IF(Hist_vol!H21=0,0, Hist_expenditure!H21*Assumptions!H$29/Hist_vol!H21) -> 745280.0092 | I21: =IF(Hist_vol!I21=0,0, Hist_expenditure!I21*Assumptions!I$29/Hist_vol!I21) -> 763116.4379 | J21: =IF(Hist_vol!J21=0,0, Hist_expenditure!J21*Assumptions!J$29/Hist_vol!J21) -> 551675.9724 | K21: =IF(Hist_vol!K21=0,0, Hist_expenditure!K21*Assumptions!K$29/Hist_vol!K21) -> 192654.0674 | L21: =IF(Hist_vol!L21=0,0, Hist_expenditure!L21*Assumptions!L$29/Hist_vol!L21) -> 214490.0448 | M21: =IF(Hist_vol!M21=0,0, Hist_expenditure!M21*Assumptions!M$29/Hist_vol!M21) -> 335771.466 | N21: =IF(Hist_vol!N21=0,0, Hist_expenditure!N21*Assumptions!N$29/Hist_vol!N21) -> 865879.0917 | O21: =IF(Hist_vol!O21=0,0, Hist_expenditure!O21*Assumptions!O$29/Hist_vol!O21) -> 705530.8835 | P21: =IF(Hist_vol!P21=0,0, Hist_expenditure!P21*Assumptions!P$29/Hist_vol!P21) -> 919446.9972 | Q21: =IF(Hist_vol!Q21=0,0, Hist_expenditure!Q21*Assumptions!Q$29/Hist_vol!Q21) -> 1646562.827 | R21: =IF(Hist_vol!R21=0,0, Hist_expenditure!R21*Assumptions!R$29/Hist_vol!R21) -> 1672333.491 | S21: =IF(Hist_vol!S21=0,0, Hist_expenditure!S21*Assumptions!S$29/Hist_vol!S21) -> 4240378.309
B22: =Hist_vol!B22 -> Connections | C22: =Hist_vol!C22 -> CI5 | D22: =Hist_vol!D22 -> Commercial/Industrial | E22: =Hist_vol!E22 -> Complex connection sub-transmission | G22: =IF(Hist_vol!G22=0,0, Hist_expenditure!G22*Assumptions!G$29/Hist_vol!G22) -> 0 | H22: =IF(Hist_vol!H22=0,0, Hist_expenditure!H22*Assumptions!H$29/Hist_vol!H22) -> 0 | I22: =IF(Hist_vol!I22=0,0, Hist_expenditure!I22*Assumptions!I$29/Hist_vol!I22) -> 0 | J22: =IF(Hist_vol!J22=0,0, Hist_expenditure!J22*Assumptions!J$29/Hist_vol!J22) -> 0 | K22: =IF(Hist_vol!K22=0,0, Hist_expenditure!K22*Assumptions!K$29/Hist_vol!K22) -> 0 | L22: =IF(Hist_vol!L22=0,0, Hist_expenditure!L22*Assumptions!L$29/Hist_vol!L22) -> 9116012.714 | M22: =IF(Hist_vol!M22=0,0, Hist_expenditure!M22*Assumptions!M$29/Hist_vol!M22) -> 8943080.224 | N22: =IF(Hist_vol!N22=0,0, Hist_expenditure!N22*Assumptions!N$29/Hist_vol!N22) -> 0 | O22: =IF(Hist_vol!O22=0,0, Hist_expenditure!O22*Assumptions!O$29/Hist_vol!O22) -> 0 | P22: =IF(Hist_vol!P22=0,0, Hist_expenditure!P22*Assumptions!P$29/Hist_vol!P22) -> 0 | Q22: =IF(Hist_vol!Q22=0,0, Hist_expenditure!Q22*Assumptions!Q$29/Hist_vol!Q22) -> 0 | R22: =IF(Hist_vol!R22=0,0, Hist_expenditure!R22*Assumptions!R$29/Hist_vol!R22) -> 0 | S22: =IF(Hist_vol!S22=0,0, Hist_expenditure!S22*Assumptions!S$29/Hist_vol!S22) -> 0
B23: =Hist_vol!B23 -> Connections | C23: =Hist_vol!C23 -> S1 | D23: =Hist_vol!D23 -> Subdivision | E23: =Hist_vol!E23 -> Complex connection LV | G23: =IF(Hist_vol!G23=0,0, Hist_expenditure!G23*Assumptions!G$29/Hist_vol!G23) -> 0 | H23: =IF(Hist_vol!H23=0,0, Hist_expenditure!H23*Assumptions!H$29/Hist_vol!H23) -> 0 | I23: =IF(Hist_vol!I23=0,0, Hist_expenditure!I23*Assumptions!I$29/Hist_vol!I23) -> 0 | J23: =IF(Hist_vol!J23=0,0, Hist_expenditure!J23*Assumptions!J$29/Hist_vol!J23) -> 0 | K23: =IF(Hist_vol!K23=0,0, Hist_expenditure!K23*Assumptions!K$29/Hist_vol!K23) -> 0 | L23: =IF(Hist_vol!L23=0,0, Hist_expenditure!L23*Assumptions!L$29/Hist_vol!L23) -> 0 | M23: =IF(Hist_vol!M23=0,0, Hist_expenditure!M23*Assumptions!M$29/Hist_vol!M23) -> 0 | N23: =IF(Hist_vol!N23=0,0, Hist_expenditure!N23*Assumptions!N$29/Hist_vol!N23) -> 0 | O23: =IF(Hist_vol!O23=0,0, Hist_expenditure!O23*Assumptions!O$29/Hist_vol!O23) -> 0 | P23: =IF(Hist_vol!P23=0,0, Hist_expenditure!P23*Assumptions!P$29/Hist_vol!P23) -> 0 | Q23: =IF(Hist_vol!Q23=0,0, Hist_expenditure!Q23*Assumptions!Q$29/Hist_vol!Q23) -> 0 | R23: =IF(Hist_vol!R23=0,0, Hist_expenditure!R23*Assumptions!R$29/Hist_vol!R23) -> 0 | S23: =IF(Hist_vol!S23=0,0, Hist_expenditure!S23*Assumptions!S$29/Hist_vol!S23) -> 0
B24: =Hist_vol!B24 -> Connections | C24: =Hist_vol!C24 -> S2 | D24: =Hist_vol!D24 -> Subdivision | E24: =Hist_vol!E24 -> Complex connection HV (no upstream asset works) | G24: =IF(Hist_vol!G24=0,0, Hist_expenditure!G24*Assumptions!G$29/Hist_vol!G24) -> 0 | H24: =IF(Hist_vol!H24=0,0, Hist_expenditure!H24*Assumptions!H$29/Hist_vol!H24) -> 0 | I24: =IF(Hist_vol!I24=0,0, Hist_expenditure!I24*Assumptions!I$29/Hist_vol!I24) -> 0 | J24: =IF(Hist_vol!J24=0,0, Hist_expenditure!J24*Assumptions!J$29/Hist_vol!J24) -> 0 | K24: =IF(Hist_vol!K24=0,0, Hist_expenditure!K24*Assumptions!K$29/Hist_vol!K24) -> 0 | L24: =IF(Hist_vol!L24=0,0, Hist_expenditure!L24*Assumptions!L$29/Hist_vol!L24) -> 0 | M24: =IF(Hist_vol!M24=0,0, Hist_expenditure!M24*Assumptions!M$29/Hist_vol!M24) -> 0 | N24: =IF(Hist_vol!N24=0,0, Hist_expenditure!N24*Assumptions!N$29/Hist_vol!N24) -> 0 | O24: =IF(Hist_vol!O24=0,0, Hist_expenditure!O24*Assumptions!O$29/Hist_vol!O24) -> 0 | P24: =IF(Hist_vol!P24=0,0, Hist_expenditure!P24*Assumptions!P$29/Hist_vol!P24) -> 0 | Q24: =IF(Hist_vol!Q24=0,0, Hist_expenditure!Q24*Assumptions!Q$29/Hist_vol!Q24) -> 0 | R24: =IF(Hist_vol!R24=0,0, Hist_expenditure!R24*Assumptions!R$29/Hist_vol!R24) -> 0 | S24: =IF(Hist_vol!S24=0,0, Hist_expenditure!S24*Assumptions!S$29/Hist_vol!S24) -> 0
B25: =Hist_vol!B25 -> Connections | C25: =Hist_vol!C25 -> S3 | D25: =Hist_vol!D25 -> Subdivision | E25: =Hist_vol!E25 -> Complex connection HV (with upstream asset works) | G25: =IF(Hist_vol!G25=0,0, Hist_expenditure!G25*Assumptions!G$29/Hist_vol!G25) -> 97425.62048 | H25: =IF(Hist_vol!H25=0,0, Hist_expenditure!H25*Assumptions!H$29/Hist_vol!H25) -> 112050.3603 | I25: =IF(Hist_vol!I25=0,0, Hist_expenditure!I25*Assumptions!I$29/Hist_vol!I25) -> 101439.6941 | J25: =IF(Hist_vol!J25=0,0, Hist_expenditure!J25*Assumptions!J$29/Hist_vol!J25) -> 98342.48934 | K25: =IF(Hist_vol!K25=0,0, Hist_expenditure!K25*Assumptions!K$29/Hist_vol!K25) -> 114524.9649 | L25: =IF(Hist_vol!L25=0,0, Hist_expenditure!L25*Assumptions!L$29/Hist_vol!L25) -> 113667.3243 | M25: =IF(Hist_vol!M25=0,0, Hist_expenditure!M25*Assumptions!M$29/Hist_vol!M25) -> 82036.67965 | N25: =IF(Hist_vol!N25=0,0, Hist_expenditure!N25*Assumptions!N$29/Hist_vol!N25) -> 65568.92244 | O25: =IF(Hist_vol!O25=0,0, Hist_expenditure!O25*Assumptions!O$29/Hist_vol!O25) -> 65512.86642 | P25: =IF(Hist_vol!P25=0,0, Hist_expenditure!P25*Assumptions!P$29/Hist_vol!P25) -> 77020.25784 | Q25: =IF(Hist_vol!Q25=0,0, Hist_expenditure!Q25*Assumptions!Q$29/Hist_vol!Q25) -> 51895.54925 | R25: =IF(Hist_vol!R25=0,0, Hist_expenditure!R25*Assumptions!R$29/Hist_vol!R25) -> 55517.67296 | S25: =IF(Hist_vol!S25=0,0, Hist_expenditure!S25*Assumptions!S$29/Hist_vol!S25) -> 62263.57279
B26: =Hist_vol!B26 -> Connections | C26: =Hist_vol!C26 -> EG1 | D26: =Hist_vol!D26 -> Embedded generation | E26: =Hist_vol!E26 -> Simple connection LV | G26: =IF(Hist_vol!G26=0,0, Hist_expenditure!G26*Assumptions!G$29/Hist_vol!G26) -> 0 | H26: =IF(Hist_vol!H26=0,0, Hist_expenditure!H26*Assumptions!H$29/Hist_vol!H26) -> 0 | I26: =IF(Hist_vol!I26=0,0, Hist_expenditure!I26*Assumptions!I$29/Hist_vol!I26) -> 0 | J26: =IF(Hist_vol!J26=0,0, Hist_expenditure!J26*Assumptions!J$29/Hist_vol!J26) -> 0 | K26: =IF(Hist_vol!K26=0,0, Hist_expenditure!K26*Assumptions!K$29/Hist_vol!K26) -> 0 | L26: =IF(Hist_vol!L26=0,0, Hist_expenditure!L26*Assumptions!L$29/Hist_vol!L26) -> 0 | M26: =IF(Hist_vol!M26=0,0, Hist_expenditure!M26*Assumptions!M$29/Hist_vol!M26) -> 0 | N26: =IF(Hist_vol!N26=0,0, Hist_expenditure!N26*Assumptions!N$29/Hist_vol!N26) -> 0 | O26: =IF(Hist_vol!O26=0,0, Hist_expenditure!O26*Assumptions!O$29/Hist_vol!O26) -> 0 | P26: =IF(Hist_vol!P26=0,0, Hist_expenditure!P26*Assumptions!P$29/Hist_vol!P26) -> 0 | Q26: =IF(Hist_vol!Q26=0,0, Hist_expenditure!Q26*Assumptions!Q$29/Hist_vol!Q26) -> 0 | R26: =IF(Hist_vol!R26=0,0, Hist_expenditure!R26*Assumptions!R$29/Hist_vol!R26) -> 0 | S26: =IF(Hist_vol!S26=0,0, Hist_expenditure!S26*Assumptions!S$29/Hist_vol!S26) -> 0
B27: =Hist_vol!B27 -> Connections | C27: =Hist_vol!C27 -> EG2 | D27: =Hist_vol!D27 -> Embedded generation | E27: =Hist_vol!E27 -> Complex connection HV (small capacity) | G27: =IF(Hist_vol!G27=0,0, Hist_expenditure!G27*Assumptions!G$29/Hist_vol!G27) -> 474026.1476 | H27: =IF(Hist_vol!H27=0,0, Hist_expenditure!H27*Assumptions!H$29/Hist_vol!H27) -> 439665.5171 | I27: =IF(Hist_vol!I27=0,0, Hist_expenditure!I27*Assumptions!I$29/Hist_vol!I27) -> 288428.4526 | J27: =IF(Hist_vol!J27=0,0, Hist_expenditure!J27*Assumptions!J$29/Hist_vol!J27) -> 63411.4188 | K27: =IF(Hist_vol!K27=0,0, Hist_expenditure!K27*Assumptions!K$29/Hist_vol!K27) -> 27350.81756 | L27: =IF(Hist_vol!L27=0,0, Hist_expenditure!L27*Assumptions!L$29/Hist_vol!L27) -> 52610.18939 | M27: =IF(Hist_vol!M27=0,0, Hist_expenditure!M27*Assumptions!M$29/Hist_vol!M27) -> 89855.24765 | N27: =IF(Hist_vol!N27=0,0, Hist_expenditure!N27*Assumptions!N$29/Hist_vol!N27) -> 472679.9441 | O27: =IF(Hist_vol!O27=0,0, Hist_expenditure!O27*Assumptions!O$29/Hist_vol!O27) -> 790573.6008 | P27: =IF(Hist_vol!P27=0,0, Hist_expenditure!P27*Assumptions!P$29/Hist_vol!P27) -> 426932.6346 | Q27: =IF(Hist_vol!Q27=0,0, Hist_expenditure!Q27*Assumptions!Q$29/Hist_vol!Q27) -> 346597.1517 | R27: =IF(Hist_vol!R27=0,0, Hist_expenditure!R27*Assumptions!R$29/Hist_vol!R27) -> 427484.566 | S27: =IF(Hist_vol!S27=0,0, Hist_expenditure!S27*Assumptions!S$29/Hist_vol!S27) -> 1000056.348
B28: =Hist_vol!B28 -> Connections | C28: =Hist_vol!C28 -> EG3 | D28: =Hist_vol!D28 -> Embedded generation | E28: =Hist_vol!E28 -> Complex connection HV (large capacity) | G28: =IF(Hist_vol!G28=0,0, Hist_expenditure!G28*Assumptions!G$29/Hist_vol!G28) -> 8038637.96 | H28: =IF(Hist_vol!H28=0,0, Hist_expenditure!H28*Assumptions!H$29/Hist_vol!H28) -> 3928125.887 | I28: =IF(Hist_vol!I28=0,0, Hist_expenditure!I28*Assumptions!I$29/Hist_vol!I28) -> 0 | J28: =IF(Hist_vol!J28=0,0, Hist_expenditure!J28*Assumptions!J$29/Hist_vol!J28) -> 2168781.033 | K28: =IF(Hist_vol!K28=0,0, Hist_expenditure!K28*Assumptions!K$29/Hist_vol!K28) -> 1966997.325 | L28: =IF(Hist_vol!L28=0,0, Hist_expenditure!L28*Assumptions!L$29/Hist_vol!L28) -> 2234675.238 | M28: =IF(Hist_vol!M28=0,0, Hist_expenditure!M28*Assumptions!M$29/Hist_vol!M28) -> 4245910.301 | N28: =IF(Hist_vol!N28=0,0, Hist_expenditure!N28*Assumptions!N$29/Hist_vol!N28) -> 7421277.017 | O28: =IF(Hist_vol!O28=0,0, Hist_expenditure!O28*Assumptions!O$29/Hist_vol!O28) -> 8015231.668 | P28: =IF(Hist_vol!P28=0,0, Hist_expenditure!P28*Assumptions!P$29/Hist_vol!P28) -> 0 | Q28: =IF(Hist_vol!Q28=0,0, Hist_expenditure!Q28*Assumptions!Q$29/Hist_vol!Q28) -> 5417576.118 | R28: =IF(Hist_vol!R28=0,0, Hist_expenditure!R28*Assumptions!R$29/Hist_vol!R28) -> 4180978.34 | S28: =IF(Hist_vol!S28=0,0, Hist_expenditure!S28*Assumptions!S$29/Hist_vol!S28) -> 11314982.88

Sheet CC_ratio
A1: =Assumptions!$A$1 -> Powercor
A2: =Assumptions!$A$2 -> Connections
A3: Customer contribution ratio
B7: =Assumptions!B17 -> 2026/27 - 2030/31 reg period | G7: =Assumptions!G17 -> FALSE | H7: =Assumptions!H17 -> FALSE | I7: =Assumptions!I17 -> FALSE | J7: =Assumptions!J17 -> FALSE | K7: =Assumptions!K17 -> FALSE | L7: =Assumptions!L17 -> FALSE | M7: =Assumptions!M17 -> FALSE | N7: =Assumptions!N17 -> FALSE | O7: =Assumptions!O17 -> FALSE | P7: =Assumptions!P17 -> FALSE | Q7: =Assumptions!Q17 -> FALSE | R7: =Assumptions!R17 -> FALSE | S7: =Assumptions!S17 -> FALSE | T7: =Assumptions!T17 -> FALSE | U7: =Assumptions!U17 -> FALSE | V7: =Assumptions!V17 -> TRUE | W7: =Assumptions!W17 -> TRUE | X7: =Assumptions!X17 -> TRUE | Y7: =Assumptions!Y17 -> TRUE | Z7: =Assumptions!Z17 -> TRUE
B8: =Assumptions!B18 -> Forecast period | G8: =Assumptions!G18 -> FALSE | H8: =Assumptions!H18 -> FALSE | I8: =Assumptions!I18 -> FALSE | J8: =Assumptions!J18 -> FALSE | K8: =Assumptions!K18 -> FALSE | L8: =Assumptions!L18 -> FALSE | M8: =Assumptions!M18 -> FALSE | N8: =Assumptions!N18 -> FALSE | O8: =Assumptions!O18 -> FALSE | P8: =Assumptions!P18 -> FALSE | Q8: =Assumptions!Q18 -> FALSE | R8: =Assumptions!R18 -> FALSE | S8: =Assumptions!S18 -> FALSE | T8: =Assumptions!T18 -> TRUE | U8: =Assumptions!U18 -> TRUE | V8: =Assumptions!V18 -> TRUE | W8: =Assumptions!W18 -> TRUE | X8: =Assumptions!X18 -> TRUE | Y8: =Assumptions!Y18 -> TRUE | Z8: =Assumptions!Z18 -> TRUE
B9: =Assumptions!B19 -> Fin year end | G9: =Assumptions!G19 -> 2012 | H9: =Assumptions!H19 -> 2013 | I9: =Assumptions!I19 -> 2014 | J9: =Assumptions!J19 -> 2015 | K9: =Assumptions!K19 -> 2016 | L9: =Assumptions!L19 -> 2017 | M9: =Assumptions!M19 -> 2018 | N9: =Assumptions!N19 -> 2019 | O9: =Assumptions!O19 -> 2020 | P9: =Assumptions!P19 -> 2021 | Q9: =Assumptions!Q19 -> 2022 | R9: =Assumptions!R19 -> 2023 | S9: =Assumptions!S19 -> 2024 | T9: =Assumptions!T19 -> 2025 | U9: =Assumptions!U19 -> 2026 | V9: =Assumptions!V19 -> 2027 | W9: =Assumptions!W19 -> 2028 | X9: =Assumptions!X19 -> 2029 | Y9: =Assumptions!Y19 -> 2030 | Z9: =Assumptions!Z19 -> 2031
B10: =Assumptions!B20 -> Basis | G10: =Assumptions!G20 -> Actual | H10: =Assumptions!H20 -> Actual | I10: =Assumptions!I20 -> Actual | J10: =Assumptions!J20 -> Actual | K10: =Assumptions!K20 -> Actual | L10: =Assumptions!L20 -> Actual | M10: =Assumptions!M20 -> Actual | N10: =Assumptions!N20 -> Actual | O10: =Assumptions!O20 -> Actual | P10: =Assumptions!P20 -> Actual | Q10: =Assumptions!Q20 -> Actual | R10: =Assumptions!R20 -> Actual | S10: =Assumptions!S20 -> Actual | T10: =Assumptions!T20 -> Forecast | U10: =Assumptions!U20 -> Forecast | V10: =Assumptions!V20 -> Forecast | W10: =Assumptions!W20 -> Forecast | X10: =Assumptions!X20 -> Forecast | Y10: =Assumptions!Y20 -> Forecast | Z10: =Assumptions!Z20 -> Forecast
B13: =Hist_vol!B$13 -> Category | C13: Type | D13: =Hist_vol!D$13 -> RIN category | E13: =Hist_vol!E$13 -> Description | G13: =Assumptions!G$24 -> 2011/12 | H13: =Assumptions!H$24 -> 2012/13 | I13: =Assumptions!I$24 -> 2013/14 | J13: =Assumptions!J$24 -> 2014/15 | K13: =Assumptions!K$24 -> 2015/16 | L13: =Assumptions!L$24 -> 2016/17 | M13: =Assumptions!M$24 -> 2017/18 | N13: =Assumptions!N$24 -> 2018/19 | O13: =Assumptions!O$24 -> 2019/20 | P13: =Assumptions!P$24 -> 2020/21 | Q13: =Assumptions!Q$24 -> 2021/22 | R13: =Assumptions!R$24 -> 2022/23 | S13: =Assumptions!S$24 -> 2023/24 | T13: =Assumptions!T$24 -> 2024/25 | U13: =Assumptions!U$24 -> 2025/26 | V13: =Assumptions!V$24 -> 2026/27 | W13: =Assumptions!W$24 -> 2027/28 | X13: =Assumptions!X$24 -> 2028/29 | Y13: =Assumptions!Y$24 -> 2029/30 | Z13: =Assumptions!Z$24 -> 2030/31
B14: Contribution as % of spend
B15: =Hist_vol!B15 -> Connections | C15: =Hist_vol!C15 -> R1 | D15: =Hist_vol!D15 -> Residential | E15: =Hist_vol!E15 -> Simple connection LV | G15: =IF(Hist_expenditure!G15=0,0, Hist_contributions!G15/Hist_expenditure!G15) -> 0.4783041158 | H15: =IF(Hist_expenditure!H15=0,0, Hist_contributions!H15/Hist_expenditure!H15) -> 0.3745613558 | I15: =IF(Hist_expenditure!I15=0,0, Hist_contributions!I15/Hist_expenditure!I15) -> 0.3275589466 | J15: =IF(Hist_expenditure!J15=0,0, Hist_contributions!J15/Hist_expenditure!J15) -> 0.3659671662 | K15: =IF(Hist_expenditure!K15=0,0, Hist_contributions!K15/Hist_expenditure!K15) -> 0.4141283234 | L15: =IF(Hist_expenditure!L15=0,0, Hist_contributions!L15/Hist_expenditure!L15) -> 0 | M15: =IF(Hist_expenditure!M15=0,0, Hist_contributions!M15/Hist_expenditure!M15) -> 0 | N15: =IF(Hist_expenditure!N15=0,0, Hist_contributions!N15/Hist_expenditure!N15) -> 0 | O15: =IF(Hist_expenditure!O15=0,0, Hist_contributions!O15/Hist_expenditure!O15) -> 0 | P15: =IF(Hist_expenditure!P15=0,0, Hist_contributions!P15/Hist_expenditure!P15) -> 0 | Q15: =IF(Hist_expenditure!Q15=0,0, Hist_contributions!Q15/Hist_expenditure!Q15) -> 0 | R15: =IF(Hist_expenditure!R15=0,0, Hist_contributions!R15/Hist_expenditure!R15) -> 0 | S15: =IF(Hist_expenditure!S15=0,0, Hist_contributions!S15/Hist_expenditure!S15) -> 0 | T15: =S15 -> 0 | U15: =$T15 -> 0 | V15: 0 | W15: 0 | X15: 0 | Y15: 0 | Z15: 0
B16: =Hist_vol!B16 -> Connections | C16: =Hist_vol!C16 -> R2 | D16: =Hist_vol!D16 -> Residential | E16: =Hist_vol!E16 -> Complex connection LV | G16: =IF(Hist_expenditure!G16=0,0, Hist_contributions!G16/Hist_expenditure!G16) -> 0.4644524072 | H16: =IF(Hist_expenditure!H16=0,0, Hist_contributions!H16/Hist_expenditure!H16) -> 0.3712732699 | I16: =IF(Hist_expenditure!I16=0,0, Hist_contributions!I16/Hist_expenditure!I16) -> 0.3272065997 | J16: =IF(Hist_expenditure!J16=0,0, Hist_contributions!J16/Hist_expenditure!J16) -> 0.3627146874 | K16: =IF(Hist_expenditure!K16=0,0, Hist_contributions!K16/Hist_expenditure!K16) -> 0.4964609237 | L16: =IF(Hist_expenditure!L16=0,0, Hist_contributions!L16/Hist_expenditure!L16) -> 0.6842763713 | M16: =IF(Hist_expenditure!M16=0,0, Hist_contributions!M16/Hist_expenditure!M16) -> 0.8489108198 | N16: =IF(Hist_expenditure!N16=0,0, Hist_contributions!N16/Hist_expenditure!N16) -> 0.7224760554 | O16: =IF(Hist_expenditure!O16=0,0, Hist_contributions!O16/Hist_expenditure!O16) -> 0.6430335885 | P16: =IF(Hist_expenditure!P16=0,0, Hist_contributions!P16/Hist_expenditure!P16) -> 0.7711046033 | Q16: =IF(Hist_expenditure!Q16=0,0, Hist_contributions!Q16/Hist_expenditure!Q16) -> 0.6886195944 | R16: =IF(Hist_expenditure!R16=0,0, Hist_contributions!R16/Hist_expenditure!R16) -> 0.5532973459 | S16: =IF(Hist_expenditure!S16=0,0, Hist_contributions!S16/Hist_expenditure!S16) -> 0.7683890081 | T16: 0.533104271 | U16: 0.533104271 | V16: 0.533104271 | W16: 0.533104271 | X16: 0.533104271 | Y16: 0.533104271 | Z16: 0.533104271
B17: =Hist_vol!B17 -> Connections | C17: =Hist_vol!C17 -> R3 | D17: =Hist_vol!D17 -> Residential | E17: =Hist_vol!E17 -> Complex connection HV | G17: =IF(Hist_expenditure!G17=0,0, Hist_contributions!G17/Hist_expenditure!G17) -> 0.4755328646 | H17: =IF(Hist_expenditure!H17=0,0, Hist_contributions!H17/Hist_expenditure!H17) -> 0.37105684 | I17: =IF(Hist_expenditure!I17=0,0, Hist_contributions!I17/Hist_expenditure!I17) -> 0.3276398705 | J17: =IF(Hist_expenditure!J17=0,0, Hist_contributions!J17/Hist_expenditure!J17) -> 0.360432492 | K17: =IF(Hist_expenditure!K17=0,0, Hist_contributions!K17/Hist_expenditure!K17) -> 0.4825779653 | L17: =IF(Hist_expenditure!L17=0,0, Hist_contributions!L17/Hist_expenditure!L17) -> 0.6902652781 | M17: =IF(Hist_expenditure!M17=0,0, Hist_contributions!M17/Hist_expenditure!M17) -> 0.8426745472 | N17: =IF(Hist_expenditure!N17=0,0, Hist_contributions!N17/Hist_expenditure!N17) -> 0.7270206909 | O17: =IF(Hist_expenditure!O17=0,0, Hist_contributions!O17/Hist_expenditure!O17) -> 0.5171840613 | P17: =IF(Hist_expenditure!P17=0,0, Hist_contributions!P17/Hist_expenditure!P17) -> 0.5467072023 | Q17: =IF(Hist_expenditure!Q17=0,0, Hist_contributions!Q17/Hist_expenditure!Q17) -> 0.545717493 | R17: =IF(Hist_expenditure!R17=0,0, Hist_contributions!R17/Hist_expenditure!R17) -> 0.4965380191 | S17: =IF(Hist_expenditure!S17=0,0, Hist_contributions!S17/Hist_expenditure!S17) -> 0.5338566778 | T17: 0.5741994229 | U17: 0.5741994229 | V17: 0.5741994229 | W17: 0.5741994229 | X17: 0.5741994229 | Y17: 0.5741994229 | Z17: 0.5741994229
B18: =Hist_vol!B18 -> Connections | C18: =Hist_vol!C18 -> CI1 | D18: =Hist_vol!D18 -> Commercial/Industrial | E18: =Hist_vol!E18 -> Simple connection LV | G18: =IF(Hist_expenditure!G18=0,0, Hist_contributions!G18/Hist_expenditure!G18) -> 0.4789806796 | H18: =IF(Hist_expenditure!H18=0,0, Hist_contributions!H18/Hist_expenditure!H18) -> 0.3725489144 | I18: =IF(Hist_expenditure!I18=0,0, Hist_contributions!I18/Hist_expenditure!I18) -> 0.3276539339 | J18: =IF(Hist_expenditure!J18=0,0, Hist_contributions!J18/Hist_expenditure!J18) -> 0.3659147228 | K18: =IF(Hist_expenditure!K18=0,0, Hist_contributions!K18/Hist_expenditure!K18) -> 0.4141283234 | L18: =IF(Hist_expenditure!L18=0,0, Hist_contributions!L18/Hist_expenditure!L18) -> 0 | M18: =IF(Hist_expenditure!M18=0,0, Hist_contributions!M18/Hist_expenditure!M18) -> 0 | N18: =IF(Hist_expenditure!N18=0,0, Hist_contributions!N18/Hist_expenditure!N18) -> 0 | O18: =IF(Hist_expenditure!O18=0,0, Hist_contributions!O18/Hist_expenditure!O18) -> 0 | P18: =IF(Hist_expenditure!P18=0,0, Hist_contributions!P18/Hist_expenditure!P18) -> 0 | Q18: =IF(Hist_expenditure!Q18=0,0, Hist_contributions!Q18/Hist_expenditure!Q18) -> 0 | R18: =IF(Hist_expenditure!R18=0,0, Hist_contributions!R18/Hist_expenditure!R18) -> 0 | S18: =IF(Hist_expenditure!S18=0,0, Hist_contributions!S18/Hist_expenditure!S18) -> 0 | T18: =S18 -> 0 | U18: 0 | V18: 0 | W18: 0 | X18: 0 | Y18: 0 | Z18: 0
B19: =Hist_vol!B19 -> Connections | C19: =Hist_vol!C19 -> CI2 | D19: =Hist_vol!D19 -> Commercial/Industrial | E19: =Hist_vol!E19 -> Complex connection HV (customer connected at LV, minor HV works) | G19: =IF(Hist_expenditure!G19=0,0, Hist_contributions!G19/Hist_expenditure!G19) -> 0.4351269236 | H19: =IF(Hist_expenditure!H19=0,0, Hist_contributions!H19/Hist_expenditure!H19) -> 0.9802707914 | I19: =IF(Hist_expenditure!I19=0,0, Hist_contributions!I19/Hist_expenditure!I19) -> 1.005892428 | J19: =IF(Hist_expenditure!J19=0,0, Hist_contributions!J19/Hist_expenditure!J19) -> 1.155365981 | K19: =IF(Hist_expenditure!K19=0,0, Hist_contributions!K19/Hist_expenditure!K19) -> 1.14044908 | L19: =IF(Hist_expenditure!L19=0,0, Hist_contributions!L19/Hist_expenditure!L19) -> 1.003955587 | M19: =IF(Hist_expenditure!M19=0,0, Hist_contributions!M19/Hist_expenditure!M19) -> 0.8826195321 | N19: =IF(Hist_expenditure!N19=0,0, Hist_contributions!N19/Hist_expenditure!N19) -> 1.023146091 | O19: =IF(Hist_expenditure!O19=0,0, Hist_contributions!O19/Hist_expenditure!O19) -> 1.332875577 | P19: =IF(Hist_expenditure!P19=0,0, Hist_contributions!P19/Hist_expenditure!P19) -> 1.108195176 | Q19: =IF(Hist_expenditure!Q19=0,0, Hist_contributions!Q19/Hist_expenditure!Q19) -> 1.125668907 | R19: =IF(Hist_expenditure!R19=0,0, Hist_contributions!R19/Hist_expenditure!R19) -> 1.086206865 | S19: =IF(Hist_expenditure!S19=0,0, Hist_contributions!S19/Hist_expenditure!S19) -> 0.9207534759 | T19: 1 | U19: 1 | V19: 1 | W19: 1 | X19: 1 | Y19: 1 | Z19: 1
B20: =Hist_vol!B20 -> Connections | C20: =Hist_vol!C20 -> CI3 | D20: =Hist_vol!D20 -> Commercial/Industrial | E20: =Hist_vol!E20 -> Complex connection HV (customer connected at LV, upstream asset works) | G20: =IF(Hist_expenditure!G20=0,0, Hist_contributions!G20/Hist_expenditure!G20) -> 0.4705019246 | H20: =IF(Hist_expenditure!H20=0,0, Hist_contributions!H20/Hist_expenditure!H20) -> 0.3570160901 | I20: =IF(Hist_expenditure!I20=0,0, Hist_contributions!I20/Hist_expenditure!I20) -> 0.3132532188 | J20: =IF(Hist_expenditure!J20=0,0, Hist_contributions!J20/Hist_expenditure!J20) -> 0.3438876018 | K20: =IF(Hist_expenditure!K20=0,0, Hist_contributions!K20/Hist_expenditure!K20) -> 0.474563803 | L20: =IF(Hist_expenditure!L20=0,0, Hist_contributions!L20/Hist_expenditure!L20) -> 0.6413085154 | M20: =IF(Hist_expenditure!M20=0,0, Hist_contributions!M20/Hist_expenditure!M20) -> 0.7782861295 | N20: =IF(Hist_expenditure!N20=0,0, Hist_contributions!N20/Hist_expenditure!N20) -> 0.6781321456 | O20: =IF(Hist_expenditure!O20=0,0, Hist_contributions!O20/Hist_expenditure!O20) -> 0.3598026734 | P20: =IF(Hist_expenditure!P20=0,0, Hist_contributions!P20/Hist_expenditure!P20) -> 0.2880207237 | Q20: =IF(Hist_expenditure!Q20=0,0, Hist_contributions!Q20/Hist_expenditure!Q20) -> 0.2622728269 | R20: =IF(Hist_expenditure!R20=0,0, Hist_contributions!R20/Hist_expenditure!R20) -> 0.3305391795 | S20: =IF(Hist_expenditure!S20=0,0, Hist_contributions!S20/Hist_expenditure!S20) -> 0.3573449934 | T20: 0.3418316307 | U20: 0.3418316307 | V20: 0.3418316307 | W20: 0.3418316307 | X20: 0.3418316307 | Y20: 0.3418316307 | Z20: 0.3418316307
B21: =Hist_vol!B21 -> Connections | C21: =Hist_vol!C21 -> CI4 | D21: =Hist_vol!D21 -> Commercial/Industrial | E21: =Hist_vol!E21 -> Complex connection HV (customer connected at HV) | G21: =IF(Hist_expenditure!G21=0,0, Hist_contributions!G21/Hist_expenditure!G21) -> 0.4768318925 | H21: =IF(Hist_expenditure!H21=0,0, Hist_contributions!H21/Hist_expenditure!H21) -> 0.3643926282 | I21: =IF(Hist_expenditure!I21=0,0, Hist_contributions!I21/Hist_expenditure!I21) -> 0.3279560147 | J21: =IF(Hist_expenditure!J21=0,0, Hist_contributions!J21/Hist_expenditure!J21) -> 0.3345540061 | K21: =IF(Hist_expenditure!K21=0,0, Hist_contributions!K21/Hist_expenditure!K21) -> 0.5406651123 | L21: =IF(Hist_expenditure!L21=0,0, Hist_contributions!L21/Hist_expenditure!L21) -> 0.6658843139 | M21: =IF(Hist_expenditure!M21=0,0, Hist_contributions!M21/Hist_expenditure!M21) -> 0.8289378985 | N21: =IF(Hist_expenditure!N21=0,0, Hist_contributions!N21/Hist_expenditure!N21) -> 0.7188827026 | O21: =IF(Hist_expenditure!O21=0,0, Hist_contributions!O21/Hist_expenditure!O21) -> 0.6027692955 | P21: =IF(Hist_expenditure!P21=0,0, Hist_contributions!P21/Hist_expenditure!P21) -> 0.701934149 | Q21: =IF(Hist_expenditure!Q21=0,0, Hist_contributions!Q21/Hist_expenditure!Q21) -> 0.7152343465 | R21: =IF(Hist_expenditure!R21=0,0, Hist_contributions!R21/Hist_expenditure!R21) -> 1.498959505 | S21: =IF(Hist_expenditure!S21=0,0, Hist_contributions!S21/Hist_expenditure!S21) -> 0.5490310749 | T21: 0.6719624051 | U21: 0.6719624051 | V21: 0.6719624051 | W21: 0.6719624051 | X21: 0.6719624051 | Y21: 0.6719624051 | Z21: 0.6719624051
B22: =Hist_vol!B22 -> Connections | C22: =Hist_vol!C22 -> CI5 | D22: =Hist_vol!D22 -> Commercial/Industrial | E22: =Hist_vol!E22 -> Complex connection sub-transmission | G22: =IF(Hist_expenditure!G22=0,0, Hist_contributions!G22/Hist_expenditure!G22) -> 0 | H22: =IF(Hist_expenditure!H22=0,0, Hist_contributions!H22/Hist_expenditure!H22) -> 0 | I22: =IF(Hist_expenditure!I22=0,0, Hist_contributions!I22/Hist_expenditure!I22) -> 0 | J22: =IF(Hist_expenditure!J22=0,0, Hist_contributions!J22/Hist_expenditure!J22) -> 0 | K22: =IF(Hist_expenditure!K22=0,0, Hist_contributions!K22/Hist_expenditure!K22) -> 0 | L22: =IF(Hist_expenditure!L22=0,0, Hist_contributions!L22/Hist_expenditure!L22) -> 0.7751710694 | M22: =IF(Hist_expenditure!M22=0,0, Hist_contributions!M22/Hist_expenditure!M22) -> 0.7751710694 | N22: =IF(Hist_expenditure!N22=0,0, Hist_contributions!N22/Hist_expenditure!N22) -> 0 | O22: =IF(Hist_expenditure!O22=0,0, Hist_contributions!O22/Hist_expenditure!O22) -> 0 | P22: =IF(Hist_expenditure!P22=0,0, Hist_contributions!P22/Hist_expenditure!P22) -> 0 | Q22: =IF(Hist_expenditure!Q22=0,0, Hist_contributions!Q22/Hist_expenditure!Q22) -> 0 | R22: =IF(Hist_expenditure!R22=0,0, Hist_contributions!R22/Hist_expenditure!R22) -> 0 | S22: =IF(Hist_expenditure!S22=0,0, Hist_contributions!S22/Hist_expenditure!S22) -> 0.5490308908 | T22: =S22 -> 0.5490308908 | U22: 0.5490308908 | V22: 0.5490308908 | W22: 0.5490308908 | X22: 0.5490308908 | Y22: 0.5490308908 | Z22: 0.5490308908
B23: =Hist_vol!B23 -> Connections | C23: =Hist_vol!C23 -> S1 | D23: =Hist_vol!D23 -> Subdivision | E23: =Hist_vol!E23 -> Complex connection LV | G23: =IF(Hist_expenditure!G23=0,0, Hist_contributions!G23/Hist_expenditure!G23) -> 0 | H23: =IF(Hist_expenditure!H23=0,0, Hist_contributions!H23/Hist_expenditure!H23) -> 0 | I23: =IF(Hist_expenditure!I23=0,0, Hist_contributions!I23/Hist_expenditure!I23) -> 0 | J23: =IF(Hist_expenditure!J23=0,0, Hist_contributions!J23/Hist_expenditure!J23) -> 0 | K23: =IF(Hist_expenditure!K23=0,0, Hist_contributions!K23/Hist_expenditure!K23) -> 0 | L23: =IF(Hist_expenditure!L23=0,0, Hist_contributions!L23/Hist_expenditure!L23) -> 0 | M23: =IF(Hist_expenditure!M23=0,0, Hist_contributions!M23/Hist_expenditure!M23) -> 0 | N23: =IF(Hist_expenditure!N23=0,0, Hist_contributions!N23/Hist_expenditure!N23) -> 0 | O23: =IF(Hist_expenditure!O23=0,0, Hist_contributions!O23/Hist_expenditure!O23) -> 0 | P23: =IF(Hist_expenditure!P23=0,0, Hist_contributions!P23/Hist_expenditure!P23) -> 0 | Q23: =IF(Hist_expenditure!Q23=0,0, Hist_contributions!Q23/Hist_expenditure!Q23) -> 0 | R23: =IF(Hist_expenditure!R23=0,0, Hist_contributions!R23/Hist_expenditure!R23) -> 0 | S23: =IF(Hist_expenditure!S23=0,0, Hist_contributions!S23/Hist_expenditure!S23) -> 0 | T23: =S23 -> 0 | U23: 0 | V23: 0 | W23: 0 | X23: 0 | Y23: 0 | Z23: 0
B24: =Hist_vol!B24 -> Connections | C24: =Hist_vol!C24 -> S2 | D24: =Hist_vol!D24 -> Subdivision | E24: =Hist_vol!E24 -> Complex connection HV (no upstream asset works) | G24: =IF(Hist_expenditure!G24=0,0, Hist_contributions!G24/Hist_expenditure!G24) -> 0 | H24: =IF(Hist_expenditure!H24=0,0, Hist_contributions!H24/Hist_expenditure!H24) -> 0 | I24: =IF(Hist_expenditure!I24=0,0, Hist_contributions!I24/Hist_expenditure!I24) -> 0 | J24: =IF(Hist_expenditure!J24=0,0, Hist_contributions!J24/Hist_expenditure!J24) -> 0 | K24: =IF(Hist_expenditure!K24=0,0, Hist_contributions!K24/Hist_expenditure!K24) -> 0 | L24: =IF(Hist_expenditure!L24=0,0, Hist_contributions!L24/Hist_expenditure!L24) -> 0 | M24: =IF(Hist_expenditure!M24=0,0, Hist_contributions!M24/Hist_expenditure!M24) -> 0 | N24: =IF(Hist_expenditure!N24=0,0, Hist_contributions!N24/Hist_expenditure!N24) -> 0 | O24: =IF(Hist_expenditure!O24=0,0, Hist_contributions!O24/Hist_expenditure!O24) -> 0 | P24: =IF(Hist_expenditure!P24=0,0, Hist_contributions!P24/Hist_expenditure!P24) -> 0 | Q24: =IF(Hist_expenditure!Q24=0,0, Hist_contributions!Q24/Hist_expenditure!Q24) -> 0 | R24: =IF(Hist_expenditure!R24=0,0, Hist_contributions!R24/Hist_expenditure!R24) -> 0 | S24: =IF(Hist_expenditure!S24=0,0, Hist_contributions!S24/Hist_expenditure!S24) -> 0 | T24: =S24 -> 0 | U24: 0 | V24: 0 | W24: 0 | X24: 0 | Y24: 0 | Z24: 0
B25: =Hist_vol!B25 -> Connections | C25: =Hist_vol!C25 -> S3 | D25: =Hist_vol!D25 -> Subdivision | E25: =Hist_vol!E25 -> Complex connection HV (with upstream asset works) | G25: =IF(Hist_expenditure!G25=0,0, Hist_contributions!G25/Hist_expenditure!G25) -> 0.2113204078 | H25: =IF(Hist_expenditure!H25=0,0, Hist_contributions!H25/Hist_expenditure!H25) -> 0.1406923573 | I25: =IF(Hist_expenditure!I25=0,0, Hist_contributions!I25/Hist_expenditure!I25) -> 0.1294068813 | J25: =IF(Hist_expenditure!J25=0,0, Hist_contributions!J25/Hist_expenditure!J25) -> 0.1617592823 | K25: =IF(Hist_expenditure!K25=0,0, Hist_contributions!K25/Hist_expenditure!K25) -> 0.2020190314 | L25: =IF(Hist_expenditure!L25=0,0, Hist_contributions!L25/Hist_expenditure!L25) -> 0.2728339021 | M25: =IF(Hist_expenditure!M25=0,0, Hist_contributions!M25/Hist_expenditure!M25) -> 0.4129739695 | N25: =IF(Hist_expenditure!N25=0,0, Hist_contributions!N25/Hist_expenditure!N25) -> 0.4548916089 | O25: =IF(Hist_expenditure!O25=0,0, Hist_contributions!O25/Hist_expenditure!O25) -> 0.4100811024 | P25: =IF(Hist_expenditure!P25=0,0, Hist_contributions!P25/Hist_expenditure!P25) -> 0.4284836864 | Q25: =IF(Hist_expenditure!Q25=0,0, Hist_contributions!Q25/Hist_expenditure!Q25) -> 0.3051621943 | R25: =IF(Hist_expenditure!R25=0,0, Hist_contributions!R25/Hist_expenditure!R25) -> 0.2493948777 | S25: =IF(Hist_expenditure!S25=0,0, Hist_contributions!S25/Hist_expenditure!S25) -> 0.1618038756 | T25: 0.1856838514 | U25: 0.1856838514 | V25: 0.1856838514 | W25: 0.1856838514 | X25: 0.1856838514 | Y25: 0.1856838514 | Z25: 0.1856838514
B26: =Hist_vol!B26 -> Connections | C26: =Hist_vol!C26 -> EG1 | D26: =Hist_vol!D26 -> Embedded generation | E26: =Hist_vol!E26 -> Simple connection LV | G26: =IF(Hist_expenditure!G26=0,0, Hist_contributions!G26/Hist_expenditure!G26) -> 0 | H26: =IF(Hist_expenditure!H26=0,0, Hist_contributions!H26/Hist_expenditure!H26) -> 0 | I26: =IF(Hist_expenditure!I26=0,0, Hist_contributions!I26/Hist_expenditure!I26) -> 0 | J26: =IF(Hist_expenditure!J26=0,0, Hist_contributions!J26/Hist_expenditure!J26) -> 0 | K26: =IF(Hist_expenditure!K26=0,0, Hist_contributions!K26/Hist_expenditure!K26) -> 0 | L26: =IF(Hist_expenditure!L26=0,0, Hist_contributions!L26/Hist_expenditure!L26) -> 0 | M26: =IF(Hist_expenditure!M26=0,0, Hist_contributions!M26/Hist_expenditure!M26) -> 0 | N26: =IF(Hist_expenditure!N26=0,0, Hist_contributions!N26/Hist_expenditure!N26) -> 0 | O26: =IF(Hist_expenditure!O26=0,0, Hist_contributions!O26/Hist_expenditure!O26) -> 0 | P26: =IF(Hist_expenditure!P26=0,0, Hist_contributions!P26/Hist_expenditure!P26) -> 0 | Q26: =IF(Hist_expenditure!Q26=0,0, Hist_contributions!Q26/Hist_expenditure!Q26) -> 0 | R26: =IF(Hist_expenditure!R26=0,0, Hist_contributions!R26/Hist_expenditure!R26) -> 0 | S26: =IF(Hist_expenditure!S26=0,0, Hist_contributions!S26/Hist_expenditure!S26) -> 0 | T26: 1 | U26: 1 | V26: 1 | W26: 1 | X26: 1 | Y26: 1 | Z26: 1
B27: =Hist_vol!B27 -> Connections | C27: =Hist_vol!C27 -> EG2 | D27: =Hist_vol!D27 -> Embedded generation | E27: =Hist_vol!E27 -> Complex connection HV (small capacity) | G27: =IF(Hist_expenditure!G27=0,0, Hist_contributions!G27/Hist_expenditure!G27) -> 0.4492586788 | H27: =IF(Hist_expenditure!H27=0,0, Hist_contributions!H27/Hist_expenditure!H27) -> 0.3960286936 | I27: =IF(Hist_expenditure!I27=0,0, Hist_contributions!I27/Hist_expenditure!I27) -> 0.3220963616 | J27: =IF(Hist_expenditure!J27=0,0, Hist_contributions!J27/Hist_expenditure!J27) -> 0.3431568127 | K27: =IF(Hist_expenditure!K27=0,0, Hist_contributions!K27/Hist_expenditure!K27) -> 0.5234792674 | L27: =IF(Hist_expenditure!L27=0,0, Hist_contributions!L27/Hist_expenditure!L27) -> 0.7316449406 | M27: =IF(Hist_expenditure!M27=0,0, Hist_contributions!M27/Hist_expenditure!M27) -> 0.8383491773 | N27: =IF(Hist_expenditure!N27=0,0, Hist_contributions!N27/Hist_expenditure!N27) -> 0.7433793038 | O27: =IF(Hist_expenditure!O27=0,0, Hist_contributions!O27/Hist_expenditure!O27) -> 2.045672191 | P27: =IF(Hist_expenditure!P27=0,0, Hist_contributions!P27/Hist_expenditure!P27) -> 3.166431519 | Q27: =IF(Hist_expenditure!Q27=0,0, Hist_contributions!Q27/Hist_expenditure!Q27) -> 2.331776971 | R27: =IF(Hist_expenditure!R27=0,0, Hist_contributions!R27/Hist_expenditure!R27) -> 1.428230129 | S27: =IF(Hist_expenditure!S27=0,0, Hist_contributions!S27/Hist_expenditure!S27) -> 1.315551104 | T27: 1 | U27: 1 | V27: 1 | W27: 1 | X27: 1 | Y27: 1 | Z27: 1
B28: =Hist_vol!B28 -> Connections | C28: =Hist_vol!C28 -> EG3 | D28: =Hist_vol!D28 -> Embedded generation | E28: =Hist_vol!E28 -> Complex connection HV (large capacity) | G28: =IF(Hist_expenditure!G28=0,0, Hist_contributions!G28/Hist_expenditure!G28) -> 0.5177893341 | H28: =IF(Hist_expenditure!H28=0,0, Hist_contributions!H28/Hist_expenditure!H28) -> 0.4126957814 | I28: =IF(Hist_expenditure!I28=0,0, Hist_contributions!I28/Hist_expenditure!I28) -> 0 | J28: =IF(Hist_expenditure!J28=0,0, Hist_contributions!J28/Hist_expenditure!J28) -> 0.4141283234 | K28: =IF(Hist_expenditure!K28=0,0, Hist_contributions!K28/Hist_expenditure!K28) -> 0.4469513971 | L28: =IF(Hist_expenditure!L28=0,0, Hist_contributions!L28/Hist_expenditure!L28) -> 0.7581915529 | M28: =IF(Hist_expenditure!M28=0,0, Hist_contributions!M28/Hist_expenditure!M28) -> 0.8756581548 | N28: =IF(Hist_expenditure!N28=0,0, Hist_contributions!N28/Hist_expenditure!N28) -> 0.7933118335 | O28: =IF(Hist_expenditure!O28=0,0, Hist_contributions!O28/Hist_expenditure!O28) -> 0.6374675368 | P28: =IF(Hist_expenditure!P28=0,0, Hist_contributions!P28/Hist_expenditure!P28) -> 3.166431879 | Q28: =IF(Hist_expenditure!Q28=0,0, Hist_contributions!Q28/Hist_expenditure!Q28) -> 2.331776792 | R28: =IF(Hist_expenditure!R28=0,0, Hist_contributions!R28/Hist_expenditure!R28) -> 1.428230126 | S28: =IF(Hist_expenditure!S28=0,0, Hist_contributions!S28/Hist_expenditure!S28) -> 1.314561621 | T28: 1 | U28: 1 | V28: 1 | W28: 1 | X28: 1 | Y28: 1 | Z28: 1

Sheet Macromonitor
A1: =Assumptions!$A$1 -> Powercor
A2: =Assumptions!$A$2 -> Connections
A3: Macromonitor Forecast
B6: Growth rate %
B7: =Hist_vol!B$13 -> Category | C7: =Hist_vol!C$13 -> Type | D7: =Hist_vol!D$13 -> RIN category | E7: =Hist_vol!E$13 -> Description | H7: 2023/24 | I7: 2024/25 | J7: 2025/26 | K7: 2026/27 | L7: 2027/28 | M7: 2028/29 | N7: 2029/30 | O7: 2030/31
I8: forecast | J8: forecast | K8: forecast | L8: forecast | M8: forecast | N8: forecast | O8: forecast
B9: Connections | C9: R1 | D9: Residential | E9: Simple connection LV | I9: =TRANSPOSE($M$38:$M$44) -> 0.05373744433 | J9: 0.1152891211 | K9: 0.1238462176 | L9: -0.008709784624 | M9: -0.06195401543 | N9: 0.006668817382 | O9: 0.02350353771
B10: Connections | C10: R2 | D10: Residential | E10: Complex connection LV | I10: =TRANSPOSE($M$38:$M$44) -> 0.05373744433 | J10: 0.1152891211 | K10: 0.1238462176 | L10: -0.008709784624 | M10: -0.06195401543 | N10: 0.006668817382 | O10: 0.02350353771
B11: Connections | C11: R3 | D11: Residential | E11: Complex connection HV | I11: =TRANSPOSE($M$38:$M$44) -> 0.05373744433 | J11: 0.1152891211 | K11: 0.1238462176 | L11: -0.008709784624 | M11: -0.06195401543 | N11: 0.006668817382 | O11: 0.02350353771
B12: Connections | C12: CI1 | D12: Commercial/Industrial | E12: Simple connection LV | I12: =TRANSPOSE($M$64:$M$70) -> -0.06619710702 | J12: -0.1642703477 | K12: -0.00525400426 | L12: 0.02175092605 | M12: 0.004304478418 | N12: -0.005208939105 | O12: -0.0003324851361
B13: Connections | C13: CI2 | D13: Commercial/Industrial | E13: Complex connection HV (customer connected at LV, minor HV works) | I13: =TRANSPOSE($M$64:$M$70) -> -0.06619710702 | J13: -0.1642703477 | K13: -0.00525400426 | L13: 0.02175092605 | M13: 0.004304478418 | N13: -0.005208939105 | O13: -0.0003324851361
B14: Connections | C14: CI3 | D14: Commercial/Industrial | E14: Complex connection HV (customer connected at LV, upstream asset works) | I14: =TRANSPOSE($M$64:$M$70) -> -0.06619710702 | J14: -0.1642703477 | K14: -0.00525400426 | L14: 0.02175092605 | M14: 0.004304478418 | N14: -0.005208939105 | O14: -0.0003324851361
B15: Connections | C15: CI4 | D15: Commercial/Industrial | E15: Complex connection HV (customer connected at HV) | I15: =TRANSPOSE($M$64:$M$70) -> -0.06619710702 | J15: -0.1642703477 | K15: -0.00525400426 | L15: 0.02175092605 | M15: 0.004304478418 | N15: -0.005208939105 | O15: -0.0003324851361
B16: Connections | C16: CI5 | D16: Commercial/Industrial | E16: Complex connection sub-transmission | I16: =TRANSPOSE($M$64:$M$70) -> -0.06619710702 | J16: -0.1642703477 | K16: -0.00525400426 | L16: 0.02175092605 | M16: 0.004304478418 | N16: -0.005208939105 | O16: -0.0003324851361
B17: Connections | C17: S1 | D17: Subdivision | E17: Complex connection LV | I17: =TRANSPOSE($M$38:$M$44) -> 0.05373744433 | J17: 0.1152891211 | K17: 0.1238462176 | L17: -0.008709784624 | M17: -0.06195401543 | N17: 0.006668817382 | O17: 0.02350353771
B18: Connections | C18: S2 | D18: Subdivision | E18: Complex connection HV (no upstream asset works) | I18: =TRANSPOSE($M$38:$M$44) -> 0.05373744433 | J18: 0.1152891211 | K18: 0.1238462176 | L18: -0.008709784624 | M18: -0.06195401543 | N18: 0.006668817382 | O18: 0.02350353771
B19: Connections | C19: S3 | D19: Subdivision | E19: Complex connection HV (with upstream asset works) | I19: =TRANSPOSE($M$38:$M$44) -> 0.05373744433 | J19: 0.1152891211 | K19: 0.1238462176 | L19: -0.008709784624 | M19: -0.06195401543 | N19: 0.006668817382 | O19: 0.02350353771
B20: Connections | C20: EG1 | D20: Embedded generation | E20: Simple connection LV | I20: =TRANSPOSE($L$92:$L$98) -> 0.4950677063 | J20: -0.1526607588 | K20: -0.5970769909 | L20: -0.6534350716 | M20: -0.5467928241 | N20: 0.4211057513 | O20: -4.109546733e-06
B21: Connections | C21: EG2 | D21: Embedded generation | E21: Complex connection HV (small capacity) | I21: =TRANSPOSE($L$92:$L$98) -> 0.4950677063 | J21: -0.1526607588 | K21: -0.5970769909 | L21: -0.6534350716 | M21: -0.5467928241 | N21: 0.4211057513 | O21: -4.109546733e-06
B22: Connections | C22: EG3 | D22: Embedded generation | E22: Complex connection HV (large capacity) | I22: =TRANSPOSE($L$92:$L$98) -> 0.4950677063 | J22: -0.1526607588 | K22: -0.5970769909 | L22: -0.6534350716 | M22: -0.5467928241 | N22: 0.4211057513 | O22: -4.109546733e-06
B25: Residential
B26: Estimated Number of Dwellings Commenced
B27: Numbers
B28: Year Ended June | C28: CitiPower | E28: United Energy | G28: Powercor | I28: Other Regions | K28: Victoria
C31: Annual | D31: A%Ch | E31: Annual | F31: A%Ch | G31: Annual | H31: A%Ch | I31: Annual | J31: A%Ch | K31: Annual | L31: A%Ch
B32: 2020-06-01 | C32: 9151.604912 | E32: 10331.94036 | G32: 19144.34476 | I32: =K32-G32-E32-C32 -> 20095.10997 | K32: 58723
B33: 2021-06-01 | C33: 5240.671963 | D33: =((C33/C32-1)*100) -> -42.73494089 | E33: 11281.15188 | F33: =((E33/E32-1)*100) -> 9.18715637 | G33: 26755.96783 | H33: =((G33/G32-1)*100) -> 39.75912033 | I33: 24131.20833 | J33: =((I33/I32-1)*100) -> 20.08497774 | K33: 67409 | L33: =((K33/K32-1)*100) -> 14.79147864
B34: 2022-06-01 | C34: 7116.85873 | D34: 35.80050002 | E34: 12394.63589 | F34: 9.870304237 | G34: 23889.11063 | H34: -10.71483271 | I34: 23873.39475 | J34: -1.068382411 | K34: 67274 | L34: -0.2002699936
B35: 2023-06-01 | C35: 6485.291041 | D35: -8.874247938 | E35: 9143.662179 | F35: -26.22887626 | G35: 20837.03662 | H35: -12.77600518 | I35: 18420.01016 | J35: -22.84293728 | K35: 54886 | L35: -18.41424622
B36: 2024-06-01 | C36: 5971.463806 | D36: -7.922963387 | E36: 8803.296585 | F36: -3.722420921 | G36: 17906.95044 | H36: -14.06191403 | I36: 20421.18717 | J36: 10.86414714 | K36: 53102.898 | L36: -3.24873738
B37: Forecasts | M37: Growth rate - Powercor
B38: 2025-06-01 | C38: 7091.649969 | D38: =((C38/C36-1)*100) -> 18.75898773 | E38: 10041.64462 | F38: =((E38/E36-1)*100) -> 14.0668672 | G38: 18869.2242 | H38: =((G38/G36-1)*100) -> 5.373744433 | I38: 20610.80793 | J38: =((I38/I36-1)*100) -> 0.9285491703 | K38: 56613.32672 | L38: =((K38/K36-1)*100) -> 6.610616089 | M38: =H38/100 -> 0.05373744433
B39: 2026-06-01 | C39: 9507.179627 | D39: 34.06160299 | E39: 11374.66807 | F39: 13.27495143 | G39: 21044.64047 | H39: 11.52891211 | I39: 23489.04902 | J39: 13.96471743 | K39: 65415.53719 | L39: 15.54794776 | M39: =H39/100 -> 0.1152891211
B40: 2027-06-01 | C40: 10733.18205 | D40: 12.89554289 | E40: 12856.02726 | F40: 13.02331798 | G40: 23650.93959 | H40: 12.38462176 | I40: 26650.82433 | J40: 13.46063568 | K40: 73890.97324 | L40: 12.95630429 | M40: 0.1238462176
B41: 2028-06-01 | C41: 10242.30372 | D41: -4.573465043 | E41: 12346.68326 | F41: -3.961908271 | G41: 23444.945 | H41: -0.8709784624 | I41: 25866.34153 | J41: -2.943559243 | K41: 71900.27351 | L41: -2.694104087 | M41: -0.008709784624
B42: 2029-06-01 | C42: 9230.624076 | D42: -9.877461897 | E42: 11726.66678 | F42: -5.021724997 | G42: 21992.43652 | H42: -6.195401543 | I42: 24373.69933 | J42: -5.770596485 | K42: 67323.4267 | L42: -6.365548534 | M42: -0.06195401543
B43: 2030-06-01 | C43: 8895.061069 | D43: -3.635323075 | E43: 11915.79058 | F43: 1.612766932 | G43: 22139.10006 | H43: 0.6668817382 | I43: 24706.46893 | J43: 1.365281447 | K43: 67656.42064 | L43: 0.49461822 | M43: 0.006668817382
B44: 2031-06-01 | C44: 9345.173403 | D44: 5.060250064 | E44: 12347.3263 | F44: 3.621545016 | G44: 22659.44723 | H44: 2.350353771 | I44: 25440.25029 | J44: 2.969996915 | K44: 69792.19723 | L44: 3.156798085 | M44: 0.02350353771
L45: Source: ABS & Macromonitor
B48: Non Residential
B49: Estimated Value of Non-Residential Building Work Done
B50: Chain Volume Measures - 2021/22 Prices
B52: Year Ended June | C52: CitiPower | E52: United Energy | G52: Powercor | I52: Other Regions | K52: Victoria
C55: $M | D55: A%Ch | E55: $M | F55: A%Ch | G55: $M | H55: A%Ch | I55: $M | J55: A%Ch | K55: $M | L55: A%Ch
B56: 2018-06-01 | C56: 4617.706984 | E56: 3085.425466 | G56: 3078.393559 | I56: 2750.088567 | K56: 13531.61438
B57: 2019-06-01 | C57: 5414.364119 | D57: =((C57/C56-1)*100) -> 17.25222362 | E57: 2732.822329 | F57: -11.42802316 | G57: 3069.916262 | H57: -0.2753805339 | I57: 3214.968335 | J57: =((I57/I56-1)*100) -> 16.90417441 | K57: 14432.07091 | L57: 6.654464963
B58: 2020-06-01 | C58: 5783.360619 | D58: 6.815140103 | E58: 2672.812028 | F58: -2.19590936 | G58: 3471.087807 | H58: 13.06783347 | I58: 3713.534434 | J58: =((I58/I57-1)*100) -> 15.50765193 | K58: 15640.79489 | L58: 8.375263547
B59: 2021-06-01 | C59: 4623.711045 | D59: -20.05148306 | E59: 2367.97981 | F59: -11.40492541 | G59: 3936.047586 | H59: 13.395218 | I59: 3635.537544 | J59: -2.10034109 | K59: 14563.27598 | L59: -6.889156921
B60: 2022-06-01 | C60: 4612.490685 | D60: -0.2426700043 | E60: 2719.491283 | F60: 14.84436106 | G60: 4173.997529 | H60: 6.045403097 | I60: 4036.716473 | J60: 11.03492741 | K60: 15542.69597 | L60: 6.72527243
B61: 2023-06-01 | C61: 4677.633719 | D61: 1.412317964 | E61: 3160.67025 | F61: 16.2228491 | G61: 4693.230325 | H61: 12.43970062 | I61: 4775.617756 | J61: 18.30451279 | K61: 17307.15205 | L61: 11.35231677
B62: 2024-06-01 | C62: 4095.957515 | D62: =((C62/C61-1)*100) -> -12.43526619 | E62: 2811.8486 | F62: =((E62/E61-1)*100) -> -11.03631896 | G62: 5243.690936 | H62: =((G62/G61-1)*100) -> 11.72882157 | I62: 5077.920582 | J62: =((I62/I61-1)*100) -> 6.330130282 | K62: 17229.41763 | L62: =((K62/K61-1)*100) -> -0.4491462122
B63: Forecasts | M63: Growth rate - Powercor
B64: 2025-06-01 | C64: 3949.890574 | D64: =((C64/C62-1)*100) -> -3.566124409 | E64: 2222.570064 | F64: =((E64/E62-1)*100) -> -20.95697954 | G64: 4896.573766 | H64: =((G64/G62-1)*100) -> -6.619710702 | I64: 4771.749516 | J64: =((I64/I62-1)*100) -> -6.02945755 | K64: 15840.78392 | L64: =((K64/K62-1)*100) -> -8.059667147 | M64: =H64/100 -> -0.06619710702
B65: 2026-06-01 | C65: 4354.572732 | D65: =((C65/C64-1)*100) -> 10.24540175 | E65: 2382.112854 | F65: =((E65/E64-1)*100) -> 7.178301935 | G65: 4092.211891 | H65: =((G65/G64-1)*100) -> -16.42703477 | I65: 4324.213062 | J65: =((I65/I64-1)*100) -> -9.378875656 | K65: 15153.11054 | L65: =((K65/K64-1)*100) -> -4.341157511 | M65: =H65/100 -> -0.1642703477
B66: 2027-06-01 | C66: 4280.802386 | D66: -1.694089206 | E66: 2701.837951 | F66: 13.42191225 | G66: 4070.711392 | H66: -0.525400426 | I66: 4254.872517 | J66: -1.60354138 | K66: 15308.22425 | L66: 1.023642673 | M66: -0.00525400426
B67: 2028-06-01 | C67: 4408.976638 | D67: 2.99416419 | E67: 2824.678847 | F67: 4.546567838 | G67: 4159.253134 | H67: 2.175092605 | I67: 4228.747567 | J67: -0.6140007648 | K67: 15621.65619 | L67: 2.047474188 | M67: 0.02175092605
B68: 2029-06-01 | C68: 4526.087333 | D68: 2.656187709 | E68: 2872.701482 | F68: 1.700109583 | G68: 4177.15655 | H68: 0.4304478418 | I68: 4241.08493 | J68: 0.2917498084 | K68: 15817.0303 | L68: 1.250661948 | M68: 0.004304478418
B69: 2030-06-01 | C69: 4619.555015 | D69: 2.065087901 | E69: 2930.236252 | F69: 2.0028106 | G69: 4155.397996 | H69: -0.5208939105 | I69: 4244.783728 | J69: 0.08721348205 | K69: 15949.97299 | L69: 0.8405035141 | M69: -0.005208939105
B70: 2031-06-01 | C70: 4813.10308 | D70: 4.189755595 | E70: 2924.635358 | F70: -0.1911413793 | G70: 4154.016388 | H70: -0.03324851361 | I70: 4235.933224 | J70: -0.2085030496 | K70: 16127.68805 | L70: 1.114202884 | M70: -0.0003324851361
L71: Source: ABS & Macromonitor
B74: Renewable
B75: Estimated Value of Renewable Energy Construction - less than 200 MW capacity - Powercor
B76: $ Million - Constant 2021/22 Prices
B77: Year Ended June | C77: Powercor
C78: Wind | E78: Solar | G78: Battery & Other | I78: Total renewables
C79: Annual | D79: A%Ch | E79: Annual | F79: A%Ch | G79: Annual | H79: A%Ch | I79: Annual | J79: A%Ch
B80: 2014-06-01 | C80: 557.3267309 | E80: 0 | F80: - | G80: 9.41224124e-05 | H80: - | I80: 557.326825 | J80: -
B81: 2015-06-01 | C81: 285.4265469 | D81: -48.78649612 | E81: 0 | F81: - | G81: 6.402847939e-05 | H81: - | I81: 285.426611 | J81: -48.78649328
B82: 2016-06-01 | C82: 101.2493466 | D82: -64.52700435 | E82: 0 | F82: - | G82: 5.175602253e-05 | H82: - | I82: 101.2493983 | J82: -64.52699418
B83: 2017-06-01 | C83: 65.53017499 | D83: -35.27842183 | E83: 5.958387632 | F83: - | G83: 0.1178888367 | H83: - | I83: 71.60645146 | J83: -29.27715854
B84: 2018-06-01 | C84: 341.3837179 | D84: 420.956518 | E84: 242.759518 | F84: 3974.248488 | G84: 6.934825966 | H84: 5782.512849 | I84: 591.0780618 | J84: 725.4536425
B85: 2019-06-01 | C85: 1035.937374 | D85: 203.4524845 | E85: 308.379539 | F85: 27.03087468 | G85: 53.18465966 | H85: 666.9213318 | I85: 1397.501572 | J85: 136.432658
B86: 2020-06-01 | C86: 913.9310865 | D86: -11.77738059 | E86: 59.30360422 | F86: -80.76928048 | G86: 13.54398141 | H86: -74.53404516 | I86: 986.7786722 | J86: -29.38979879
B87: 2021-06-01 | C87: 301.4837378 | D87: -67.01242115 | E87: 0.8706979636 | F87: -98.53179587 | G87: 2.59357175 | H87: -80.85074343 | I87: 304.9480075 | J87: -69.09661547
B88: 2022-06-01 | C88: 145.826466 | D88: -51.63040398 | E88: 3.28941347 | F88: 277.7904173 | G88: 9.798265537 | H88: 277.7904173 | I88: 158.914145 | J88: -47.88811826
B89: 2023-06-01 | C89: 86.64791662 | D89: -40.58148772 | E89: 73.32605876 | F89: 2129.152991 | G89: 8.606999731 | H89: -12.15792531 | I89: 168.5809751 | J89: 6.083052003 | K89: Excl batteries (separate forecast done)
B90: 2024-06-01 | C90: 77.40223504 | D90: -10.67040264 | E90: 304.0058189 | F90: 314.5945167 | G90: 8.679588065 | H90: 0.8433639629 | I90: 390.087642 | J90: 131.3948189 | K90: =SUM(C90,E90) -> 381.408054
B91: Forecasts | L91: Growth rate - Powercor
B92: 2025-06-01 | C92: 78.89481749 | D92: 1.928345419 | E92: 491.3360469 | F92: 61.62060603 | G92: 37.27410034 | H92: 329.4454997 | I92: 607.5049648 | J92: 55.7355064 | K92: =SUM(C92,E92) -> 570.2308644 | L92: =K92/K90-1 -> 0.4950677063
B93: 2026-06-01 | C93: 71.52899022 | D93: -9.33626251 | E93: 411.6499978 | F93: -16.21823794 | G93: 30.36427141 | H93: -18.53788252 | I93: 513.5432594 | J93: -15.46682098 | K93: =SUM(C93,E93) -> 483.178988 | L93: =K93/K92-1 -> -0.1526607588
B94: 2027-06-01 | C94: 15.4593223 | D94: -78.38733323 | E94: 179.2246095 | F94: -56.4618947 | G94: 2.707768332 | H94: -91.08238661 | I94: 197.3917001 | J94: -61.56279018 | K94: 194.6839318 | L94: =K94/K93-1 -> -0.5970769909
B95: 2028-06-01 | C95: 25.76668869 | D95: 66.67411543 | E95: 41.70393419 | F95: -76.73091084 | G95: 2.707889349 | H95: 0.004469256184 | I95: 70.17851223 | J95: -64.44708051 | K95: 67.47062288 | L95: -0.6534350716
B96: 2029-06-01 | C96: 25.76064135 | D96: -0.02346961364 | E96: 4.817529097 | F96: -88.44826228 | G96: 19.46638292 | H96: 618.8766015 | I96: 50.04455337 | J96: -28.68963479 | K96: 30.57817045 | L96: -0.5467928241
B97: 2030-06-01 | C97: 38.63769243 | D97: 49.98730777 | E97: 4.817121463 | F97: -0.008461486174 | G97: 18.59842149 | H97: -4.458771004 | I97: 62.05323538 | J97: 23.99598197 | K97: 43.45481389 | L97: 0.4211057513
B98: 2031-06-01 | C98: 38.63753364 | D98: -0.0004109546733 | E98: 4.817101666 | F98: -0.0004109546733 | G98: 19.46465579 | H98: 4.65756893 | I98: 62.9192911 | J98: 1.395665699 | K98: 43.45463531 | L98: -4.109546733e-06
J99: Source: ABS & Macromonitor

Sheet Growth_rates
A1: =Assumptions!$A$1 -> Powercor
A2: =Assumptions!$A$2 -> Connections
A3: Growth rates
B7: =Assumptions!B17 -> 2026/27 - 2030/31 reg period | H7: =Assumptions!G17 -> FALSE | I7: =Assumptions!H17 -> FALSE | J7: =Assumptions!I17 -> FALSE | K7: =Assumptions!J17 -> FALSE | L7: =Assumptions!K17 -> FALSE | M7: =Assumptions!L17 -> FALSE | N7: =Assumptions!M17 -> FALSE | O7: =Assumptions!N17 -> FALSE | P7: =Assumptions!O17 -> FALSE | Q7: =Assumptions!P17 -> FALSE | R7: =Assumptions!Q17 -> FALSE | S7: =Assumptions!R17 -> FALSE | T7: =Assumptions!S17 -> FALSE | U7: =Assumptions!T17 -> FALSE | V7: =Assumptions!U17 -> FALSE | W7: =Assumptions!V17 -> TRUE | X7: =Assumptions!W17 -> TRUE | Y7: =Assumptions!X17 -> TRUE | Z7: =Assumptions!Y17 -> TRUE | AA7: =Assumptions!Z17 -> TRUE
B8: =Assumptions!B18 -> Forecast period | H8: =Assumptions!G18 -> FALSE | I8: =Assumptions!H18 -> FALSE | J8: =Assumptions!I18 -> FALSE | K8: =Assumptions!J18 -> FALSE | L8: =Assumptions!K18 -> FALSE | M8: =Assumptions!L18 -> FALSE | N8: =Assumptions!M18 -> FALSE | O8: =Assumptions!N18 -> FALSE | P8: =Assumptions!O18 -> FALSE | Q8: =Assumptions!P18 -> FALSE | R8: =Assumptions!Q18 -> FALSE | S8: =Assumptions!R18 -> FALSE | T8: =Assumptions!S18 -> FALSE | U8: =Assumptions!T18 -> TRUE | V8: =Assumptions!U18 -> TRUE | W8: =Assumptions!V18 -> TRUE | X8: =Assumptions!W18 -> TRUE | Y8: =Assumptions!X18 -> TRUE | Z8: =Assumptions!Y18 -> TRUE | AA8: =Assumptions!Z18 -> TRUE
B9: =Assumptions!B19 -> Fin year end | H9: =Assumptions!G19 -> 2012 | I9: =Assumptions!H19 -> 2013 | J9: =Assumptions!I19 -> 2014 | K9: =Assumptions!J19 -> 2015 | L9: =Assumptions!K19 -> 2016 | M9: =Assumptions!L19 -> 2017 | N9: =Assumptions!M19 -> 2018 | O9: =Assumptions!N19 -> 2019 | P9: =Assumptions!O19 -> 2020 | Q9: =Assumptions!P19 -> 2021 | R9: =Assumptions!Q19 -> 2022 | S9: =Assumptions!R19 -> 2023 | T9: =Assumptions!S19 -> 2024 | U9: =Assumptions!T19 -> 2025 | V9: =Assumptions!U19 -> 2026 | W9: =Assumptions!V19 -> 2027 | X9: =Assumptions!W19 -> 2028 | Y9: =Assumptions!X19 -> 2029 | Z9: =Assumptions!Y19 -> 2030 | AA9: =Assumptions!Z19 -> 2031
B10: =Assumptions!B20 -> Basis | H10: =Assumptions!G20 -> Actual | I10: =Assumptions!H20 -> Actual | J10: =Assumptions!I20 -> Actual | K10: =Assumptions!J20 -> Actual | L10: =Assumptions!K20 -> Actual | M10: =Assumptions!L20 -> Actual | N10: =Assumptions!M20 -> Actual | O10: =Assumptions!N20 -> Actual | P10: =Assumptions!O20 -> Actual | Q10: =Assumptions!P20 -> Actual | R10: =Assumptions!Q20 -> Actual | S10: =Assumptions!R20 -> Actual | T10: =Assumptions!S20 -> Actual | U10: =Assumptions!T20 -> Forecast | V10: =Assumptions!U20 -> Forecast | W10: =Assumptions!V20 -> Forecast | X10: =Assumptions!W20 -> Forecast | Y10: =Assumptions!X20 -> Forecast | Z10: =Assumptions!Y20 -> Forecast | AA10: =Assumptions!Z20 -> Forecast
B13: =Hist_vol!B$13 -> Category | C13: Type | D13: =Hist_vol!D$13 -> RIN category | E13: =Hist_vol!E$13 -> Description | H13: =Assumptions!G$24 -> 2011/12 | I13: =Assumptions!H$24 -> 2012/13 | J13: =Assumptions!I$24 -> 2013/14 | K13: =Assumptions!J$24 -> 2014/15 | L13: =Assumptions!K$24 -> 2015/16 | M13: =Assumptions!L$24 -> 2016/17 | N13: =Assumptions!M$24 -> 2017/18 | O13: =Assumptions!N$24 -> 2018/19 | P13: =Assumptions!O$24 -> 2019/20 | Q13: =Assumptions!P$24 -> 2020/21 | R13: =Assumptions!Q$24 -> 2021/22 | S13: =Assumptions!R$24 -> 2022/23 | T13: =Assumptions!S$24 -> 2023/24 | U13: =Assumptions!T$24 -> 2024/25 | V13: =Assumptions!U$24 -> 2025/26 | W13: =Assumptions!V$24 -> 2026/27 | X13: =Assumptions!W$24 -> 2027/28 | Y13: =Assumptions!X$24 -> 2028/29 | Z13: =Assumptions!Y$24 -> 2029/30 | AA13: =Assumptions!Z$24 -> 2030/31
B14: Compound growth | T14: Base year
B16: Connections | C16: Macromonitor | D16: =Hist_vol!D15 -> Residential | E16: =Hist_vol!E15 -> Simple connection LV | F16: =C16&D16&E16 -> MacromonitorResidentialSimple connection LV | T16: 1 | U16: =(1+Macromonitor!I9)*Growth_rates!T16 -> 1.053737444 | V16: =(1+Macromonitor!J9)*Growth_rates!U16 -> 1.175221908 | W16: =(1+Macromonitor!K9)*Growth_rates!V16 -> 1.320768696 | X16: =(1+Macromonitor!L9)*Growth_rates!W16 -> 1.309265085 | Y16: =(1+Macromonitor!M9)*Growth_rates!X16 -> 1.228150856 | Z16: =(1+Macromonitor!N9)*Growth_rates!Y16 -> 1.23634117 | AA16: =(1+Macromonitor!O9)*Growth_rates!Z16 -> 1.265399561
B17: Connections | C17: Macromonitor | D17: =Hist_vol!D16 -> Residential | E17: =Hist_vol!E16 -> Complex connection LV | F17: MacromonitorResidentialComplex connection LV | T17: 1 | U17: =(1+Macromonitor!I10)*Growth_rates!T17 -> 1.053737444 | V17: =(1+Macromonitor!J10)*Growth_rates!U17 -> 1.175221908 | W17: =(1+Macromonitor!K10)*Growth_rates!V17 -> 1.320768696 | X17: =(1+Macromonitor!L10)*Growth_rates!W17 -> 1.309265085 | Y17: =(1+Macromonitor!M10)*Growth_rates!X17 -> 1.228150856 | Z17: =(1+Macromonitor!N10)*Growth_rates!Y17 -> 1.23634117 | AA17: =(1+Macromonitor!O10)*Growth_rates!Z17 -> 1.265399561
B18: Connections | C18: Macromonitor | D18: =Hist_vol!D17 -> Residential | E18: =Hist_vol!E17 -> Complex connection HV | F18: MacromonitorResidentialComplex connection HV | T18: 1 | U18: =(1+Macromonitor!I11)*Growth_rates!T18 -> 1.053737444 | V18: =(1+Macromonitor!J11)*Growth_rates!U18 -> 1.175221908 | W18: =(1+Macromonitor!K11)*Growth_rates!V18 -> 1.320768696 | X18: =(1+Macromonitor!L11)*Growth_rates!W18 -> 1.309265085 | Y18: =(1+Macromonitor!M11)*Growth_rates!X18 -> 1.228150856 | Z18: =(1+Macromonitor!N11)*Growth_rates!Y18 -> 1.23634117 | AA18: =(1+Macromonitor!O11)*Growth_rates!Z18 -> 1.265399561
B19: Connections | C19: Macromonitor | D19: =Hist_vol!D18 -> Commercial/Industrial | E19: =Hist_vol!E18 -> Simple connection LV | F19: MacromonitorCommercial/IndustrialSimple connection LV | T19: 1 | U19: =(1+Macromonitor!I12)*Growth_rates!T19 -> 0.933802893 | V19: =(1+Macromonitor!J12)*Growth_rates!U19 -> 0.7804067671 | W19: =(1+Macromonitor!K12)*Growth_rates!V19 -> 0.7763065066 | X19: =(1+Macromonitor!L12)*Growth_rates!W19 -> 0.793191892 | Y19: =(1+Macromonitor!M12)*Growth_rates!X19 -> 0.7966061694 | Z19: =(1+Macromonitor!N12)*Growth_rates!Y19 -> 0.7924566964 | AA19: =(1+Macromonitor!O12)*Growth_rates!Z19 -> 0.7921932163
B20: Connections | C20: Macromonitor | D20: =Hist_vol!D19 -> Commercial/Industrial | E20: =Hist_vol!E19 -> Complex connection HV (customer connected at LV, minor HV works) | F20: MacromonitorCommercial/IndustrialComplex connection HV (customer connected at LV, minor HV works) | T20: 1 | U20: =(1+Macromonitor!I13)*Growth_rates!T20 -> 0.933802893 | V20: =(1+Macromonitor!J13)*Growth_rates!U20 -> 0.7804067671 | W20: =(1+Macromonitor!K13)*Growth_rates!V20 -> 0.7763065066 | X20: =(1+Macromonitor!L13)*Growth_rates!W20 -> 0.793191892 | Y20: =(1+Macromonitor!M13)*Growth_rates!X20 -> 0.7966061694 | Z20: =(1+Macromonitor!N13)*Growth_rates!Y20 -> 0.7924566964 | AA20: =(1+Macromonitor!O13)*Growth_rates!Z20 -> 0.7921932163
B21: Connections | C21: Macromonitor | D21: =Hist_vol!D20 -> Commercial/Industrial | E21: =Hist_vol!E20 -> Complex connection HV (customer connected at LV, upstream asset works) | F21: MacromonitorCommercial/IndustrialComplex connection HV (customer connected at LV, upstream asset works) | T21: 1 | U21: =(1+Macromonitor!I14)*Growth_rates!T21 -> 0.933802893 | V21: =(1+Macromonitor!J14)*Growth_rates!U21 -> 0.7804067671 | W21: =(1+Macromonitor!K14)*Growth_rates!V21 -> 0.7763065066 | X21: =(1+Macromonitor!L14)*Growth_rates!W21 -> 0.793191892 | Y21: =(1+Macromonitor!M14)*Growth_rates!X21 -> 0.7966061694 | Z21: =(1+Macromonitor!N14)*Growth_rates!Y21 -> 0.7924566964 | AA21: =(1+Macromonitor!O14)*Growth_rates!Z21 -> 0.7921932163
B22: Connections | C22: Macromonitor | D22: =Hist_vol!D21 -> Commercial/Industrial | E22: =Hist_vol!E21 -> Complex connection HV (customer connected at HV) | F22: MacromonitorCommercial/IndustrialComplex connection HV (customer connected at HV) | T22: 1 | U22: =(1+Macromonitor!I15)*Growth_rates!T22 -> 0.933802893 | V22: =(1+Macromonitor!J15)*Growth_rates!U22 -> 0.7804067671 | W22: =(1+Macromonitor!K15)*Growth_rates!V22 -> 0.7763065066 | X22: =(1+Macromonitor!L15)*Growth_rates!W22 -> 0.793191892 | Y22: =(1+Macromonitor!M15)*Growth_rates!X22 -> 0.7966061694 | Z22: =(1+Macromonitor!N15)*Growth_rates!Y22 -> 0.7924566964 | AA22: =(1+Macromonitor!O15)*Growth_rates!Z22 -> 0.7921932163
B23: Connections | C23: Macromonitor | D23: =Hist_vol!D22 -> Commercial/Industrial | E23: =Hist_vol!E22 -> Complex connection sub-transmission | F23: MacromonitorCommercial/IndustrialComplex connection sub-transmission | T23: 1 | U23: =(1+Macromonitor!I16)*Growth_rates!T23 -> 0.933802893 | V23: =(1+Macromonitor!J16)*Growth_rates!U23 -> 0.7804067671 | W23: =(1+Macromonitor!K16)*Growth_rates!V23 -> 0.7763065066 | X23: =(1+Macromonitor!L16)*Growth_rates!W23 -> 0.793191892 | Y23: =(1+Macromonitor!M16)*Growth_rates!X23 -> 0.7966061694 | Z23: =(1+Macromonitor!N16)*Growth_rates!Y23 -> 0.7924566964 | AA23: =(1+Macromonitor!O16)*Growth_rates!Z23 -> 0.7921932163
B24: Connections | C24: Macromonitor | D24: =Hist_vol!D23 -> Subdivision | E24: =Hist_vol!E23 -> Complex connection LV | F24: MacromonitorSubdivisionComplex connection LV | T24: 1 | U24: =(1+Macromonitor!I17)*Growth_rates!T24 -> 1.053737444 | V24: =(1+Macromonitor!J17)*Growth_rates!U24 -> 1.175221908 | W24: =(1+Macromonitor!K17)*Growth_rates!V24 -> 1.320768696 | X24: =(1+Macromonitor!L17)*Growth_rates!W24 -> 1.309265085 | Y24: =(1+Macromonitor!M17)*Growth_rates!X24 -> 1.228150856 | Z24: =(1+Macromonitor!N17)*Growth_rates!Y24 -> 1.23634117 | AA24: =(1+Macromonitor!O17)*Growth_rates!Z24 -> 1.265399561
B25: Connections | C25: Macromonitor | D25: =Hist_vol!D24 -> Subdivision | E25: =Hist_vol!E24 -> Complex connection HV (no upstream asset works) | F25: MacromonitorSubdivisionComplex connection HV (no upstream asset works) | T25: 1 | U25: =(1+Macromonitor!I18)*Growth_rates!T25 -> 1.053737444 | V25: =(1+Macromonitor!J18)*Growth_rates!U25 -> 1.175221908 | W25: =(1+Macromonitor!K18)*Growth_rates!V25 -> 1.320768696 | X25: =(1+Macromonitor!L18)*Growth_rates!W25 -> 1.309265085 | Y25: =(1+Macromonitor!M18)*Growth_rates!X25 -> 1.228150856 | Z25: =(1+Macromonitor!N18)*Growth_rates!Y25 -> 1.23634117 | AA25: =(1+Macromonitor!O18)*Growth_rates!Z25 -> 1.265399561
B26: Connections | C26: Macromonitor | D26: =Hist_vol!D25 -> Subdivision | E26: =Hist_vol!E25 -> Complex connection HV (with upstream asset works) | F26: MacromonitorSubdivisionComplex connection HV (with upstream asset works) | T26: 1 | U26: =(1+Macromonitor!I19)*Growth_rates!T26 -> 1.053737444 | V26: =(1+Macromonitor!J19)*Growth_rates!U26 -> 1.175221908 | W26: =(1+Macromonitor!K19)*Growth_rates!V26 -> 1.320768696 | X26: =(1+Macromonitor!L19)*Growth_rates!W26 -> 1.309265085 | Y26: =(1+Macromonitor!M19)*Growth_rates!X26 -> 1.228150856 | Z26: =(1+Macromonitor!N19)*Growth_rates!Y26 -> 1.23634117 | AA26: =(1+Macromonitor!O19)*Growth_rates!Z26 -> 1.265399561
B27: Connections | C27: Macromonitor | D27: =Hist_vol!D26 -> Embedded generation | E27: =Hist_vol!E26 -> Simple connection LV | F27: MacromonitorEmbedded generationSimple connection LV | T27: 1 | U27: =(1+Macromonitor!I20)*Growth_rates!T27 -> 1.495067706 | V27: =(1+Macromonitor!J20)*Growth_rates!U27 -> 1.266829536 | W27: =(1+Macromonitor!K20)*Growth_rates!V27 -> 0.5104347686 | X27: =(1+Macromonitor!L20)*Growth_rates!W27 -> 0.176898789 | Y27: =(1+Macromonitor!M20)*Growth_rates!X27 -> 0.08017180059 | Z27: =(1+Macromonitor!N20)*Growth_rates!Y27 -> 0.1139326069 | AA27: =(1+Macromonitor!O20)*Growth_rates!Z27 -> 0.1139321387
B28: Connections | C28: Macromonitor | D28: =Hist_vol!D27 -> Embedded generation | E28: =Hist_vol!E27 -> Complex connection HV (small capacity) | F28: MacromonitorEmbedded generationComplex connection HV (small capacity) | T28: 1 | U28: =(1+Macromonitor!I21)*Growth_rates!T28 -> 1.495067706 | V28: =(1+Macromonitor!J21)*Growth_rates!U28 -> 1.266829536 | W28: =(1+Macromonitor!K21)*Growth_rates!V28 -> 0.5104347686 | X28: =(1+Macromonitor!L21)*Growth_rates!W28 -> 0.176898789 | Y28: =(1+Macromonitor!M21)*Growth_rates!X28 -> 0.08017180059 | Z28: =(1+Macromonitor!N21)*Growth_rates!Y28 -> 0.1139326069 | AA28: =(1+Macromonitor!O21)*Growth_rates!Z28 -> 0.1139321387
B29: Connections | C29: Macromonitor | D29: =Hist_vol!D28 -> Embedded generation | E29: =Hist_vol!E28 -> Complex connection HV (large capacity) | F29: MacromonitorEmbedded generationComplex connection HV (large capacity) | T29: 1 | U29: =(1+Macromonitor!I22)*Growth_rates!T29 -> 1.495067706 | V29: =(1+Macromonitor!J22)*Growth_rates!U29 -> 1.266829536 | W29: =(1+Macromonitor!K22)*Growth_rates!V29 -> 0.5104347686 | X29: =(1+Macromonitor!L22)*Growth_rates!W29 -> 0.176898789 | Y29: =(1+Macromonitor!M22)*Growth_rates!X29 -> 0.08017180059 | Z29: =(1+Macromonitor!N22)*Growth_rates!Y29 -> 0.1139326069 | AA29: =(1+Macromonitor!O22)*Growth_rates!Z29 -> 0.1139321387

Sheet Grid connected batteries
A1: =Assumptions!$A$1 -> Powercor
A2: =Assumptions!$A$2 -> Connections
A3: Grid connected batteries
B7: =Assumptions!B17 -> 2026/27 - 2030/31 reg period | E7: =Assumptions!V17 -> TRUE | F7: =Assumptions!W17 -> TRUE | G7: =Assumptions!X17 -> TRUE | H7: =Assumptions!Y17 -> TRUE | I7: =Assumptions!Z17 -> TRUE
B8: =Assumptions!B18 -> Forecast period | E8: =Assumptions!V18 -> TRUE | F8: =Assumptions!W18 -> TRUE | G8: =Assumptions!X18 -> TRUE | H8: =Assumptions!Y18 -> TRUE | I8: =Assumptions!Z18 -> TRUE
B9: =Assumptions!B19 -> Fin year end | E9: =Assumptions!V19 -> 2027 | F9: =Assumptions!W19 -> 2028 | G9: =Assumptions!X19 -> 2029 | H9: =Assumptions!Y19 -> 2030 | I9: =Assumptions!Z19 -> 2031
B10: =Assumptions!B20 -> Basis | E10: =Assumptions!V20 -> Forecast | F10: =Assumptions!W20 -> Forecast | G10: =Assumptions!X20 -> Forecast | H10: =Assumptions!Y20 -> Forecast | I10: =Assumptions!Z20 -> Forecast
B13: =Hist_vol!B$13 -> Category | C13: =Hist_vol!C$13 -> Type | D13: =Hist_vol!D$13 -> RIN category | E13: =Assumptions!V$24 -> 2026/27 | F13: =Assumptions!W$24 -> 2027/28 | G13: =Assumptions!X$24 -> 2028/29 | H13: =Assumptions!Y$24 -> 2029/30 | I13: =Assumptions!Z$24 -> 2030/31 | K13: 2026-31 Total
B14: (Jun 2026 $)
B15: Connections | C15: Grid connected Battery | D15: Connected capacity (MW) | E15: 80.4992991 | F15: 77.0733909 | G15: 89.7929538 | H15: 99.7654482 | I15: 87.582165 | K15: =SUM(E15:I15) -> 434.713257
B16: Connections | C16: Grid connected Battery | D16: Gross capex | E16: =$E$20*E15 -> 8288046.837 | F16: =$E$20*F15 -> 7935322.18 | G16: =$E$20*G15 -> 9244902.937 | H16: =$E$20*H15 -> 10271651.02 | I16: =$E$20*I15 -> 9017284.544 | K16: =SUM(E16:I16) -> 44757207.51
B17: Connections | C17: Grid connected Battery | D17: Incremental revenue | E17: =E15*$E$21 -> 1971991.33 | F17: =F15*$E$21 -> 1888066.857 | G17: =G15*$E$21 -> 2199657.989 | H17: =H15*$E$21 -> 2443954.185 | I17: =I15*$E$21 -> 2145500.296 | K17: =SUM(E17:I17) -> 10649170.66
B18: Connections | C18: Grid connected Battery | D18: Customer contribution | E18: =E16-E17 -> 6316055.507 | F18: =F16-F17 -> 6047255.323 | G18: 7045244.948 | H18: 7827696.831 | I18: 6871784.248 | K18: =K16-K17 -> 34108036.86
B20: Connections | C20: Grid connected Battery | D20: Gross capex unit rate | E20: 102958 | F20: per MW
B21: Connections | C21: Grid connected Battery | D21: Incremental revenue unit rate | E21: 24497 | F21: per MW

Sheet Data Centres
A1: =Assumptions!$A$1 -> Powercor
A2: =Assumptions!$A$2 -> Connections
A3: Data Centres
B7: =Assumptions!B17 -> 2026/27 - 2030/31 reg period | E7: =Assumptions!V17 -> TRUE | F7: =Assumptions!W17 -> TRUE | G7: =Assumptions!X17 -> TRUE | H7: =Assumptions!Y17 -> TRUE | I7: =Assumptions!Z17 -> TRUE
B8: =Assumptions!B18 -> Forecast period | E8: =Assumptions!V18 -> TRUE | F8: =Assumptions!W18 -> TRUE | G8: =Assumptions!X18 -> TRUE | H8: =Assumptions!Y18 -> TRUE | I8: =Assumptions!Z18 -> TRUE
B9: =Assumptions!B19 -> Fin year end | E9: =Assumptions!V19 -> 2027 | F9: =Assumptions!W19 -> 2028 | G9: =Assumptions!X19 -> 2029 | H9: =Assumptions!Y19 -> 2030 | I9: =Assumptions!Z19 -> 2031
B10: =Assumptions!B20 -> Basis | E10: =Assumptions!V20 -> Forecast | F10: =Assumptions!W20 -> Forecast | G10: =Assumptions!X20 -> Forecast | H10: =Assumptions!Y20 -> Forecast | I10: =Assumptions!Z20 -> Forecast
B13: =Hist_vol!B$13 -> Category | C13: =Hist_vol!C$13 -> Type | D13: =Hist_vol!D$13 -> RIN category | E13: =Assumptions!V$24 -> 2026/27 | F13: =Assumptions!W$24 -> 2027/28 | G13: =Assumptions!X$24 -> 2028/29 | H13: =Assumptions!Y$24 -> 2029/30 | I13: =Assumptions!Z$24 -> 2030/31 | K13: 2026-31 Total
B14: (Jun 2026 $)
B15: Connections | C15: Data Centres | D15: Connected capacity (MW) | E15: 36 | F15: 50 | G15: 30 | H15: 97 | I15: 79 | K15: =SUM(E15:I15) -> 292
B16: Connections | C16: Data Centres | D16: Gross capex | E16: =$E$19*E15 -> 26429629.63 | F16: =$E$19*F15 -> 36707818.93 | G16: =$E$19*G15 -> 22024691.36 | H16: =$E$19*H15 -> 71213168.72 | I16: =$E$19*I15 -> 57998353.91 | K16: =SUM(E16:I16) -> 214373662.6
B17: Connections | C17: Data Centres | D17: Customer contribution | E17: =E16*$E$20 -> 22465185.19 | F17: =F16*$E$20 -> 31201646.09 | G17: =G16*$E$20 -> 18720987.65 | H17: =H16*$E$20 -> 60531193.42 | I17: =I16*$E$20 -> 49298600.82 | K17: =SUM(E17:I17) -> 182217613.2
B19: Connections | C19: Data Centres | D19: Gross capex unit rate | E19: 734156.3786
B20: Connections | C20: Data Centres | D20: Customer contribution rate | E20: 0.85

Sheet Forecast_vol
A1: =Assumptions!$A$1 -> Powercor
A2: =Assumptions!$A$2 -> Connections
A3: Forecast volumes
B7: =Assumptions!B17 -> 2026/27 - 2030/31 reg period | H7: =Assumptions!G17 -> FALSE | I7: =Assumptions!H17 -> FALSE | J7: =Assumptions!I17 -> FALSE | K7: =Assumptions!J17 -> FALSE | L7: =Assumptions!K17 -> FALSE | M7: =Assumptions!L17 -> FALSE | N7: =Assumptions!M17 -> FALSE | O7: =Assumptions!N17 -> FALSE | P7: =Assumptions!O17 -> FALSE | Q7: =Assumptions!P17 -> FALSE | R7: =Assumptions!Q17 -> FALSE | S7: =Assumptions!R17 -> FALSE | T7: =Assumptions!S17 -> FALSE | U7: =Assumptions!T17 -> FALSE | V7: =Assumptions!U17 -> FALSE | W7: =Assumptions!V17 -> TRUE | X7: =Assumptions!W17 -> TRUE | Y7: =Assumptions!X17 -> TRUE | Z7: =Assumptions!Y17 -> TRUE | AA7: =Assumptions!Z17 -> TRUE
B8: =Assumptions!B18 -> Forecast period | H8: =Assumptions!G18 -> FALSE | I8: =Assumptions!H18 -> FALSE | J8: =Assumptions!I18 -> FALSE | K8: =Assumptions!J18 -> FALSE | L8: =Assumptions!K18 -> FALSE | M8: =Assumptions!L18 -> FALSE | N8: =Assumptions!M18 -> FALSE | O8: =Assumptions!N18 -> FALSE | P8: =Assumptions!O18 -> FALSE | Q8: =Assumptions!P18 -> FALSE | R8: =Assumptions!Q18 -> FALSE | S8: =Assumptions!R18 -> FALSE | T8: =Assumptions!S18 -> FALSE | U8: =Assumptions!T18 -> TRUE | V8: =Assumptions!U18 -> TRUE | W8: =Assumptions!V18 -> TRUE | X8: =Assumptions!W18 -> TRUE | Y8: =Assumptions!X18 -> TRUE | Z8: =Assumptions!Y18 -> TRUE | AA8: =Assumptions!Z18 -> TRUE
B9: =Assumptions!B19 -> Fin year end | H9: =Assumptions!G19 -> 2012 | I9: =Assumptions!H19 -> 2013 | J9: =Assumptions!I19 -> 2014 | K9: =Assumptions!J19 -> 2015 | L9: =Assumptions!K19 -> 2016 | M9: =Assumptions!L19 -> 2017 | N9: =Assumptions!M19 -> 2018 | O9: =Assumptions!N19 -> 2019 | P9: =Assumptions!O19 -> 2020 | Q9: =Assumptions!P19 -> 2021 | R9: =Assumptions!Q19 -> 2022 | S9: =Assumptions!R19 -> 2023 | T9: =Assumptions!S19 -> 2024 | U9: =Assumptions!T19 -> 2025 | V9: =Assumptions!U19 -> 2026 | W9: =Assumptions!V19 -> 2027 | X9: =Assumptions!W19 -> 2028 | Y9: =Assumptions!X19 -> 2029 | Z9: =Assumptions!Y19 -> 2030 | AA9: =Assumptions!Z19 -> 2031
B10: =Assumptions!B20 -> Basis | H10: =Assumptions!G20 -> Actual | I10: =Assumptions!H20 -> Actual | J10: =Assumptions!I20 -> Actual | K10: =Assumptions!J20 -> Actual | L10: =Assumptions!K20 -> Actual | M10: =Assumptions!L20 -> Actual | N10: =Assumptions!M20 -> Actual | O10: =Assumptions!N20 -> Actual | P10: =Assumptions!O20 -> Actual | Q10: =Assumptions!P20 -> Actual | R10: =Assumptions!Q20 -> Actual | S10: =Assumptions!R20 -> Actual | T10: =Assumptions!S20 -> Actual | U10: =Assumptions!T20 -> Forecast | V10: =Assumptions!U20 -> Forecast | W10: =Assumptions!V20 -> Forecast | X10: =Assumptions!W20 -> Forecast | Y10: =Assumptions!X20 -> Forecast | Z10: =Assumptions!Y20 -> Forecast | AA10: =Assumptions!Z20 -> Forecast
B13: =Hist_vol!B$13 -> Category | C13: Type | D13: =Hist_vol!D$13 -> RIN category | E13: =Hist_vol!E$13 -> Description | H13: =Assumptions!G$24 -> 2011/12 | I13: =Assumptions!H$24 -> 2012/13 | J13: =Assumptions!I$24 -> 2013/14 | K13: =Assumptions!J$24 -> 2014/15 | L13: =Assumptions!K$24 -> 2015/16 | M13: =Assumptions!L$24 -> 2016/17 | N13: =Assumptions!M$24 -> 2017/18 | O13: =Assumptions!N$24 -> 2018/19 | P13: =Assumptions!O$24 -> 2019/20 | Q13: =Assumptions!P$24 -> 2020/21 | R13: =Assumptions!Q$24 -> 2021/22 | S13: =Assumptions!R$24 -> 2022/23 | T13: =Assumptions!S$24 -> 2023/24 | U13: =Assumptions!T$24 -> 2024/25 | V13: =Assumptions!U$24 -> 2025/26 | W13: =Assumptions!V$24 -> 2026/27 | X13: =Assumptions!W$24 -> 2027/28 | Y13: =Assumptions!X$24 -> 2028/29 | Z13: =Assumptions!Y$24 -> 2029/30 | AA13: =Assumptions!Z$24 -> 2030/31
B15: Forecast volumes
B16: =Hist_vol!B15 -> Connections | C16: =Hist_vol!C15 -> R1 | D16: =Hist_vol!D15 -> Residential | E16: =Hist_vol!E15 -> Simple connection LV | H16: =IF(H$8, Hist_vol!$S15*Growth_rates!H16, Hist_vol!G15) -> 15246 | I16: =IF(I$8, Hist_vol!$S15*Growth_rates!I16, Hist_vol!H15) -> 13350 | J16: =IF(J$8, Hist_vol!$S15*Growth_rates!J16, Hist_vol!I15) -> 12650.84 | K16: =IF(K$8, Hist_vol!$S15*Growth_rates!K16, Hist_vol!J15) -> 12805.84 | L16: =IF(L$8, Hist_vol!$S15*Growth_rates!L16, Hist_vol!K15) -> 6511.5 | M16: =IF(M$8, Hist_vol!$S15*Growth_rates!M16, Hist_vol!L15) -> 0 | N16: =IF(N$8, Hist_vol!$S15*Growth_rates!N16, Hist_vol!M15) -> 0 | O16: =IF(O$8, Hist_vol!$S15*Growth_rates!O16, Hist_vol!N15) -> 0 | P16: =IF(P$8, Hist_vol!$S15*Growth_rates!P16, Hist_vol!O15) -> 0 | Q16: =IF(Q$8, Hist_vol!$S15*Growth_rates!Q16, Hist_vol!P15) -> 0 | R16: =IF(R$8, Hist_vol!$S15*Growth_rates!R16, Hist_vol!Q15) -> 0 | S16: =IF(S$8, Hist_vol!$S15*Growth_rates!S16, Hist_vol!R15) -> 0 | T16: =IF(T$8, Hist_vol!$S15*Growth_rates!T16, Hist_vol!S15) -> 0 | U16: =IF(U$8, Hist_vol!$S15*Growth_rates!U16, Hist_vol!T15) -> 0 | V16: =IF(V$8, Hist_vol!$S15*Growth_rates!V16, Hist_vol!U15) -> 0 | W16: =IF(W$8, Hist_vol!$S15*Growth_rates!W16, Hist_vol!V15) -> 0 | X16: =IF(X$8, Hist_vol!$S15*Growth_rates!X16, Hist_vol!W15) -> 0 | Y16: =IF(Y$8, Hist_vol!$S15*Growth_rates!Y16, Hist_vol!X15) -> 0 | Z16: =IF(Z$8, Hist_vol!$S15*Growth_rates!Z16, Hist_vol!Y15) -> 0 | AA16: =IF(AA$8, Hist_vol!$S15*Growth_rates!AA16, Hist_vol!Z15) -> 0
B17: =Hist_vol!B16 -> Connections | C17: =Hist_vol!C16 -> R2 | D17: =Hist_vol!D16 -> Residential | E17: =Hist_vol!E16 -> Complex connection LV | H17: =IF(H$8, Hist_vol!$S16*Growth_rates!H17, Hist_vol!G16) -> 2981 | I17: =IF(I$8, Hist_vol!$S16*Growth_rates!I17, Hist_vol!H16) -> 3148.5 | J17: =IF(J$8, Hist_vol!$S16*Growth_rates!J17, Hist_vol!I16) -> 3279.160469 | K17: =IF(K$8, Hist_vol!$S16*Growth_rates!K17, Hist_vol!J16) -> 2935.660469 | L17: =IF(L$8, Hist_vol!$S16*Growth_rates!L17, Hist_vol!K16) -> 2333.5 | M17: =IF(M$8, Hist_vol!$S16*Growth_rates!M17, Hist_vol!L16) -> 2102.5 | N17: =IF(N$8, Hist_vol!$S16*Growth_rates!N17, Hist_vol!M16) -> 2216.220566 | O17: =IF(O$8, Hist_vol!$S16*Growth_rates!O17, Hist_vol!N16) -> 2305.720566 | P17: =IF(P$8, Hist_vol!$S16*Growth_rates!P17, Hist_vol!O16) -> 2420 | Q17: =IF(Q$8, Hist_vol!$S16*Growth_rates!Q17, Hist_vol!P16) -> 2464 | R17: =IF(R$8, Hist_vol!$S16*Growth_rates!R17, Hist_vol!Q16) -> 2202 | S17: =IF(S$8, Hist_vol!$S16*Growth_rates!S17, Hist_vol!R16) -> 1804 | T17: =IF(T$8, Hist_vol!$S16*Growth_rates!T17, Hist_vol!S16) -> 1775 | U17: =IF(U$8, Hist_vol!$S16*Growth_rates!U17, Hist_vol!T16) -> 1870.383964 | V17: =IF(V$8, Hist_vol!$S16*Growth_rates!V17, Hist_vol!U16) -> 2086.018887 | W17: =IF(W$8, Hist_vol!$S16*Growth_rates!W17, Hist_vol!V16) -> 2344.364436 | X17: =IF(X$8, Hist_vol!$S16*Growth_rates!X17, Hist_vol!W16) -> 2323.945527 | Y17: =IF(Y$8, Hist_vol!$S16*Growth_rates!Y17, Hist_vol!X16) -> 2179.96777 | Z17: =IF(Z$8, Hist_vol!$S16*Growth_rates!Z17, Hist_vol!Y16) -> 2194.505577 | AA17: =IF(AA$8, Hist_vol!$S16*Growth_rates!AA17, Hist_vol!Z16) -> 2246.084221
B18: =Hist_vol!B17 -> Connections | C18: =Hist_vol!C17 -> R3 | D18: =Hist_vol!D17 -> Residential | E18: =Hist_vol!E17 -> Complex connection HV | H18: =IF(H$8, Hist_vol!$S17*Growth_rates!H18, Hist_vol!G17) -> 352 | I18: =IF(I$8, Hist_vol!$S17*Growth_rates!I18, Hist_vol!H17) -> 374.5 | J18: =IF(J$8, Hist_vol!$S17*Growth_rates!J18, Hist_vol!I17) -> 342.5151479 | K18: =IF(K$8, Hist_vol!$S17*Growth_rates!K18, Hist_vol!J17) -> 270.5151479 | L18: =IF(L$8, Hist_vol!$S17*Growth_rates!L18, Hist_vol!K17) -> 184 | M18: =IF(M$8, Hist_vol!$S17*Growth_rates!M18, Hist_vol!L17) -> 177 | N18: =IF(N$8, Hist_vol!$S17*Growth_rates!N18, Hist_vol!M17) -> 238.2530479 | O18: =IF(O$8, Hist_vol!$S17*Growth_rates!O18, Hist_vol!N17) -> 215.7530479 | P18: =IF(P$8, Hist_vol!$S17*Growth_rates!P18, Hist_vol!O17) -> 169.5 | Q18: =IF(Q$8, Hist_vol!$S17*Growth_rates!Q18, Hist_vol!P17) -> 184 | R18: =IF(R$8, Hist_vol!$S17*Growth_rates!R18, Hist_vol!Q17) -> 225 | S18: =IF(S$8, Hist_vol!$S17*Growth_rates!S18, Hist_vol!R17) -> 200 | T18: =IF(T$8, Hist_vol!$S17*Growth_rates!T18, Hist_vol!S17) -> 175 | U18: =IF(U$8, Hist_vol!$S17*Growth_rates!U18, Hist_vol!T17) -> 184.4040528 | V18: =IF(V$8, Hist_vol!$S17*Growth_rates!V18, Hist_vol!U17) -> 205.6638339 | W18: =IF(W$8, Hist_vol!$S17*Growth_rates!W18, Hist_vol!V17) -> 231.1345219 | X18: =IF(X$8, Hist_vol!$S17*Growth_rates!X18, Hist_vol!W17) -> 229.12139 | Y18: =IF(Y$8, Hist_vol!$S17*Growth_rates!Y18, Hist_vol!X17) -> 214.9263998 | Z18: =IF(Z$8, Hist_vol!$S17*Growth_rates!Z18, Hist_vol!Y17) -> 216.3597047 | AA18: =IF(AA$8, Hist_vol!$S17*Growth_rates!AA18, Hist_vol!Z17) -> 221.4449232
B19: =Hist_vol!B18 -> Connections | C19: =Hist_vol!C18 -> CI1 | D19: =Hist_vol!D18 -> Commercial/Industrial | E19: =Hist_vol!E18 -> Simple connection LV | H19: =IF(H$8, Hist_vol!$S18*Growth_rates!H19, Hist_vol!G18) -> 2119 | I19: =IF(I$8, Hist_vol!$S18*Growth_rates!I19, Hist_vol!H18) -> 2108 | J19: =IF(J$8, Hist_vol!$S18*Growth_rates!J19, Hist_vol!I18) -> 2117.488909 | K19: =IF(K$8, Hist_vol!$S18*Growth_rates!K19, Hist_vol!J18) -> 1969.488909 | L19: =IF(L$8, Hist_vol!$S18*Growth_rates!L19, Hist_vol!K18) -> 911.5 | M19: =IF(M$8, Hist_vol!$S18*Growth_rates!M19, Hist_vol!L18) -> 0 | N19: =IF(N$8, Hist_vol!$S18*Growth_rates!N19, Hist_vol!M18) -> 0 | O19: =IF(O$8, Hist_vol!$S18*Growth_rates!O19, Hist_vol!N18) -> 0 | P19: =IF(P$8, Hist_vol!$S18*Growth_rates!P19, Hist_vol!O18) -> 0 | Q19: =IF(Q$8, Hist_vol!$S18*Growth_rates!Q19, Hist_vol!P18) -> 0 | R19: =IF(R$8, Hist_vol!$S18*Growth_rates!R19, Hist_vol!Q18) -> 0 | S19: =IF(S$8, Hist_vol!$S18*Growth_rates!S19, Hist_vol!R18) -> 0 | T19: =IF(T$8, Hist_vol!$S18*Growth_rates!T19, Hist_vol!S18) -> 0 | U19: =IF(U$8, Hist_vol!$S18*Growth_rates!U19, Hist_vol!T18) -> 0 | V19: =IF(V$8, Hist_vol!$S18*Growth_rates!V19, Hist_vol!U18) -> 0 | W19: =IF(W$8, Hist_vol!$S18*Growth_rates!W19, Hist_vol!V18) -> 0 | X19: =IF(X$8, Hist_vol!$S18*Growth_rates!X19, Hist_vol!W18) -> 0 | Y19: =IF(Y$8, Hist_vol!$S18*Growth_rates!Y19, Hist_vol!X18) -> 0 | Z19: =IF(Z$8, Hist_vol!$S18*Growth_rates!Z19, Hist_vol!Y18) -> 0 | AA19: =IF(AA$8, Hist_vol!$S18*Growth_rates!AA19, Hist_vol!Z18) -> 0
B20: =Hist_vol!B19 -> Connections | C20: =Hist_vol!C19 -> CI2 | D20: =Hist_vol!D19 -> Commercial/Industrial | E20: =Hist_vol!E19 -> Complex connection HV (customer connected at LV, minor HV works) | H20: =IF(H$8, Hist_vol!$S19*Growth_rates!H20, Hist_vol!G19) -> 0 | I20: =IF(I$8, Hist_vol!$S19*Growth_rates!I20, Hist_vol!H19) -> 0 | J20: =IF(J$8, Hist_vol!$S19*Growth_rates!J20, Hist_vol!I19) -> 0 | K20: =IF(K$8, Hist_vol!$S19*Growth_rates!K20, Hist_vol!J19) -> 0 | L20: =IF(L$8, Hist_vol!$S19*Growth_rates!L20, Hist_vol!K19) -> 325.5 | M20: =IF(M$8, Hist_vol!$S19*Growth_rates!M20, Hist_vol!L19) -> 305.5 | N20: =IF(N$8, Hist_vol!$S19*Growth_rates!N20, Hist_vol!M19) -> 399.5 | O20: =IF(O$8, Hist_vol!$S19*Growth_rates!O20, Hist_vol!N19) -> 357 | P20: =IF(P$8, Hist_vol!$S19*Growth_rates!P20, Hist_vol!O19) -> 182 | Q20: =IF(Q$8, Hist_vol!$S19*Growth_rates!Q20, Hist_vol!P19) -> 182 | R20: =IF(R$8, Hist_vol!$S19*Growth_rates!R20, Hist_vol!Q19) -> 144 | S20: =IF(S$8, Hist_vol!$S19*Growth_rates!S20, Hist_vol!R19) -> 135 | T20: =IF(T$8, Hist_vol!$S19*Growth_rates!T20, Hist_vol!S19) -> 156 | U20: =IF(U$8, Hist_vol!$S19*Growth_rates!U20, Hist_vol!T19) -> 145.6732513 | V20: =IF(V$8, Hist_vol!$S19*Growth_rates!V20, Hist_vol!U19) -> 121.7434557 | W20: =IF(W$8, Hist_vol!$S19*Growth_rates!W20, Hist_vol!V19) -> 121.103815 | X20: =IF(X$8, Hist_vol!$S19*Growth_rates!X20, Hist_vol!W19) -> 123.7379352 | Y20: =IF(Y$8, Hist_vol!$S19*Growth_rates!Y20, Hist_vol!X19) -> 124.2705624 | Z20: =IF(Z$8, Hist_vol!$S19*Growth_rates!Z20, Hist_vol!Y19) -> 123.6232446 | AA20: =IF(AA$8, Hist_vol!$S19*Growth_rates!AA20, Hist_vol!Z19) -> 123.5821417
B21: =Hist_vol!B20 -> Connections | C21: =Hist_vol!C20 -> CI3 | D21: =Hist_vol!D20 -> Commercial/Industrial | E21: =Hist_vol!E20 -> Complex connection HV (customer connected at LV, upstream asset works) | H21: =IF(H$8, Hist_vol!$S20*Growth_rates!H21, Hist_vol!G20) -> 371.2556342 | I21: =IF(I$8, Hist_vol!$S20*Growth_rates!I21, Hist_vol!H20) -> 359.2739723 | J21: =IF(J$8, Hist_vol!$S20*Growth_rates!J21, Hist_vol!I20) -> 345.5442312 | K21: =IF(K$8, Hist_vol!$S20*Growth_rates!K21, Hist_vol!J20) -> 323.3831283 | L21: =IF(L$8, Hist_vol!$S20*Growth_rates!L21, Hist_vol!K20) -> 290.5 | M21: =IF(M$8, Hist_vol!$S20*Growth_rates!M21, Hist_vol!L20) -> 331.5 | N21: =IF(N$8, Hist_vol!$S20*Growth_rates!N21, Hist_vol!M20) -> 378.7711871 | O21: =IF(O$8, Hist_vol!$S20*Growth_rates!O21, Hist_vol!N20) -> 361.2711871 | P21: =IF(P$8, Hist_vol!$S20*Growth_rates!P21, Hist_vol!O20) -> 330.5 | Q21: =IF(Q$8, Hist_vol!$S20*Growth_rates!Q21, Hist_vol!P20) -> 300 | R21: =IF(R$8, Hist_vol!$S20*Growth_rates!R21, Hist_vol!Q20) -> 347 | S21: =IF(S$8, Hist_vol!$S20*Growth_rates!S21, Hist_vol!R20) -> 377 | T21: =IF(T$8, Hist_vol!$S20*Growth_rates!T21, Hist_vol!S20) -> 366 | U21: =IF(U$8, Hist_vol!$S20*Growth_rates!U21, Hist_vol!T20) -> 341.7718588 | V21: =IF(V$8, Hist_vol!$S20*Growth_rates!V21, Hist_vol!U20) -> 285.6288767 | W21: =IF(W$8, Hist_vol!$S20*Growth_rates!W21, Hist_vol!V20) -> 284.1281814 | X21: =IF(X$8, Hist_vol!$S20*Growth_rates!X21, Hist_vol!W20) -> 290.3082325 | Y21: =IF(Y$8, Hist_vol!$S20*Growth_rates!Y21, Hist_vol!X20) -> 291.557858 | Z21: =IF(Z$8, Hist_vol!$S20*Growth_rates!Z21, Hist_vol!Y20) -> 290.0391509 | AA21: =IF(AA$8, Hist_vol!$S20*Growth_rates!AA21, Hist_vol!Z20) -> 289.9427172
B22: =Hist_vol!B21 -> Connections | C22: =Hist_vol!C21 -> CI4 | D22: =Hist_vol!D21 -> Commercial/Industrial | E22: =Hist_vol!E21 -> Complex connection HV (customer connected at HV) | H22: =IF(H$8, Hist_vol!$S21*Growth_rates!H22, Hist_vol!G21) -> 4 | I22: =IF(I$8, Hist_vol!$S21*Growth_rates!I22, Hist_vol!H21) -> 6.10306982 | J22: =IF(J$8, Hist_vol!$S21*Growth_rates!J22, Hist_vol!I21) -> 6.153944173 | K22: =IF(K$8, Hist_vol!$S21*Growth_rates!K22, Hist_vol!J21) -> 4.550874353 | L22: =IF(L$8, Hist_vol!$S21*Growth_rates!L22, Hist_vol!K21) -> 8 | M22: =IF(M$8, Hist_vol!$S21*Growth_rates!M22, Hist_vol!L21) -> 9.5 | N22: =IF(N$8, Hist_vol!$S21*Growth_rates!N22, Hist_vol!M21) -> 4.948891292 | O22: =IF(O$8, Hist_vol!$S21*Growth_rates!O22, Hist_vol!N21) -> 1.948891292 | P22: =IF(P$8, Hist_vol!$S21*Growth_rates!P22, Hist_vol!O21) -> 6 | Q22: =IF(Q$8, Hist_vol!$S21*Growth_rates!Q22, Hist_vol!P21) -> 18 | R22: =IF(R$8, Hist_vol!$S21*Growth_rates!R22, Hist_vol!Q21) -> 11 | S22: =IF(S$8, Hist_vol!$S21*Growth_rates!S22, Hist_vol!R21) -> 7 | T22: =IF(T$8, Hist_vol!$S21*Growth_rates!T22, Hist_vol!S21) -> 4 | U22: =IF(U$8, Hist_vol!$S21*Growth_rates!U22, Hist_vol!T21) -> 3.735211572 | V22: =IF(V$8, Hist_vol!$S21*Growth_rates!V22, Hist_vol!U21) -> 3.121627068 | W22: =IF(W$8, Hist_vol!$S21*Growth_rates!W22, Hist_vol!V21) -> 3.105226026 | X22: =IF(X$8, Hist_vol!$S21*Growth_rates!X22, Hist_vol!W21) -> 3.172767568 | Y22: =IF(Y$8, Hist_vol!$S21*Growth_rates!Y22, Hist_vol!X21) -> 3.186424678 | Z22: =IF(Z$8, Hist_vol!$S21*Growth_rates!Z22, Hist_vol!Y21) -> 3.169826785 | AA22: =IF(AA$8, Hist_vol!$S21*Growth_rates!AA22, Hist_vol!Z21) -> 3.168772865
B23: =Hist_vol!B22 -> Connections | C23: =Hist_vol!C22 -> CI5 | D23: =Hist_vol!D22 -> Commercial/Industrial | E23: =Hist_vol!E22 -> Complex connection sub-transmission | H23: =IF(H$8, Hist_vol!$S22*Growth_rates!H23, Hist_vol!G22) -> 0 | I23: =IF(I$8, Hist_vol!$S22*Growth_rates!I23, Hist_vol!H22) -> 0 | J23: =IF(J$8, Hist_vol!$S22*Growth_rates!J23, Hist_vol!I22) -> 0 | K23: =IF(K$8, Hist_vol!$S22*Growth_rates!K23, Hist_vol!J22) -> 0 | L23: =IF(L$8, Hist_vol!$S22*Growth_rates!L23, Hist_vol!K22) -> 0 | M23: =IF(M$8, Hist_vol!$S22*Growth_rates!M23, Hist_vol!L22) -> 0.5 | N23: =IF(N$8, Hist_vol!$S22*Growth_rates!N23, Hist_vol!M22) -> 0.5 | O23: =IF(O$8, Hist_vol!$S22*Growth_rates!O23, Hist_vol!N22) -> 0 | P23: =IF(P$8, Hist_vol!$S22*Growth_rates!P23, Hist_vol!O22) -> 0 | Q23: =IF(Q$8, Hist_vol!$S22*Growth_rates!Q23, Hist_vol!P22) -> 0 | R23: =IF(R$8, Hist_vol!$S22*Growth_rates!R23, Hist_vol!Q22) -> 0 | S23: =IF(S$8, Hist_vol!$S22*Growth_rates!S23, Hist_vol!R22) -> 0 | T23: =IF(T$8, Hist_vol!$S22*Growth_rates!T23, Hist_vol!S22) -> 0 | U23: =IF(U$8, Hist_vol!$S22*Growth_rates!U23, Hist_vol!T22) -> 0 | V23: =IF(V$8, Hist_vol!$S22*Growth_rates!V23, Hist_vol!U22) -> 0 | W23: =IF(W$8, Hist_vol!$S22*Growth_rates!W23, Hist_vol!V22) -> 0 | X23: =IF(X$8, Hist_vol!$S22*Growth_rates!X23, Hist_vol!W22) -> 0 | Y23: =IF(Y$8, Hist_vol!$S22*Growth_rates!Y23, Hist_vol!X22) -> 0 | Z23: =IF(Z$8, Hist_vol!$S22*Growth_rates!Z23, Hist_vol!Y22) -> 0 | AA23: =IF(AA$8, Hist_vol!$S22*Growth_rates!AA23, Hist_vol!Z22) -> 0
B24: =Hist_vol!B23 -> Connections | C24: =Hist_vol!C23 -> S1 | D24: =Hist_vol!D23 -> Subdivision | E24: =Hist_vol!E23 -> Complex connection LV | H24: =IF(H$8, Hist_vol!$S23*Growth_rates!H24, Hist_vol!G23) -> 0 | I24: =IF(I$8, Hist_vol!$S23*Growth_rates!I24, Hist_vol!H23) -> 0 | J24: =IF(J$8, Hist_vol!$S23*Growth_rates!J24, Hist_vol!I23) -> 0 | K24: =IF(K$8, Hist_vol!$S23*Growth_rates!K24, Hist_vol!J23) -> 0 | L24: =IF(L$8, Hist_vol!$S23*Growth_rates!L24, Hist_vol!K23) -> 0 | M24: =IF(M$8, Hist_vol!$S23*Growth_rates!M24, Hist_vol!L23) -> 0 | N24: =IF(N$8, Hist_vol!$S23*Growth_rates!N24, Hist_vol!M23) -> 0 | O24: =IF(O$8, Hist_vol!$S23*Growth_rates!O24, Hist_vol!N23) -> 0 | P24: =IF(P$8, Hist_vol!$S23*Growth_rates!P24, Hist_vol!O23) -> 0 | Q24: =IF(Q$8, Hist_vol!$S23*Growth_rates!Q24, Hist_vol!P23) -> 0 | R24: =IF(R$8, Hist_vol!$S23*Growth_rates!R24, Hist_vol!Q23) -> 0 | S24: =IF(S$8, Hist_vol!$S23*Growth_rates!S24, Hist_vol!R23) -> 0 | T24: =IF(T$8, Hist_vol!$S23*Growth_rates!T24, Hist_vol!S23) -> 0 | U24: =IF(U$8, Hist_vol!$S23*Growth_rates!U24, Hist_vol!T23) -> 0 | V24: =IF(V$8, Hist_vol!$S23*Growth_rates!V24, Hist_vol!U23) -> 0 | W24: =IF(W$8, Hist_vol!$S23*Growth_rates!W24, Hist_vol!V23) -> 0 | X24: =IF(X$8, Hist_vol!$S23*Growth_rates!X24, Hist_vol!W23) -> 0 | Y24: =IF(Y$8, Hist_vol!$S23*Growth_rates!Y24, Hist_vol!X23) -> 0 | Z24: =IF(Z$8, Hist_vol!$S23*Growth_rates!Z24, Hist_vol!Y23) -> 0 | AA24: =IF(AA$8, Hist_vol!$S23*Growth_rates!AA24, Hist_vol!Z23) -> 0
B25: =Hist_vol!B24 -> Connections | C25: =Hist_vol!C24 -> S2 | D25: =Hist_vol!D24 -> Subdivision | E25: =Hist_vol!E24 -> Complex connection HV (no upstream asset works) | H25: =IF(H$8, Hist_vol!$S24*Growth_rates!H25, Hist_vol!G24) -> 0 | I25: =IF(I$8, Hist_vol!$S24*Growth_rates!I25, Hist_vol!H24) -> 0 | J25: =IF(J$8, Hist_vol!$S24*Growth_rates!J25, Hist_vol!I24) -> 0 | K25: =IF(K$8, Hist_vol!$S24*Growth_rates!K25, Hist_vol!J24) -> 0 | L25: =IF(L$8, Hist_vol!$S24*Growth_rates!L25, Hist_vol!K24) -> 0 | M25: =IF(M$8, Hist_vol!$S24*Growth_rates!M25, Hist_vol!L24) -> 0 | N25: =IF(N$8, Hist_vol!$S24*Growth_rates!N25, Hist_vol!M24) -> 0 | O25: =IF(O$8, Hist_vol!$S24*Growth_rates!O25, Hist_vol!N24) -> 0 | P25: =IF(P$8, Hist_vol!$S24*Growth_rates!P25, Hist_vol!O24) -> 0 | Q25: =IF(Q$8, Hist_vol!$S24*Growth_rates!Q25, Hist_vol!P24) -> 0 | R25: =IF(R$8, Hist_vol!$S24*Growth_rates!R25, Hist_vol!Q24) -> 0 | S25: =IF(S$8, Hist_vol!$S24*Growth_rates!S25, Hist_vol!R24) -> 0 | T25: =IF(T$8, Hist_vol!$S24*Growth_rates!T25, Hist_vol!S24) -> 0 | U25: =IF(U$8, Hist_vol!$S24*Growth_rates!U25, Hist_vol!T24) -> 0 | V25: =IF(V$8, Hist_vol!$S24*Growth_rates!V25, Hist_vol!U24) -> 0 | W25: =IF(W$8, Hist_vol!$S24*Growth_rates!W25, Hist_vol!V24) -> 0 | X25: =IF(X$8, Hist_vol!$S24*Growth_rates!X25, Hist_vol!W24) -> 0 | Y25: =IF(Y$8, Hist_vol!$S24*Growth_rates!Y25, Hist_vol!X24) -> 0 | Z25: =IF(Z$8, Hist_vol!$S24*Growth_rates!Z25, Hist_vol!Y24) -> 0 | AA25: =IF(AA$8, Hist_vol!$S24*Growth_rates!AA25, Hist_vol!Z24) -> 0
B26: =Hist_vol!B25 -> Connections | C26: =Hist_vol!C25 -> S3 | D26: =Hist_vol!D25 -> Subdivision | E26: =Hist_vol!E25 -> Complex connection HV (with upstream asset works) | H26: =IF(H$8, Hist_vol!$S25*Growth_rates!H26, Hist_vol!G25) -> 339.8103795 | I26: =IF(I$8, Hist_vol!$S25*Growth_rates!I26, Hist_vol!H25) -> 337.1990873 | J26: =IF(J$8, Hist_vol!$S25*Growth_rates!J26, Hist_vol!I25) -> 339.0642954 | K26: =IF(K$8, Hist_vol!$S25*Growth_rates!K26, Hist_vol!J25) -> 340.0150544 | L26: =IF(L$8, Hist_vol!$S25*Growth_rates!L26, Hist_vol!K25) -> 355 | M26: =IF(M$8, Hist_vol!$S25*Growth_rates!M26, Hist_vol!L25) -> 388 | N26: =IF(N$8, Hist_vol!$S25*Growth_rates!N26, Hist_vol!M25) -> 515.8202121 | O26: =IF(O$8, Hist_vol!$S25*Growth_rates!O26, Hist_vol!N25) -> 545.3202121 | P26: =IF(P$8, Hist_vol!$S25*Growth_rates!P26, Hist_vol!O25) -> 571.5 | Q26: =IF(Q$8, Hist_vol!$S25*Growth_rates!Q26, Hist_vol!P25) -> 565 | R26: =IF(R$8, Hist_vol!$S25*Growth_rates!R26, Hist_vol!Q25) -> 744 | S26: =IF(S$8, Hist_vol!$S25*Growth_rates!S26, Hist_vol!R25) -> 762 | T26: =IF(T$8, Hist_vol!$S25*Growth_rates!T26, Hist_vol!S25) -> 822 | U26: =IF(U$8, Hist_vol!$S25*Growth_rates!U26, Hist_vol!T25) -> 866.1721792 | V26: =IF(V$8, Hist_vol!$S25*Growth_rates!V26, Hist_vol!U25) -> 966.0324085 | W26: =IF(W$8, Hist_vol!$S25*Growth_rates!W26, Hist_vol!V25) -> 1085.671868 | X26: =IF(X$8, Hist_vol!$S25*Growth_rates!X26, Hist_vol!W25) -> 1076.2159 | Y26: =IF(Y$8, Hist_vol!$S25*Growth_rates!Y26, Hist_vol!X25) -> 1009.540004 | Z26: =IF(Z$8, Hist_vol!$S25*Growth_rates!Z26, Hist_vol!Y25) -> 1016.272442 | AA26: =IF(AA$8, Hist_vol!$S25*Growth_rates!AA26, Hist_vol!Z25) -> 1040.158439
B27: =Hist_vol!B26 -> Connections | C27: =Hist_vol!C26 -> EG1 | D27: =Hist_vol!D26 -> Embedded generation | E27: =Hist_vol!E26 -> Simple connection LV | H27: =IF(H$8, Hist_vol!$S26*Growth_rates!H27, Hist_vol!G26) -> 0 | I27: =IF(I$8, Hist_vol!$S26*Growth_rates!I27, Hist_vol!H26) -> 0 | J27: =IF(J$8, Hist_vol!$S26*Growth_rates!J27, Hist_vol!I26) -> 0 | K27: =IF(K$8, Hist_vol!$S26*Growth_rates!K27, Hist_vol!J26) -> 0 | L27: =IF(L$8, Hist_vol!$S26*Growth_rates!L27, Hist_vol!K26) -> 0 | M27: =IF(M$8, Hist_vol!$S26*Growth_rates!M27, Hist_vol!L26) -> 0 | N27: =IF(N$8, Hist_vol!$S26*Growth_rates!N27, Hist_vol!M26) -> 0 | O27: =IF(O$8, Hist_vol!$S26*Growth_rates!O27, Hist_vol!N26) -> 0 | P27: =IF(P$8, Hist_vol!$S26*Growth_rates!P27, Hist_vol!O26) -> 0 | Q27: =IF(Q$8, Hist_vol!$S26*Growth_rates!Q27, Hist_vol!P26) -> 0 | R27: =IF(R$8, Hist_vol!$S26*Growth_rates!R27, Hist_vol!Q26) -> 0 | S27: =IF(S$8, Hist_vol!$S26*Growth_rates!S27, Hist_vol!R26) -> 0 | T27: =IF(T$8, Hist_vol!$S26*Growth_rates!T27, Hist_vol!S26) -> 0 | U27: =IF(U$8, Hist_vol!$S26*Growth_rates!U27, Hist_vol!T26) -> 0 | V27: =IF(V$8, Hist_vol!$S26*Growth_rates!V27, Hist_vol!U26) -> 0 | W27: =IF(W$8, Hist_vol!$S26*Growth_rates!W27, Hist_vol!V26) -> 0 | X27: =IF(X$8, Hist_vol!$S26*Growth_rates!X27, Hist_vol!W26) -> 0 | Y27: =IF(Y$8, Hist_vol!$S26*Growth_rates!Y27, Hist_vol!X26) -> 0 | Z27: =IF(Z$8, Hist_vol!$S26*Growth_rates!Z27, Hist_vol!Y26) -> 0 | AA27: =IF(AA$8, Hist_vol!$S26*Growth_rates!AA27, Hist_vol!Z26) -> 0
B28: =Hist_vol!B27 -> Connections | C28: =Hist_vol!C27 -> EG2 | D28: =Hist_vol!D27 -> Embedded generation | E28: =Hist_vol!E27 -> Complex connection HV (small capacity) | H28: =IF(H$8, Hist_vol!$S27*Growth_rates!H28, Hist_vol!G27) -> 2.5 | I28: =IF(I$8, Hist_vol!$S27*Growth_rates!I28, Hist_vol!H27) -> 2.5 | J28: =IF(J$8, Hist_vol!$S27*Growth_rates!J28, Hist_vol!I27) -> 4.505145205 | K28: =IF(K$8, Hist_vol!$S27*Growth_rates!K28, Hist_vol!J27) -> 22.00514521 | L28: =IF(L$8, Hist_vol!$S27*Growth_rates!L28, Hist_vol!K27) -> 33.5 | M28: =IF(M$8, Hist_vol!$S27*Growth_rates!M28, Hist_vol!L27) -> 45 | N28: =IF(N$8, Hist_vol!$S27*Growth_rates!N28, Hist_vol!M27) -> 33.82543044 | O28: =IF(O$8, Hist_vol!$S27*Growth_rates!O28, Hist_vol!N27) -> 5.325430441 | P28: =IF(P$8, Hist_vol!$S27*Growth_rates!P28, Hist_vol!O27) -> 6.5 | Q28: =IF(Q$8, Hist_vol!$S27*Growth_rates!Q28, Hist_vol!P27) -> 10 | R28: =IF(R$8, Hist_vol!$S27*Growth_rates!R28, Hist_vol!Q27) -> 11 | S28: =IF(S$8, Hist_vol!$S27*Growth_rates!S28, Hist_vol!R27) -> 6 | T28: =IF(T$8, Hist_vol!$S27*Growth_rates!T28, Hist_vol!S27) -> 4 | U28: =IF(U$8, Hist_vol!$S27*Growth_rates!U28, Hist_vol!T27) -> 5.980270825 | V28: =IF(V$8, Hist_vol!$S27*Growth_rates!V28, Hist_vol!U27) -> 5.067318143 | W28: =IF(W$8, Hist_vol!$S27*Growth_rates!W28, Hist_vol!V27) -> 2.041739075 | X28: =IF(X$8, Hist_vol!$S27*Growth_rates!X28, Hist_vol!W27) -> 0.7075951562 | Y28: =IF(Y$8, Hist_vol!$S27*Growth_rates!Y28, Hist_vol!X27) -> 0.3206872024 | Z28: =IF(Z$8, Hist_vol!$S27*Growth_rates!Z28, Hist_vol!Y27) -> 0.4557304277 | AA28: =IF(AA$8, Hist_vol!$S27*Growth_rates!AA28, Hist_vol!Z27) -> 0.4557285548
B29: =Hist_vol!B28 -> Connections | C29: =Hist_vol!C28 -> EG3 | D29: =Hist_vol!D28 -> Embedded generation | E29: =Hist_vol!E28 -> Complex connection HV (large capacity) | H29: =IF(H$8, Hist_vol!$S28*Growth_rates!H29, Hist_vol!G28) -> 1 | I29: =IF(I$8, Hist_vol!$S28*Growth_rates!I29, Hist_vol!H28) -> 0.5 | J29: =IF(J$8, Hist_vol!$S28*Growth_rates!J29, Hist_vol!I28) -> 0 | K29: =IF(K$8, Hist_vol!$S28*Growth_rates!K29, Hist_vol!J28) -> 1.5 | L29: =IF(L$8, Hist_vol!$S28*Growth_rates!L29, Hist_vol!K28) -> 2 | M29: =IF(M$8, Hist_vol!$S28*Growth_rates!M29, Hist_vol!L28) -> 3.5 | N29: =IF(N$8, Hist_vol!$S28*Growth_rates!N29, Hist_vol!M28) -> 4.862937069 | O29: =IF(O$8, Hist_vol!$S28*Growth_rates!O29, Hist_vol!N28) -> 2.862937069 | P29: =IF(P$8, Hist_vol!$S28*Growth_rates!P29, Hist_vol!O28) -> 1 | Q29: =IF(Q$8, Hist_vol!$S28*Growth_rates!Q29, Hist_vol!P28) -> 0 | R29: =IF(R$8, Hist_vol!$S28*Growth_rates!R29, Hist_vol!Q28) -> 0.3 | S29: =IF(S$8, Hist_vol!$S28*Growth_rates!S29, Hist_vol!R28) -> 1 | T29: =IF(T$8, Hist_vol!$S28*Growth_rates!T29, Hist_vol!S28) -> 1 | U29: =IF(U$8, Hist_vol!$S28*Growth_rates!U29, Hist_vol!T28) -> 1.495067706 | V29: =IF(V$8, Hist_vol!$S28*Growth_rates!V29, Hist_vol!U28) -> 1.266829536 | W29: =IF(W$8, Hist_vol!$S28*Growth_rates!W29, Hist_vol!V28) -> 0.5104347686 | X29: =IF(X$8, Hist_vol!$S28*Growth_rates!X29, Hist_vol!W28) -> 0.176898789 | Y29: =IF(Y$8, Hist_vol!$S28*Growth_rates!Y29, Hist_vol!X28) -> 0.08017180059 | Z29: =IF(Z$8, Hist_vol!$S28*Growth_rates!Z29, Hist_vol!Y28) -> 0.1139326069 | AA29: =IF(AA$8, Hist_vol!$S28*Growth_rates!AA29, Hist_vol!Z28) -> 0.1139321387

Sheet Forecast_spend
A1: =Assumptions!$A$1 -> Powercor
A2: =Assumptions!$A$2 -> Connections
A3: Forecast gross capex
B7: =Assumptions!B17 -> 2026/27 - 2030/31 reg period | H7: =Assumptions!G17 -> FALSE | I7: =Assumptions!H17 -> FALSE | J7: =Assumptions!I17 -> FALSE | K7: =Assumptions!J17 -> FALSE | L7: =Assumptions!K17 -> FALSE | M7: =Assumptions!L17 -> FALSE | N7: =Assumptions!M17 -> FALSE | O7: =Assumptions!N17 -> FALSE | P7: =Assumptions!O17 -> FALSE | Q7: =Assumptions!P17 -> FALSE | R7: =Assumptions!Q17 -> FALSE | S7: =Assumptions!R17 -> FALSE | T7: =Assumptions!S17 -> FALSE | U7: =Assumptions!T17 -> FALSE | V7: =Assumptions!U17 -> FALSE | W7: =Assumptions!V17 -> TRUE | X7: =Assumptions!W17 -> TRUE | Y7: =Assumptions!X17 -> TRUE | Z7: =Assumptions!Y17 -> TRUE | AA7: =Assumptions!Z17 -> TRUE
B8: =Assumptions!B18 -> Forecast period | H8: =Assumptions!G18 -> FALSE | I8: =Assumptions!H18 -> FALSE | J8: =Assumptions!I18 -> FALSE | K8: =Assumptions!J18 -> FALSE | L8: =Assumptions!K18 -> FALSE | M8: =Assumptions!L18 -> FALSE | N8: =Assumptions!M18 -> FALSE | O8: =Assumptions!N18 -> FALSE | P8: =Assumptions!O18 -> FALSE | Q8: =Assumptions!P18 -> FALSE | R8: =Assumptions!Q18 -> FALSE | S8: =Assumptions!R18 -> FALSE | T8: =Assumptions!S18 -> FALSE | U8: =Assumptions!T18 -> TRUE | V8: =Assumptions!U18 -> TRUE | W8: =Assumptions!V18 -> TRUE | X8: =Assumptions!W18 -> TRUE | Y8: =Assumptions!X18 -> TRUE | Z8: =Assumptions!Y18 -> TRUE | AA8: =Assumptions!Z18 -> TRUE
B9: =Assumptions!B19 -> Fin year end | H9: =Assumptions!G19 -> 2012 | I9: =Assumptions!H19 -> 2013 | J9: =Assumptions!I19 -> 2014 | K9: =Assumptions!J19 -> 2015 | L9: =Assumptions!K19 -> 2016 | M9: =Assumptions!L19 -> 2017 | N9: =Assumptions!M19 -> 2018 | O9: =Assumptions!N19 -> 2019 | P9: =Assumptions!O19 -> 2020 | Q9: =Assumptions!P19 -> 2021 | R9: =Assumptions!Q19 -> 2022 | S9: =Assumptions!R19 -> 2023 | T9: =Assumptions!S19 -> 2024 | U9: =Assumptions!T19 -> 2025 | V9: =Assumptions!U19 -> 2026 | W9: =Assumptions!V19 -> 2027 | X9: =Assumptions!W19 -> 2028 | Y9: =Assumptions!X19 -> 2029 | Z9: =Assumptions!Y19 -> 2030 | AA9: =Assumptions!Z19 -> 2031
B10: =Assumptions!B20 -> Basis | H10: =Assumptions!G20 -> Actual | I10: =Assumptions!H20 -> Actual | J10: =Assumptions!I20 -> Actual | K10: =Assumptions!J20 -> Actual | L10: =Assumptions!K20 -> Actual | M10: =Assumptions!L20 -> Actual | N10: =Assumptions!M20 -> Actual | O10: =Assumptions!N20 -> Actual | P10: =Assumptions!O20 -> Actual | Q10: =Assumptions!P20 -> Actual | R10: =Assumptions!Q20 -> Actual | S10: =Assumptions!R20 -> Actual | T10: =Assumptions!S20 -> Actual | U10: =Assumptions!T20 -> Forecast | V10: =Assumptions!U20 -> Forecast | W10: =Assumptions!V20 -> Forecast | X10: =Assumptions!W20 -> Forecast | Y10: =Assumptions!X20 -> Forecast | Z10: =Assumptions!Y20 -> Forecast | AA10: =Assumptions!Z20 -> Forecast
B13: =Hist_vol!B$13 -> Category | C13: Type | D13: =Hist_vol!D$13 -> RIN category | E13: =Hist_vol!E$13 -> Description | H13: =Assumptions!G$24 -> 2011/12 | I13: =Assumptions!H$24 -> 2012/13 | J13: =Assumptions!I$24 -> 2013/14 | K13: =Assumptions!J$24 -> 2014/15 | L13: =Assumptions!K$24 -> 2015/16 | M13: =Assumptions!L$24 -> 2016/17 | N13: =Assumptions!M$24 -> 2017/18 | O13: =Assumptions!N$24 -> 2018/19 | P13: =Assumptions!O$24 -> 2019/20 | Q13: =Assumptions!P$24 -> 2020/21 | R13: =Assumptions!Q$24 -> 2021/22 | S13: =Assumptions!R$24 -> 2022/23 | T13: =Assumptions!S$24 -> 2023/24 | U13: =Assumptions!T$24 -> 2024/25 | V13: =Assumptions!U$24 -> 2025/26 | W13: =Assumptions!V$24 -> 2026/27 | X13: =Assumptions!W$24 -> 2027/28 | Y13: =Assumptions!X$24 -> 2028/29 | Z13: =Assumptions!Y$24 -> 2029/30 | AA13: =Assumptions!Z$24 -> 2030/31 | AC13: 2026-31 Total
B15: Forecast total spend (June 2026 $)
B16: =Hist_vol!B15 -> Connections | C16: =Hist_vol!C15 -> R1 | D16: =Hist_vol!D15 -> Residential | E16: =Hist_vol!E15 -> Simple connection LV | F16: =D16&" "&E16 -> Residential Simple connection LV | H16: =SUMPRODUCT(($F$38:$F$53=$F16)*(H$38:H$53)) -> 5857644.82 | I16: =SUMPRODUCT(($F$38:$F$53=$F16)*(I$38:I$53)) -> 5579245.236 | J16: =SUMPRODUCT(($F$38:$F$53=$F16)*(J$38:J$53)) -> 5597644.076 | K16: =SUMPRODUCT(($F$38:$F$53=$F16)*(K$38:K$53)) -> 5528468.717 | L16: =SUMPRODUCT(($F$38:$F$53=$F16)*(L$38:L$53)) -> 2692520.31 | M16: =SUMPRODUCT(($F$38:$F$53=$F16)*(M$38:M$53)) -> 0 | N16: =SUMPRODUCT(($F$38:$F$53=$F16)*(N$38:N$53)) -> 0 | O16: =SUMPRODUCT(($F$38:$F$53=$F16)*(O$38:O$53)) -> 0 | P16: =SUMPRODUCT(($F$38:$F$53=$F16)*(P$38:P$53)) -> 0 | Q16: =SUMPRODUCT(($F$38:$F$53=$F16)*(Q$38:Q$53)) -> 0 | R16: =SUMPRODUCT(($F$38:$F$53=$F16)*(R$38:R$53)) -> 0 | S16: =SUMPRODUCT(($F$38:$F$53=$F16)*(S$38:S$53)) -> 0 | T16: =SUMPRODUCT(($F$38:$F$53=$F16)*(T$38:T$53)) -> 0 | U16: =SUMPRODUCT(($F$38:$F$53=$F16)*(U$38:U$53)) -> 0 | V16: =SUMPRODUCT(($F$38:$F$53=$F16)*(V$38:V$53)) -> 0 | W16: =SUMPRODUCT(($F$38:$F$53=$F16)*(W$38:W$53)) -> 0 | X16: =SUMPRODUCT(($F$38:$F$53=$F16)*(X$38:X$53)) -> 0 | Y16: =SUMPRODUCT(($F$38:$F$53=$F16)*(Y$38:Y$53)) -> 0 | Z16: =SUMPRODUCT(($F$38:$F$53=$F16)*(Z$38:Z$53)) -> 0 | AA16: =SUMPRODUCT(($F$38:$F$53=$F16)*(AA$38:AA$53)) -> 0 | AC16: =SUMPRODUCT($H$7:$AA$7*$H16:$AA16) -> 0
B17: =Hist_vol!B16 -> Connections | C17: =Hist_vol!C16 -> R2 | D17: =Hist_vol!D16 -> Residential | E17: =Hist_vol!E16 -> Complex connection LV | F17: =D17&" "&E17 -> Residential Complex connection LV | H17: =SUMPRODUCT(($F$38:$F$53=$F17)*(H$38:H$53)) -> 23164449.92 | I17: =SUMPRODUCT(($F$38:$F$53=$F17)*(I$38:I$53)) -> 25012989.65 | J17: =SUMPRODUCT(($F$38:$F$53=$F17)*(J$38:J$53)) -> 26254327.49 | K17: =SUMPRODUCT(($F$38:$F$53=$F17)*(K$38:K$53)) -> 24105641.16 | L17: =SUMPRODUCT(($F$38:$F$53=$F17)*(L$38:L$53)) -> 20629634.28 | M17: =SUMPRODUCT(($F$38:$F$53=$F17)*(M$38:M$53)) -> 19624207.79 | N17: =SUMPRODUCT(($F$38:$F$53=$F17)*(N$38:N$53)) -> 19963227.92 | O17: =SUMPRODUCT(($F$38:$F$53=$F17)*(O$38:O$53)) -> 22374902.6 | P17: =SUMPRODUCT(($F$38:$F$53=$F17)*(P$38:P$53)) -> 25605626.43 | Q17: =SUMPRODUCT(($F$38:$F$53=$F17)*(Q$38:Q$53)) -> 26473034.31 | R17: =SUMPRODUCT(($F$38:$F$53=$F17)*(R$38:R$53)) -> 30989488.89 | S17: =SUMPRODUCT(($F$38:$F$53=$F17)*(S$38:S$53)) -> 34343908.95 | T17: =SUMPRODUCT(($F$38:$F$53=$F17)*(T$38:T$53)) -> 31499199.55 | U17: =SUMPRODUCT(($F$38:$F$53=$F17)*(U$38:U$53)) -> 33191886.04 | V17: =SUMPRODUCT(($F$38:$F$53=$F17)*(V$38:V$53)) -> 37018549.41 | W17: =SUMPRODUCT(($F$38:$F$53=$F17)*(W$38:W$53)) -> 41603156.73 | X17: =SUMPRODUCT(($F$38:$F$53=$F17)*(X$38:X$53)) -> 41240802.2 | Y17: =SUMPRODUCT(($F$38:$F$53=$F17)*(Y$38:Y$53)) -> 38685768.9 | Z17: =SUMPRODUCT(($F$38:$F$53=$F17)*(Z$38:Z$53)) -> 38943757.23 | AA17: =SUMPRODUCT(($F$38:$F$53=$F17)*(AA$38:AA$53)) -> 39859073.29 | AC17: =SUMPRODUCT($H$7:$AA$7*$H17:$AA17) -> 200332558.3
B18: =Hist_vol!B17 -> Connections | C18: =Hist_vol!C17 -> R3 | D18: =Hist_vol!D17 -> Residential | E18: =Hist_vol!E17 -> Complex connection HV | F18: Residential Complex connection HV | H18: =SUMPRODUCT(($F$38:$F$53=$F18)*(H$38:H$53)) -> 11237365.13 | I18: =SUMPRODUCT(($F$38:$F$53=$F18)*(I$38:I$53)) -> 12492703.81 | J18: =SUMPRODUCT(($F$38:$F$53=$F18)*(J$38:J$53)) -> 11779716.17 | K18: =SUMPRODUCT(($F$38:$F$53=$F18)*(K$38:K$53)) -> 9464559.425 | L18: =SUMPRODUCT(($F$38:$F$53=$F18)*(L$38:L$53)) -> 6828585.865 | M18: =SUMPRODUCT(($F$38:$F$53=$F18)*(M$38:M$53)) -> 6142271.372 | N18: =SUMPRODUCT(($F$38:$F$53=$F18)*(N$38:N$53)) -> 6869264.743 | O18: =SUMPRODUCT(($F$38:$F$53=$F18)*(O$38:O$53)) -> 7188977.518 | P18: =SUMPRODUCT(($F$38:$F$53=$F18)*(P$38:P$53)) -> 7636194.097 | Q18: =SUMPRODUCT(($F$38:$F$53=$F18)*(Q$38:Q$53)) -> 7694607.978 | R18: =SUMPRODUCT(($F$38:$F$53=$F18)*(R$38:R$53)) -> 10213261.5 | S18: =SUMPRODUCT(($F$38:$F$53=$F18)*(S$38:S$53)) -> 10826327.72 | T18: =SUMPRODUCT(($F$38:$F$53=$F18)*(T$38:T$53)) -> 8758933.03 | U18: =SUMPRODUCT(($F$38:$F$53=$F18)*(U$38:U$53)) -> 9229615.706 | V18: =SUMPRODUCT(($F$38:$F$53=$F18)*(V$38:V$53)) -> 10293689.99 | W18: =SUMPRODUCT(($F$38:$F$53=$F18)*(W$38:W$53)) -> 11568524.56 | X18: =SUMPRODUCT(($F$38:$F$53=$F18)*(X$38:X$53)) -> 11467765.2 | Y18: =SUMPRODUCT(($F$38:$F$53=$F18)*(Y$38:Y$53)) -> 10757291.1 | Z18: =SUMPRODUCT(($F$38:$F$53=$F18)*(Z$38:Z$53)) -> 10829029.51 | AA18: =SUMPRODUCT(($F$38:$F$53=$F18)*(AA$38:AA$53)) -> 11083550.01 | AC18: =SUMPRODUCT($H$7:$AA$7*$H18:$AA18) -> 55706160.38
B19: =Hist_vol!B18 -> Connections | C19: =Hist_vol!C18 -> CI1 | D19: =Hist_vol!D18 -> Commercial/Industrial | E19: =Hist_vol!E18 -> Simple connection LV | F19: Commercial/Industrial Simple connection LV | H19: =SUMPRODUCT(($F$38:$F$53=$F19)*(H$38:H$53)) -> 808180.0835 | I19: =SUMPRODUCT(($F$38:$F$53=$F19)*(I$38:I$53)) -> 883331.8913 | J19: =SUMPRODUCT(($F$38:$F$53=$F19)*(J$38:J$53)) -> 922918.4662 | K19: =SUMPRODUCT(($F$38:$F$53=$F19)*(K$38:K$53)) -> 900986.1897 | L19: =SUMPRODUCT(($F$38:$F$53=$F19)*(L$38:L$53)) -> 438317.0322 | M19: =SUMPRODUCT(($F$38:$F$53=$F19)*(M$38:M$53)) -> 0 | N19: =SUMPRODUCT(($F$38:$F$53=$F19)*(N$38:N$53)) -> 0 | O19: =SUMPRODUCT(($F$38:$F$53=$F19)*(O$38:O$53)) -> 0 | P19: =SUMPRODUCT(($F$38:$F$53=$F19)*(P$38:P$53)) -> 0 | Q19: =SUMPRODUCT(($F$38:$F$53=$F19)*(Q$38:Q$53)) -> 0 | R19: =SUMPRODUCT(($F$38:$F$53=$F19)*(R$38:R$53)) -> 0 | S19: =SUMPRODUCT(($F$38:$F$53=$F19)*(S$38:S$53)) -> 0 | T19: =SUMPRODUCT(($F$38:$F$53=$F19)*(T$38:T$53)) -> 0 | U19: =SUMPRODUCT(($F$38:$F$53=$F19)*(U$38:U$53)) -> 0 | V19: =SUMPRODUCT(($F$38:$F$53=$F19)*(V$38:V$53)) -> 0 | W19: =SUMPRODUCT(($F$38:$F$53=$F19)*(W$38:W$53)) -> 0 | X19: =SUMPRODUCT(($F$38:$F$53=$F19)*(X$38:X$53)) -> 0 | Y19: =SUMPRODUCT(($F$38:$F$53=$F19)*(Y$38:Y$53)) -> 0 | Z19: =SUMPRODUCT(($F$38:$F$53=$F19)*(Z$38:Z$53)) -> 0 | AA19: =SUMPRODUCT(($F$38:$F$53=$F19)*(AA$38:AA$53)) -> 0 | AC19: =SUMPRODUCT($H$7:$AA$7*$H19:$AA19) -> 0
B20: =Hist_vol!B19 -> Connections | C20: =Hist_vol!C19 -> CI2 | D20: =Hist_vol!D19 -> Commercial/Industrial | E20: =Hist_vol!E19 -> Complex connection HV (customer connected at LV, minor HV works) | F20: Commercial/Industrial Complex connection HV (customer connected at LV, minor HV works) | H20: =SUMPRODUCT(($F$38:$F$53=$F20)*(H$38:H$53)) -> 16823092.84 | I20: =SUMPRODUCT(($F$38:$F$53=$F20)*(I$38:I$53)) -> 17504646.73 | J20: =SUMPRODUCT(($F$38:$F$53=$F20)*(J$38:J$53)) -> 19660958.23 | K20: =SUMPRODUCT(($F$38:$F$53=$F20)*(K$38:K$53)) -> 28408034.93 | L20: =SUMPRODUCT(($F$38:$F$53=$F20)*(L$38:L$53)) -> 33001871.09 | M20: =SUMPRODUCT(($F$38:$F$53=$F20)*(M$38:M$53)) -> 31457039.56 | N20: =SUMPRODUCT(($F$38:$F$53=$F20)*(N$38:N$53)) -> 37255966.18 | O20: =SUMPRODUCT(($F$38:$F$53=$F20)*(O$38:O$53)) -> 45174268.13 | P20: =SUMPRODUCT(($F$38:$F$53=$F20)*(P$38:P$53)) -> 39274822 | Q20: =SUMPRODUCT(($F$38:$F$53=$F20)*(Q$38:Q$53)) -> 25780933.68 | R20: =SUMPRODUCT(($F$38:$F$53=$F20)*(R$38:R$53)) -> 19698723.59 | S20: =SUMPRODUCT(($F$38:$F$53=$F20)*(S$38:S$53)) -> 23062424.11 | T20: =SUMPRODUCT(($F$38:$F$53=$F20)*(T$38:T$53)) -> 22939996.51 | U20: =SUMPRODUCT(($F$38:$F$53=$F20)*(U$38:U$53)) -> 21421435.1 | V20: =SUMPRODUCT(($F$38:$F$53=$F20)*(V$38:V$53)) -> 17902528.51 | W20: =SUMPRODUCT(($F$38:$F$53=$F20)*(W$38:W$53)) -> 17808468.55 | X20: =SUMPRODUCT(($F$38:$F$53=$F20)*(X$38:X$53)) -> 18195819.23 | Y20: =SUMPRODUCT(($F$38:$F$53=$F20)*(Y$38:Y$53)) -> 18274142.74 | Z20: =SUMPRODUCT(($F$38:$F$53=$F20)*(Z$38:Z$53)) -> 18178953.85 | AA20: =SUMPRODUCT(($F$38:$F$53=$F20)*(AA$38:AA$53)) -> 18172909.61 | AC20: =SUMPRODUCT($H$7:$AA$7*$H20:$AA20) -> 90630293.98
B21: =Hist_vol!B20 -> Connections | C21: =Hist_vol!C20 -> CI3 | D21: =Hist_vol!D20 -> Commercial/Industrial | E21: =Hist_vol!E20 -> Complex connection HV (customer connected at LV, upstream asset works) | F21: Commercial/Industrial Complex connection HV (customer connected at LV, upstream asset works) | H21: =SUMPRODUCT(($F$38:$F$53=$F21)*(H$38:H$53)) -> 36169257.68 | I21: =SUMPRODUCT(($F$38:$F$53=$F21)*(I$38:I$53)) -> 37677235.29 | J21: =SUMPRODUCT(($F$38:$F$53=$F21)*(J$38:J$53)) -> 37894922.96 | K21: =SUMPRODUCT(($F$38:$F$53=$F21)*(K$38:K$53)) -> 33431272.2 | L21: =SUMPRODUCT(($F$38:$F$53=$F21)*(L$38:L$53)) -> 29821521.38 | M21: =SUMPRODUCT(($F$38:$F$53=$F21)*(M$38:M$53)) -> 32966652.74 | N21: =SUMPRODUCT(($F$38:$F$53=$F21)*(N$38:N$53)) -> 33070842.94 | O21: =SUMPRODUCT(($F$38:$F$53=$F21)*(O$38:O$53)) -> 32653821.46 | P21: =SUMPRODUCT(($F$38:$F$53=$F21)*(P$38:P$53)) -> 37986708.31 | Q21: =SUMPRODUCT(($F$38:$F$53=$F21)*(Q$38:Q$53)) -> 38394551.24 | R21: =SUMPRODUCT(($F$38:$F$53=$F21)*(R$38:R$53)) -> 44318833.63 | S21: =SUMPRODUCT(($F$38:$F$53=$F21)*(S$38:S$53)) -> 50173174.45 | T21: =SUMPRODUCT(($F$38:$F$53=$F21)*(T$38:T$53)) -> 52119041.4 | U21: =SUMPRODUCT(($F$38:$F$53=$F21)*(U$38:U$53)) -> 48668911.64 | V21: =SUMPRODUCT(($F$38:$F$53=$F21)*(V$38:V$53)) -> 40674052.61 | W21: =SUMPRODUCT(($F$38:$F$53=$F21)*(W$38:W$53)) -> 40460350.96 | X21: =SUMPRODUCT(($F$38:$F$53=$F21)*(X$38:X$53)) -> 41340401.06 | Y21: =SUMPRODUCT(($F$38:$F$53=$F21)*(Y$38:Y$53)) -> 41518349.93 | Z21: =SUMPRODUCT(($F$38:$F$53=$F21)*(Z$38:Z$53)) -> 41302083.37 | AA21: =SUMPRODUCT(($F$38:$F$53=$F21)*(AA$38:AA$53)) -> 41288351.04 | AC21: =SUMPRODUCT($H$7:$AA$7*$H21:$AA21) -> 205909536.4
B22: =Hist_vol!B21 -> Connections | C22: =Hist_vol!C21 -> CI4 | D22: =Hist_vol!D21 -> Commercial/Industrial | E22: =Hist_vol!E21 -> Complex connection HV (customer connected at HV) | F22: Commercial/Industrial Complex connection HV (customer connected at HV) | H22: =SUMPRODUCT(($F$38:$F$53=$F22)*(H$38:H$53)) -> 3846304.756 | I22: =SUMPRODUCT(($F$38:$F$53=$F22)*(I$38:I$53)) -> 4548495.931 | J22: =SUMPRODUCT(($F$38:$F$53=$F22)*(J$38:J$53)) -> 4696175.957 | K22: =SUMPRODUCT(($F$38:$F$53=$F22)*(K$38:K$53)) -> 2510608.034 | L22: =SUMPRODUCT(($F$38:$F$53=$F22)*(L$38:L$53)) -> 1541232.539 | M22: =SUMPRODUCT(($F$38:$F$53=$F22)*(M$38:M$53)) -> 2037655.426 | N22: =SUMPRODUCT(($F$38:$F$53=$F22)*(N$38:N$53)) -> 1661696.484 | O22: =SUMPRODUCT(($F$38:$F$53=$F22)*(O$38:O$53)) -> 1687504.222 | P22: =SUMPRODUCT(($F$38:$F$53=$F22)*(P$38:P$53)) -> 4233185.301 | Q22: =SUMPRODUCT(($F$38:$F$53=$F22)*(Q$38:Q$53)) -> 16550045.95 | R22: =SUMPRODUCT(($F$38:$F$53=$F22)*(R$38:R$53)) -> 18112191.1 | S22: =SUMPRODUCT(($F$38:$F$53=$F22)*(S$38:S$53)) -> 11706334.44 | T22: =SUMPRODUCT(($F$38:$F$53=$F22)*(T$38:T$53)) -> 16961513.24 | U22: =SUMPRODUCT(($F$38:$F$53=$F22)*(U$38:U$53)) -> 15838710.13 | V22: =SUMPRODUCT(($F$38:$F$53=$F22)*(V$38:V$53)) -> 13236879.71 | W22: =SUMPRODUCT(($F$38:$F$53=$F22)*(W$38:W$53)) -> 13167333.09 | X22: =SUMPRODUCT(($F$38:$F$53=$F22)*(X$38:X$53)) -> 13453734.78 | Y22: =SUMPRODUCT(($F$38:$F$53=$F22)*(Y$38:Y$53)) -> 13511646.09 | Z22: =SUMPRODUCT(($F$38:$F$53=$F22)*(Z$38:Z$53)) -> 13441264.75 | AA22: =SUMPRODUCT(($F$38:$F$53=$F22)*(AA$38:AA$53)) -> 13436795.72 | AC22: =SUMPRODUCT($H$7:$AA$7*$H22:$AA22) -> 67010774.42
B23: =Hist_vol!B22 -> Connections | C23: =Hist_vol!C22 -> CI5 | D23: =Hist_vol!D22 -> Commercial/Industrial | E23: =Hist_vol!E22 -> Complex connection sub-transmission | F23: Commercial/Industrial Complex connection sub-transmission | H23: =SUMPRODUCT(($F$38:$F$53=$F23)*(H$38:H$53)) -> 0 | I23: =SUMPRODUCT(($F$38:$F$53=$F23)*(I$38:I$53)) -> 0 | J23: =SUMPRODUCT(($F$38:$F$53=$F23)*(J$38:J$53)) -> 0 | K23: =SUMPRODUCT(($F$38:$F$53=$F23)*(K$38:K$53)) -> 0 | L23: =SUMPRODUCT(($F$38:$F$53=$F23)*(L$38:L$53)) -> 0 | M23: =SUMPRODUCT(($F$38:$F$53=$F23)*(M$38:M$53)) -> 4558006.357 | N23: =SUMPRODUCT(($F$38:$F$53=$F23)*(N$38:N$53)) -> 4471540.112 | O23: =SUMPRODUCT(($F$38:$F$53=$F23)*(O$38:O$53)) -> 0 | P23: =SUMPRODUCT(($F$38:$F$53=$F23)*(P$38:P$53)) -> 0 | Q23: =SUMPRODUCT(($F$38:$F$53=$F23)*(Q$38:Q$53)) -> 0 | R23: =SUMPRODUCT(($F$38:$F$53=$F23)*(R$38:R$53)) -> 0 | S23: =SUMPRODUCT(($F$38:$F$53=$F23)*(S$38:S$53)) -> 5636365.83 | T23: =SUMPRODUCT(($F$38:$F$53=$F23)*(T$38:T$53)) -> 1549174.404 | U23: =SUMPRODUCT(($F$38:$F$53=$F23)*(U$38:U$53)) -> 0 | V23: =SUMPRODUCT(($F$38:$F$53=$F23)*(V$38:V$53)) -> 0 | W23: =SUMPRODUCT(($F$38:$F$53=$F23)*(W$38:W$53)) -> 0 | X23: =SUMPRODUCT(($F$38:$F$53=$F23)*(X$38:X$53)) -> 0 | Y23: =SUMPRODUCT(($F$38:$F$53=$F23)*(Y$38:Y$53)) -> 0 | Z23: =SUMPRODUCT(($F$38:$F$53=$F23)*(Z$38:Z$53)) -> 0 | AA23: =SUMPRODUCT(($F$38:$F$53=$F23)*(AA$38:AA$53)) -> 0 | AC23: =SUMPRODUCT($H$7:$AA$7*$H23:$AA23) -> 0
B24: =Hist_vol!B23 -> Connections | C24: =Hist_vol!C23 -> S1 | D24: =Hist_vol!D23 -> Subdivision | E24: =Hist_vol!E23 -> Complex connection LV | F24: Subdivision Complex connection LV | H24: =SUMPRODUCT(($F$38:$F$53=$F24)*(H$38:H$53)) -> 0 | I24: =SUMPRODUCT(($F$38:$F$53=$F24)*(I$38:I$53)) -> 0 | J24: =SUMPRODUCT(($F$38:$F$53=$F24)*(J$38:J$53)) -> 0 | K24: =SUMPRODUCT(($F$38:$F$53=$F24)*(K$38:K$53)) -> 0 | L24: =SUMPRODUCT(($F$38:$F$53=$F24)*(L$38:L$53)) -> 0 | M24: =SUMPRODUCT(($F$38:$F$53=$F24)*(M$38:M$53)) -> 0 | N24: =SUMPRODUCT(($F$38:$F$53=$F24)*(N$38:N$53)) -> 0 | O24: =SUMPRODUCT(($F$38:$F$53=$F24)*(O$38:O$53)) -> 0 | P24: =SUMPRODUCT(($F$38:$F$53=$F24)*(P$38:P$53)) -> 0 | Q24: =SUMPRODUCT(($F$38:$F$53=$F24)*(Q$38:Q$53)) -> 0 | R24: =SUMPRODUCT(($F$38:$F$53=$F24)*(R$38:R$53)) -> 0 | S24: =SUMPRODUCT(($F$38:$F$53=$F24)*(S$38:S$53)) -> 0 | T24: =SUMPRODUCT(($F$38:$F$53=$F24)*(T$38:T$53)) -> 0 | U24: =SUMPRODUCT(($F$38:$F$53=$F24)*(U$38:U$53)) -> 0 | V24: =SUMPRODUCT(($F$38:$F$53=$F24)*(V$38:V$53)) -> 0 | W24: =SUMPRODUCT(($F$38:$F$53=$F24)*(W$38:W$53)) -> 0 | X24: =SUMPRODUCT(($F$38:$F$53=$F24)*(X$38:X$53)) -> 0 | Y24: =SUMPRODUCT(($F$38:$F$53=$F24)*(Y$38:Y$53)) -> 0 | Z24: =SUMPRODUCT(($F$38:$F$53=$F24)*(Z$38:Z$53)) -> 0 | AA24: =SUMPRODUCT(($F$38:$F$53=$F24)*(AA$38:AA$53)) -> 0 | AC24: =SUMPRODUCT($H$7:$AA$7*$H24:$AA24) -> 0
B25: =Hist_vol!B24 -> Connections | C25: =Hist_vol!C24 -> S2 | D25: =Hist_vol!D24 -> Subdivision | E25: =Hist_vol!E24 -> Complex connection HV (no upstream asset works) | F25: Subdivision Complex connection HV (no upstream asset works) | H25: =SUMPRODUCT(($F$38:$F$53=$F25)*(H$38:H$53)) -> 0 | I25: =SUMPRODUCT(($F$38:$F$53=$F25)*(I$38:I$53)) -> 0 | J25: =SUMPRODUCT(($F$38:$F$53=$F25)*(J$38:J$53)) -> 0 | K25: =SUMPRODUCT(($F$38:$F$53=$F25)*(K$38:K$53)) -> 0 | L25: =SUMPRODUCT(($F$38:$F$53=$F25)*(L$38:L$53)) -> 0 | M25: =SUMPRODUCT(($F$38:$F$53=$F25)*(M$38:M$53)) -> 0 | N25: =SUMPRODUCT(($F$38:$F$53=$F25)*(N$38:N$53)) -> 0 | O25: =SUMPRODUCT(($F$38:$F$53=$F25)*(O$38:O$53)) -> 0 | P25: =SUMPRODUCT(($F$38:$F$53=$F25)*(P$38:P$53)) -> 0 | Q25: =SUMPRODUCT(($F$38:$F$53=$F25)*(Q$38:Q$53)) -> 0 | R25: =SUMPRODUCT(($F$38:$F$53=$F25)*(R$38:R$53)) -> 0 | S25: =SUMPRODUCT(($F$38:$F$53=$F25)*(S$38:S$53)) -> 0 | T25: =SUMPRODUCT(($F$38:$F$53=$F25)*(T$38:T$53)) -> 0 | U25: =SUMPRODUCT(($F$38:$F$53=$F25)*(U$38:U$53)) -> 0 | V25: =SUMPRODUCT(($F$38:$F$53=$F25)*(V$38:V$53)) -> 0 | W25: =SUMPRODUCT(($F$38:$F$53=$F25)*(W$38:W$53)) -> 0 | X25: =SUMPRODUCT(($F$38:$F$53=$F25)*(X$38:X$53)) -> 0 | Y25: =SUMPRODUCT(($F$38:$F$53=$F25)*(Y$38:Y$53)) -> 0 | Z25: =SUMPRODUCT(($F$38:$F$53=$F25)*(Z$38:Z$53)) -> 0 | AA25: =SUMPRODUCT(($F$38:$F$53=$F25)*(AA$38:AA$53)) -> 0 | AC25: =SUMPRODUCT($H$7:$AA$7*$H25:$AA25) -> 0
B26: =Hist_vol!B25 -> Connections | C26: =Hist_vol!C25 -> S3 | D26: =Hist_vol!D25 -> Subdivision | E26: =Hist_vol!E25 -> Complex connection HV (with upstream asset works) | F26: Subdivision Complex connection HV (with upstream asset works) | H26: =SUMPRODUCT(($F$38:$F$53=$F26)*(H$38:H$53)) -> 33106237.07 | I26: =SUMPRODUCT(($F$38:$F$53=$F26)*(I$38:I$53)) -> 37783279.24 | J26: =SUMPRODUCT(($F$38:$F$53=$F26)*(J$38:J$53)) -> 34394578.42 | K26: =SUMPRODUCT(($F$38:$F$53=$F26)*(K$38:K$53)) -> 33437926.86 | L26: =SUMPRODUCT(($F$38:$F$53=$F26)*(L$38:L$53)) -> 40656362.55 | M26: =SUMPRODUCT(($F$38:$F$53=$F26)*(M$38:M$53)) -> 44102921.82 | N26: =SUMPRODUCT(($F$38:$F$53=$F26)*(N$38:N$53)) -> 42316177.49 | O26: =SUMPRODUCT(($F$38:$F$53=$F26)*(O$38:O$53)) -> 35756058.69 | P26: =SUMPRODUCT(($F$38:$F$53=$F26)*(P$38:P$53)) -> 37440603.16 | Q26: =SUMPRODUCT(($F$38:$F$53=$F26)*(Q$38:Q$53)) -> 43516445.68 | R26: =SUMPRODUCT(($F$38:$F$53=$F26)*(R$38:R$53)) -> 38610288.64 | S26: =SUMPRODUCT(($F$38:$F$53=$F26)*(S$38:S$53)) -> 42304466.8 | T26: =SUMPRODUCT(($F$38:$F$53=$F26)*(T$38:T$53)) -> 51180656.83 | U26: =SUMPRODUCT(($F$38:$F$53=$F26)*(U$38:U$53)) -> 53930974.53 | V26: =SUMPRODUCT(($F$38:$F$53=$F26)*(V$38:V$53)) -> 60148629.18 | W26: =SUMPRODUCT(($F$38:$F$53=$F26)*(W$38:W$53)) -> 67597809.4 | X26: =SUMPRODUCT(($F$38:$F$53=$F26)*(X$38:X$53)) -> 67009047.04 | Y26: =SUMPRODUCT(($F$38:$F$53=$F26)*(Y$38:Y$53)) -> 62857567.51 | Z26: =SUMPRODUCT(($F$38:$F$53=$F26)*(Z$38:Z$53)) -> 63276753.14 | AA26: =SUMPRODUCT(($F$38:$F$53=$F26)*(AA$38:AA$53)) -> 64763980.7 | AC26: =SUMPRODUCT($H$7:$AA$7*$H26:$AA26) -> 325505157.8
B27: =Hist_vol!B26 -> Connections | C27: =Hist_vol!C26 -> EG1 | D27: =Hist_vol!D26 -> Embedded generation | E27: =Hist_vol!E26 -> Simple connection LV | F27: Embedded generation Simple connection LV | H27: =SUMPRODUCT(($F$38:$F$53=$F27)*(H$38:H$53)) -> 0 | I27: =SUMPRODUCT(($F$38:$F$53=$F27)*(I$38:I$53)) -> 0 | J27: =SUMPRODUCT(($F$38:$F$53=$F27)*(J$38:J$53)) -> 0 | K27: =SUMPRODUCT(($F$38:$F$53=$F27)*(K$38:K$53)) -> 0 | L27: =SUMPRODUCT(($F$38:$F$53=$F27)*(L$38:L$53)) -> 0 | M27: =SUMPRODUCT(($F$38:$F$53=$F27)*(M$38:M$53)) -> 0 | N27: =SUMPRODUCT(($F$38:$F$53=$F27)*(N$38:N$53)) -> 0 | O27: =SUMPRODUCT(($F$38:$F$53=$F27)*(O$38:O$53)) -> 0 | P27: =SUMPRODUCT(($F$38:$F$53=$F27)*(P$38:P$53)) -> 0 | Q27: =SUMPRODUCT(($F$38:$F$53=$F27)*(Q$38:Q$53)) -> 0 | R27: =SUMPRODUCT(($F$38:$F$53=$F27)*(R$38:R$53)) -> 0 | S27: =SUMPRODUCT(($F$38:$F$53=$F27)*(S$38:S$53)) -> 0 | T27: =SUMPRODUCT(($F$38:$F$53=$F27)*(T$38:T$53)) -> 0 | U27: =SUMPRODUCT(($F$38:$F$53=$F27)*(U$38:U$53)) -> 0 | V27: =SUMPRODUCT(($F$38:$F$53=$F27)*(V$38:V$53)) -> 0 | W27: =SUMPRODUCT(($F$38:$F$53=$F27)*(W$38:W$53)) -> 0 | X27: =SUMPRODUCT(($F$38:$F$53=$F27)*(X$38:X$53)) -> 0 | Y27: =SUMPRODUCT(($F$38:$F$53=$F27)*(Y$38:Y$53)) -> 0 | Z27: =SUMPRODUCT(($F$38:$F$53=$F27)*(Z$38:Z$53)) -> 0 | AA27: =SUMPRODUCT(($F$38:$F$53=$F27)*(AA$38:AA$53)) -> 0 | AC27: =SUMPRODUCT($H$7:$AA$7*$H27:$AA27) -> 0
B28: =Hist_vol!B27 -> Connections | C28: =Hist_vol!C27 -> EG2 | D28: =Hist_vol!D27 -> Embedded generation | E28: =Hist_vol!E27 -> Complex connection HV (small capacity) | F28: Embedded generation Complex connection HV (small capacity) | H28: =SUMPRODUCT(($F$38:$F$53=$F28)*(H$38:H$53)) -> 1185065.369 | I28: =SUMPRODUCT(($F$38:$F$53=$F28)*(I$38:I$53)) -> 1099163.793 | J28: =SUMPRODUCT(($F$38:$F$53=$F28)*(J$38:J$53)) -> 1299412.06 | K28: =SUMPRODUCT(($F$38:$F$53=$F28)*(K$38:K$53)) -> 1395377.478 | L28: =SUMPRODUCT(($F$38:$F$53=$F28)*(L$38:L$53)) -> 916252.3883 | M28: =SUMPRODUCT(($F$38:$F$53=$F28)*(M$38:M$53)) -> 2367458.522 | N28: =SUMPRODUCT(($F$38:$F$53=$F28)*(N$38:N$53)) -> 3039392.429 | O28: =SUMPRODUCT(($F$38:$F$53=$F28)*(O$38:O$53)) -> 2517224.163 | P28: =SUMPRODUCT(($F$38:$F$53=$F28)*(P$38:P$53)) -> 5138728.405 | Q28: =SUMPRODUCT(($F$38:$F$53=$F28)*(Q$38:Q$53)) -> 4269326.346 | R28: =SUMPRODUCT(($F$38:$F$53=$F28)*(R$38:R$53)) -> 3812568.669 | S28: =SUMPRODUCT(($F$38:$F$53=$F28)*(S$38:S$53)) -> 2564907.396 | T28: =SUMPRODUCT(($F$38:$F$53=$F28)*(T$38:T$53)) -> 4000225.393 | U28: =SUMPRODUCT(($F$38:$F$53=$F28)*(U$38:U$53)) -> 5980607.804 | V28: =SUMPRODUCT(($F$38:$F$53=$F28)*(V$38:V$53)) -> 5067603.678 | W28: =SUMPRODUCT(($F$38:$F$53=$F28)*(W$38:W$53)) -> 2041854.123 | X28: =SUMPRODUCT(($F$38:$F$53=$F28)*(X$38:X$53)) -> 707635.028 | Y28: =SUMPRODUCT(($F$38:$F$53=$F28)*(Y$38:Y$53)) -> 320705.2726 | Z28: =SUMPRODUCT(($F$38:$F$53=$F28)*(Z$38:Z$53)) -> 455756.1073 | AA28: =SUMPRODUCT(($F$38:$F$53=$F28)*(AA$38:AA$53)) -> 455754.2344 | AC28: =SUMPRODUCT($H$7:$AA$7*$H28:$AA28) -> 3981704.765
B29: =Hist_vol!B28 -> Connections | C29: =Hist_vol!C28 -> EG3 | D29: =Hist_vol!D28 -> Embedded generation | E29: =Hist_vol!E28 -> Complex connection HV (large capacity) | F29: Embedded generation Complex connection HV (large capacity) | H29: =SUMPRODUCT(($F$38:$F$53=$F29)*(H$38:H$53)) -> 8038637.96 | I29: =SUMPRODUCT(($F$38:$F$53=$F29)*(I$38:I$53)) -> 1964062.943 | J29: =SUMPRODUCT(($F$38:$F$53=$F29)*(J$38:J$53)) -> 0 | K29: =SUMPRODUCT(($F$38:$F$53=$F29)*(K$38:K$53)) -> 3253171.549 | L29: =SUMPRODUCT(($F$38:$F$53=$F29)*(L$38:L$53)) -> 3933994.65 | M29: =SUMPRODUCT(($F$38:$F$53=$F29)*(M$38:M$53)) -> 7821363.332 | N29: =SUMPRODUCT(($F$38:$F$53=$F29)*(N$38:N$53)) -> 20647594.59 | O29: =SUMPRODUCT(($F$38:$F$53=$F29)*(O$38:O$53)) -> 21246649.07 | P29: =SUMPRODUCT(($F$38:$F$53=$F29)*(P$38:P$53)) -> 8015231.668 | Q29: =SUMPRODUCT(($F$38:$F$53=$F29)*(Q$38:Q$53)) -> 1354780.628 | R29: =SUMPRODUCT(($F$38:$F$53=$F29)*(R$38:R$53)) -> 1625272.835 | S29: =SUMPRODUCT(($F$38:$F$53=$F29)*(S$38:S$53)) -> 4180978.34 | T29: =SUMPRODUCT(($F$38:$F$53=$F29)*(T$38:T$53)) -> 11314982.88 | U29: =SUMPRODUCT(($F$38:$F$53=$F29)*(U$38:U$53)) -> 16916665.5 | V29: =SUMPRODUCT(($F$38:$F$53=$F29)*(V$38:V$53)) -> 14334154.5 | W29: =SUMPRODUCT(($F$38:$F$53=$F29)*(W$38:W$53)) -> 5775560.666 | X29: =SUMPRODUCT(($F$38:$F$53=$F29)*(X$38:X$53)) -> 2001606.769 | Y29: =SUMPRODUCT(($F$38:$F$53=$F29)*(Y$38:Y$53)) -> 907142.5509 | Z29: =SUMPRODUCT(($F$38:$F$53=$F29)*(Z$38:Z$53)) -> 1289145.496 | AA29: =SUMPRODUCT(($F$38:$F$53=$F29)*(AA$38:AA$53)) -> 1289140.199 | AC29: =SUMPRODUCT($H$7:$AA$7*$H29:$AA29) -> 11262595.68
B30: ='Grid connected batteries'!B16 -> Connections | C30: Grid connected batteries | D30: Grid connected batteries | F30: =D30 -> Grid connected batteries | H30: 0 | I30: 0 | J30: 0 | K30: 0 | L30: 0 | M30: 0 | N30: 0 | O30: 0 | P30: 0 | Q30: 0 | R30: 0 | S30: 0 | T30: 0 | U30: 0 | V30: 0 | W30: ='Grid connected batteries'!E16 -> 8288046.837 | X30: ='Grid connected batteries'!F16 -> 7935322.18 | Y30: ='Grid connected batteries'!G16 -> 9244902.937 | Z30: ='Grid connected batteries'!H16 -> 10271651.02 | AA30: ='Grid connected batteries'!I16 -> 9017284.544 | AC30: =SUMPRODUCT($H$7:$AA$7*$H30:$AA30) -> 44757207.51
B31: ='Data Centres'!B16 -> Connections | C31: Data Centres | D31: Data Centres | F31: =D31 -> Data Centres | H31: 0 | I31: 0 | J31: 0 | K31: 0 | L31: 0 | M31: 0 | N31: 0 | O31: 0 | P31: 0 | Q31: 0 | R31: 0 | S31: 0 | T31: 0 | U31: 0 | V31: 0 | W31: ='Data Centres'!E16 -> 26429629.63 | X31: ='Data Centres'!F16 -> 36707818.93 | Y31: ='Data Centres'!G16 -> 22024691.36 | Z31: ='Data Centres'!H16 -> 71213168.72 | AA31: ='Data Centres'!I16 -> 57998353.91 | AC31: =SUMPRODUCT($H$7:$AA$7*$H31:$AA31) -> 214373662.6
B32: Total | H32: =SUM(H16:H31) -> 140236235.6 | I32: =SUM(I16:I31) -> 144545154.5 | J32: 142500653.8 | K32: 142436046.5 | L32: 140460292.1 | M32: 151077576.9 | N32: 169295702.9 | O32: 168599405.9 | P32: 165331099.4 | Q32: 164033725.8 | R32: 167380628.9 | S32: 184798888 | T32: 200323723.2 | U32: 205178806.4 | V32: 198676087.6 | W32: 234740734.5 | X32: 240059952.4 | Y32: 218102208.4 | Z32: 269201563.2 | AA32: 257365193.3 | AC32: 1219469652
B35: =Hist_vol!B$13 -> Category | C35: =Hist_vol!C$13 -> Type | D35: =Hist_vol!D$13 -> RIN category | E35: =Hist_vol!E$13 -> Description | G35: Unit rate | H35: =Assumptions!G$24 -> 2011/12 | I35: =Assumptions!H$24 -> 2012/13 | J35: =Assumptions!I$24 -> 2013/14 | K35: =Assumptions!J$24 -> 2014/15 | L35: =Assumptions!K$24 -> 2015/16 | M35: =Assumptions!L$24 -> 2016/17 | N35: =Assumptions!M$24 -> 2017/18 | O35: =Assumptions!N$24 -> 2018/19 | P35: =Assumptions!O$24 -> 2019/20 | Q35: =Assumptions!P$24 -> 2020/21 | R35: =Assumptions!Q$24 -> 2021/22 | S35: =Assumptions!R$24 -> 2022/23 | T35: =Assumptions!S$24 -> 2023/24 | U35: =Assumptions!T$24 -> 2024/25 | V35: =Assumptions!U$24 -> 2025/26 | W35: =Assumptions!V$24 -> 2026/27 | X35: =Assumptions!W$24 -> 2027/28 | Y35: =Assumptions!X$24 -> 2028/29 | Z35: =Assumptions!Y$24 -> 2029/30 | AA35: =Assumptions!Z$24 -> 2030/31 | AC35: 2026-31 Total
B37: Forecast spend from trend (June 2026 $)
B38: =Hist_vol!B15 -> Connections | C38: =Hist_vol!C15 -> R1 | D38: =Hist_vol!D15 -> Residential | E38: =Hist_vol!E15 -> Simple connection LV | F38: =D38&" "&E38 -> Residential Simple connection LV | G38: =Unit_rates!S15 -> 0 | H38: =IF(H$8, $G38*Forecast_vol!H16,Hist_expenditure!G15*Assumptions!G$29) -> 5857644.82 | I38: =IF(I$8, $G38*Forecast_vol!I16,Hist_expenditure!H15*Assumptions!H$29) -> 5579245.236 | J38: =IF(J$8, $G38*Forecast_vol!J16,Hist_expenditure!I15*Assumptions!I$29) -> 5597644.076 | K38: =IF(K$8, $G38*Forecast_vol!K16,Hist_expenditure!J15*Assumptions!J$29) -> 5528468.717 | L38: =IF(L$8, $G38*Forecast_vol!L16,Hist_expenditure!K15*Assumptions!K$29) -> 2692520.31 | M38: =IF(M$8, $G38*Forecast_vol!M16,Hist_expenditure!L15*Assumptions!L$29) -> 0 | N38: =IF(N$8, $G38*Forecast_vol!N16,Hist_expenditure!M15*Assumptions!M$29) -> 0 | O38: =IF(O$8, $G38*Forecast_vol!O16,Hist_expenditure!N15*Assumptions!N$29) -> 0 | P38: =IF(P$8, $G38*Forecast_vol!P16,Hist_expenditure!O15*Assumptions!O$29) -> 0 | Q38: =IF(Q$8, $G38*Forecast_vol!Q16,Hist_expenditure!P15*Assumptions!P$29) -> 0 | R38: =IF(R$8, $G38*Forecast_vol!R16,Hist_expenditure!Q15*Assumptions!Q$29) -> 0 | S38: =IF(S$8, $G38*Forecast_vol!S16,Hist_expenditure!R15*Assumptions!R$29) -> 0 | T38: =IF(T$8, $G38*Forecast_vol!T16,Hist_expenditure!S15*Assumptions!S$29) -> 0 | U38: =IF(U$8, $G38*Forecast_vol!U16,Hist_expenditure!T15*Assumptions!T$29) -> 0 | V38: =IF(V$8, $G38*Forecast_vol!V16,Hist_expenditure!U15*Assumptions!U$29) -> 0 | W38: =IF(W$8, $G38*Forecast_vol!W16,Hist_expenditure!V15*Assumptions!V$29) -> 0 | X38: =IF(X$8, $G38*Forecast_vol!X16,Hist_expenditure!W15*Assumptions!W$29) -> 0 | Y38: =IF(Y$8, $G38*Forecast_vol!Y16,Hist_expenditure!X15*Assumptions!X$29) -> 0 | Z38: =IF(Z$8, $G38*Forecast_vol!Z16,Hist_expenditure!Y15*Assumptions!Y$29) -> 0 | AA38: =IF(AA$8, $G38*Forecast_vol!AA16,Hist_expenditure!Z15*Assumptions!Z$29) -> 0 | AC38: =SUMPRODUCT($H$7:$AA$7*$H38:$AA38) -> 0
B39: =Hist_vol!B16 -> Connections | C39: =Hist_vol!C16 -> R2 | D39: =Hist_vol!D16 -> Residential | E39: =Hist_vol!E16 -> Complex connection LV | F39: =D39&" "&E39 -> Residential Complex connection LV | G39: =Unit_rates!S16 -> 17746.02792 | H39: =IF(H$8, $G39*Forecast_vol!H17,Hist_expenditure!G16*Assumptions!G$29) -> 23164449.92 | I39: =IF(I$8, $G39*Forecast_vol!I17,Hist_expenditure!H16*Assumptions!H$29) -> 25012989.65 | J39: =IF(J$8, $G39*Forecast_vol!J17,Hist_expenditure!I16*Assumptions!I$29) -> 26254327.49 | K39: =IF(K$8, $G39*Forecast_vol!K17,Hist_expenditure!J16*Assumptions!J$29) -> 24105641.16 | L39: =IF(L$8, $G39*Forecast_vol!L17,Hist_expenditure!K16*Assumptions!K$29) -> 20629634.28 | M39: =IF(M$8, $G39*Forecast_vol!M17,Hist_expenditure!L16*Assumptions!L$29) -> 19624207.79 | N39: =IF(N$8, $G39*Forecast_vol!N17,Hist_expenditure!M16*Assumptions!M$29) -> 19963227.92 | O39: =IF(O$8, $G39*Forecast_vol!O17,Hist_expenditure!N16*Assumptions!N$29) -> 22374902.6 | P39: =IF(P$8, $G39*Forecast_vol!P17,Hist_expenditure!O16*Assumptions!O$29) -> 25605626.43 | Q39: =IF(Q$8, $G39*Forecast_vol!Q17,Hist_expenditure!P16*Assumptions!P$29) -> 26473034.31 | R39: =IF(R$8, $G39*Forecast_vol!R17,Hist_expenditure!Q16*Assumptions!Q$29) -> 30989488.89 | S39: =IF(S$8, $G39*Forecast_vol!S17,Hist_expenditure!R16*Assumptions!R$29) -> 34343908.95 | T39: =IF(T$8, $G39*Forecast_vol!T17,Hist_expenditure!S16*Assumptions!S$29) -> 31499199.55 | U39: =IF(U$8, $G39*Forecast_vol!U17,Hist_expenditure!T16*Assumptions!T$29) -> 33191886.04 | V39: =IF(V$8, $G39*Forecast_vol!V17,Hist_expenditure!U16*Assumptions!U$29) -> 37018549.41 | W39: =IF(W$8, $G39*Forecast_vol!W17,Hist_expenditure!V16*Assumptions!V$29) -> 41603156.73 | X39: =IF(X$8, $G39*Forecast_vol!X17,Hist_expenditure!W16*Assumptions!W$29) -> 41240802.2 | Y39: =IF(Y$8, $G39*Forecast_vol!Y17,Hist_expenditure!X16*Assumptions!X$29) -> 38685768.9 | Z39: =IF(Z$8, $G39*Forecast_vol!Z17,Hist_expenditure!Y16*Assumptions!Y$29) -> 38943757.23 | AA39: =IF(AA$8, $G39*Forecast_vol!AA17,Hist_expenditure!Z16*Assumptions!Z$29) -> 39859073.29 | AC39: =SUMPRODUCT($H$7:$AA$7*$H39:$AA39) -> 200332558.3
B40: =Hist_vol!B17 -> Connections | C40: =Hist_vol!C17 -> R3 | D40: =Hist_vol!D17 -> Residential | E40: =Hist_vol!E17 -> Complex connection HV | F40: Residential Complex connection HV | G40: =Unit_rates!S17 -> 50051.04589 | H40: =IF(H$8, $G40*Forecast_vol!H18,Hist_expenditure!G17*Assumptions!G$29) -> 11237365.13 | I40: =IF(I$8, $G40*Forecast_vol!I18,Hist_expenditure!H17*Assumptions!H$29) -> 12492703.81 | J40: =IF(J$8, $G40*Forecast_vol!J18,Hist_expenditure!I17*Assumptions!I$29) -> 11779716.17 | K40: =IF(K$8, $G40*Forecast_vol!K18,Hist_expenditure!J17*Assumptions!J$29) -> 9464559.425 | L40: =IF(L$8, $G40*Forecast_vol!L18,Hist_expenditure!K17*Assumptions!K$29) -> 6828585.865 | M40: =IF(M$8, $G40*Forecast_vol!M18,Hist_expenditure!L17*Assumptions!L$29) -> 6142271.372 | N40: =IF(N$8, $G40*Forecast_vol!N18,Hist_expenditure!M17*Assumptions!M$29) -> 6869264.743 | O40: =IF(O$8, $G40*Forecast_vol!O18,Hist_expenditure!N17*Assumptions!N$29) -> 7188977.518 | P40: =IF(P$8, $G40*Forecast_vol!P18,Hist_expenditure!O17*Assumptions!O$29) -> 7636194.097 | Q40: =IF(Q$8, $G40*Forecast_vol!Q18,Hist_expenditure!P17*Assumptions!P$29) -> 7694607.978 | R40: =IF(R$8, $G40*Forecast_vol!R18,Hist_expenditure!Q17*Assumptions!Q$29) -> 10213261.5 | S40: =IF(S$8, $G40*Forecast_vol!S18,Hist_expenditure!R17*Assumptions!R$29) -> 10826327.72 | T40: =IF(T$8, $G40*Forecast_vol!T18,Hist_expenditure!S17*Assumptions!S$29) -> 8758933.03 | U40: =IF(U$8, $G40*Forecast_vol!U18,Hist_expenditure!T17*Assumptions!T$29) -> 9229615.706 | V40: =IF(V$8, $G40*Forecast_vol!V18,Hist_expenditure!U17*Assumptions!U$29) -> 10293689.99 | W40: =IF(W$8, $G40*Forecast_vol!W18,Hist_expenditure!V17*Assumptions!V$29) -> 11568524.56 | X40: =IF(X$8, $G40*Forecast_vol!X18,Hist_expenditure!W17*Assumptions!W$29) -> 11467765.2 | Y40: =IF(Y$8, $G40*Forecast_vol!Y18,Hist_expenditure!X17*Assumptions!X$29) -> 10757291.1 | Z40: =IF(Z$8, $G40*Forecast_vol!Z18,Hist_expenditure!Y17*Assumptions!Y$29) -> 10829029.51 | AA40: =IF(AA$8, $G40*Forecast_vol!AA18,Hist_expenditure!Z17*Assumptions!Z$29) -> 11083550.01 | AC40: =SUMPRODUCT($H$7:$AA$7*$H40:$AA40) -> 55706160.38
B41: =Hist_vol!B18 -> Connections | C41: =Hist_vol!C18 -> CI1 | D41: =Hist_vol!D18 -> Commercial/Industrial | E41: =Hist_vol!E18 -> Simple connection LV | F41: Commercial/Industrial Simple connection LV | G41: =Unit_rates!S18 -> 0 | H41: =IF(H$8, $G41*Forecast_vol!H19,Hist_expenditure!G18*Assumptions!G$29) -> 808180.0835 | I41: =IF(I$8, $G41*Forecast_vol!I19,Hist_expenditure!H18*Assumptions!H$29) -> 883331.8913 | J41: =IF(J$8, $G41*Forecast_vol!J19,Hist_expenditure!I18*Assumptions!I$29) -> 922918.4662 | K41: =IF(K$8, $G41*Forecast_vol!K19,Hist_expenditure!J18*Assumptions!J$29) -> 900986.1897 | L41: =IF(L$8, $G41*Forecast_vol!L19,Hist_expenditure!K18*Assumptions!K$29) -> 438317.0322 | M41: =IF(M$8, $G41*Forecast_vol!M19,Hist_expenditure!L18*Assumptions!L$29) -> 0 | N41: =IF(N$8, $G41*Forecast_vol!N19,Hist_expenditure!M18*Assumptions!M$29) -> 0 | O41: =IF(O$8, $G41*Forecast_vol!O19,Hist_expenditure!N18*Assumptions!N$29) -> 0 | P41: =IF(P$8, $G41*Forecast_vol!P19,Hist_expenditure!O18*Assumptions!O$29) -> 0 | Q41: =IF(Q$8, $G41*Forecast_vol!Q19,Hist_expenditure!P18*Assumptions!P$29) -> 0 | R41: =IF(R$8, $G41*Forecast_vol!R19,Hist_expenditure!Q18*Assumptions!Q$29) -> 0 | S41: =IF(S$8, $G41*Forecast_vol!S19,Hist_expenditure!R18*Assumptions!R$29) -> 0 | T41: =IF(T$8, $G41*Forecast_vol!T19,Hist_expenditure!S18*Assumptions!S$29) -> 0 | U41: =IF(U$8, $G41*Forecast_vol!U19,Hist_expenditure!T18*Assumptions!T$29) -> 0 | V41: =IF(V$8, $G41*Forecast_vol!V19,Hist_expenditure!U18*Assumptions!U$29) -> 0 | W41: =IF(W$8, $G41*Forecast_vol!W19,Hist_expenditure!V18*Assumptions!V$29) -> 0 | X41: =IF(X$8, $G41*Forecast_vol!X19,Hist_expenditure!W18*Assumptions!W$29) -> 0 | Y41: =IF(Y$8, $G41*Forecast_vol!Y19,Hist_expenditure!X18*Assumptions!X$29) -> 0 | Z41: =IF(Z$8, $G41*Forecast_vol!Z19,Hist_expenditure!Y18*Assumptions!Y$29) -> 0 | AA41: =IF(AA$8, $G41*Forecast_vol!AA19,Hist_expenditure!Z18*Assumptions!Z$29) -> 0 | AC41: =SUMPRODUCT($H$7:$AA$7*$H41:$AA41) -> 0
B42: =Hist_vol!B19 -> Connections | C42: =Hist_vol!C19 -> CI2 | D42: =Hist_vol!D19 -> Commercial/Industrial | E42: =Hist_vol!E19 -> Complex connection HV (customer connected at LV, minor HV works) | F42: Commercial/Industrial Complex connection HV (customer connected at LV, minor HV works) | G42: =Unit_rates!S19 -> 147051.2597 | H42: =IF(H$8, $G42*Forecast_vol!H20,Hist_expenditure!G19*Assumptions!G$29) -> 16823092.84 | I42: =IF(I$8, $G42*Forecast_vol!I20,Hist_expenditure!H19*Assumptions!H$29) -> 17504646.73 | J42: =IF(J$8, $G42*Forecast_vol!J20,Hist_expenditure!I19*Assumptions!I$29) -> 19660958.23 | K42: =IF(K$8, $G42*Forecast_vol!K20,Hist_expenditure!J19*Assumptions!J$29) -> 28408034.93 | L42: =IF(L$8, $G42*Forecast_vol!L20,Hist_expenditure!K19*Assumptions!K$29) -> 33001871.09 | M42: =IF(M$8, $G42*Forecast_vol!M20,Hist_expenditure!L19*Assumptions!L$29) -> 31457039.56 | N42: =IF(N$8, $G42*Forecast_vol!N20,Hist_expenditure!M19*Assumptions!M$29) -> 37255966.18 | O42: =IF(O$8, $G42*Forecast_vol!O20,Hist_expenditure!N19*Assumptions!N$29) -> 45174268.13 | P42: =IF(P$8, $G42*Forecast_vol!P20,Hist_expenditure!O19*Assumptions!O$29) -> 39274822 | Q42: =IF(Q$8, $G42*Forecast_vol!Q20,Hist_expenditure!P19*Assumptions!P$29) -> 25780933.68 | R42: =IF(R$8, $G42*Forecast_vol!R20,Hist_expenditure!Q19*Assumptions!Q$29) -> 19698723.59 | S42: =IF(S$8, $G42*Forecast_vol!S20,Hist_expenditure!R19*Assumptions!R$29) -> 23062424.11 | T42: =IF(T$8, $G42*Forecast_vol!T20,Hist_expenditure!S19*Assumptions!S$29) -> 22939996.51 | U42: =IF(U$8, $G42*Forecast_vol!U20,Hist_expenditure!T19*Assumptions!T$29) -> 21421435.1 | V42: =IF(V$8, $G42*Forecast_vol!V20,Hist_expenditure!U19*Assumptions!U$29) -> 17902528.51 | W42: =IF(W$8, $G42*Forecast_vol!W20,Hist_expenditure!V19*Assumptions!V$29) -> 17808468.55 | X42: =IF(X$8, $G42*Forecast_vol!X20,Hist_expenditure!W19*Assumptions!W$29) -> 18195819.23 | Y42: =IF(Y$8, $G42*Forecast_vol!Y20,Hist_expenditure!X19*Assumptions!X$29) -> 18274142.74 | Z42: =IF(Z$8, $G42*Forecast_vol!Z20,Hist_expenditure!Y19*Assumptions!Y$29) -> 18178953.85 | AA42: =IF(AA$8, $G42*Forecast_vol!AA20,Hist_expenditure!Z19*Assumptions!Z$29) -> 18172909.61 | AC42: =SUMPRODUCT($H$7:$AA$7*$H42:$AA42) -> 90630293.98
B43: =Hist_vol!B20 -> Connections | C43: =Hist_vol!C20 -> CI3 | D43: =Hist_vol!D20 -> Commercial/Industrial | E43: =Hist_vol!E20 -> Complex connection HV (customer connected at LV, upstream asset works) | F43: Commercial/Industrial Complex connection HV (customer connected at LV, upstream asset works) | G43: =Unit_rates!S20 -> 142401.7525 | H43: =IF(H$8, $G43*Forecast_vol!H21,Hist_expenditure!G20*Assumptions!G$29) -> 36169257.68 | I43: =IF(I$8, $G43*Forecast_vol!I21,Hist_expenditure!H20*Assumptions!H$29) -> 37677235.29 | J43: =IF(J$8, $G43*Forecast_vol!J21,Hist_expenditure!I20*Assumptions!I$29) -> 37894922.96 | K43: =IF(K$8, $G43*Forecast_vol!K21,Hist_expenditure!J20*Assumptions!J$29) -> 33431272.2 | L43: =IF(L$8, $G43*Forecast_vol!L21,Hist_expenditure!K20*Assumptions!K$29) -> 29821521.38 | M43: =IF(M$8, $G43*Forecast_vol!M21,Hist_expenditure!L20*Assumptions!L$29) -> 32966652.74 | N43: =IF(N$8, $G43*Forecast_vol!N21,Hist_expenditure!M20*Assumptions!M$29) -> 33070842.94 | O43: =IF(O$8, $G43*Forecast_vol!O21,Hist_expenditure!N20*Assumptions!N$29) -> 32653821.46 | P43: =IF(P$8, $G43*Forecast_vol!P21,Hist_expenditure!O20*Assumptions!O$29) -> 37986708.31 | Q43: =IF(Q$8, $G43*Forecast_vol!Q21,Hist_expenditure!P20*Assumptions!P$29) -> 38394551.24 | R43: =IF(R$8, $G43*Forecast_vol!R21,Hist_expenditure!Q20*Assumptions!Q$29) -> 44318833.63 | S43: =IF(S$8, $G43*Forecast_vol!S21,Hist_expenditure!R20*Assumptions!R$29) -> 50173174.45 | T43: =IF(T$8, $G43*Forecast_vol!T21,Hist_expenditure!S20*Assumptions!S$29) -> 52119041.4 | U43: =IF(U$8, $G43*Forecast_vol!U21,Hist_expenditure!T20*Assumptions!T$29) -> 48668911.64 | V43: =IF(V$8, $G43*Forecast_vol!V21,Hist_expenditure!U20*Assumptions!U$29) -> 40674052.61 | W43: =IF(W$8, $G43*Forecast_vol!W21,Hist_expenditure!V20*Assumptions!V$29) -> 40460350.96 | X43: =IF(X$8, $G43*Forecast_vol!X21,Hist_expenditure!W20*Assumptions!W$29) -> 41340401.06 | Y43: =IF(Y$8, $G43*Forecast_vol!Y21,Hist_expenditure!X20*Assumptions!X$29) -> 41518349.93 | Z43: =IF(Z$8, $G43*Forecast_vol!Z21,Hist_expenditure!Y20*Assumptions!Y$29) -> 41302083.37 | AA43: =IF(AA$8, $G43*Forecast_vol!AA21,Hist_expenditure!Z20*Assumptions!Z$29) -> 41288351.04 | AC43: =SUMPRODUCT($H$7:$AA$7*$H43:$AA43) -> 205909536.4
B44: =Hist_vol!B21 -> Connections | C44: =Hist_vol!C21 -> CI4 | D44: =Hist_vol!D21 -> Commercial/Industrial | E44: =Hist_vol!E21 -> Complex connection HV (customer connected at HV) | F44: Commercial/Industrial Complex connection HV (customer connected at HV) | G44: =Unit_rates!S21 -> 4240378.309 | H44: =IF(H$8, $G44*Forecast_vol!H22,Hist_expenditure!G21*Assumptions!G$29) -> 3846304.756 | I44: =IF(I$8, $G44*Forecast_vol!I22,Hist_expenditure!H21*Assumptions!H$29) -> 4548495.931 | J44: =IF(J$8, $G44*Forecast_vol!J22,Hist_expenditure!I21*Assumptions!I$29) -> 4696175.957 | K44: =IF(K$8, $G44*Forecast_vol!K22,Hist_expenditure!J21*Assumptions!J$29) -> 2510608.034 | L44: =IF(L$8, $G44*Forecast_vol!L22,Hist_expenditure!K21*Assumptions!K$29) -> 1541232.539 | M44: =IF(M$8, $G44*Forecast_vol!M22,Hist_expenditure!L21*Assumptions!L$29) -> 2037655.426 | N44: =IF(N$8, $G44*Forecast_vol!N22,Hist_expenditure!M21*Assumptions!M$29) -> 1661696.484 | O44: =IF(O$8, $G44*Forecast_vol!O22,Hist_expenditure!N21*Assumptions!N$29) -> 1687504.222 | P44: =IF(P$8, $G44*Forecast_vol!P22,Hist_expenditure!O21*Assumptions!O$29) -> 4233185.301 | Q44: =IF(Q$8, $G44*Forecast_vol!Q22,Hist_expenditure!P21*Assumptions!P$29) -> 16550045.95 | R44: =IF(R$8, $G44*Forecast_vol!R22,Hist_expenditure!Q21*Assumptions!Q$29) -> 18112191.1 | S44: =IF(S$8, $G44*Forecast_vol!S22,Hist_expenditure!R21*Assumptions!R$29) -> 11706334.44 | T44: =IF(T$8, $G44*Forecast_vol!T22,Hist_expenditure!S21*Assumptions!S$29) -> 16961513.24 | U44: =IF(U$8, $G44*Forecast_vol!U22,Hist_expenditure!T21*Assumptions!T$29) -> 15838710.13 | V44: =IF(V$8, $G44*Forecast_vol!V22,Hist_expenditure!U21*Assumptions!U$29) -> 13236879.71 | W44: =IF(W$8, $G44*Forecast_vol!W22,Hist_expenditure!V21*Assumptions!V$29) -> 13167333.09 | X44: =IF(X$8, $G44*Forecast_vol!X22,Hist_expenditure!W21*Assumptions!W$29) -> 13453734.78 | Y44: =IF(Y$8, $G44*Forecast_vol!Y22,Hist_expenditure!X21*Assumptions!X$29) -> 13511646.09 | Z44: =IF(Z$8, $G44*Forecast_vol!Z22,Hist_expenditure!Y21*Assumptions!Y$29) -> 13441264.75 | AA44: =IF(AA$8, $G44*Forecast_vol!AA22,Hist_expenditure!Z21*Assumptions!Z$29) -> 13436795.72 | AC44: =SUMPRODUCT($H$7:$AA$7*$H44:$AA44) -> 67010774.42
B45: =Hist_vol!B22 -> Connections | C45: =Hist_vol!C22 -> CI5 | D45: =Hist_vol!D22 -> Commercial/Industrial | E45: =Hist_vol!E22 -> Complex connection sub-transmission | F45: Commercial/Industrial Complex connection sub-transmission | G45: =Unit_rates!S22 -> 0 | H45: =IF(H$8, $G45*Forecast_vol!H23,Hist_expenditure!G22*Assumptions!G$29) -> 0 | I45: =IF(I$8, $G45*Forecast_vol!I23,Hist_expenditure!H22*Assumptions!H$29) -> 0 | J45: =IF(J$8, $G45*Forecast_vol!J23,Hist_expenditure!I22*Assumptions!I$29) -> 0 | K45: =IF(K$8, $G45*Forecast_vol!K23,Hist_expenditure!J22*Assumptions!J$29) -> 0 | L45: =IF(L$8, $G45*Forecast_vol!L23,Hist_expenditure!K22*Assumptions!K$29) -> 0 | M45: =IF(M$8, $G45*Forecast_vol!M23,Hist_expenditure!L22*Assumptions!L$29) -> 4558006.357 | N45: =IF(N$8, $G45*Forecast_vol!N23,Hist_expenditure!M22*Assumptions!M$29) -> 4471540.112 | O45: =IF(O$8, $G45*Forecast_vol!O23,Hist_expenditure!N22*Assumptions!N$29) -> 0 | P45: =IF(P$8, $G45*Forecast_vol!P23,Hist_expenditure!O22*Assumptions!O$29) -> 0 | Q45: =IF(Q$8, $G45*Forecast_vol!Q23,Hist_expenditure!P22*Assumptions!P$29) -> 0 | R45: =IF(R$8, $G45*Forecast_vol!R23,Hist_expenditure!Q22*Assumptions!Q$29) -> 0 | S45: =IF(S$8, $G45*Forecast_vol!S23,Hist_expenditure!R22*Assumptions!R$29) -> 5636365.83 | T45: =IF(T$8, $G45*Forecast_vol!T23,Hist_expenditure!S22*Assumptions!S$29) -> 1549174.404 | U45: =IF(U$8, $G45*Forecast_vol!U23,Hist_expenditure!T22*Assumptions!T$29) -> 0 | V45: =IF(V$8, $G45*Forecast_vol!V23,Hist_expenditure!U22*Assumptions!U$29) -> 0 | W45: =IF(W$8, $G45*Forecast_vol!W23,Hist_expenditure!V22*Assumptions!V$29) -> 0 | X45: =IF(X$8, $G45*Forecast_vol!X23,Hist_expenditure!W22*Assumptions!W$29) -> 0 | Y45: =IF(Y$8, $G45*Forecast_vol!Y23,Hist_expenditure!X22*Assumptions!X$29) -> 0 | Z45: =IF(Z$8, $G45*Forecast_vol!Z23,Hist_expenditure!Y22*Assumptions!Y$29) -> 0 | AA45: =IF(AA$8, $G45*Forecast_vol!AA23,Hist_expenditure!Z22*Assumptions!Z$29) -> 0 | AC45: =SUMPRODUCT($H$7:$AA$7*$H45:$AA45) -> 0
B46: =Hist_vol!B23 -> Connections | C46: =Hist_vol!C23 -> S1 | D46: =Hist_vol!D23 -> Subdivision | E46: =Hist_vol!E23 -> Complex connection LV | F46: Subdivision Complex connection LV | G46: =Unit_rates!S23 -> 0 | H46: =IF(H$8, $G46*Forecast_vol!H24,Hist_expenditure!G23*Assumptions!G$29) -> 0 | I46: =IF(I$8, $G46*Forecast_vol!I24,Hist_expenditure!H23*Assumptions!H$29) -> 0 | J46: =IF(J$8, $G46*Forecast_vol!J24,Hist_expenditure!I23*Assumptions!I$29) -> 0 | K46: =IF(K$8, $G46*Forecast_vol!K24,Hist_expenditure!J23*Assumptions!J$29) -> 0 | L46: =IF(L$8, $G46*Forecast_vol!L24,Hist_expenditure!K23*Assumptions!K$29) -> 0 | M46: =IF(M$8, $G46*Forecast_vol!M24,Hist_expenditure!L23*Assumptions!L$29) -> 0 | N46: =IF(N$8, $G46*Forecast_vol!N24,Hist_expenditure!M23*Assumptions!M$29) -> 0 | O46: =IF(O$8, $G46*Forecast_vol!O24,Hist_expenditure!N23*Assumptions!N$29) -> 0 | P46: =IF(P$8, $G46*Forecast_vol!P24,Hist_expenditure!O23*Assumptions!O$29) -> 0 | Q46: =IF(Q$8, $G46*Forecast_vol!Q24,Hist_expenditure!P23*Assumptions!P$29) -> 0 | R46: =IF(R$8, $G46*Forecast_vol!R24,Hist_expenditure!Q23*Assumptions!Q$29) -> 0 | S46: =IF(S$8, $G46*Forecast_vol!S24,Hist_expenditure!R23*Assumptions!R$29) -> 0 | T46: =IF(T$8, $G46*Forecast_vol!T24,Hist_expenditure!S23*Assumptions!S$29) -> 0 | U46: =IF(U$8, $G46*Forecast_vol!U24,Hist_expenditure!T23*Assumptions!T$29) -> 0 | V46: =IF(V$8, $G46*Forecast_vol!V24,Hist_expenditure!U23*Assumptions!U$29) -> 0 | W46: =IF(W$8, $G46*Forecast_vol!W24,Hist_expenditure!V23*Assumptions!V$29) -> 0 | X46: =IF(X$8, $G46*Forecast_vol!X24,Hist_expenditure!W23*Assumptions!W$29) -> 0 | Y46: =IF(Y$8, $G46*Forecast_vol!Y24,Hist_expenditure!X23*Assumptions!X$29) -> 0 | Z46: =IF(Z$8, $G46*Forecast_vol!Z24,Hist_expenditure!Y23*Assumptions!Y$29) -> 0 | AA46: =IF(AA$8, $G46*Forecast_vol!AA24,Hist_expenditure!Z23*Assumptions!Z$29) -> 0 | AC46: =SUMPRODUCT($H$7:$AA$7*$H46:$AA46) -> 0
B47: =Hist_vol!B24 -> Connections | C47: =Hist_vol!C24 -> S2 | D47: =Hist_vol!D24 -> Subdivision | E47: =Hist_vol!E24 -> Complex connection HV (no upstream asset works) | F47: Subdivision Complex connection HV (no upstream asset works) | G47: =Unit_rates!S24 -> 0 | H47: =IF(H$8, $G47*Forecast_vol!H25,Hist_expenditure!G24*Assumptions!G$29) -> 0 | I47: =IF(I$8, $G47*Forecast_vol!I25,Hist_expenditure!H24*Assumptions!H$29) -> 0 | J47: =IF(J$8, $G47*Forecast_vol!J25,Hist_expenditure!I24*Assumptions!I$29) -> 0 | K47: =IF(K$8, $G47*Forecast_vol!K25,Hist_expenditure!J24*Assumptions!J$29) -> 0 | L47: =IF(L$8, $G47*Forecast_vol!L25,Hist_expenditure!K24*Assumptions!K$29) -> 0 | M47: =IF(M$8, $G47*Forecast_vol!M25,Hist_expenditure!L24*Assumptions!L$29) -> 0 | N47: =IF(N$8, $G47*Forecast_vol!N25,Hist_expenditure!M24*Assumptions!M$29) -> 0 | O47: =IF(O$8, $G47*Forecast_vol!O25,Hist_expenditure!N24*Assumptions!N$29) -> 0 | P47: =IF(P$8, $G47*Forecast_vol!P25,Hist_expenditure!O24*Assumptions!O$29) -> 0 | Q47: =IF(Q$8, $G47*Forecast_vol!Q25,Hist_expenditure!P24*Assumptions!P$29) -> 0 | R47: =IF(R$8, $G47*Forecast_vol!R25,Hist_expenditure!Q24*Assumptions!Q$29) -> 0 | S47: =IF(S$8, $G47*Forecast_vol!S25,Hist_expenditure!R24*Assumptions!R$29) -> 0 | T47: =IF(T$8, $G47*Forecast_vol!T25,Hist_expenditure!S24*Assumptions!S$29) -> 0 | U47: =IF(U$8, $G47*Forecast_vol!U25,Hist_expenditure!T24*Assumptions!T$29) -> 0 | V47: =IF(V$8, $G47*Forecast_vol!V25,Hist_expenditure!U24*Assumptions!U$29) -> 0 | W47: =IF(W$8, $G47*Forecast_vol!W25,Hist_expenditure!V24*Assumptions!V$29) -> 0 | X47: =IF(X$8, $G47*Forecast_vol!X25,Hist_expenditure!W24*Assumptions!W$29) -> 0 | Y47: =IF(Y$8, $G47*Forecast_vol!Y25,Hist_expenditure!X24*Assumptions!X$29) -> 0 | Z47: =IF(Z$8, $G47*Forecast_vol!Z25,Hist_expenditure!Y24*Assumptions!Y$29) -> 0 | AA47: =IF(AA$8, $G47*Forecast_vol!AA25,Hist_expenditure!Z24*Assumptions!Z$29) -> 0 | AC47: =SUMPRODUCT($H$7:$AA$7*$H47:$AA47) -> 0
B48: =Hist_vol!B25 -> Connections | C48: =Hist_vol!C25 -> S3 | D48: =Hist_vol!D25 -> Subdivision | E48: =Hist_vol!E25 -> Complex connection HV (with upstream asset works) | F48: Subdivision Complex connection HV (with upstream asset works) | G48: =Unit_rates!S25 -> 62263.57279 | H48: =IF(H$8, $G48*Forecast_vol!H26,Hist_expenditure!G25*Assumptions!G$29) -> 33106237.07 | I48: =IF(I$8, $G48*Forecast_vol!I26,Hist_expenditure!H25*Assumptions!H$29) -> 37783279.24 | J48: =IF(J$8, $G48*Forecast_vol!J26,Hist_expenditure!I25*Assumptions!I$29) -> 34394578.42 | K48: =IF(K$8, $G48*Forecast_vol!K26,Hist_expenditure!J25*Assumptions!J$29) -> 33437926.86 | L48: =IF(L$8, $G48*Forecast_vol!L26,Hist_expenditure!K25*Assumptions!K$29) -> 40656362.55 | M48: =IF(M$8, $G48*Forecast_vol!M26,Hist_expenditure!L25*Assumptions!L$29) -> 44102921.82 | N48: =IF(N$8, $G48*Forecast_vol!N26,Hist_expenditure!M25*Assumptions!M$29) -> 42316177.49 | O48: =IF(O$8, $G48*Forecast_vol!O26,Hist_expenditure!N25*Assumptions!N$29) -> 35756058.69 | P48: =IF(P$8, $G48*Forecast_vol!P26,Hist_expenditure!O25*Assumptions!O$29) -> 37440603.16 | Q48: =IF(Q$8, $G48*Forecast_vol!Q26,Hist_expenditure!P25*Assumptions!P$29) -> 43516445.68 | R48: =IF(R$8, $G48*Forecast_vol!R26,Hist_expenditure!Q25*Assumptions!Q$29) -> 38610288.64 | S48: =IF(S$8, $G48*Forecast_vol!S26,Hist_expenditure!R25*Assumptions!R$29) -> 42304466.8 | T48: =IF(T$8, $G48*Forecast_vol!T26,Hist_expenditure!S25*Assumptions!S$29) -> 51180656.83 | U48: =IF(U$8, $G48*Forecast_vol!U26,Hist_expenditure!T25*Assumptions!T$29) -> 53930974.53 | V48: =IF(V$8, $G48*Forecast_vol!V26,Hist_expenditure!U25*Assumptions!U$29) -> 60148629.18 | W48: =IF(W$8, $G48*Forecast_vol!W26,Hist_expenditure!V25*Assumptions!V$29) -> 67597809.4 | X48: =IF(X$8, $G48*Forecast_vol!X26,Hist_expenditure!W25*Assumptions!W$29) -> 67009047.04 | Y48: =IF(Y$8, $G48*Forecast_vol!Y26,Hist_expenditure!X25*Assumptions!X$29) -> 62857567.51 | Z48: =IF(Z$8, $G48*Forecast_vol!Z26,Hist_expenditure!Y25*Assumptions!Y$29) -> 63276753.14 | AA48: =IF(AA$8, $G48*Forecast_vol!AA26,Hist_expenditure!Z25*Assumptions!Z$29) -> 64763980.7 | AC48: =SUMPRODUCT($H$7:$AA$7*$H48:$AA48) -> 325505157.8
B49: =Hist_vol!B26 -> Connections | C49: =Hist_vol!C26 -> EG1 | D49: =Hist_vol!D26 -> Embedded generation | E49: =Hist_vol!E26 -> Simple connection LV | F49: Embedded generation Simple connection LV | G49: =Unit_rates!S26 -> 0 | H49: =IF(H$8, $G49*Forecast_vol!H27,Hist_expenditure!G26*Assumptions!G$29) -> 0 | I49: =IF(I$8, $G49*Forecast_vol!I27,Hist_expenditure!H26*Assumptions!H$29) -> 0 | J49: =IF(J$8, $G49*Forecast_vol!J27,Hist_expenditure!I26*Assumptions!I$29) -> 0 | K49: =IF(K$8, $G49*Forecast_vol!K27,Hist_expenditure!J26*Assumptions!J$29) -> 0 | L49: =IF(L$8, $G49*Forecast_vol!L27,Hist_expenditure!K26*Assumptions!K$29) -> 0 | M49: =IF(M$8, $G49*Forecast_vol!M27,Hist_expenditure!L26*Assumptions!L$29) -> 0 | N49: =IF(N$8, $G49*Forecast_vol!N27,Hist_expenditure!M26*Assumptions!M$29) -> 0 | O49: =IF(O$8, $G49*Forecast_vol!O27,Hist_expenditure!N26*Assumptions!N$29) -> 0 | P49: =IF(P$8, $G49*Forecast_vol!P27,Hist_expenditure!O26*Assumptions!O$29) -> 0 | Q49: =IF(Q$8, $G49*Forecast_vol!Q27,Hist_expenditure!P26*Assumptions!P$29) -> 0 | R49: =IF(R$8, $G49*Forecast_vol!R27,Hist_expenditure!Q26*Assumptions!Q$29) -> 0 | S49: =IF(S$8, $G49*Forecast_vol!S27,Hist_expenditure!R26*Assumptions!R$29) -> 0 | T49: =IF(T$8, $G49*Forecast_vol!T27,Hist_expenditure!S26*Assumptions!S$29) -> 0 | U49: =IF(U$8, $G49*Forecast_vol!U27,Hist_expenditure!T26*Assumptions!T$29) -> 0 | V49: =IF(V$8, $G49*Forecast_vol!V27,Hist_expenditure!U26*Assumptions!U$29) -> 0 | W49: =IF(W$8, $G49*Forecast_vol!W27,Hist_expenditure!V26*Assumptions!V$29) -> 0 | X49: =IF(X$8, $G49*Forecast_vol!X27,Hist_expenditure!W26*Assumptions!W$29) -> 0 | Y49: =IF(Y$8, $G49*Forecast_vol!Y27,Hist_expenditure!X26*Assumptions!X$29) -> 0 | Z49: =IF(Z$8, $G49*Forecast_vol!Z27,Hist_expenditure!Y26*Assumptions!Y$29) -> 0 | AA49: =IF(AA$8, $G49*Forecast_vol!AA27,Hist_expenditure!Z26*Assumptions!Z$29) -> 0 | AC49: =SUMPRODUCT($H$7:$AA$7*$H49:$AA49) -> 0
B50: =Hist_vol!B27 -> Connections | C50: =Hist_vol!C27 -> EG2 | D50: =Hist_vol!D27 -> Embedded generation | E50: =Hist_vol!E27 -> Complex connection HV (small capacity) | F50: Embedded generation Complex connection HV (small capacity) | G50: =Unit_rates!S27 -> 1000056.348 | H50: =IF(H$8, $G50*Forecast_vol!H28,Hist_expenditure!G27*Assumptions!G$29) -> 1185065.369 | I50: =IF(I$8, $G50*Forecast_vol!I28,Hist_expenditure!H27*Assumptions!H$29) -> 1099163.793 | J50: =IF(J$8, $G50*Forecast_vol!J28,Hist_expenditure!I27*Assumptions!I$29) -> 1299412.06 | K50: =IF(K$8, $G50*Forecast_vol!K28,Hist_expenditure!J27*Assumptions!J$29) -> 1395377.478 | L50: =IF(L$8, $G50*Forecast_vol!L28,Hist_expenditure!K27*Assumptions!K$29) -> 916252.3883 | M50: =IF(M$8, $G50*Forecast_vol!M28,Hist_expenditure!L27*Assumptions!L$29) -> 2367458.522 | N50: =IF(N$8, $G50*Forecast_vol!N28,Hist_expenditure!M27*Assumptions!M$29) -> 3039392.429 | O50: =IF(O$8, $G50*Forecast_vol!O28,Hist_expenditure!N27*Assumptions!N$29) -> 2517224.163 | P50: =IF(P$8, $G50*Forecast_vol!P28,Hist_expenditure!O27*Assumptions!O$29) -> 5138728.405 | Q50: =IF(Q$8, $G50*Forecast_vol!Q28,Hist_expenditure!P27*Assumptions!P$29) -> 4269326.346 | R50: =IF(R$8, $G50*Forecast_vol!R28,Hist_expenditure!Q27*Assumptions!Q$29) -> 3812568.669 | S50: =IF(S$8, $G50*Forecast_vol!S28,Hist_expenditure!R27*Assumptions!R$29) -> 2564907.396 | T50: =IF(T$8, $G50*Forecast_vol!T28,Hist_expenditure!S27*Assumptions!S$29) -> 4000225.393 | U50: =IF(U$8, $G50*Forecast_vol!U28,Hist_expenditure!T27*Assumptions!T$29) -> 5980607.804 | V50: =IF(V$8, $G50*Forecast_vol!V28,Hist_expenditure!U27*Assumptions!U$29) -> 5067603.678 | W50: =IF(W$8, $G50*Forecast_vol!W28,Hist_expenditure!V27*Assumptions!V$29) -> 2041854.123 | X50: =IF(X$8, $G50*Forecast_vol!X28,Hist_expenditure!W27*Assumptions!W$29) -> 707635.028 | Y50: =IF(Y$8, $G50*Forecast_vol!Y28,Hist_expenditure!X27*Assumptions!X$29) -> 320705.2726 | Z50: =IF(Z$8, $G50*Forecast_vol!Z28,Hist_expenditure!Y27*Assumptions!Y$29) -> 455756.1073 | AA50: =IF(AA$8, $G50*Forecast_vol!AA28,Hist_expenditure!Z27*Assumptions!Z$29) -> 455754.2344 | AC50: =SUMPRODUCT($H$7:$AA$7*$H50:$AA50) -> 3981704.765
B51: =Hist_vol!B28 -> Connections | C51: =Hist_vol!C28 -> EG3 | D51: =Hist_vol!D28 -> Embedded generation | E51: =Hist_vol!E28 -> Complex connection HV (large capacity) | F51: Embedded generation Complex connection HV (large capacity) | G51: =Unit_rates!S28 -> 11314982.88 | H51: =IF(H$8, $G51*Forecast_vol!H29,Hist_expenditure!G28*Assumptions!G$29) -> 8038637.96 | I51: =IF(I$8, $G51*Forecast_vol!I29,Hist_expenditure!H28*Assumptions!H$29) -> 1964062.943 | J51: =IF(J$8, $G51*Forecast_vol!J29,Hist_expenditure!I28*Assumptions!I$29) -> 0 | K51: =IF(K$8, $G51*Forecast_vol!K29,Hist_expenditure!J28*Assumptions!J$29) -> 3253171.549 | L51: =IF(L$8, $G51*Forecast_vol!L29,Hist_expenditure!K28*Assumptions!K$29) -> 3933994.65 | M51: =IF(M$8, $G51*Forecast_vol!M29,Hist_expenditure!L28*Assumptions!L$29) -> 7821363.332 | N51: =IF(N$8, $G51*Forecast_vol!N29,Hist_expenditure!M28*Assumptions!M$29) -> 20647594.59 | O51: =IF(O$8, $G51*Forecast_vol!O29,Hist_expenditure!N28*Assumptions!N$29) -> 21246649.07 | P51: =IF(P$8, $G51*Forecast_vol!P29,Hist_expenditure!O28*Assumptions!O$29) -> 8015231.668 | Q51: =IF(Q$8, $G51*Forecast_vol!Q29,Hist_expenditure!P28*Assumptions!P$29) -> 1354780.628 | R51: =IF(R$8, $G51*Forecast_vol!R29,Hist_expenditure!Q28*Assumptions!Q$29) -> 1625272.835 | S51: =IF(S$8, $G51*Forecast_vol!S29,Hist_expenditure!R28*Assumptions!R$29) -> 4180978.34 | T51: =IF(T$8, $G51*Forecast_vol!T29,Hist_expenditure!S28*Assumptions!S$29) -> 11314982.88 | U51: =IF(U$8, $G51*Forecast_vol!U29,Hist_expenditure!T28*Assumptions!T$29) -> 16916665.5 | V51: =IF(V$8, $G51*Forecast_vol!V29,Hist_expenditure!U28*Assumptions!U$29) -> 14334154.5 | W51: =IF(W$8, $G51*Forecast_vol!W29,Hist_expenditure!V28*Assumptions!V$29) -> 5775560.666 | X51: =IF(X$8, $G51*Forecast_vol!X29,Hist_expenditure!W28*Assumptions!W$29) -> 2001606.769 | Y51: =IF(Y$8, $G51*Forecast_vol!Y29,Hist_expenditure!X28*Assumptions!X$29) -> 907142.5509 | Z51: =IF(Z$8, $G51*Forecast_vol!Z29,Hist_expenditure!Y28*Assumptions!Y$29) -> 1289145.496 | AA51: =IF(AA$8, $G51*Forecast_vol!AA29,Hist_expenditure!Z28*Assumptions!Z$29) -> 1289140.199 | AC51: =SUMPRODUCT($H$7:$AA$7*$H51:$AA51) -> 11262595.68
B54: Category | C54: Type | D54: RIN category | E54: Description | U54: =Assumptions!T$24 -> 2024/25 | V54: =Assumptions!U$24 -> 2025/26 | W54: =Assumptions!V$24 -> 2026/27 | X54: =Assumptions!W$24 -> 2027/28 | Y54: =Assumptions!X$24 -> 2028/29 | Z54: =Assumptions!Y$24 -> 2029/30 | AA54: =Assumptions!Z$24 -> 2030/31 | AC54: 2026-31 Total
B56: Gifted Assets | G56: GA as % of gross capex (FY23)
B57: Connections | C57: R1 | D57: Residential | E57: Simple connection LV | F57: ResidentialSimple connection LV | G57: 0 | U57: =$G57*U16 -> 0 | V57: 0 | W57: 0 | X57: 0 | Y57: 0 | Z57: 0 | AA57: 0 | AC57: =SUMPRODUCT($H$7:$AA$7*$H57:$AA57) -> 0
B58: Connections | C58: R2 | D58: Residential | E58: Complex connection LV | F58: ResidentialComplex connection LV | G58: 0.001064355403 | U58: 35327.96323 | V58: 39400.89306 | W58: 44280.54464 | X58: 43894.87063 | Y58: 41175.40714 | Z58: 41449.99841 | AA58: 42424.22001 | AC58: =SUMPRODUCT($H$7:$AA$7*$H58:$AA58) -> 213225.0408
B59: Connections | C59: R3 | D59: Residential | E59: Complex connection HV | F59: ResidentialComplex connection HV | G59: 0.003657777886 | U59: 33759.88422 | V59: 37652.03161 | W59: 42315.0933 | X59: 41946.53796 | Y59: 39347.7815 | Z59: 39610.18466 | AA59: 40541.16413 | AC59: =SUMPRODUCT($H$7:$AA$7*$H59:$AA59) -> 203760.7616
B60: Connections | C60: CI1 | D60: Commercial/Industrial | E60: Simple connection LV | F60: Commercial/IndustrialSimple connection LV | G60: 0 | U60: 0 | V60: 0 | W60: 0 | X60: 0 | Y60: 0 | Z60: 0 | AA60: 0 | AC60: =SUMPRODUCT($H$7:$AA$7*$H60:$AA60) -> 0
B61: Connections | C61: CI2 | D61: Commercial/Industrial | E61: Complex connection HV (customer connected at LV, minor HV works) | F61: Commercial/IndustrialComplex connection HV (customer connected at LV, minor HV works) | G61: 0.03778106313 | U61: 809324.5919 | V61: 676376.5598 | W61: 672822.8744 | X61: 687457.395 | Y61: 690416.5406 | Z61: 686820.2028 | AA61: 686591.8453 | AC61: =SUMPRODUCT($H$7:$AA$7*$H61:$AA61) -> 3424108.858
B62: Connections | C62: CI3 | D62: Commercial/Industrial | E62: Complex connection HV (customer connected at LV, upstream asset works) | F62: Commercial/IndustrialComplex connection HV (customer connected at LV, upstream asset works) | G62: 0.05906230709 | U62: 2874498.205 | V62: 2402303.385 | W62: 2389681.673 | X62: 2441659.463 | Y62: 2452169.533 | Z62: 2439396.331 | AA62: 2438585.268 | AC62: =SUMPRODUCT($H$7:$AA$7*$H62:$AA62) -> 12161492.27
B63: Connections | C63: CI4 | D63: Commercial/Industrial | E63: Complex connection HV (customer connected at HV) | F63: Commercial/IndustrialComplex connection HV (customer connected at HV) | G63: 0 | U63: 0 | V63: 0 | W63: 0 | X63: 0 | Y63: 0 | Z63: 0 | AA63: 0 | AC63: =SUMPRODUCT($H$7:$AA$7*$H63:$AA63) -> 0
B64: Connections | C64: CI5 | D64: Commercial/Industrial | E64: Complex connection sub-transmission | F64: Commercial/IndustrialComplex connection sub-transmission | G64: 0 | U64: 0 | V64: 0 | W64: 0 | X64: 0 | Y64: 0 | Z64: 0 | AA64: 0 | AC64: =SUMPRODUCT($H$7:$AA$7*$H64:$AA64) -> 0
B65: Connections | C65: S1 | D65: Subdivision | E65: Complex connection LV | F65: SubdivisionComplex connection LV | G65: 0 | U65: 0 | V65: 0 | W65: 0 | X65: 0 | Y65: 0 | Z65: 0 | AA65: 0 | AC65: =SUMPRODUCT($H$7:$AA$7*$H65:$AA65) -> 0
B66: Connections | C66: S2 | D66: Subdivision | E66: Complex connection HV (no upstream asset works) | F66: SubdivisionComplex connection HV (no upstream asset works) | G66: 0 | U66: 0 | V66: 0 | W66: 0 | X66: 0 | Y66: 0 | Z66: 0 | AA66: 0 | AC66: =SUMPRODUCT($H$7:$AA$7*$H66:$AA66) -> 0
B67: Connections | C67: S3 | D67: Subdivision | E67: Complex connection HV (with upstream asset works) | F67: SubdivisionComplex connection HV (with upstream asset works) | G67: 1.137099417 | U67: 61324879.67 | V67: 68394971.15 | W67: 76865429.63 | X67: 76195948.3 | Y67: 71475303.34 | Z67: 71951959.08 | AA67: 73643084.67 | AC67: =SUMPRODUCT($H$7:$AA$7*$H67:$AA67) -> 370131725
B68: Connections | C68: EG1 | D68: Embedded generation | E68: Simple connection LV | F68: Embedded generationSimple connection LV | G68: 0 | U68: 0 | V68: 0 | W68: 0 | X68: 0 | Y68: 0 | Z68: 0 | AA68: 0 | AC68: =SUMPRODUCT($H$7:$AA$7*$H68:$AA68) -> 0
B69: Connections | C69: EG2 | D69: Embedded generation | E69: Complex connection HV (small capacity) | F69: Embedded generationComplex connection HV (small capacity) | G69: 0 | U69: 0 | V69: 0 | W69: 0 | X69: 0 | Y69: 0 | Z69: 0 | AA69: 0 | AC69: =SUMPRODUCT($H$7:$AA$7*$H69:$AA69) -> 0
B70: Connections | C70: EG3 | D70: Embedded generation | E70: Complex connection HV (large capacity) | F70: Embedded generationComplex connection HV (large capacity) | G70: 0 | U70: 0 | V70: 0 | W70: 0 | X70: 0 | Y70: 0 | Z70: 0 | AA70: 0 | AC70: =SUMPRODUCT($H$7:$AA$7*$H70:$AA70) -> 0
U71: =SUM(U55:U70) -> 65077790.32 | V71: 71550704.02 | W71: 80014529.82 | X71: 79410906.56 | Y71: 74698412.6 | Z71: 75159235.8 | AA71: 76851227.17 | AC71: 386134311.9

Sheet Forecast_contrib
A1: =Assumptions!$A$1 -> Powercor
A2: =Assumptions!$A$2 -> Connections
A3: Forecast contributions
B7: =Assumptions!B17 -> 2026/27 - 2030/31 reg period | H7: =Assumptions!G17 -> FALSE | I7: =Assumptions!H17 -> FALSE | J7: =Assumptions!I17 -> FALSE | K7: =Assumptions!J17 -> FALSE | L7: =Assumptions!K17 -> FALSE | M7: =Assumptions!L17 -> FALSE | N7: =Assumptions!M17 -> FALSE | O7: =Assumptions!N17 -> FALSE | P7: =Assumptions!O17 -> FALSE | Q7: =Assumptions!P17 -> FALSE | R7: =Assumptions!Q17 -> FALSE | S7: =Assumptions!R17 -> FALSE | T7: =Assumptions!S17 -> FALSE | U7: =Assumptions!T17 -> FALSE | V7: =Assumptions!U17 -> FALSE | W7: =Assumptions!V17 -> TRUE | X7: =Assumptions!W17 -> TRUE | Y7: =Assumptions!X17 -> TRUE | Z7: =Assumptions!Y17 -> TRUE | AA7: =Assumptions!Z17 -> TRUE
B8: =Assumptions!B18 -> Forecast period | H8: =Assumptions!G18 -> FALSE | I8: =Assumptions!H18 -> FALSE | J8: =Assumptions!I18 -> FALSE | K8: =Assumptions!J18 -> FALSE | L8: =Assumptions!K18 -> FALSE | M8: =Assumptions!L18 -> FALSE | N8: =Assumptions!M18 -> FALSE | O8: =Assumptions!N18 -> FALSE | P8: =Assumptions!O18 -> FALSE | Q8: =Assumptions!P18 -> FALSE | R8: =Assumptions!Q18 -> FALSE | S8: =Assumptions!R18 -> FALSE | T8: =Assumptions!S18 -> FALSE | U8: =Assumptions!T18 -> TRUE | V8: =Assumptions!U18 -> TRUE | W8: =Assumptions!V18 -> TRUE | X8: =Assumptions!W18 -> TRUE | Y8: =Assumptions!X18 -> TRUE | Z8: =Assumptions!Y18 -> TRUE | AA8: =Assumptions!Z18 -> TRUE
B9: =Assumptions!B19 -> Fin year end | H9: =Assumptions!G19 -> 2012 | I9: =Assumptions!H19 -> 2013 | J9: =Assumptions!I19 -> 2014 | K9: =Assumptions!J19 -> 2015 | L9: =Assumptions!K19 -> 2016 | M9: =Assumptions!L19 -> 2017 | N9: =Assumptions!M19 -> 2018 | O9: =Assumptions!N19 -> 2019 | P9: =Assumptions!O19 -> 2020 | Q9: =Assumptions!P19 -> 2021 | R9: =Assumptions!Q19 -> 2022 | S9: =Assumptions!R19 -> 2023 | T9: =Assumptions!S19 -> 2024 | U9: =Assumptions!T19 -> 2025 | V9: =Assumptions!U19 -> 2026 | W9: =Assumptions!V19 -> 2027 | X9: =Assumptions!W19 -> 2028 | Y9: =Assumptions!X19 -> 2029 | Z9: =Assumptions!Y19 -> 2030 | AA9: =Assumptions!Z19 -> 2031
B10: =Assumptions!B20 -> Basis | H10: =Assumptions!G20 -> Actual | I10: =Assumptions!H20 -> Actual | J10: =Assumptions!I20 -> Actual | K10: =Assumptions!J20 -> Actual | L10: =Assumptions!K20 -> Actual | M10: =Assumptions!L20 -> Actual | N10: =Assumptions!M20 -> Actual | O10: =Assumptions!N20 -> Actual | P10: =Assumptions!O20 -> Actual | Q10: =Assumptions!P20 -> Actual | R10: =Assumptions!Q20 -> Actual | S10: =Assumptions!R20 -> Actual | T10: =Assumptions!S20 -> Actual | U10: =Assumptions!T20 -> Forecast | V10: =Assumptions!U20 -> Forecast | W10: =Assumptions!V20 -> Forecast | X10: =Assumptions!W20 -> Forecast | Y10: =Assumptions!X20 -> Forecast | Z10: =Assumptions!Y20 -> Forecast | AA10: =Assumptions!Z20 -> Forecast
B13: =Hist_vol!B$13 -> Category | C13: Type | D13: =Hist_vol!D$13 -> RIN category | E13: =Hist_vol!E$13 -> Description | H13: =Assumptions!G$24 -> 2011/12 | I13: =Assumptions!H$24 -> 2012/13 | J13: =Assumptions!I$24 -> 2013/14 | K13: =Assumptions!J$24 -> 2014/15 | L13: =Assumptions!K$24 -> 2015/16 | M13: =Assumptions!L$24 -> 2016/17 | N13: =Assumptions!M$24 -> 2017/18 | O13: =Assumptions!N$24 -> 2018/19 | P13: =Assumptions!O$24 -> 2019/20 | Q13: =Assumptions!P$24 -> 2020/21 | R13: =Assumptions!Q$24 -> 2021/22 | S13: =Assumptions!R$24 -> 2022/23 | T13: =Assumptions!S$24 -> 2023/24 | U13: =Assumptions!T$24 -> 2024/25 | V13: =Assumptions!U$24 -> 2025/26 | W13: =Assumptions!V$24 -> 2026/27 | X13: =Assumptions!W$24 -> 2027/28 | Y13: =Assumptions!X$24 -> 2028/29 | Z13: =Assumptions!Y$24 -> 2029/30 | AA13: =Assumptions!Z$24 -> 2030/31 | AC13: 2026-31 Total
B15: Forecast type 1 contributions (June 2026 $)
B16: =Hist_vol!B15 -> Connections | C16: =Hist_vol!C15 -> R1 | D16: =Hist_vol!D15 -> Residential | E16: =Hist_vol!E15 -> Simple connection LV | F16: =D16&" "&E16 -> Residential Simple connection LV | H16: =IF(H$8,CC_ratio!G15*Forecast_spend!H16,Hist_contributions!G15*Assumptions!G$29) -> 2801735.626 | I16: =IF(I$8,CC_ratio!H15*Forecast_spend!I16,Hist_contributions!H15*Assumptions!H$29) -> 2089769.66 | J16: =IF(J$8,CC_ratio!I15*Forecast_spend!J16,Hist_contributions!I15*Assumptions!I$29) -> 1833558.397 | K16: =IF(K$8,CC_ratio!J15*Forecast_spend!K16,Hist_contributions!J15*Assumptions!J$29) -> 2023238.03 | L16: =IF(L$8,CC_ratio!K15*Forecast_spend!L16,Hist_contributions!K15*Assumptions!K$29) -> 1115048.921 | M16: =IF(M$8,CC_ratio!L15*Forecast_spend!M16,Hist_contributions!L15*Assumptions!L$29) -> 0 | N16: =IF(N$8,CC_ratio!M15*Forecast_spend!N16,Hist_contributions!M15*Assumptions!M$29) -> 0 | O16: =IF(O$8,CC_ratio!N15*Forecast_spend!O16,Hist_contributions!N15*Assumptions!N$29) -> 0 | P16: =IF(P$8,CC_ratio!O15*Forecast_spend!P16,Hist_contributions!O15*Assumptions!O$29) -> 0 | Q16: =IF(Q$8,CC_ratio!P15*Forecast_spend!Q16,Hist_contributions!P15*Assumptions!P$29) -> 0 | R16: =IF(R$8,CC_ratio!Q15*Forecast_spend!R16,Hist_contributions!Q15*Assumptions!Q$29) -> 0 | S16: =IF(S$8,CC_ratio!R15*Forecast_spend!S16,Hist_contributions!R15*Assumptions!R$29) -> 0 | T16: =IF(T$8,CC_ratio!S15*Forecast_spend!T16,Hist_contributions!S15*Assumptions!S$29) -> 0 | U16: =IF(U$8,CC_ratio!T15*Forecast_spend!U16,Hist_contributions!T15*Assumptions!T$29) -> 0 | V16: =IF(V$8,CC_ratio!U15*Forecast_spend!V16,Hist_contributions!U15*Assumptions!U$29) -> 0 | W16: =IF(W$8,CC_ratio!V15*Forecast_spend!W16,Hist_contributions!V15*Assumptions!V$29) -> 0 | X16: =IF(X$8,CC_ratio!W15*Forecast_spend!X16,Hist_contributions!W15*Assumptions!W$29) -> 0 | Y16: =IF(Y$8,CC_ratio!X15*Forecast_spend!Y16,Hist_contributions!X15*Assumptions!X$29) -> 0 | Z16: =IF(Z$8,CC_ratio!Y15*Forecast_spend!Z16,Hist_contributions!Y15*Assumptions!Y$29) -> 0 | AA16: =IF(AA$8,CC_ratio!Z15*Forecast_spend!AA16,Hist_contributions!Z15*Assumptions!Z$29) -> 0 | AC16: =SUMPRODUCT($H$7:$AA$7*$H16:$AA16) -> 0
B17: =Hist_vol!B16 -> Connections | C17: =Hist_vol!C16 -> R2 | D17: =Hist_vol!D16 -> Residential | E17: =Hist_vol!E16 -> Complex connection LV | F17: =D17&" "&E17 -> Residential Complex connection LV | H17: =IF(H$8,CC_ratio!G16*Forecast_spend!H17,Hist_contributions!G16*Assumptions!G$29) -> 10758784.53 | I17: =IF(I$8,CC_ratio!H16*Forecast_spend!I17,Hist_contributions!H16*Assumptions!H$29) -> 9286654.457 | J17: =IF(J$8,CC_ratio!I16*Forecast_spend!J17,Hist_contributions!I16*Assumptions!I$29) -> 8590589.225 | K17: =IF(K$8,CC_ratio!J16*Forecast_spend!K17,Hist_contributions!J16*Assumptions!J$29) -> 8743470.1 | L17: =IF(L$8,CC_ratio!K16*Forecast_spend!L17,Hist_contributions!K16*Assumptions!K$29) -> 10241807.29 | M17: =IF(M$8,CC_ratio!L16*Forecast_spend!M17,Hist_contributions!L16*Assumptions!L$29) -> 13428381.69 | N17: =IF(N$8,CC_ratio!M16*Forecast_spend!N17,Hist_contributions!M16*Assumptions!M$29) -> 16947000.18 | O17: =IF(O$8,CC_ratio!N16*Forecast_spend!O17,Hist_contributions!N16*Assumptions!N$29) -> 16165331.37 | P17: =IF(P$8,CC_ratio!O16*Forecast_spend!P17,Hist_contributions!O16*Assumptions!O$29) -> 16465277.85 | Q17: =IF(Q$8,CC_ratio!P16*Forecast_spend!Q17,Hist_contributions!P16*Assumptions!P$29) -> 20413478.62 | R17: =IF(R$8,CC_ratio!Q16*Forecast_spend!R17,Hist_contributions!Q16*Assumptions!Q$29) -> 21339969.27 | S17: =IF(S$8,CC_ratio!R16*Forecast_spend!S17,Hist_contributions!R16*Assumptions!R$29) -> 19002393.67 | T17: =IF(T$8,CC_ratio!S16*Forecast_spend!T17,Hist_contributions!S16*Assumptions!S$29) -> 24203638.7 | U17: =IF(U$8,CC_ratio!T16*Forecast_spend!U17,Hist_contributions!T16*Assumptions!T$29) -> 17694736.21 | V17: =IF(V$8,CC_ratio!U16*Forecast_spend!V17,Hist_contributions!U16*Assumptions!U$29) -> 19734746.79 | W17: =IF(W$8,CC_ratio!V16*Forecast_spend!W17,Hist_contributions!V16*Assumptions!V$29) -> 22178820.54 | X17: =IF(X$8,CC_ratio!W16*Forecast_spend!X17,Hist_contributions!W16*Assumptions!W$29) -> 21985647.79 | Y17: =IF(Y$8,CC_ratio!X16*Forecast_spend!Y17,Hist_contributions!X16*Assumptions!X$29) -> 20623548.63 | Z17: =IF(Z$8,CC_ratio!Y16*Forecast_spend!Z17,Hist_contributions!Y16*Assumptions!Y$29) -> 20761083.31 | AA17: =IF(AA$8,CC_ratio!Z16*Forecast_spend!AA17,Hist_contributions!Z16*Assumptions!Z$29) -> 21249042.21 | AC17: =SUMPRODUCT($H$7:$AA$7*$H17:$AA17) -> 106798142.5
B18: =Hist_vol!B17 -> Connections | C18: =Hist_vol!C17 -> R3 | D18: =Hist_vol!D17 -> Residential | E18: =Hist_vol!E17 -> Complex connection HV | F18: Residential Complex connection HV | H18: =IF(H$8,CC_ratio!G17*Forecast_spend!H18,Hist_contributions!G17*Assumptions!G$29) -> 5343736.432 | I18: =IF(I$8,CC_ratio!H17*Forecast_spend!I18,Hist_contributions!H17*Assumptions!H$29) -> 4635503.199 | J18: =IF(J$8,CC_ratio!I17*Forecast_spend!J18,Hist_contributions!I17*Assumptions!I$29) -> 3859504.68 | K18: =IF(K$8,CC_ratio!J17*Forecast_spend!K18,Hist_contributions!J17*Assumptions!J$29) -> 3411334.739 | L18: =IF(L$8,CC_ratio!K17*Forecast_spend!L18,Hist_contributions!K17*Assumptions!K$29) -> 3295325.073 | M18: =IF(M$8,CC_ratio!L17*Forecast_spend!M18,Hist_contributions!L17*Assumptions!L$29) -> 4239796.657 | N18: =IF(N$8,CC_ratio!M17*Forecast_spend!N18,Hist_contributions!M17*Assumptions!M$29) -> 5788554.557 | O18: =IF(O$8,CC_ratio!N17*Forecast_spend!O18,Hist_contributions!N17*Assumptions!N$29) -> 5226535.402 | P18: =IF(P$8,CC_ratio!O17*Forecast_spend!P18,Hist_contributions!O17*Assumptions!O$29) -> 3949317.875 | Q18: =IF(Q$8,CC_ratio!P17*Forecast_spend!Q18,Hist_contributions!P17*Assumptions!P$29) -> 4206697.601 | R18: =IF(R$8,CC_ratio!Q17*Forecast_spend!R18,Hist_contributions!Q17*Assumptions!Q$29) -> 5573555.461 | S18: =IF(S$8,CC_ratio!R17*Forecast_spend!S18,Hist_contributions!R17*Assumptions!R$29) -> 5375683.322 | T18: =IF(T$8,CC_ratio!S17*Forecast_spend!T18,Hist_contributions!S17*Assumptions!S$29) -> 4676014.888 | U18: =IF(U$8,CC_ratio!T17*Forecast_spend!U18,Hist_contributions!T17*Assumptions!T$29) -> 5299640.012 | V18: =IF(V$8,CC_ratio!U17*Forecast_spend!V18,Hist_contributions!U17*Assumptions!U$29) -> 5910630.852 | W18: =IF(W$8,CC_ratio!V17*Forecast_spend!W18,Hist_contributions!V17*Assumptions!V$29) -> 6642640.126 | X18: =IF(X$8,CC_ratio!W17*Forecast_spend!X18,Hist_contributions!W17*Assumptions!W$29) -> 6584784.161 | Y18: =IF(Y$8,CC_ratio!X17*Forecast_spend!Y18,Hist_contributions!X17*Assumptions!X$29) -> 6176830.342 | Z18: =IF(Z$8,CC_ratio!Y17*Forecast_spend!Z18,Hist_contributions!Y17*Assumptions!Y$29) -> 6218022.495 | AA18: =IF(AA$8,CC_ratio!Z17*Forecast_spend!AA18,Hist_contributions!Z17*Assumptions!Z$29) -> 6364168.022 | AC18: =SUMPRODUCT($H$7:$AA$7*$H18:$AA18) -> 31986445.15
B19: =Hist_vol!B18 -> Connections | C19: =Hist_vol!C18 -> CI1 | D19: =Hist_vol!D18 -> Commercial/Industrial | E19: =Hist_vol!E18 -> Simple connection LV | F19: Commercial/Industrial Simple connection LV | H19: =IF(H$8,CC_ratio!G18*Forecast_spend!H19,Hist_contributions!G18*Assumptions!G$29) -> 387102.6457 | I19: =IF(I$8,CC_ratio!H18*Forecast_spend!I19,Hist_contributions!H18*Assumptions!H$29) -> 329084.3371 | J19: =IF(J$8,CC_ratio!I18*Forecast_spend!J19,Hist_contributions!I18*Assumptions!I$29) -> 302397.8661 | K19: =IF(K$8,CC_ratio!J18*Forecast_spend!K19,Hist_contributions!J18*Assumptions!J$29) -> 329684.1118 | L19: =IF(L$8,CC_ratio!K18*Forecast_spend!L19,Hist_contributions!K18*Assumptions!K$29) -> 181519.4977 | M19: =IF(M$8,CC_ratio!L18*Forecast_spend!M19,Hist_contributions!L18*Assumptions!L$29) -> 0 | N19: =IF(N$8,CC_ratio!M18*Forecast_spend!N19,Hist_contributions!M18*Assumptions!M$29) -> 0 | O19: =IF(O$8,CC_ratio!N18*Forecast_spend!O19,Hist_contributions!N18*Assumptions!N$29) -> 0 | P19: =IF(P$8,CC_ratio!O18*Forecast_spend!P19,Hist_contributions!O18*Assumptions!O$29) -> 0 | Q19: =IF(Q$8,CC_ratio!P18*Forecast_spend!Q19,Hist_contributions!P18*Assumptions!P$29) -> 0 | R19: =IF(R$8,CC_ratio!Q18*Forecast_spend!R19,Hist_contributions!Q18*Assumptions!Q$29) -> 0 | S19: =IF(S$8,CC_ratio!R18*Forecast_spend!S19,Hist_contributions!R18*Assumptions!R$29) -> 0 | T19: =IF(T$8,CC_ratio!S18*Forecast_spend!T19,Hist_contributions!S18*Assumptions!S$29) -> 0 | U19: =IF(U$8,CC_ratio!T18*Forecast_spend!U19,Hist_contributions!T18*Assumptions!T$29) -> 0 | V19: =IF(V$8,CC_ratio!U18*Forecast_spend!V19,Hist_contributions!U18*Assumptions!U$29) -> 0 | W19: =IF(W$8,CC_ratio!V18*Forecast_spend!W19,Hist_contributions!V18*Assumptions!V$29) -> 0 | X19: =IF(X$8,CC_ratio!W18*Forecast_spend!X19,Hist_contributions!W18*Assumptions!W$29) -> 0 | Y19: =IF(Y$8,CC_ratio!X18*Forecast_spend!Y19,Hist_contributions!X18*Assumptions!X$29) -> 0 | Z19: =IF(Z$8,CC_ratio!Y18*Forecast_spend!Z19,Hist_contributions!Y18*Assumptions!Y$29) -> 0 | AA19: =IF(AA$8,CC_ratio!Z18*Forecast_spend!AA19,Hist_contributions!Z18*Assumptions!Z$29) -> 0 | AC19: =SUMPRODUCT($H$7:$AA$7*$H19:$AA19) -> 0
B20: =Hist_vol!B19 -> Connections | C20: =Hist_vol!C19 -> CI2 | D20: =Hist_vol!D19 -> Commercial/Industrial | E20: =Hist_vol!E19 -> Complex connection HV (customer connected at LV, minor HV works) | F20: Commercial/Industrial Complex connection HV (customer connected at LV, minor HV works) | H20: =IF(H$8,CC_ratio!G19*Forecast_spend!H20,Hist_contributions!G19*Assumptions!G$29) -> 7320180.634 | I20: =IF(I$8,CC_ratio!H19*Forecast_spend!I20,Hist_contributions!H19*Assumptions!H$29) -> 17159293.9 | J20: =IF(J$8,CC_ratio!I19*Forecast_spend!J20,Hist_contributions!I19*Assumptions!I$29) -> 19776809.01 | K20: =IF(K$8,CC_ratio!J19*Forecast_spend!K20,Hist_contributions!J19*Assumptions!J$29) -> 32821677.14 | L20: =IF(L$8,CC_ratio!K19*Forecast_spend!L20,Hist_contributions!K19*Assumptions!K$29) -> 37636953.53 | M20: =IF(M$8,CC_ratio!L19*Forecast_spend!M20,Hist_contributions!L19*Assumptions!L$29) -> 31581470.63 | N20: =IF(N$8,CC_ratio!M19*Forecast_spend!N20,Hist_contributions!M19*Assumptions!M$29) -> 32882843.43 | O20: =IF(O$8,CC_ratio!N19*Forecast_spend!O20,Hist_contributions!N19*Assumptions!N$29) -> 46219875.84 | P20: =IF(P$8,CC_ratio!O19*Forecast_spend!P20,Hist_contributions!O19*Assumptions!O$29) -> 52348451.03 | Q20: =IF(Q$8,CC_ratio!P19*Forecast_spend!Q20,Hist_contributions!P19*Assumptions!P$29) -> 28570306.34 | R20: =IF(R$8,CC_ratio!Q19*Forecast_spend!R20,Hist_contributions!Q19*Assumptions!Q$29) -> 22174240.65 | S20: =IF(S$8,CC_ratio!R19*Forecast_spend!S20,Hist_contributions!R19*Assumptions!R$29) -> 25050563.39 | T20: =IF(T$8,CC_ratio!S19*Forecast_spend!T20,Hist_contributions!S19*Assumptions!S$29) -> 21122081.52 | U20: =IF(U$8,CC_ratio!T19*Forecast_spend!U20,Hist_contributions!T19*Assumptions!T$29) -> 21421435.1 | V20: =IF(V$8,CC_ratio!U19*Forecast_spend!V20,Hist_contributions!U19*Assumptions!U$29) -> 17902528.51 | W20: =IF(W$8,CC_ratio!V19*Forecast_spend!W20,Hist_contributions!V19*Assumptions!V$29) -> 17808468.55 | X20: =IF(X$8,CC_ratio!W19*Forecast_spend!X20,Hist_contributions!W19*Assumptions!W$29) -> 18195819.23 | Y20: =IF(Y$8,CC_ratio!X19*Forecast_spend!Y20,Hist_contributions!X19*Assumptions!X$29) -> 18274142.74 | Z20: =IF(Z$8,CC_ratio!Y19*Forecast_spend!Z20,Hist_contributions!Y19*Assumptions!Y$29) -> 18178953.85 | AA20: =IF(AA$8,CC_ratio!Z19*Forecast_spend!AA20,Hist_contributions!Z19*Assumptions!Z$29) -> 18172909.61 | AC20: =SUMPRODUCT($H$7:$AA$7*$H20:$AA20) -> 90630293.98
B21: =Hist_vol!B20 -> Connections | C21: =Hist_vol!C20 -> CI3 | D21: =Hist_vol!D20 -> Commercial/Industrial | E21: =Hist_vol!E20 -> Complex connection HV (customer connected at LV, upstream asset works) | F21: Commercial/Industrial Complex connection HV (customer connected at LV, upstream asset works) | H21: =IF(H$8,CC_ratio!G20*Forecast_spend!H21,Hist_contributions!G20*Assumptions!G$29) -> 17017705.35 | I21: =IF(I$8,CC_ratio!H20*Forecast_spend!I21,Hist_contributions!H20*Assumptions!H$29) -> 13451379.23 | J21: =IF(J$8,CC_ratio!I20*Forecast_spend!J21,Hist_contributions!I20*Assumptions!I$29) -> 11870706.59 | K21: =IF(K$8,CC_ratio!J20*Forecast_spend!K21,Hist_contributions!J20*Assumptions!J$29) -> 11496600.02 | L21: =IF(L$8,CC_ratio!K20*Forecast_spend!L21,Hist_contributions!K20*Assumptions!K$29) -> 14152214.6 | M21: =IF(M$8,CC_ratio!L20*Forecast_spend!M21,Hist_contributions!L20*Assumptions!L$29) -> 21141795.13 | N21: =IF(N$8,CC_ratio!M20*Forecast_spend!N21,Hist_contributions!M20*Assumptions!M$29) -> 25738578.35 | O21: =IF(O$8,CC_ratio!N20*Forecast_spend!O21,Hist_contributions!N20*Assumptions!N$29) -> 22143606.01 | P21: =IF(P$8,CC_ratio!O20*Forecast_spend!P21,Hist_contributions!O20*Assumptions!O$29) -> 13667719.2 | Q21: =IF(Q$8,CC_ratio!P20*Forecast_spend!Q21,Hist_contributions!P20*Assumptions!P$29) -> 11058426.43 | R21: =IF(R$8,CC_ratio!Q20*Forecast_spend!R21,Hist_contributions!Q20*Assumptions!Q$29) -> 11623625.78 | S21: =IF(S$8,CC_ratio!R20*Forecast_spend!S21,Hist_contributions!R20*Assumptions!R$29) -> 16584199.91 | T21: =IF(T$8,CC_ratio!S20*Forecast_spend!T21,Hist_contributions!S20*Assumptions!S$29) -> 18624478.51 | U21: =IF(U$8,CC_ratio!T20*Forecast_spend!U21,Hist_contributions!T20*Assumptions!T$29) -> 16636573.43 | V21: =IF(V$8,CC_ratio!U20*Forecast_spend!V21,Hist_contributions!U20*Assumptions!U$29) -> 13903677.73 | W21: =IF(W$8,CC_ratio!V20*Forecast_spend!W21,Hist_contributions!V20*Assumptions!V$29) -> 13830627.75 | X21: =IF(X$8,CC_ratio!W20*Forecast_spend!X21,Hist_contributions!W20*Assumptions!W$29) -> 14131456.71 | Y21: =IF(Y$8,CC_ratio!X20*Forecast_spend!Y21,Hist_contributions!X20*Assumptions!X$29) -> 14192285.26 | Z21: =IF(Z$8,CC_ratio!Y20*Forecast_spend!Z21,Hist_contributions!Y20*Assumptions!Y$29) -> 14118358.51 | AA21: =IF(AA$8,CC_ratio!Z20*Forecast_spend!AA21,Hist_contributions!Z20*Assumptions!Z$29) -> 14113664.36 | AC21: =SUMPRODUCT($H$7:$AA$7*$H21:$AA21) -> 70386392.58
B22: =Hist_vol!B21 -> Connections | C22: =Hist_vol!C21 -> CI4 | D22: =Hist_vol!D21 -> Commercial/Industrial | E22: =Hist_vol!E21 -> Complex connection HV (customer connected at HV) | F22: Commercial/Industrial Complex connection HV (customer connected at HV) | H22: =IF(H$8,CC_ratio!G21*Forecast_spend!H22,Hist_contributions!G21*Assumptions!G$29) -> 1834040.776 | I22: =IF(I$8,CC_ratio!H21*Forecast_spend!I22,Hist_contributions!H21*Assumptions!H$29) -> 1657438.387 | J22: =IF(J$8,CC_ratio!I21*Forecast_spend!J22,Hist_contributions!I21*Assumptions!I$29) -> 1540139.151 | K22: =IF(K$8,CC_ratio!J21*Forecast_spend!K22,Hist_contributions!J21*Assumptions!J$29) -> 839933.9756 | L22: =IF(L$8,CC_ratio!K21*Forecast_spend!L22,Hist_contributions!K21*Assumptions!K$29) -> 833290.6639 | M22: =IF(M$8,CC_ratio!L21*Forecast_spend!M22,Hist_contributions!L21*Assumptions!L$29) -> 1356842.785 | N22: =IF(N$8,CC_ratio!M21*Forecast_spend!N22,Hist_contributions!M21*Assumptions!M$29) -> 1377443.191 | O22: =IF(O$8,CC_ratio!N21*Forecast_spend!O22,Hist_contributions!N21*Assumptions!N$29) -> 1213117.596 | P22: =IF(P$8,CC_ratio!O21*Forecast_spend!P22,Hist_contributions!O21*Assumptions!O$29) -> 2551634.122 | Q22: =IF(Q$8,CC_ratio!P21*Forecast_spend!Q22,Hist_contributions!P21*Assumptions!P$29) -> 11617042.42 | R22: =IF(R$8,CC_ratio!Q21*Forecast_spend!R22,Hist_contributions!Q21*Assumptions!Q$29) -> 12954461.16 | S22: =IF(S$8,CC_ratio!R21*Forecast_spend!S22,Hist_contributions!R21*Assumptions!R$29) -> 17547321.27 | T22: =IF(T$8,CC_ratio!S21*Forecast_spend!T22,Hist_contributions!S21*Assumptions!S$29) -> 9312397.844 | U22: =IF(U$8,CC_ratio!T21*Forecast_spend!U22,Hist_contributions!T21*Assumptions!T$29) -> 10643017.75 | V22: =IF(V$8,CC_ratio!U21*Forecast_spend!V22,Hist_contributions!U21*Assumptions!U$29) -> 8894685.526 | W22: =IF(W$8,CC_ratio!V21*Forecast_spend!W22,Hist_contributions!V21*Assumptions!V$29) -> 8847952.81 | X22: =IF(X$8,CC_ratio!W21*Forecast_spend!X22,Hist_contributions!W21*Assumptions!W$29) -> 9040403.977 | Y22: =IF(Y$8,CC_ratio!X21*Forecast_spend!Y22,Hist_contributions!X21*Assumptions!X$29) -> 9079318.201 | Z22: =IF(Z$8,CC_ratio!Y21*Forecast_spend!Z22,Hist_contributions!Y21*Assumptions!Y$29) -> 9032024.586 | AA22: =IF(AA$8,CC_ratio!Z21*Forecast_spend!AA22,Hist_contributions!Z21*Assumptions!Z$29) -> 9029021.572 | AC22: =SUMPRODUCT($H$7:$AA$7*$H22:$AA22) -> 45028721.15
B23: =Hist_vol!B22 -> Connections | C23: =Hist_vol!C22 -> CI5 | D23: =Hist_vol!D22 -> Commercial/Industrial | E23: =Hist_vol!E22 -> Complex connection sub-transmission | F23: Commercial/Industrial Complex connection sub-transmission | H23: =IF(H$8,CC_ratio!G22*Forecast_spend!H23,Hist_contributions!G22*Assumptions!G$29) -> 0 | I23: =IF(I$8,CC_ratio!H22*Forecast_spend!I23,Hist_contributions!H22*Assumptions!H$29) -> 0 | J23: =IF(J$8,CC_ratio!I22*Forecast_spend!J23,Hist_contributions!I22*Assumptions!I$29) -> 0 | K23: =IF(K$8,CC_ratio!J22*Forecast_spend!K23,Hist_contributions!J22*Assumptions!J$29) -> 0 | L23: =IF(L$8,CC_ratio!K22*Forecast_spend!L23,Hist_contributions!K22*Assumptions!K$29) -> 0 | M23: =IF(M$8,CC_ratio!L22*Forecast_spend!M23,Hist_contributions!L22*Assumptions!L$29) -> 3533234.662 | N23: =IF(N$8,CC_ratio!M22*Forecast_spend!N23,Hist_contributions!M22*Assumptions!M$29) -> 3466208.53 | O23: =IF(O$8,CC_ratio!N22*Forecast_spend!O23,Hist_contributions!N22*Assumptions!N$29) -> 0 | P23: =IF(P$8,CC_ratio!O22*Forecast_spend!P23,Hist_contributions!O22*Assumptions!O$29) -> 0 | Q23: =IF(Q$8,CC_ratio!P22*Forecast_spend!Q23,Hist_contributions!P22*Assumptions!P$29) -> 0 | R23: =IF(R$8,CC_ratio!Q22*Forecast_spend!R23,Hist_contributions!Q22*Assumptions!Q$29) -> 0 | S23: =IF(S$8,CC_ratio!R22*Forecast_spend!S23,Hist_contributions!R22*Assumptions!R$29) -> 0 | T23: =IF(T$8,CC_ratio!S22*Forecast_spend!T23,Hist_contributions!S22*Assumptions!S$29) -> 850544.6029 | U23: =IF(U$8,CC_ratio!T22*Forecast_spend!U23,Hist_contributions!T22*Assumptions!T$29) -> 0 | V23: =IF(V$8,CC_ratio!U22*Forecast_spend!V23,Hist_contributions!U22*Assumptions!U$29) -> 0 | W23: =IF(W$8,CC_ratio!V22*Forecast_spend!W23,Hist_contributions!V22*Assumptions!V$29) -> 0 | X23: =IF(X$8,CC_ratio!W22*Forecast_spend!X23,Hist_contributions!W22*Assumptions!W$29) -> 0 | Y23: =IF(Y$8,CC_ratio!X22*Forecast_spend!Y23,Hist_contributions!X22*Assumptions!X$29) -> 0 | Z23: =IF(Z$8,CC_ratio!Y22*Forecast_spend!Z23,Hist_contributions!Y22*Assumptions!Y$29) -> 0 | AA23: =IF(AA$8,CC_ratio!Z22*Forecast_spend!AA23,Hist_contributions!Z22*Assumptions!Z$29) -> 0 | AC23: =SUMPRODUCT($H$7:$AA$7*$H23:$AA23) -> 0
B24: =Hist_vol!B23 -> Connections | C24: =Hist_vol!C23 -> S1 | D24: =Hist_vol!D23 -> Subdivision | E24: =Hist_vol!E23 -> Complex connection LV | F24: Subdivision Complex connection LV | H24: =IF(H$8,CC_ratio!G23*Forecast_spend!H24,Hist_contributions!G23*Assumptions!G$29) -> 0 | I24: =IF(I$8,CC_ratio!H23*Forecast_spend!I24,Hist_contributions!H23*Assumptions!H$29) -> 0 | J24: =IF(J$8,CC_ratio!I23*Forecast_spend!J24,Hist_contributions!I23*Assumptions!I$29) -> 0 | K24: =IF(K$8,CC_ratio!J23*Forecast_spend!K24,Hist_contributions!J23*Assumptions!J$29) -> 0 | L24: =IF(L$8,CC_ratio!K23*Forecast_spend!L24,Hist_contributions!K23*Assumptions!K$29) -> 0 | M24: =IF(M$8,CC_ratio!L23*Forecast_spend!M24,Hist_contributions!L23*Assumptions!L$29) -> 0 | N24: =IF(N$8,CC_ratio!M23*Forecast_spend!N24,Hist_contributions!M23*Assumptions!M$29) -> 0 | O24: =IF(O$8,CC_ratio!N23*Forecast_spend!O24,Hist_contributions!N23*Assumptions!N$29) -> 0 | P24: =IF(P$8,CC_ratio!O23*Forecast_spend!P24,Hist_contributions!O23*Assumptions!O$29) -> 0 | Q24: =IF(Q$8,CC_ratio!P23*Forecast_spend!Q24,Hist_contributions!P23*Assumptions!P$29) -> 0 | R24: =IF(R$8,CC_ratio!Q23*Forecast_spend!R24,Hist_contributions!Q23*Assumptions!Q$29) -> 0 | S24: =IF(S$8,CC_ratio!R23*Forecast_spend!S24,Hist_contributions!R23*Assumptions!R$29) -> 0 | T24: =IF(T$8,CC_ratio!S23*Forecast_spend!T24,Hist_contributions!S23*Assumptions!S$29) -> 0 | U24: =IF(U$8,CC_ratio!T23*Forecast_spend!U24,Hist_contributions!T23*Assumptions!T$29) -> 0 | V24: =IF(V$8,CC_ratio!U23*Forecast_spend!V24,Hist_contributions!U23*Assumptions!U$29) -> 0 | W24: =IF(W$8,CC_ratio!V23*Forecast_spend!W24,Hist_contributions!V23*Assumptions!V$29) -> 0 | X24: =IF(X$8,CC_ratio!W23*Forecast_spend!X24,Hist_contributions!W23*Assumptions!W$29) -> 0 | Y24: =IF(Y$8,CC_ratio!X23*Forecast_spend!Y24,Hist_contributions!X23*Assumptions!X$29) -> 0 | Z24: =IF(Z$8,CC_ratio!Y23*Forecast_spend!Z24,Hist_contributions!Y23*Assumptions!Y$29) -> 0 | AA24: =IF(AA$8,CC_ratio!Z23*Forecast_spend!AA24,Hist_contributions!Z23*Assumptions!Z$29) -> 0 | AC24: =SUMPRODUCT($H$7:$AA$7*$H24:$AA24) -> 0
B25: =Hist_vol!B24 -> Connections | C25: =Hist_vol!C24 -> S2 | D25: =Hist_vol!D24 -> Subdivision | E25: =Hist_vol!E24 -> Complex connection HV (no upstream asset works) | F25: Subdivision Complex connection HV (no upstream asset works) | H25: =IF(H$8,CC_ratio!G24*Forecast_spend!H25,Hist_contributions!G24*Assumptions!G$29) -> 0 | I25: =IF(I$8,CC_ratio!H24*Forecast_spend!I25,Hist_contributions!H24*Assumptions!H$29) -> 0 | J25: =IF(J$8,CC_ratio!I24*Forecast_spend!J25,Hist_contributions!I24*Assumptions!I$29) -> 0 | K25: =IF(K$8,CC_ratio!J24*Forecast_spend!K25,Hist_contributions!J24*Assumptions!J$29) -> 0 | L25: =IF(L$8,CC_ratio!K24*Forecast_spend!L25,Hist_contributions!K24*Assumptions!K$29) -> 0 | M25: =IF(M$8,CC_ratio!L24*Forecast_spend!M25,Hist_contributions!L24*Assumptions!L$29) -> 0 | N25: =IF(N$8,CC_ratio!M24*Forecast_spend!N25,Hist_contributions!M24*Assumptions!M$29) -> 0 | O25: =IF(O$8,CC_ratio!N24*Forecast_spend!O25,Hist_contributions!N24*Assumptions!N$29) -> 0 | P25: =IF(P$8,CC_ratio!O24*Forecast_spend!P25,Hist_contributions!O24*Assumptions!O$29) -> 0 | Q25: =IF(Q$8,CC_ratio!P24*Forecast_spend!Q25,Hist_contributions!P24*Assumptions!P$29) -> 0 | R25: =IF(R$8,CC_ratio!Q24*Forecast_spend!R25,Hist_contributions!Q24*Assumptions!Q$29) -> 0 | S25: =IF(S$8,CC_ratio!R24*Forecast_spend!S25,Hist_contributions!R24*Assumptions!R$29) -> 0 | T25: =IF(T$8,CC_ratio!S24*Forecast_spend!T25,Hist_contributions!S24*Assumptions!S$29) -> 0 | U25: =IF(U$8,CC_ratio!T24*Forecast_spend!U25,Hist_contributions!T24*Assumptions!T$29) -> 0 | V25: =IF(V$8,CC_ratio!U24*Forecast_spend!V25,Hist_contributions!U24*Assumptions!U$29) -> 0 | W25: =IF(W$8,CC_ratio!V24*Forecast_spend!W25,Hist_contributions!V24*Assumptions!V$29) -> 0 | X25: =IF(X$8,CC_ratio!W24*Forecast_spend!X25,Hist_contributions!W24*Assumptions!W$29) -> 0 | Y25: =IF(Y$8,CC_ratio!X24*Forecast_spend!Y25,Hist_contributions!X24*Assumptions!X$29) -> 0 | Z25: =IF(Z$8,CC_ratio!Y24*Forecast_spend!Z25,Hist_contributions!Y24*Assumptions!Y$29) -> 0 | AA25: =IF(AA$8,CC_ratio!Z24*Forecast_spend!AA25,Hist_contributions!Z24*Assumptions!Z$29) -> 0 | AC25: =SUMPRODUCT($H$7:$AA$7*$H25:$AA25) -> 0
B26: =Hist_vol!B25 -> Connections | C26: =Hist_vol!C25 -> S3 | D26: =Hist_vol!D25 -> Subdivision | E26: =Hist_vol!E25 -> Complex connection HV (with upstream asset works) | F26: Subdivision Complex connection HV (with upstream asset works) | H26: =IF(H$8,CC_ratio!G25*Forecast_spend!H26,Hist_contributions!G25*Assumptions!G$29) -> 6996023.519 | I26: =IF(I$8,CC_ratio!H25*Forecast_spend!I26,Hist_contributions!H25*Assumptions!H$29) -> 5315818.622 | J26: =IF(J$8,CC_ratio!I25*Forecast_spend!J26,Hist_contributions!I25*Assumptions!I$29) -> 4450895.128 | K26: =IF(K$8,CC_ratio!J25*Forecast_spend!K26,Hist_contributions!J25*Assumptions!J$29) -> 5408895.052 | L26: =IF(L$8,CC_ratio!K25*Forecast_spend!L26,Hist_contributions!K25*Assumptions!K$29) -> 8213358.981 | M26: =IF(M$8,CC_ratio!L25*Forecast_spend!M26,Hist_contributions!L25*Assumptions!L$29) -> 12032772.26 | N26: =IF(N$8,CC_ratio!M25*Forecast_spend!N26,Hist_contributions!M25*Assumptions!M$29) -> 17475479.79 | O26: =IF(O$8,CC_ratio!N25*Forecast_spend!O26,Hist_contributions!N25*Assumptions!N$29) -> 16265131.07 | P26: =IF(P$8,CC_ratio!O25*Forecast_spend!P26,Hist_contributions!O25*Assumptions!O$29) -> 15353683.82 | Q26: =IF(Q$8,CC_ratio!P25*Forecast_spend!Q26,Hist_contributions!P25*Assumptions!P$29) -> 18646087.07 | R26: =IF(R$8,CC_ratio!Q25*Forecast_spend!R26,Hist_contributions!Q25*Assumptions!Q$29) -> 11782400.4 | S26: =IF(S$8,CC_ratio!R25*Forecast_spend!S26,Hist_contributions!R25*Assumptions!R$29) -> 10550517.32 | T26: =IF(T$8,CC_ratio!S25*Forecast_spend!T26,Hist_contributions!S25*Assumptions!S$29) -> 8281228.631 | U26: =IF(U$8,CC_ratio!T25*Forecast_spend!U26,Hist_contributions!T25*Assumptions!T$29) -> 10014111.06 | V26: =IF(V$8,CC_ratio!U25*Forecast_spend!V26,Hist_contributions!U25*Assumptions!U$29) -> 11168629.13 | W26: =IF(W$8,CC_ratio!V25*Forecast_spend!W26,Hist_contributions!V25*Assumptions!V$29) -> 12551821.6 | X26: =IF(X$8,CC_ratio!W25*Forecast_spend!X26,Hist_contributions!W25*Assumptions!W$29) -> 12442497.94 | Y26: =IF(Y$8,CC_ratio!X25*Forecast_spend!Y26,Hist_contributions!X25*Assumptions!X$29) -> 11671635.23 | Z26: =IF(Z$8,CC_ratio!Y25*Forecast_spend!Z26,Hist_contributions!Y25*Assumptions!Y$29) -> 11749471.23 | AA26: =IF(AA$8,CC_ratio!Z25*Forecast_spend!AA26,Hist_contributions!Z25*Assumptions!Z$29) -> 12025625.37 | AC26: =SUMPRODUCT($H$7:$AA$7*$H26:$AA26) -> 60441051.36
B27: =Hist_vol!B26 -> Connections | C27: =Hist_vol!C26 -> EG1 | D27: =Hist_vol!D26 -> Embedded generation | E27: =Hist_vol!E26 -> Simple connection LV | F27: Embedded generation Simple connection LV | H27: =IF(H$8,CC_ratio!G26*Forecast_spend!H27,Hist_contributions!G26*Assumptions!G$29) -> 0 | I27: =IF(I$8,CC_ratio!H26*Forecast_spend!I27,Hist_contributions!H26*Assumptions!H$29) -> 0 | J27: =IF(J$8,CC_ratio!I26*Forecast_spend!J27,Hist_contributions!I26*Assumptions!I$29) -> 0 | K27: =IF(K$8,CC_ratio!J26*Forecast_spend!K27,Hist_contributions!J26*Assumptions!J$29) -> 0 | L27: =IF(L$8,CC_ratio!K26*Forecast_spend!L27,Hist_contributions!K26*Assumptions!K$29) -> 0 | M27: =IF(M$8,CC_ratio!L26*Forecast_spend!M27,Hist_contributions!L26*Assumptions!L$29) -> 0 | N27: =IF(N$8,CC_ratio!M26*Forecast_spend!N27,Hist_contributions!M26*Assumptions!M$29) -> 0 | O27: =IF(O$8,CC_ratio!N26*Forecast_spend!O27,Hist_contributions!N26*Assumptions!N$29) -> 0 | P27: =IF(P$8,CC_ratio!O26*Forecast_spend!P27,Hist_contributions!O26*Assumptions!O$29) -> 0 | Q27: =IF(Q$8,CC_ratio!P26*Forecast_spend!Q27,Hist_contributions!P26*Assumptions!P$29) -> 0 | R27: =IF(R$8,CC_ratio!Q26*Forecast_spend!R27,Hist_contributions!Q26*Assumptions!Q$29) -> 0 | S27: =IF(S$8,CC_ratio!R26*Forecast_spend!S27,Hist_contributions!R26*Assumptions!R$29) -> 0 | T27: =IF(T$8,CC_ratio!S26*Forecast_spend!T27,Hist_contributions!S26*Assumptions!S$29) -> 0 | U27: =IF(U$8,CC_ratio!T26*Forecast_spend!U27,Hist_contributions!T26*Assumptions!T$29) -> 0 | V27: =IF(V$8,CC_ratio!U26*Forecast_spend!V27,Hist_contributions!U26*Assumptions!U$29) -> 0 | W27: =IF(W$8,CC_ratio!V26*Forecast_spend!W27,Hist_contributions!V26*Assumptions!V$29) -> 0 | X27: =IF(X$8,CC_ratio!W26*Forecast_spend!X27,Hist_contributions!W26*Assumptions!W$29) -> 0 | Y27: =IF(Y$8,CC_ratio!X26*Forecast_spend!Y27,Hist_contributions!X26*Assumptions!X$29) -> 0 | Z27: =IF(Z$8,CC_ratio!Y26*Forecast_spend!Z27,Hist_contributions!Y26*Assumptions!Y$29) -> 0 | AA27: =IF(AA$8,CC_ratio!Z26*Forecast_spend!AA27,Hist_contributions!Z26*Assumptions!Z$29) -> 0 | AC27: =SUMPRODUCT($H$7:$AA$7*$H27:$AA27) -> 0
B28: =Hist_vol!B27 -> Connections | C28: =Hist_vol!C27 -> EG2 | D28: =Hist_vol!D27 -> Embedded generation | E28: =Hist_vol!E27 -> Complex connection HV (small capacity) | F28: Embedded generation Complex connection HV (small capacity) | H28: =IF(H$8,CC_ratio!G27*Forecast_spend!H28,Hist_contributions!G27*Assumptions!G$29) -> 532400.902 | I28: =IF(I$8,CC_ratio!H27*Forecast_spend!I28,Hist_contributions!H27*Assumptions!H$29) -> 435300.4009 | J28: =IF(J$8,CC_ratio!I27*Forecast_spend!J28,Hist_contributions!I27*Assumptions!I$29) -> 418535.8969 | K28: =IF(K$8,CC_ratio!J27*Forecast_spend!K28,Hist_contributions!J27*Assumptions!J$29) -> 478833.2879 | L28: =IF(L$8,CC_ratio!K27*Forecast_spend!L28,Hist_contributions!K27*Assumptions!K$29) -> 479639.129 | M28: =IF(M$8,CC_ratio!L27*Forecast_spend!M28,Hist_contributions!L27*Assumptions!L$29) -> 1732139.05 | N28: =IF(N$8,CC_ratio!M27*Forecast_spend!N28,Hist_contributions!M27*Assumptions!M$29) -> 2548072.143 | O28: =IF(O$8,CC_ratio!N27*Forecast_spend!O28,Hist_contributions!N27*Assumptions!N$29) -> 1871252.346 | P28: =IF(P$8,CC_ratio!O27*Forecast_spend!P28,Hist_contributions!O27*Assumptions!O$29) -> 10512153.8 | Q28: =IF(Q$8,CC_ratio!P27*Forecast_spend!Q28,Hist_contributions!P27*Assumptions!P$29) -> 13518529.51 | R28: =IF(R$8,CC_ratio!Q27*Forecast_spend!R28,Hist_contributions!Q27*Assumptions!Q$29) -> 8890059.821 | S28: =IF(S$8,CC_ratio!R27*Forecast_spend!S28,Hist_contributions!R27*Assumptions!R$29) -> 3663278.021 | T28: =IF(T$8,CC_ratio!S27*Forecast_spend!T28,Hist_contributions!S27*Assumptions!S$29) -> 5262500.933 | U28: =IF(U$8,CC_ratio!T27*Forecast_spend!U28,Hist_contributions!T27*Assumptions!T$29) -> 5980607.804 | V28: =IF(V$8,CC_ratio!U27*Forecast_spend!V28,Hist_contributions!U27*Assumptions!U$29) -> 5067603.678 | W28: =IF(W$8,CC_ratio!V27*Forecast_spend!W28,Hist_contributions!V27*Assumptions!V$29) -> 2041854.123 | X28: =IF(X$8,CC_ratio!W27*Forecast_spend!X28,Hist_contributions!W27*Assumptions!W$29) -> 707635.028 | Y28: =IF(Y$8,CC_ratio!X27*Forecast_spend!Y28,Hist_contributions!X27*Assumptions!X$29) -> 320705.2726 | Z28: =IF(Z$8,CC_ratio!Y27*Forecast_spend!Z28,Hist_contributions!Y27*Assumptions!Y$29) -> 455756.1073 | AA28: =IF(AA$8,CC_ratio!Z27*Forecast_spend!AA28,Hist_contributions!Z27*Assumptions!Z$29) -> 455754.2344 | AC28: =SUMPRODUCT($H$7:$AA$7*$H28:$AA28) -> 3981704.765
B29: =Hist_vol!B28 -> Connections | C29: =Hist_vol!C28 -> EG3 | D29: =Hist_vol!D28 -> Embedded generation | E29: =Hist_vol!E28 -> Complex connection HV (large capacity) | F29: Embedded generation Complex connection HV (large capacity) | H29: =IF(H$8,CC_ratio!G28*Forecast_spend!H29,Hist_contributions!G28*Assumptions!G$29) -> 4162320.997 | I29: =IF(I$8,CC_ratio!H28*Forecast_spend!I29,Hist_contributions!H28*Assumptions!H$29) -> 810560.4912 | J29: =IF(J$8,CC_ratio!I28*Forecast_spend!J29,Hist_contributions!I28*Assumptions!I$29) -> 0 | K29: =IF(K$8,CC_ratio!J28*Forecast_spend!K29,Hist_contributions!J28*Assumptions!J$29) -> 1347230.479 | L29: =IF(L$8,CC_ratio!K28*Forecast_spend!L29,Hist_contributions!K28*Assumptions!K$29) -> 1758304.405 | M29: =IF(M$8,CC_ratio!L28*Forecast_spend!M29,Hist_contributions!L28*Assumptions!L$29) -> 5930091.61 | N29: =IF(N$8,CC_ratio!M28*Forecast_spend!N29,Hist_contributions!M28*Assumptions!M$29) -> 18080234.58 | O29: =IF(O$8,CC_ratio!N28*Forecast_spend!O29,Hist_contributions!N28*Assumptions!N$29) -> 16855218.13 | P29: =IF(P$8,CC_ratio!O28*Forecast_spend!P29,Hist_contributions!O28*Assumptions!O$29) -> 5109449.989 | Q29: =IF(Q$8,CC_ratio!P28*Forecast_spend!Q29,Hist_contributions!P28*Assumptions!P$29) -> 4289820.57 | R29: =IF(R$8,CC_ratio!Q28*Forecast_spend!R29,Hist_contributions!Q28*Assumptions!Q$29) -> 3789773.478 | S29: =IF(S$8,CC_ratio!R28*Forecast_spend!S29,Hist_contributions!R28*Assumptions!R$29) -> 5971399.221 | T29: =IF(T$8,CC_ratio!S28*Forecast_spend!T29,Hist_contributions!S28*Assumptions!S$29) -> 14874242.23 | U29: =IF(U$8,CC_ratio!T28*Forecast_spend!U29,Hist_contributions!T28*Assumptions!T$29) -> 16916665.5 | V29: =IF(V$8,CC_ratio!U28*Forecast_spend!V29,Hist_contributions!U28*Assumptions!U$29) -> 14334154.5 | W29: =IF(W$8,CC_ratio!V28*Forecast_spend!W29,Hist_contributions!V28*Assumptions!V$29) -> 5775560.666 | X29: =IF(X$8,CC_ratio!W28*Forecast_spend!X29,Hist_contributions!W28*Assumptions!W$29) -> 2001606.769 | Y29: =IF(Y$8,CC_ratio!X28*Forecast_spend!Y29,Hist_contributions!X28*Assumptions!X$29) -> 907142.5509 | Z29: =IF(Z$8,CC_ratio!Y28*Forecast_spend!Z29,Hist_contributions!Y28*Assumptions!Y$29) -> 1289145.496 | AA29: =IF(AA$8,CC_ratio!Z28*Forecast_spend!AA29,Hist_contributions!Z28*Assumptions!Z$29) -> 1289140.199 | AC29: =SUMPRODUCT($H$7:$AA$7*$H29:$AA29) -> 11262595.68
B30: ='Grid connected batteries'!B18 -> Connections | C30: Grid connected batteries | D30: Grid connected batteries | F30: =D30 -> Grid connected batteries | H30: 0 | I30: 0 | J30: 0 | K30: 0 | L30: 0 | M30: 0 | N30: 0 | O30: 0 | P30: 0 | Q30: 0 | R30: 0 | S30: 0 | T30: 0 | U30: 0 | V30: 0 | W30: ='Grid connected batteries'!E18 -> 6316055.507 | X30: ='Grid connected batteries'!F18 -> 6047255.323 | Y30: ='Grid connected batteries'!G18 -> 7045244.948 | Z30: ='Grid connected batteries'!H18 -> 7827696.831 | AA30: ='Grid connected batteries'!I18 -> 6871784.248 | AC30: =SUMPRODUCT($H$7:$AA$7*$H30:$AA30) -> 34108036.86
B31: ='Data Centres'!B17 -> Connections | C31: Data Centres | D31: Data Centres | F31: =D31 -> Data Centres | H31: 0 | I31: 0 | J31: 0 | K31: 0 | L31: 0 | M31: 0 | N31: 0 | O31: 0 | P31: 0 | Q31: 0 | R31: 0 | S31: 0 | T31: 0 | U31: 0 | V31: 0 | W31: ='Data Centres'!E17 -> 22465185.19 | X31: ='Data Centres'!F17 -> 31201646.09 | Y31: ='Data Centres'!G17 -> 18720987.65 | Z31: ='Data Centres'!H17 -> 60531193.42 | AA31: ='Data Centres'!I17 -> 49298600.82 | AC31: =SUMPRODUCT($H$7:$AA$7*$H31:$AA31) -> 182217613.2
D32: Total | H32: =SUM(H16:H31) -> 57154031.41 | I32: 55170802.69 | J32: 52643135.95 | K32: 66900896.94 | L32: 77907462.09 | M32: 94976524.47 | N32: 124304414.8 | O32: 125960067.8 | P32: 119957687.7 | Q32: 112320388.6 | R32: 98128086.03 | S32: 103745356.1 | T32: 107207127.9 | U32: 104606786.9 | V32: 96916656.72 | W32: 118458986.9 | X32: 122338753 | Y32: 107011840.8 | Z32: 150161705.8 | AA32: 138869710.7 | AC32: =SUM(AC16:AC31) -> 636840997.2

Sheet Forecast_netcapex
A1: =Assumptions!$A$1 -> Powercor
A2: =Assumptions!$A$2 -> Connections
A3: Forecast net capex
B7: =Assumptions!B17 -> 2026/27 - 2030/31 reg period | H7: =Assumptions!G17 -> FALSE | I7: =Assumptions!H17 -> FALSE | J7: =Assumptions!I17 -> FALSE | K7: =Assumptions!J17 -> FALSE | L7: =Assumptions!K17 -> FALSE | M7: =Assumptions!L17 -> FALSE | N7: =Assumptions!M17 -> FALSE | O7: =Assumptions!N17 -> FALSE | P7: =Assumptions!O17 -> FALSE | Q7: =Assumptions!P17 -> FALSE | R7: =Assumptions!Q17 -> FALSE | S7: =Assumptions!R17 -> FALSE | T7: =Assumptions!S17 -> FALSE | U7: =Assumptions!T17 -> FALSE | V7: =Assumptions!U17 -> FALSE | W7: =Assumptions!V17 -> TRUE | X7: =Assumptions!W17 -> TRUE | Y7: =Assumptions!X17 -> TRUE | Z7: =Assumptions!Y17 -> TRUE | AA7: =Assumptions!Z17 -> TRUE
B8: =Assumptions!B18 -> Forecast period | H8: =Assumptions!G18 -> FALSE | I8: =Assumptions!H18 -> FALSE | J8: =Assumptions!I18 -> FALSE | K8: =Assumptions!J18 -> FALSE | L8: =Assumptions!K18 -> FALSE | M8: =Assumptions!L18 -> FALSE | N8: =Assumptions!M18 -> FALSE | O8: =Assumptions!N18 -> FALSE | P8: =Assumptions!O18 -> FALSE | Q8: =Assumptions!P18 -> FALSE | R8: =Assumptions!Q18 -> FALSE | S8: =Assumptions!R18 -> FALSE | T8: =Assumptions!S18 -> FALSE | U8: =Assumptions!T18 -> TRUE | V8: =Assumptions!U18 -> TRUE | W8: =Assumptions!V18 -> TRUE | X8: =Assumptions!W18 -> TRUE | Y8: =Assumptions!X18 -> TRUE | Z8: =Assumptions!Y18 -> TRUE | AA8: =Assumptions!Z18 -> TRUE
B9: =Assumptions!B19 -> Fin year end | H9: =Assumptions!G19 -> 2012 | I9: =Assumptions!H19 -> 2013 | J9: =Assumptions!I19 -> 2014 | K9: =Assumptions!J19 -> 2015 | L9: =Assumptions!K19 -> 2016 | M9: =Assumptions!L19 -> 2017 | N9: =Assumptions!M19 -> 2018 | O9: =Assumptions!N19 -> 2019 | P9: =Assumptions!O19 -> 2020 | Q9: =Assumptions!P19 -> 2021 | R9: =Assumptions!Q19 -> 2022 | S9: =Assumptions!R19 -> 2023 | T9: =Assumptions!S19 -> 2024 | U9: =Assumptions!T19 -> 2025 | V9: =Assumptions!U19 -> 2026 | W9: =Assumptions!V19 -> 2027 | X9: =Assumptions!W19 -> 2028 | Y9: =Assumptions!X19 -> 2029 | Z9: =Assumptions!Y19 -> 2030 | AA9: =Assumptions!Z19 -> 2031
B10: =Assumptions!B20 -> Basis | H10: =Assumptions!G20 -> Actual | I10: =Assumptions!H20 -> Actual | J10: =Assumptions!I20 -> Actual | K10: =Assumptions!J20 -> Actual | L10: =Assumptions!K20 -> Actual | M10: =Assumptions!L20 -> Actual | N10: =Assumptions!M20 -> Actual | O10: =Assumptions!N20 -> Actual | P10: =Assumptions!O20 -> Actual | Q10: =Assumptions!P20 -> Actual | R10: =Assumptions!Q20 -> Actual | S10: =Assumptions!R20 -> Actual | T10: =Assumptions!S20 -> Actual | U10: =Assumptions!T20 -> Forecast | V10: =Assumptions!U20 -> Forecast | W10: =Assumptions!V20 -> Forecast | X10: =Assumptions!W20 -> Forecast | Y10: =Assumptions!X20 -> Forecast | Z10: =Assumptions!Y20 -> Forecast | AA10: =Assumptions!Z20 -> Forecast
B13: =Hist_vol!B$13 -> Category | C13: Type | D13: =Hist_vol!D$13 -> RIN category | E13: =Hist_vol!E$13 -> Description | H13: =Assumptions!G$24 -> 2011/12 | I13: =Assumptions!H$24 -> 2012/13 | J13: =Assumptions!I$24 -> 2013/14 | K13: =Assumptions!J$24 -> 2014/15 | L13: =Assumptions!K$24 -> 2015/16 | M13: =Assumptions!L$24 -> 2016/17 | N13: =Assumptions!M$24 -> 2017/18 | O13: =Assumptions!N$24 -> 2018/19 | P13: =Assumptions!O$24 -> 2019/20 | Q13: =Assumptions!P$24 -> 2020/21 | R13: =Assumptions!Q$24 -> 2021/22 | S13: =Assumptions!R$24 -> 2022/23 | T13: =Assumptions!S$24 -> 2023/24 | U13: =Assumptions!T$24 -> 2024/25 | V13: =Assumptions!U$24 -> 2025/26 | W13: =Assumptions!V$24 -> 2026/27 | X13: =Assumptions!W$24 -> 2027/28 | Y13: =Assumptions!X$24 -> 2028/29 | Z13: =Assumptions!Y$24 -> 2029/30 | AA13: =Assumptions!Z$24 -> 2030/31 | AC13: 2026-31 Total
B15: Forecast net spend (June 2026 $)
B16: =Hist_vol!B15 -> Connections | C16: =Hist_vol!C15 -> R1 | D16: =Hist_vol!D15 -> Residential | E16: =Hist_vol!E15 -> Simple connection LV | F16: =D16&" "&E16 -> Residential Simple connection LV | H16: =Forecast_spend!H16-Forecast_contrib!H16 -> 3055909.194 | I16: =Forecast_spend!I16-Forecast_contrib!I16 -> 3489475.576 | J16: =Forecast_spend!J16-Forecast_contrib!J16 -> 3764085.679 | K16: =Forecast_spend!K16-Forecast_contrib!K16 -> 3505230.687 | L16: =Forecast_spend!L16-Forecast_contrib!L16 -> 1577471.388 | M16: =Forecast_spend!M16-Forecast_contrib!M16 -> 0 | N16: =Forecast_spend!N16-Forecast_contrib!N16 -> 0 | O16: =Forecast_spend!O16-Forecast_contrib!O16 -> 0 | P16: =Forecast_spend!P16-Forecast_contrib!P16 -> 0 | Q16: =Forecast_spend!Q16-Forecast_contrib!Q16 -> 0 | R16: =Forecast_spend!R16-Forecast_contrib!R16 -> 0 | S16: =Forecast_spend!S16-Forecast_contrib!S16 -> 0 | T16: =Forecast_spend!T16-Forecast_contrib!T16 -> 0 | U16: =Forecast_spend!U16-Forecast_contrib!U16 -> 0 | V16: =Forecast_spend!V16-Forecast_contrib!V16 -> 0 | W16: =Forecast_spend!W16-Forecast_contrib!W16 -> 0 | X16: =Forecast_spend!X16-Forecast_contrib!X16 -> 0 | Y16: =Forecast_spend!Y16-Forecast_contrib!Y16 -> 0 | Z16: =Forecast_spend!Z16-Forecast_contrib!Z16 -> 0 | AA16: =Forecast_spend!AA16-Forecast_contrib!AA16 -> 0 | AC16: =SUMPRODUCT($H$7:$AA$7*$H16:$AA16) -> 0
B17: =Hist_vol!B16 -> Connections | C17: =Hist_vol!C16 -> R2 | D17: =Hist_vol!D16 -> Residential | E17: =Hist_vol!E16 -> Complex connection LV | F17: =D17&" "&E17 -> Residential Complex connection LV | H17: =Forecast_spend!H17-Forecast_contrib!H17 -> 12405665.39 | I17: =Forecast_spend!I17-Forecast_contrib!I17 -> 15726335.19 | J17: =Forecast_spend!J17-Forecast_contrib!J17 -> 17663738.27 | K17: =Forecast_spend!K17-Forecast_contrib!K17 -> 15362171.06 | L17: =Forecast_spend!L17-Forecast_contrib!L17 -> 10387826.99 | M17: =Forecast_spend!M17-Forecast_contrib!M17 -> 6195826.093 | N17: =Forecast_spend!N17-Forecast_contrib!N17 -> 3016227.742 | O17: =Forecast_spend!O17-Forecast_contrib!O17 -> 6209571.229 | P17: =Forecast_spend!P17-Forecast_contrib!P17 -> 9140348.579 | Q17: =Forecast_spend!Q17-Forecast_contrib!Q17 -> 6059555.69 | R17: =Forecast_spend!R17-Forecast_contrib!R17 -> 9649519.618 | S17: =Forecast_spend!S17-Forecast_contrib!S17 -> 15341515.28 | T17: =Forecast_spend!T17-Forecast_contrib!T17 -> 7295560.852 | U17: =Forecast_spend!U17-Forecast_contrib!U17 -> 15497149.83 | V17: =Forecast_spend!V17-Forecast_contrib!V17 -> 17283802.61 | W17: =Forecast_spend!W17-Forecast_contrib!W17 -> 19424336.19 | X17: =Forecast_spend!X17-Forecast_contrib!X17 -> 19255154.41 | Y17: =Forecast_spend!Y17-Forecast_contrib!Y17 -> 18062220.27 | Z17: =Forecast_spend!Z17-Forecast_contrib!Z17 -> 18182673.92 | AA17: =Forecast_spend!AA17-Forecast_contrib!AA17 -> 18610031.08 | AC17: =SUMPRODUCT($H$7:$AA$7*$H17:$AA17) -> 93534415.88
B18: =Hist_vol!B17 -> Connections | C18: =Hist_vol!C17 -> R3 | D18: =Hist_vol!D17 -> Residential | E18: =Hist_vol!E17 -> Complex connection HV | F18: Residential Complex connection HV | H18: =Forecast_spend!H18-Forecast_contrib!H18 -> 5893628.7 | I18: =Forecast_spend!I18-Forecast_contrib!I18 -> 7857200.61 | J18: =Forecast_spend!J18-Forecast_contrib!J18 -> 7920211.488 | K18: =Forecast_spend!K18-Forecast_contrib!K18 -> 6053224.686 | L18: =Forecast_spend!L18-Forecast_contrib!L18 -> 3533260.793 | M18: =Forecast_spend!M18-Forecast_contrib!M18 -> 1902474.715 | N18: =Forecast_spend!N18-Forecast_contrib!N18 -> 1080710.186 | O18: =Forecast_spend!O18-Forecast_contrib!O18 -> 1962442.116 | P18: =Forecast_spend!P18-Forecast_contrib!P18 -> 3686876.221 | Q18: =Forecast_spend!Q18-Forecast_contrib!Q18 -> 3487910.378 | R18: =Forecast_spend!R18-Forecast_contrib!R18 -> 4639706.04 | S18: =Forecast_spend!S18-Forecast_contrib!S18 -> 5450644.401 | T18: =Forecast_spend!T18-Forecast_contrib!T18 -> 4082918.142 | U18: =Forecast_spend!U18-Forecast_contrib!U18 -> 3929975.694 | V18: =Forecast_spend!V18-Forecast_contrib!V18 -> 4383059.137 | W18: =Forecast_spend!W18-Forecast_contrib!W18 -> 4925884.433 | X18: =Forecast_spend!X18-Forecast_contrib!X18 -> 4882981.04 | Y18: =Forecast_spend!Y18-Forecast_contrib!Y18 -> 4580460.758 | Z18: =Forecast_spend!Z18-Forecast_contrib!Z18 -> 4611007.014 | AA18: =Forecast_spend!AA18-Forecast_contrib!AA18 -> 4719381.991 | AC18: =SUMPRODUCT($H$7:$AA$7*$H18:$AA18) -> 23719715.24
B19: =Hist_vol!B18 -> Connections | C19: =Hist_vol!C18 -> CI1 | D19: =Hist_vol!D18 -> Commercial/Industrial | E19: =Hist_vol!E18 -> Simple connection LV | F19: Commercial/Industrial Simple connection LV | H19: =Forecast_spend!H19-Forecast_contrib!H19 -> 421077.4379 | I19: =Forecast_spend!I19-Forecast_contrib!I19 -> 554247.5541 | J19: =Forecast_spend!J19-Forecast_contrib!J19 -> 620520.6001 | K19: =Forecast_spend!K19-Forecast_contrib!K19 -> 571302.0779 | L19: =Forecast_spend!L19-Forecast_contrib!L19 -> 256797.5346 | M19: =Forecast_spend!M19-Forecast_contrib!M19 -> 0 | N19: =Forecast_spend!N19-Forecast_contrib!N19 -> 0 | O19: =Forecast_spend!O19-Forecast_contrib!O19 -> 0 | P19: =Forecast_spend!P19-Forecast_contrib!P19 -> 0 | Q19: =Forecast_spend!Q19-Forecast_contrib!Q19 -> 0 | R19: =Forecast_spend!R19-Forecast_contrib!R19 -> 0 | S19: =Forecast_spend!S19-Forecast_contrib!S19 -> 0 | T19: =Forecast_spend!T19-Forecast_contrib!T19 -> 0 | U19: =Forecast_spend!U19-Forecast_contrib!U19 -> 0 | V19: =Forecast_spend!V19-Forecast_contrib!V19 -> 0 | W19: =Forecast_spend!W19-Forecast_contrib!W19 -> 0 | X19: =Forecast_spend!X19-Forecast_contrib!X19 -> 0 | Y19: =Forecast_spend!Y19-Forecast_contrib!Y19 -> 0 | Z19: =Forecast_spend!Z19-Forecast_contrib!Z19 -> 0 | AA19: =Forecast_spend!AA19-Forecast_contrib!AA19 -> 0 | AC19: =SUMPRODUCT($H$7:$AA$7*$H19:$AA19) -> 0
B20: =Hist_vol!B19 -> Connections | C20: =Hist_vol!C19 -> CI2 | D20: =Hist_vol!D19 -> Commercial/Industrial | E20: =Hist_vol!E19 -> Complex connection HV (customer connected at LV, minor HV works) | F20: Commercial/Industrial Complex connection HV (customer connected at LV, minor HV works) | H20: =Forecast_spend!H20-Forecast_contrib!H20 -> 9502912.208 | I20: =Forecast_spend!I20-Forecast_contrib!I20 -> 345352.8264 | J20: =Forecast_spend!J20-Forecast_contrib!J20 -> -115850.7791 | K20: =Forecast_spend!K20-Forecast_contrib!K20 -> -4413642.217 | L20: =Forecast_spend!L20-Forecast_contrib!L20 -> -4635082.438 | M20: =Forecast_spend!M20-Forecast_contrib!M20 -> -124431.064 | N20: =Forecast_spend!N20-Forecast_contrib!N20 -> 4373122.743 | O20: =Forecast_spend!O20-Forecast_contrib!O20 -> -1045607.71 | P20: =Forecast_spend!P20-Forecast_contrib!P20 -> -13073629.03 | Q20: =Forecast_spend!Q20-Forecast_contrib!Q20 -> -2789372.653 | R20: =Forecast_spend!R20-Forecast_contrib!R20 -> -2475517.061 | S20: =Forecast_spend!S20-Forecast_contrib!S20 -> -1988139.28 | T20: =Forecast_spend!T20-Forecast_contrib!T20 -> 1817914.985 | U20: =Forecast_spend!U20-Forecast_contrib!U20 -> 0 | V20: =Forecast_spend!V20-Forecast_contrib!V20 -> 0 | W20: =Forecast_spend!W20-Forecast_contrib!W20 -> 0 | X20: =Forecast_spend!X20-Forecast_contrib!X20 -> 0 | Y20: =Forecast_spend!Y20-Forecast_contrib!Y20 -> 0 | Z20: =Forecast_spend!Z20-Forecast_contrib!Z20 -> 0 | AA20: =Forecast_spend!AA20-Forecast_contrib!AA20 -> 0 | AC20: =SUMPRODUCT($H$7:$AA$7*$H20:$AA20) -> 0
B21: =Hist_vol!B20 -> Connections | C21: =Hist_vol!C20 -> CI3 | D21: =Hist_vol!D20 -> Commercial/Industrial | E21: =Hist_vol!E20 -> Complex connection HV (customer connected at LV, upstream asset works) | F21: Commercial/Industrial Complex connection HV (customer connected at LV, upstream asset works) | H21: =Forecast_spend!H21-Forecast_contrib!H21 -> 19151552.33 | I21: =Forecast_spend!I21-Forecast_contrib!I21 -> 24225856.06 | J21: =Forecast_spend!J21-Forecast_contrib!J21 -> 26024216.37 | K21: =Forecast_spend!K21-Forecast_contrib!K21 -> 21934672.18 | L21: =Forecast_spend!L21-Forecast_contrib!L21 -> 15669306.78 | M21: =Forecast_spend!M21-Forecast_contrib!M21 -> 11824857.61 | N21: =Forecast_spend!N21-Forecast_contrib!N21 -> 7332264.587 | O21: =Forecast_spend!O21-Forecast_contrib!O21 -> 10510215.45 | P21: =Forecast_spend!P21-Forecast_contrib!P21 -> 24318989.11 | Q21: =Forecast_spend!Q21-Forecast_contrib!Q21 -> 27336124.8 | R21: =Forecast_spend!R21-Forecast_contrib!R21 -> 32695207.85 | S21: =Forecast_spend!S21-Forecast_contrib!S21 -> 33588974.54 | T21: =Forecast_spend!T21-Forecast_contrib!T21 -> 33494562.9 | U21: =Forecast_spend!U21-Forecast_contrib!U21 -> 32032338.21 | V21: =Forecast_spend!V21-Forecast_contrib!V21 -> 26770374.88 | W21: =Forecast_spend!W21-Forecast_contrib!W21 -> 26629723.21 | X21: =Forecast_spend!X21-Forecast_contrib!X21 -> 27208944.35 | Y21: =Forecast_spend!Y21-Forecast_contrib!Y21 -> 27326064.67 | Z21: =Forecast_spend!Z21-Forecast_contrib!Z21 -> 27183724.86 | AA21: =Forecast_spend!AA21-Forecast_contrib!AA21 -> 27174686.68 | AC21: =SUMPRODUCT($H$7:$AA$7*$H21:$AA21) -> 135523143.8
B22: =Hist_vol!B21 -> Connections | C22: =Hist_vol!C21 -> CI4 | D22: =Hist_vol!D21 -> Commercial/Industrial | E22: =Hist_vol!E21 -> Complex connection HV (customer connected at HV) | F22: Commercial/Industrial Complex connection HV (customer connected at HV) | H22: =Forecast_spend!H22-Forecast_contrib!H22 -> 2012263.98 | I22: =Forecast_spend!I22-Forecast_contrib!I22 -> 2891057.545 | J22: =Forecast_spend!J22-Forecast_contrib!J22 -> 3156036.806 | K22: =Forecast_spend!K22-Forecast_contrib!K22 -> 1670674.059 | L22: =Forecast_spend!L22-Forecast_contrib!L22 -> 707941.8753 | M22: =Forecast_spend!M22-Forecast_contrib!M22 -> 680812.6407 | N22: =Forecast_spend!N22-Forecast_contrib!N22 -> 284253.2926 | O22: =Forecast_spend!O22-Forecast_contrib!O22 -> 474386.6261 | P22: =Forecast_spend!P22-Forecast_contrib!P22 -> 1681551.179 | Q22: =Forecast_spend!Q22-Forecast_contrib!Q22 -> 4933003.53 | R22: =Forecast_spend!R22-Forecast_contrib!R22 -> 5157729.935 | S22: =Forecast_spend!S22-Forecast_contrib!S22 -> -5840986.837 | T22: =Forecast_spend!T22-Forecast_contrib!T22 -> 7649115.394 | U22: =Forecast_spend!U22-Forecast_contrib!U22 -> 5195692.378 | V22: =Forecast_spend!V22-Forecast_contrib!V22 -> 4342194.185 | W22: =Forecast_spend!W22-Forecast_contrib!W22 -> 4319380.278 | X22: =Forecast_spend!X22-Forecast_contrib!X22 -> 4413330.799 | Y22: =Forecast_spend!Y22-Forecast_contrib!Y22 -> 4432327.886 | Z22: =Forecast_spend!Z22-Forecast_contrib!Z22 -> 4409240.16 | AA22: =Forecast_spend!AA22-Forecast_contrib!AA22 -> 4407774.153 | AC22: =SUMPRODUCT($H$7:$AA$7*$H22:$AA22) -> 21982053.28
B23: =Hist_vol!B22 -> Connections | C23: =Hist_vol!C22 -> CI5 | D23: =Hist_vol!D22 -> Commercial/Industrial | E23: =Hist_vol!E22 -> Complex connection sub-transmission | F23: Commercial/Industrial Complex connection sub-transmission | H23: =Forecast_spend!H23-Forecast_contrib!H23 -> 0 | I23: =Forecast_spend!I23-Forecast_contrib!I23 -> 0 | J23: =Forecast_spend!J23-Forecast_contrib!J23 -> 0 | K23: =Forecast_spend!K23-Forecast_contrib!K23 -> 0 | L23: =Forecast_spend!L23-Forecast_contrib!L23 -> 0 | M23: =Forecast_spend!M23-Forecast_contrib!M23 -> 1024771.695 | N23: =Forecast_spend!N23-Forecast_contrib!N23 -> 1005331.582 | O23: =Forecast_spend!O23-Forecast_contrib!O23 -> 0 | P23: =Forecast_spend!P23-Forecast_contrib!P23 -> 0 | Q23: =Forecast_spend!Q23-Forecast_contrib!Q23 -> 0 | R23: =Forecast_spend!R23-Forecast_contrib!R23 -> 0 | S23: =Forecast_spend!S23-Forecast_contrib!S23 -> 5636365.83 | T23: =Forecast_spend!T23-Forecast_contrib!T23 -> 698629.8009 | U23: =Forecast_spend!U23-Forecast_contrib!U23 -> 0 | V23: =Forecast_spend!V23-Forecast_contrib!V23 -> 0 | W23: =Forecast_spend!W23-Forecast_contrib!W23 -> 0 | X23: =Forecast_spend!X23-Forecast_contrib!X23 -> 0 | Y23: =Forecast_spend!Y23-Forecast_contrib!Y23 -> 0 | Z23: =Forecast_spend!Z23-Forecast_contrib!Z23 -> 0 | AA23: =Forecast_spend!AA23-Forecast_contrib!AA23 -> 0 | AC23: =SUMPRODUCT($H$7:$AA$7*$H23:$AA23) -> 0
B24: =Hist_vol!B23 -> Connections | C24: =Hist_vol!C23 -> S1 | D24: =Hist_vol!D23 -> Subdivision | E24: =Hist_vol!E23 -> Complex connection LV | F24: Subdivision Complex connection LV | H24: =Forecast_spend!H24-Forecast_contrib!H24 -> 0 | I24: =Forecast_spend!I24-Forecast_contrib!I24 -> 0 | J24: =Forecast_spend!J24-Forecast_contrib!J24 -> 0 | K24: =Forecast_spend!K24-Forecast_contrib!K24 -> 0 | L24: =Forecast_spend!L24-Forecast_contrib!L24 -> 0 | M24: =Forecast_spend!M24-Forecast_contrib!M24 -> 0 | N24: =Forecast_spend!N24-Forecast_contrib!N24 -> 0 | O24: =Forecast_spend!O24-Forecast_contrib!O24 -> 0 | P24: =Forecast_spend!P24-Forecast_contrib!P24 -> 0 | Q24: =Forecast_spend!Q24-Forecast_contrib!Q24 -> 0 | R24: =Forecast_spend!R24-Forecast_contrib!R24 -> 0 | S24: =Forecast_spend!S24-Forecast_contrib!S24 -> 0 | T24: =Forecast_spend!T24-Forecast_contrib!T24 -> 0 | U24: =Forecast_spend!U24-Forecast_contrib!U24 -> 0 | V24: =Forecast_spend!V24-Forecast_contrib!V24 -> 0 | W24: =Forecast_spend!W24-Forecast_contrib!W24 -> 0 | X24: =Forecast_spend!X24-Forecast_contrib!X24 -> 0 | Y24: =Forecast_spend!Y24-Forecast_contrib!Y24 -> 0 | Z24: =Forecast_spend!Z24-Forecast_contrib!Z24 -> 0 | AA24: =Forecast_spend!AA24-Forecast_contrib!AA24 -> 0 | AC24: =SUMPRODUCT($H$7:$AA$7*$H24:$AA24) -> 0
B25: =Hist_vol!B24 -> Connections | C25: =Hist_vol!C24 -> S2 | D25: =Hist_vol!D24 -> Subdivision | E25: =Hist_vol!E24 -> Complex connection HV (no upstream asset works) | F25: Subdivision Complex connection HV (no upstream asset works) | H25: =Forecast_spend!H25-Forecast_contrib!H25 -> 0 | I25: =Forecast_spend!I25-Forecast_contrib!I25 -> 0 | J25: =Forecast_spend!J25-Forecast_contrib!J25 -> 0 | K25: =Forecast_spend!K25-Forecast_contrib!K25 -> 0 | L25: =Forecast_spend!L25-Forecast_contrib!L25 -> 0 | M25: =Forecast_spend!M25-Forecast_contrib!M25 -> 0 | N25: =Forecast_spend!N25-Forecast_contrib!N25 -> 0 | O25: =Forecast_spend!O25-Forecast_contrib!O25 -> 0 | P25: =Forecast_spend!P25-Forecast_contrib!P25 -> 0 | Q25: =Forecast_spend!Q25-Forecast_contrib!Q25 -> 0 | R25: =Forecast_spend!R25-Forecast_contrib!R25 -> 0 | S25: =Forecast_spend!S25-Forecast_contrib!S25 -> 0 | T25: =Forecast_spend!T25-Forecast_contrib!T25 -> 0 | U25: =Forecast_spend!U25-Forecast_contrib!U25 -> 0 | V25: =Forecast_spend!V25-Forecast_contrib!V25 -> 0 | W25: =Forecast_spend!W25-Forecast_contrib!W25 -> 0 | X25: =Forecast_spend!X25-Forecast_contrib!X25 -> 0 | Y25: =Forecast_spend!Y25-Forecast_contrib!Y25 -> 0 | Z25: =Forecast_spend!Z25-Forecast_contrib!Z25 -> 0 | AA25: =Forecast_spend!AA25-Forecast_contrib!AA25 -> 0 | AC25: =SUMPRODUCT($H$7:$AA$7*$H25:$AA25) -> 0
B26: =Hist_vol!B25 -> Connections | C26: =Hist_vol!C25 -> S3 | D26: =Hist_vol!D25 -> Subdivision | E26: =Hist_vol!E25 -> Complex connection HV (with upstream asset works) | F26: Subdivision Complex connection HV (with upstream asset works) | H26: =Forecast_spend!H26-Forecast_contrib!H26 -> 26110213.55 | I26: =Forecast_spend!I26-Forecast_contrib!I26 -> 32467460.61 | J26: =Forecast_spend!J26-Forecast_contrib!J26 -> 29943683.29 | K26: =Forecast_spend!K26-Forecast_contrib!K26 -> 28029031.81 | L26: =Forecast_spend!L26-Forecast_contrib!L26 -> 32443003.57 | M26: =Forecast_spend!M26-Forecast_contrib!M26 -> 32070149.57 | N26: =Forecast_spend!N26-Forecast_contrib!N26 -> 24840697.7 | O26: =Forecast_spend!O26-Forecast_contrib!O26 -> 19490927.62 | P26: =Forecast_spend!P26-Forecast_contrib!P26 -> 22086919.34 | Q26: =Forecast_spend!Q26-Forecast_contrib!Q26 -> 24870358.61 | R26: =Forecast_spend!R26-Forecast_contrib!R26 -> 26827888.24 | S26: =Forecast_spend!S26-Forecast_contrib!S26 -> 31753949.47 | T26: =Forecast_spend!T26-Forecast_contrib!T26 -> 42899428.2 | U26: =Forecast_spend!U26-Forecast_contrib!U26 -> 43916863.47 | V26: =Forecast_spend!V26-Forecast_contrib!V26 -> 48980000.06 | W26: =Forecast_spend!W26-Forecast_contrib!W26 -> 55045987.8 | X26: =Forecast_spend!X26-Forecast_contrib!X26 -> 54566549.1 | Y26: =Forecast_spend!Y26-Forecast_contrib!Y26 -> 51185932.28 | Z26: =Forecast_spend!Z26-Forecast_contrib!Z26 -> 51527281.91 | AA26: =Forecast_spend!AA26-Forecast_contrib!AA26 -> 52738355.33 | AC26: =SUMPRODUCT($H$7:$AA$7*$H26:$AA26) -> 265064106.4
B27: =Hist_vol!B26 -> Connections | C27: =Hist_vol!C26 -> EG1 | D27: =Hist_vol!D26 -> Embedded generation | E27: =Hist_vol!E26 -> Simple connection LV | F27: Embedded generation Simple connection LV | H27: =Forecast_spend!H27-Forecast_contrib!H27 -> 0 | I27: =Forecast_spend!I27-Forecast_contrib!I27 -> 0 | J27: =Forecast_spend!J27-Forecast_contrib!J27 -> 0 | K27: =Forecast_spend!K27-Forecast_contrib!K27 -> 0 | L27: =Forecast_spend!L27-Forecast_contrib!L27 -> 0 | M27: =Forecast_spend!M27-Forecast_contrib!M27 -> 0 | N27: =Forecast_spend!N27-Forecast_contrib!N27 -> 0 | O27: =Forecast_spend!O27-Forecast_contrib!O27 -> 0 | P27: =Forecast_spend!P27-Forecast_contrib!P27 -> 0 | Q27: =Forecast_spend!Q27-Forecast_contrib!Q27 -> 0 | R27: =Forecast_spend!R27-Forecast_contrib!R27 -> 0 | S27: =Forecast_spend!S27-Forecast_contrib!S27 -> 0 | T27: =Forecast_spend!T27-Forecast_contrib!T27 -> 0 | U27: =Forecast_spend!U27-Forecast_contrib!U27 -> 0 | V27: =Forecast_spend!V27-Forecast_contrib!V27 -> 0 | W27: =Forecast_spend!W27-Forecast_contrib!W27 -> 0 | X27: =Forecast_spend!X27-Forecast_contrib!X27 -> 0 | Y27: =Forecast_spend!Y27-Forecast_contrib!Y27 -> 0 | Z27: =Forecast_spend!Z27-Forecast_contrib!Z27 -> 0 | AA27: =Forecast_spend!AA27-Forecast_contrib!AA27 -> 0 | AC27: =SUMPRODUCT($H$7:$AA$7*$H27:$AA27) -> 0
B28: =Hist_vol!B27 -> Connections | C28: =Hist_vol!C27 -> EG2 | D28: =Hist_vol!D27 -> Embedded generation | E28: =Hist_vol!E27 -> Complex connection HV (small capacity) | F28: Embedded generation Complex connection HV (small capacity) | H28: =Forecast_spend!H28-Forecast_contrib!H28 -> 652664.4669 | I28: =Forecast_spend!I28-Forecast_contrib!I28 -> 663863.3918 | J28: =Forecast_spend!J28-Forecast_contrib!J28 -> 880876.1634 | K28: =Forecast_spend!K28-Forecast_contrib!K28 -> 916544.1905 | L28: =Forecast_spend!L28-Forecast_contrib!L28 -> 436613.2593 | M28: =Forecast_spend!M28-Forecast_contrib!M28 -> 635319.4725 | N28: =Forecast_spend!N28-Forecast_contrib!N28 -> 491320.2866 | O28: =Forecast_spend!O28-Forecast_contrib!O28 -> 645971.8173 | P28: =Forecast_spend!P28-Forecast_contrib!P28 -> -5373425.39 | Q28: =Forecast_spend!Q28-Forecast_contrib!Q28 -> -9249203.163 | R28: =Forecast_spend!R28-Forecast_contrib!R28 -> -5077491.152 | S28: =Forecast_spend!S28-Forecast_contrib!S28 -> -1098370.625 | T28: =Forecast_spend!T28-Forecast_contrib!T28 -> -1262275.54 | U28: =Forecast_spend!U28-Forecast_contrib!U28 -> 0 | V28: =Forecast_spend!V28-Forecast_contrib!V28 -> 0 | W28: =Forecast_spend!W28-Forecast_contrib!W28 -> 0 | X28: =Forecast_spend!X28-Forecast_contrib!X28 -> 0 | Y28: =Forecast_spend!Y28-Forecast_contrib!Y28 -> 0 | Z28: =Forecast_spend!Z28-Forecast_contrib!Z28 -> 0 | AA28: =Forecast_spend!AA28-Forecast_contrib!AA28 -> 0 | AC28: =SUMPRODUCT($H$7:$AA$7*$H28:$AA28) -> 0
B29: =Hist_vol!B28 -> Connections | C29: =Hist_vol!C28 -> EG3 | D29: =Hist_vol!D28 -> Embedded generation | E29: =Hist_vol!E28 -> Complex connection HV (large capacity) | F29: Embedded generation Complex connection HV (large capacity) | H29: =Forecast_spend!H29-Forecast_contrib!H29 -> 3876316.964 | I29: =Forecast_spend!I29-Forecast_contrib!I29 -> 1153502.452 | J29: =Forecast_spend!J29-Forecast_contrib!J29 -> 0 | K29: =Forecast_spend!K29-Forecast_contrib!K29 -> 1905941.07 | L29: =Forecast_spend!L29-Forecast_contrib!L29 -> 2175690.245 | M29: =Forecast_spend!M29-Forecast_contrib!M29 -> 1891271.721 | N29: =Forecast_spend!N29-Forecast_contrib!N29 -> 2567360.011 | O29: =Forecast_spend!O29-Forecast_contrib!O29 -> 4391430.94 | P29: =Forecast_spend!P29-Forecast_contrib!P29 -> 2905781.68 | Q29: =Forecast_spend!Q29-Forecast_contrib!Q29 -> -2935039.942 | R29: =Forecast_spend!R29-Forecast_contrib!R29 -> -2164500.643 | S29: =Forecast_spend!S29-Forecast_contrib!S29 -> -1790420.881 | T29: =Forecast_spend!T29-Forecast_contrib!T29 -> -3559259.354 | U29: =Forecast_spend!U29-Forecast_contrib!U29 -> 0 | V29: =Forecast_spend!V29-Forecast_contrib!V29 -> 0 | W29: =Forecast_spend!W29-Forecast_contrib!W29 -> 0 | X29: =Forecast_spend!X29-Forecast_contrib!X29 -> 0 | Y29: =Forecast_spend!Y29-Forecast_contrib!Y29 -> 0 | Z29: =Forecast_spend!Z29-Forecast_contrib!Z29 -> 0 | AA29: =Forecast_spend!AA29-Forecast_contrib!AA29 -> 0 | AC29: =SUMPRODUCT($H$7:$AA$7*$H29:$AA29) -> 0
B30: ='Grid connected batteries'!B17 -> Connections | C30: Grid connected Batteries | D30: ='Grid connected batteries'!C17 -> Grid connected Battery | E30: Net capex | F30: =D30 -> Grid connected Battery | H30: =Forecast_spend!H30-Forecast_contrib!H30 -> 0 | I30: =Forecast_spend!I30-Forecast_contrib!I30 -> 0 | J30: =Forecast_spend!J30-Forecast_contrib!J30 -> 0 | K30: =Forecast_spend!K30-Forecast_contrib!K30 -> 0 | L30: =Forecast_spend!L30-Forecast_contrib!L30 -> 0 | M30: =Forecast_spend!M30-Forecast_contrib!M30 -> 0 | N30: =Forecast_spend!N30-Forecast_contrib!N30 -> 0 | O30: =Forecast_spend!O30-Forecast_contrib!O30 -> 0 | P30: =Forecast_spend!P30-Forecast_contrib!P30 -> 0 | Q30: =Forecast_spend!Q30-Forecast_contrib!Q30 -> 0 | R30: =Forecast_spend!R30-Forecast_contrib!R30 -> 0 | S30: =Forecast_spend!S30-Forecast_contrib!S30 -> 0 | T30: =Forecast_spend!T30-Forecast_contrib!T30 -> 0 | U30: =Forecast_spend!U30-Forecast_contrib!U30 -> 0 | V30: =Forecast_spend!V30-Forecast_contrib!V30 -> 0 | W30: =Forecast_spend!W30-Forecast_contrib!W30 -> 1971991.33 | X30: =Forecast_spend!X30-Forecast_contrib!X30 -> 1888066.857 | Y30: =Forecast_spend!Y30-Forecast_contrib!Y30 -> 2199657.989 | Z30: =Forecast_spend!Z30-Forecast_contrib!Z30 -> 2443954.185 | AA30: =Forecast_spend!AA30-Forecast_contrib!AA30 -> 2145500.296 | AC30: =SUMPRODUCT($H$7:$AA$7*$H30:$AA30) -> 10649170.66
B31: ='Data Centres'!A2 -> Connections | C31: Data Centres | D31: ='Data Centres'!A2 -> Connections | E31: Net capex | F31: =D31 -> Connections | H31: =Forecast_spend!H31-Forecast_contrib!H31 -> 0 | I31: =Forecast_spend!I31-Forecast_contrib!I31 -> 0 | J31: =Forecast_spend!J31-Forecast_contrib!J31 -> 0 | K31: =Forecast_spend!K31-Forecast_contrib!K31 -> 0 | L31: =Forecast_spend!L31-Forecast_contrib!L31 -> 0 | M31: =Forecast_spend!M31-Forecast_contrib!M31 -> 0 | N31: =Forecast_spend!N31-Forecast_contrib!N31 -> 0 | O31: =Forecast_spend!O31-Forecast_contrib!O31 -> 0 | P31: =Forecast_spend!P31-Forecast_contrib!P31 -> 0 | Q31: =Forecast_spend!Q31-Forecast_contrib!Q31 -> 0 | R31: =Forecast_spend!R31-Forecast_contrib!R31 -> 0 | S31: =Forecast_spend!S31-Forecast_contrib!S31 -> 0 | T31: =Forecast_spend!T31-Forecast_contrib!T31 -> 0 | U31: =Forecast_spend!U31-Forecast_contrib!U31 -> 0 | V31: =Forecast_spend!V31-Forecast_contrib!V31 -> 0 | W31: =Forecast_spend!W31-Forecast_contrib!W31 -> 3964444.444 | X31: =Forecast_spend!X31-Forecast_contrib!X31 -> 5506172.84 | Y31: =Forecast_spend!Y31-Forecast_contrib!Y31 -> 3303703.704 | Z31: =Forecast_spend!Z31-Forecast_contrib!Z31 -> 10681975.31 | AA31: =Forecast_spend!AA31-Forecast_contrib!AA31 -> 8699753.086 | AC31: =SUMPRODUCT($H$7:$AA$7*$H31:$AA31) -> 32156049.38
D32: Total | H32: =SUM(H16:H31) -> 83082204.22 | I32: 89374351.82 | J32: 89857517.88 | K32: 75535149.6 | L32: 62552830 | M32: 56101052.45 | N32: 44991288.13 | O32: 42639338.09 | P32: 45373411.69 | Q32: 51713337.26 | R32: 69252542.82 | S32: 81053531.9 | T32: 93116595.38 | U32: 100572019.6 | V32: 101759430.9 | W32: 116281747.7 | X32: 117721199.4 | Y32: 111090367.6 | Z32: 119039857.4 | AA32: 118495482.6 | AC32: =SUM(AC16:AC31) -> 582628654.6

Sheet Lists
A1: =Assumptions!$A$1 -> Powercor
A2: =Assumptions!$A$2 -> Connections
A3: Assumptions
B6: Business | D6: RIN categories | F6: Business categories | G6: AER categories | I6: PTRM asset category | K6: RIN category | N6: Forecast basis | P6: Growth rates | S6: Code | T6: Segment | U6: Type
B7: Powercor | D7: Replacement | F7: Replacement | G7: Replacement | I7: Subtransmission | K7: Residential | L7: Res | N7: History | P7: Historical | S7: R1 | T7: Residential | U7: Simple connection LV
B8: CitiPower | D8: Augmentation | F8: DER Augmentation | G8: Augmentation | I8: Distribution system assets | K8: Commercial/Industrial | L8: C&I | N8: Business case | P8: Growth1 | S8: R2 | T8: Residential | U8: Complex connection LV
B9: United Energy | D9: Connections | F9: Other augmentation | G9: DER capex | I9: Public lighting | K9: Subdivision | L9: Subd | N9: Other | P9: Growth2 | S9: R3 | T9: Residential | U9: Complex connection HV
F10: Connections | G10: Connections | I10: SCADA/Network control | K10: Embedded generation | L10: EmbG | P10: Growth3 | S10: CI1 | T10: Commercial/Industrial | U10: Simple connection LV
F11: SCADA | G11: Augmentation | I11: Non-network general assets - IT | K11: Other connections | L11: Other | P11: Flat | S11: CI2 | T11: Commercial/Industrial | U11: Complex connection HV (customer connected at LV, minor HV works)
F12: VBRC | G12: Replacement | I12: Non-network general assets - Other | P12: ACIF | S12: CI3 | T12: Commercial/Industrial | U12: Complex connection HV (customer connected at LV, upstream asset works)
F13: REFCL | G13: Augmentation | I13: VBRC | P13: GSP | S13: CI4 | T13: Commercial/Industrial | U13: Complex connection HV (customer connected at HV)
F14: Recurring IT | G14: ICT capex | I14: Land | P14: HIA | S14: CI5 | T14: Commercial/Industrial | U14: Complex connection sub-transmission
F15: Non-recurring IT | G15: ICT capex | I15: Accelerated depreciation assets | P15: ACIF FTI | S15: S1 | T15: Subdivision | U15: Complex connection LV
F16: Recurring DER IT | G16: DER capex | P16: Macromonitor | S16: S2 | T16: Subdivision | U16: Complex connection HV (no upstream asset works)
F17: Non-recurring DER IT | G17: DER capex | S17: S3 | T17: Subdivision | U17: Complex connection HV (with upstream asset works)
F18: Property | G18: Property capex | S18: EG1 | T18: Embedded generation | U18: Simple connection LV
F19: Fleet | G19: Fleet capex | S19: EG2 | T19: Embedded generation | U19: Complex connection HV (small capacity)
F20: Other | G20: Other non-network capex | S20: EG3 | T20: Embedded generation | U20: Complex connection HV (large capacity)
F21: Land | G21: Other non-network capex
W60: RHU | X60: Fuse/Junction Box Replacement | AB60: =W60&X60 -> RHUFuse/Junction Box Replacement
W61: RLG | X61: Sustainable Lantern Replacemen | AB61: RLGSustainable Lantern Replacemen
W62: RLJ | X62: Single Main Roads P/L replacem | AB62: RLJSingle Main Roads P/L replacem
W63: RLM | X63: Single Minor Roads P/L replace | AB63: RLMSingle Minor Roads P/L replace
W64: RMF | X64: Premise faults service replace | AB64: RMFPremise faults service replace
W65: RMJ | X65: Replace Service (alter termina | AB65: RMJReplace Service (alter termina
W66: RMK | X66: Replace Service (& customer ma | AB66: RMKReplace Service (& customer ma
W67: RML | X67: Install Disconnect Device | AB67: RMLInstall Disconnect Device
W68: RMP | X68: Service replacement (Planned) | AB68: RMPService replacement (Planned)
W69: RMU | X69: O/h services replaced with U/G | AB69: RMUO/h services replaced with U/G
W70: ROA | X70: O/H Line Repl-HV ABC | AB70: ROAO/H Line Repl-HV ABC
W71: ROF | X71: Fargo Sleeve replacement (3) | AB71: ROFFargo Sleeve replacement (3)
W72: ROH | X72: Open wire replacement | AB72: ROHOpen wire replacement
W73: ROL | X73: O/H Line Repl-LV ABC | AB73: ROLO/H Line Repl-LV ABC
W74: ROP | AB74: ROP
W75: RPA | X75: Pole Replace P/L - Main Roads | AB75: RPAPole Replace P/L - Main Roads
W76: RPB | X76: Pole Replace P/L - Minor Roads | AB76: RPBPole Replace P/L - Minor Roads
W77: RPH | X77: Pole Replacement- High Voltage | AB77: RPHPole Replacement- High Voltage
W78: RPL | X78: Pole Replacement- Low Voltage | AB78: RPLPole Replacement- Low Voltage
W79: RPS | X79: Pole Replacement- SubT | AB79: RPSPole Replacement- SubT
W80: RRH | X80: Pole Reinforcement- HV | AB80: RRHPole Reinforcement- HV
W81: RRL | X81: Pole Reinforcement- LV | AB81: RRLPole Reinforcement- LV
W82: RRS | X82: Pole Reinforcement- ST | AB82: RRSPole Reinforcement- ST
W83: RSA | X83: Subtrans Install Replacement | AB83: RSASubtrans Install Replacement
W84: RUA | X84: Dist. U/G Cable Replacement | AB84: RUADist. U/G Cable Replacement
W85: RUC | X85: Underground Cable Replacement | AB85: RUCUnderground Cable Replacement
W86: RUD | X86: Pillar to Pit | AB86: RUDPillar to Pit
W87: RUE | X87: Pillar to Pit Cust Service Alt | AB87: RUEPillar to Pit Cust Service Alt
W88: RUF | X88: Pillar to UEL STD Pillar Repla | AB88: RUFPillar to UEL STD Pillar Repla
W89: RUG | X89: Dist. U/G Cable Repl-non cabus | AB89: RUGDist. U/G Cable Repl-non cabus
W90: RUH | X90: Dist. U/G Cable Repl-HV | AB90: RUHDist. U/G Cable Repl-HV
W91: RUL | X91: Dist. U/G Cable Repl-LV | AB91: RULDist. U/G Cable Repl-LV
W92: RUP | X92: Dist. U/G Cable Replacement - | AB92: RUPDist. U/G Cable Replacement -
W93: RUS | X93: Dist. U/G Cable Repl-SubT | AB93: =W93&X93 -> RUSDist. U/G Cable Repl-SubT
W94: RXD | X94: Surge Diverter repl (set of 3) | AB94: RXDSurge Diverter repl (set of 3)
W95: RXE | X95: Surge Diverter repl - (single) | AB95: RXESurge Diverter repl - (single)
W96: RXF | X96: Fuse Unit repl (set of 3) | AB96: RXFFuse Unit repl (set of 3)
W97: RXG | X97: Sub T Insulator repl(set of 3) | AB97: RXGSub T Insulator repl(set of 3)
W98: RXH | X98: HV Xarms replacement | AB98: RXHHV Xarms replacement
W99: RXI | X99: HV Insulator repl (set of 3) | AB99: RXIHV Insulator repl (set of 3)
W100: RXJ | X100: Fuse Unit repl (single) | AB100: RXJFuse Unit repl (single)
W101: RXK | X101: Sub T Insulator repl (single) | AB101: RXKSub T Insulator repl (single)
W102: RXL | X102: LV Xarms replacement | AB102: RXLLV Xarms replacement
W103: RXM | X103: HV Insulator repl (single) | AB103: RXMHV Insulator repl (single)
W104: RXP | X104: Pole Top Rot life extension | AB104: RXPPole Top Rot life extension
W105: RXS | X105: ST Xarms replacement | AB105: RXSST Xarms replacement

Sheet Output
A1: Powercor
C2: SME Output sheet for input into AER Capex Forecast Model | I2: Key: | J2: Input | K2: Do not edit
C3: Input| Projects
I5: Total annual direct costs excl. type 2 capcons, unescalated (note: please include type 1 capital contributions and rebates where applicable) | Q5: Total annual type 1 capital contributions, direct costs, unescalated | AF5: 0 | AG5: 0
I6: =SUM(I10:I1009) -> 205178.8064 | J6: 198676.0876 | K6: 234740.7345 | L6: 240059.9524 | M6: 218102.2084 | N6: 269201.5632 | O6: 257365.1933 | Q6: =SUM(Q10:Q1009) -> 104606.7869 | R6: 96916.65672 | S6: 118458.9869 | T6: 122338.753 | U6: 107011.8408 | V6: 150161.7058 | W6: 138869.7107 | AF6: NOTE: fill in table only if you select 'DNSP defined' overhead allocation | AR6: 1 | AS6: 2 | AT6: 3 | AU6: 4 | AV6: 5 | AW6: 6 | AX6: 7 | AY6: 8 | AZ6: 9 | BA6: 10 | BB6: 11 | BC6: 12 | BD6: 13 | BE6: 14 | BF6: 15 | BG6: 16 | BH6: 17 | BI6: 18 | BJ6: 19 | BK6: 20 | BL6: 21 | BM6: 22 | BN6: 23 | BO6: 24 | BP6: 25 | BQ6: 26 | BR6: 27 | BS6: 28 | BT6: 29 | BU6: 30 | BV6: 31 | BW6: 32 | BX6: 33 | BY6: 34 | BZ6: 35 | CA6: 36 | CB6: 37 | CC6: 38 | CD6: 39 | CE6: 40 | CF6: 41 | CG6: 42 | CH6: 43 | CI6: 44 | CJ6: 45 | CK6: 46 | CL6: 47 | CM6: 48 | CN6: 49 | CO6: 50
C7: 13. Project Details | F7: 14. RIN and optional DNSP mapping categories | I7: 15. Unescalated direct costs (excluding type 2 capital contributions) ($'000s 2025-26 June) | Q7: 16. Type 1 capital contributions included in table 15 ($'000s 2025-26 June) | Y7: 17. Cost components as % of direct costs | AC7: 18. Capitalised overheads allocation | AF7: 19. Allocation of capitalised overheads - DNSP defined | AI7: 20. AER categories as % of direct costs (i.e. total costs reported in table 15, excluding capitalised overheads) | AR7: 21. PTRM asset classes as % of direct costs (i.e. total costs reported in table 15, excluding capitalised overheads)
AB8: 0 | AF8: % of total capitalised overheads allocated to project: | AQ8: 0 | AR8: Dx | AS8: Dx | AT8: Dx | AU8: Dx | AV8: Dx | AW8: Dx | AX8: Dx | AY8: Dx | AZ8: Dx | BA8: Dx | CP8: 0
C9: Project/Program Inputs | D9: Unique ID | F9: RIN categories | G9: DNSP category (free-fill) | I9: 2024-25 | J9: 2025-26 | K9: 2026-27 | L9: 2027-28 | M9: 2028-29 | N9: 2029-30 | O9: 2030-31 | Q9: 2024-25 | R9: 2025-26 | S9: 2026-27 | T9: 2027-28 | U9: 2028-29 | V9: 2029-30 | W9: 2030-31 | Y9: Internal labour | Z9: Contract labour | AA9: Non-labour | AC9: Network Overheads Applies | AD9: Corporate Overheads Applies | AF9: % of total network overheads | AG9: % of total corporate overheads | AI9: Replacement | AJ9: DER capex | AK9: Augmentation | AL9: Connections | AM9: ICT capex | AN9: Property capex | AO9: Fleet capex | AP9: Other non-network capex | AR9: Subtransmission | AS9: Distribution system assets | AT9: Public lighting | AU9: SCADA/Network control | AV9: Non-network general assets - IT | AW9: Non-network general assets - Other | AX9: VBRC | AY9: Land | AZ9: in-house software | BA9: Accelerated depreciation assets
B10: 1 | C10: HV pole replacement | D10: 1 | F10: Replacement | G10: Replacement | I10: =SUMPRODUCT((Forecast_spend!U$16:U$31)*(Forecast_spend!$F$16:$F$31=$C10))/1000 -> 0 | J10: =SUMPRODUCT((Forecast_spend!V$16:V$31)*(Forecast_spend!$F$16:$F$31=$C10))/1000 -> 0 | K10: =SUMPRODUCT((Forecast_spend!W$16:W$31)*(Forecast_spend!$F$16:$F$31=$C10))/1000 -> 0 | L10: =SUMPRODUCT((Forecast_spend!X$16:X$31)*(Forecast_spend!$F$16:$F$31=$C10))/1000 -> 0 | M10: =SUMPRODUCT((Forecast_spend!Y$16:Y$31)*(Forecast_spend!$F$16:$F$31=$C10))/1000 -> 0 | N10: =SUMPRODUCT((Forecast_spend!Z$16:Z$31)*(Forecast_spend!$F$16:$F$31=$C10))/1000 -> 0 | O10: =SUMPRODUCT((Forecast_spend!AA$16:AA$31)*(Forecast_spend!$F$16:$F$31=$C10))/1000 -> 0 | Q10: =SUMPRODUCT((Forecast_contrib!U$16:U$31)*(Forecast_contrib!$F$16:$F$31=$C10))/1000 -> 0 | R10: =SUMPRODUCT((Forecast_contrib!V$16:V$31)*(Forecast_contrib!$F$16:$F$31=$C10))/1000 -> 0 | S10: =SUMPRODUCT((Forecast_contrib!W$16:W$31)*(Forecast_contrib!$F$16:$F$31=$C10))/1000 -> 0 | T10: =SUMPRODUCT((Forecast_contrib!X$16:X$31)*(Forecast_contrib!$F$16:$F$31=$C10))/1000 -> 0 | U10: =SUMPRODUCT((Forecast_contrib!Y$16:Y$31)*(Forecast_contrib!$F$16:$F$31=$C10))/1000 -> 0 | V10: =SUMPRODUCT((Forecast_contrib!Z$16:Z$31)*(Forecast_contrib!$F$16:$F$31=$C10))/1000 -> 0 | W10: =SUMPRODUCT((Forecast_contrib!AA$16:AA$31)*(Forecast_contrib!$F$16:$F$31=$C10))/1000 -> 0 | AB10: =IF(SUM(Y10:AA10,I10:O10)=0,"",IF(SUM(Y10:AA10)=1,"",1)) ->  | AI10: 0 | AJ10: 0 | AK10: 0 | AL10: 0 | AM10: 0 | AN10: 0 | AO10: 0 | AP10: 0 | CP10: =IF(COUNT(AI10:AP10)=0,"",IF(SUM(AI10:AP10)=1,"",1)) -> 1
B11: =IFERROR(B10+1,"") -> 2 | C11: LV pole replacement | D11: 2 | F11: Replacement | G11: Replacement | I11: =SUMPRODUCT((Forecast_spend!U$16:U$31)*(Forecast_spend!$F$16:$F$31=$C11))/1000 -> 0 | J11: =SUMPRODUCT((Forecast_spend!V$16:V$31)*(Forecast_spend!$F$16:$F$31=$C11))/1000 -> 0 | K11: =SUMPRODUCT((Forecast_spend!W$16:W$31)*(Forecast_spend!$F$16:$F$31=$C11))/1000 -> 0 | L11: =SUMPRODUCT((Forecast_spend!X$16:X$31)*(Forecast_spend!$F$16:$F$31=$C11))/1000 -> 0 | M11: =SUMPRODUCT((Forecast_spend!Y$16:Y$31)*(Forecast_spend!$F$16:$F$31=$C11))/1000 -> 0 | N11: =SUMPRODUCT((Forecast_spend!Z$16:Z$31)*(Forecast_spend!$F$16:$F$31=$C11))/1000 -> 0 | O11: =SUMPRODUCT((Forecast_spend!AA$16:AA$31)*(Forecast_spend!$F$16:$F$31=$C11))/1000 -> 0 | Q11: =SUMPRODUCT((Forecast_contrib!U$16:U$31)*(Forecast_contrib!$F$16:$F$31=$C11))/1000 -> 0 | R11: =SUMPRODUCT((Forecast_contrib!V$16:V$31)*(Forecast_contrib!$F$16:$F$31=$C11))/1000 -> 0 | S11: =SUMPRODUCT((Forecast_contrib!W$16:W$31)*(Forecast_contrib!$F$16:$F$31=$C11))/1000 -> 0 | T11: =SUMPRODUCT((Forecast_contrib!X$16:X$31)*(Forecast_contrib!$F$16:$F$31=$C11))/1000 -> 0 | U11: =SUMPRODUCT((Forecast_contrib!Y$16:Y$31)*(Forecast_contrib!$F$16:$F$31=$C11))/1000 -> 0 | V11: =SUMPRODUCT((Forecast_contrib!Z$16:Z$31)*(Forecast_contrib!$F$16:$F$31=$C11))/1000 -> 0 | W11: =SUMPRODUCT((Forecast_contrib!AA$16:AA$31)*(Forecast_contrib!$F$16:$F$31=$C11))/1000 -> 0 | AI11: 0 | AJ11: 0 | AK11: 0 | AL11: 0 | AM11: 0 | AN11: 0 | AO11: 0 | AP11: 0 | CP11: 1
B12: 3 | C12: LV pole top replacement | D12: 3 | F12: Replacement | G12: Replacement | I12: =SUMPRODUCT((Forecast_spend!U$16:U$31)*(Forecast_spend!$F$16:$F$31=$C12))/1000 -> 0 | J12: =SUMPRODUCT((Forecast_spend!V$16:V$31)*(Forecast_spend!$F$16:$F$31=$C12))/1000 -> 0 | K12: =SUMPRODUCT((Forecast_spend!W$16:W$31)*(Forecast_spend!$F$16:$F$31=$C12))/1000 -> 0 | L12: =SUMPRODUCT((Forecast_spend!X$16:X$31)*(Forecast_spend!$F$16:$F$31=$C12))/1000 -> 0 | M12: =SUMPRODUCT((Forecast_spend!Y$16:Y$31)*(Forecast_spend!$F$16:$F$31=$C12))/1000 -> 0 | N12: =SUMPRODUCT((Forecast_spend!Z$16:Z$31)*(Forecast_spend!$F$16:$F$31=$C12))/1000 -> 0 | O12: =SUMPRODUCT((Forecast_spend!AA$16:AA$31)*(Forecast_spend!$F$16:$F$31=$C12))/1000 -> 0 | Q12: =SUMPRODUCT((Forecast_contrib!U$16:U$31)*(Forecast_contrib!$F$16:$F$31=$C12))/1000 -> 0 | R12: =SUMPRODUCT((Forecast_contrib!V$16:V$31)*(Forecast_contrib!$F$16:$F$31=$C12))/1000 -> 0 | S12: =SUMPRODUCT((Forecast_contrib!W$16:W$31)*(Forecast_contrib!$F$16:$F$31=$C12))/1000 -> 0 | T12: =SUMPRODUCT((Forecast_contrib!X$16:X$31)*(Forecast_contrib!$F$16:$F$31=$C12))/1000 -> 0 | U12: =SUMPRODUCT((Forecast_contrib!Y$16:Y$31)*(Forecast_contrib!$F$16:$F$31=$C12))/1000 -> 0 | V12: =SUMPRODUCT((Forecast_contrib!Z$16:Z$31)*(Forecast_contrib!$F$16:$F$31=$C12))/1000 -> 0 | W12: =SUMPRODUCT((Forecast_contrib!AA$16:AA$31)*(Forecast_contrib!$F$16:$F$31=$C12))/1000 -> 0 | AI12: 0 | AJ12: 0 | AK12: 0 | AL12: 0 | AM12: 0 | AN12: 0 | AO12: 0 | AP12: 0 | CP12: 1
B13: 4 | C13: HV pole top replacement | D13: 4 | F13: Replacement | G13: Replacement | I13: =SUMPRODUCT((Forecast_spend!U$16:U$31)*(Forecast_spend!$F$16:$F$31=$C13))/1000 -> 0 | J13: =SUMPRODUCT((Forecast_spend!V$16:V$31)*(Forecast_spend!$F$16:$F$31=$C13))/1000 -> 0 | K13: =SUMPRODUCT((Forecast_spend!W$16:W$31)*(Forecast_spend!$F$16:$F$31=$C13))/1000 -> 0 | L13: =SUMPRODUCT((Forecast_spend!X$16:X$31)*(Forecast_spend!$F$16:$F$31=$C13))/1000 -> 0 | M13: =SUMPRODUCT((Forecast_spend!Y$16:Y$31)*(Forecast_spend!$F$16:$F$31=$C13))/1000 -> 0 | N13: =SUMPRODUCT((Forecast_spend!Z$16:Z$31)*(Forecast_spend!$F$16:$F$31=$C13))/1000 -> 0 | O13: =SUMPRODUCT((Forecast_spend!AA$16:AA$31)*(Forecast_spend!$F$16:$F$31=$C13))/1000 -> 0 | Q13: =SUMPRODUCT((Forecast_contrib!U$16:U$31)*(Forecast_contrib!$F$16:$F$31=$C13))/1000 -> 0 | R13: =SUMPRODUCT((Forecast_contrib!V$16:V$31)*(Forecast_contrib!$F$16:$F$31=$C13))/1000 -> 0 | S13: =SUMPRODUCT((Forecast_contrib!W$16:W$31)*(Forecast_contrib!$F$16:$F$31=$C13))/1000 -> 0 | T13: =SUMPRODUCT((Forecast_contrib!X$16:X$31)*(Forecast_contrib!$F$16:$F$31=$C13))/1000 -> 0 | U13: =SUMPRODUCT((Forecast_contrib!Y$16:Y$31)*(Forecast_contrib!$F$16:$F$31=$C13))/1000 -> 0 | V13: =SUMPRODUCT((Forecast_contrib!Z$16:Z$31)*(Forecast_contrib!$F$16:$F$31=$C13))/1000 -> 0 | W13: =SUMPRODUCT((Forecast_contrib!AA$16:AA$31)*(Forecast_contrib!$F$16:$F$31=$C13))/1000 -> 0 | AI13: 0 | AJ13: 0 | AK13: 0 | AL13: 0 | AM13: 0 | AN13: 0 | AO13: 0 | AP13: 0 | CP13: 1
B14: 5 | C14: Unplanned line maintenance | D14: 5 | F14: Replacement | G14: Replacement | I14: =SUMPRODUCT((Forecast_spend!U$16:U$31)*(Forecast_spend!$F$16:$F$31=$C14))/1000 -> 0 | J14: =SUMPRODUCT((Forecast_spend!V$16:V$31)*(Forecast_spend!$F$16:$F$31=$C14))/1000 -> 0 | K14: =SUMPRODUCT((Forecast_spend!W$16:W$31)*(Forecast_spend!$F$16:$F$31=$C14))/1000 -> 0 | L14: =SUMPRODUCT((Forecast_spend!X$16:X$31)*(Forecast_spend!$F$16:$F$31=$C14))/1000 -> 0 | M14: =SUMPRODUCT((Forecast_spend!Y$16:Y$31)*(Forecast_spend!$F$16:$F$31=$C14))/1000 -> 0 | N14: =SUMPRODUCT((Forecast_spend!Z$16:Z$31)*(Forecast_spend!$F$16:$F$31=$C14))/1000 -> 0 | O14: =SUMPRODUCT((Forecast_spend!AA$16:AA$31)*(Forecast_spend!$F$16:$F$31=$C14))/1000 -> 0 | Q14: =SUMPRODUCT((Forecast_contrib!U$16:U$31)*(Forecast_contrib!$F$16:$F$31=$C14))/1000 -> 0 | R14: =SUMPRODUCT((Forecast_contrib!V$16:V$31)*(Forecast_contrib!$F$16:$F$31=$C14))/1000 -> 0 | S14: =SUMPRODUCT((Forecast_contrib!W$16:W$31)*(Forecast_contrib!$F$16:$F$31=$C14))/1000 -> 0 | T14: =SUMPRODUCT((Forecast_contrib!X$16:X$31)*(Forecast_contrib!$F$16:$F$31=$C14))/1000 -> 0 | U14: =SUMPRODUCT((Forecast_contrib!Y$16:Y$31)*(Forecast_contrib!$F$16:$F$31=$C14))/1000 -> 0 | V14: =SUMPRODUCT((Forecast_contrib!Z$16:Z$31)*(Forecast_contrib!$F$16:$F$31=$C14))/1000 -> 0 | W14: =SUMPRODUCT((Forecast_contrib!AA$16:AA$31)*(Forecast_contrib!$F$16:$F$31=$C14))/1000 -> 0 | AI14: 0 | AJ14: 0 | AK14: 0 | AL14: 0 | AM14: 0 | AN14: 0 | AO14: 0 | AP14: 0 | CP14: 1
B15: 6 | C15: HBRA HV wooden cross-arm replacements | D15: 6 | F15: Replacement | G15: Replacement | I15: =SUMPRODUCT((Forecast_spend!U$16:U$31)*(Forecast_spend!$F$16:$F$31=$C15))/1000 -> 0 | J15: =SUMPRODUCT((Forecast_spend!V$16:V$31)*(Forecast_spend!$F$16:$F$31=$C15))/1000 -> 0 | K15: =SUMPRODUCT((Forecast_spend!W$16:W$31)*(Forecast_spend!$F$16:$F$31=$C15))/1000 -> 0 | L15: =SUMPRODUCT((Forecast_spend!X$16:X$31)*(Forecast_spend!$F$16:$F$31=$C15))/1000 -> 0 | M15: =SUMPRODUCT((Forecast_spend!Y$16:Y$31)*(Forecast_spend!$F$16:$F$31=$C15))/1000 -> 0 | N15: =SUMPRODUCT((Forecast_spend!Z$16:Z$31)*(Forecast_spend!$F$16:$F$31=$C15))/1000 -> 0 | O15: =SUMPRODUCT((Forecast_spend!AA$16:AA$31)*(Forecast_spend!$F$16:$F$31=$C15))/1000 -> 0 | Q15: =SUMPRODUCT((Forecast_contrib!U$16:U$31)*(Forecast_contrib!$F$16:$F$31=$C15))/1000 -> 0 | R15: =SUMPRODUCT((Forecast_contrib!V$16:V$31)*(Forecast_contrib!$F$16:$F$31=$C15))/1000 -> 0 | S15: =SUMPRODUCT((Forecast_contrib!W$16:W$31)*(Forecast_contrib!$F$16:$F$31=$C15))/1000 -> 0 | T15: =SUMPRODUCT((Forecast_contrib!X$16:X$31)*(Forecast_contrib!$F$16:$F$31=$C15))/1000 -> 0 | U15: =SUMPRODUCT((Forecast_contrib!Y$16:Y$31)*(Forecast_contrib!$F$16:$F$31=$C15))/1000 -> 0 | V15: =SUMPRODUCT((Forecast_contrib!Z$16:Z$31)*(Forecast_contrib!$F$16:$F$31=$C15))/1000 -> 0 | W15: =SUMPRODUCT((Forecast_contrib!AA$16:AA$31)*(Forecast_contrib!$F$16:$F$31=$C15))/1000 -> 0 | AI15: 0 | AJ15: 0 | AK15: 0 | AL15: 0 | AM15: 0 | AN15: 0 | AO15: 0 | AP15: 0 | CP15: 1
B16: 7 | C16: Pole reinforcement | D16: 7 | F16: Replacement | G16: Replacement | I16: =SUMPRODUCT((Forecast_spend!U$16:U$31)*(Forecast_spend!$F$16:$F$31=$C16))/1000 -> 0 | J16: =SUMPRODUCT((Forecast_spend!V$16:V$31)*(Forecast_spend!$F$16:$F$31=$C16))/1000 -> 0 | K16: =SUMPRODUCT((Forecast_spend!W$16:W$31)*(Forecast_spend!$F$16:$F$31=$C16))/1000 -> 0 | L16: =SUMPRODUCT((Forecast_spend!X$16:X$31)*(Forecast_spend!$F$16:$F$31=$C16))/1000 -> 0 | M16: =SUMPRODUCT((Forecast_spend!Y$16:Y$31)*(Forecast_spend!$F$16:$F$31=$C16))/1000 -> 0 | N16: =SUMPRODUCT((Forecast_spend!Z$16:Z$31)*(Forecast_spend!$F$16:$F$31=$C16))/1000 -> 0 | O16: =SUMPRODUCT((Forecast_spend!AA$16:AA$31)*(Forecast_spend!$F$16:$F$31=$C16))/1000 -> 0 | Q16: =SUMPRODUCT((Forecast_contrib!U$16:U$31)*(Forecast_contrib!$F$16:$F$31=$C16))/1000 -> 0 | R16: =SUMPRODUCT((Forecast_contrib!V$16:V$31)*(Forecast_contrib!$F$16:$F$31=$C16))/1000 -> 0 | S16: =SUMPRODUCT((Forecast_contrib!W$16:W$31)*(Forecast_contrib!$F$16:$F$31=$C16))/1000 -> 0 | T16: =SUMPRODUCT((Forecast_contrib!X$16:X$31)*(Forecast_contrib!$F$16:$F$31=$C16))/1000 -> 0 | U16: =SUMPRODUCT((Forecast_contrib!Y$16:Y$31)*(Forecast_contrib!$F$16:$F$31=$C16))/1000 -> 0 | V16: =SUMPRODUCT((Forecast_contrib!Z$16:Z$31)*(Forecast_contrib!$F$16:$F$31=$C16))/1000 -> 0 | W16: =SUMPRODUCT((Forecast_contrib!AA$16:AA$31)*(Forecast_contrib!$F$16:$F$31=$C16))/1000 -> 0 | AI16: 0 | AJ16: 0 | AK16: 0 | AL16: 0 | AM16: 0 | AN16: 0 | AO16: 0 | AP16: 0 | CP16: 1
B17: 8 | C17: Defective conductor | D17: 8 | F17: Replacement | G17: Replacement | I17: =SUMPRODUCT((Forecast_spend!U$16:U$31)*(Forecast_spend!$F$16:$F$31=$C17))/1000 -> 0 | J17: =SUMPRODUCT((Forecast_spend!V$16:V$31)*(Forecast_spend!$F$16:$F$31=$C17))/1000 -> 0 | K17: =SUMPRODUCT((Forecast_spend!W$16:W$31)*(Forecast_spend!$F$16:$F$31=$C17))/1000 -> 0 | L17: =SUMPRODUCT((Forecast_spend!X$16:X$31)*(Forecast_spend!$F$16:$F$31=$C17))/1000 -> 0 | M17: =SUMPRODUCT((Forecast_spend!Y$16:Y$31)*(Forecast_spend!$F$16:$F$31=$C17))/1000 -> 0 | N17: =SUMPRODUCT((Forecast_spend!Z$16:Z$31)*(Forecast_spend!$F$16:$F$31=$C17))/1000 -> 0 | O17: =SUMPRODUCT((Forecast_spend!AA$16:AA$31)*(Forecast_spend!$F$16:$F$31=$C17))/1000 -> 0 | Q17: =SUMPRODUCT((Forecast_contrib!U$16:U$31)*(Forecast_contrib!$F$16:$F$31=$C17))/1000 -> 0 | R17: =SUMPRODUCT((Forecast_contrib!V$16:V$31)*(Forecast_contrib!$F$16:$F$31=$C17))/1000 -> 0 | S17: =SUMPRODUCT((Forecast_contrib!W$16:W$31)*(Forecast_contrib!$F$16:$F$31=$C17))/1000 -> 0 | T17: =SUMPRODUCT((Forecast_contrib!X$16:X$31)*(Forecast_contrib!$F$16:$F$31=$C17))/1000 -> 0 | U17: =SUMPRODUCT((Forecast_contrib!Y$16:Y$31)*(Forecast_contrib!$F$16:$F$31=$C17))/1000 -> 0 | V17: =SUMPRODUCT((Forecast_contrib!Z$16:Z$31)*(Forecast_contrib!$F$16:$F$31=$C17))/1000 -> 0 | W17: =SUMPRODUCT((Forecast_contrib!AA$16:AA$31)*(Forecast_contrib!$F$16:$F$31=$C17))/1000 -> 0 | AI17: 0 | AJ17: 0 | AK17: 0 | AL17: 0 | AM17: 0 | AN17: 0 | AO17: 0 | AP17: 0 | CP17: 1
B18: 9 | C18: Risk-based HV conductor replacement | D18: 9 | F18: Replacement | G18: Replacement | I18: =SUMPRODUCT((Forecast_spend!U$16:U$31)*(Forecast_spend!$F$16:$F$31=$C18))/1000 -> 0 | J18: =SUMPRODUCT((Forecast_spend!V$16:V$31)*(Forecast_spend!$F$16:$F$31=$C18))/1000 -> 0 | K18: =SUMPRODUCT((Forecast_spend!W$16:W$31)*(Forecast_spend!$F$16:$F$31=$C18))/1000 -> 0 | L18: =SUMPRODUCT((Forecast_spend!X$16:X$31)*(Forecast_spend!$F$16:$F$31=$C18))/1000 -> 0 | M18: =SUMPRODUCT((Forecast_spend!Y$16:Y$31)*(Forecast_spend!$F$16:$F$31=$C18))/1000 -> 0 | N18: =SUMPRODUCT((Forecast_spend!Z$16:Z$31)*(Forecast_spend!$F$16:$F$31=$C18))/1000 -> 0 | O18: =SUMPRODUCT((Forecast_spend!AA$16:AA$31)*(Forecast_spend!$F$16:$F$31=$C18))/1000 -> 0 | Q18: =SUMPRODUCT((Forecast_contrib!U$16:U$31)*(Forecast_contrib!$F$16:$F$31=$C18))/1000 -> 0 | R18: =SUMPRODUCT((Forecast_contrib!V$16:V$31)*(Forecast_contrib!$F$16:$F$31=$C18))/1000 -> 0 | S18: =SUMPRODUCT((Forecast_contrib!W$16:W$31)*(Forecast_contrib!$F$16:$F$31=$C18))/1000 -> 0 | T18: =SUMPRODUCT((Forecast_contrib!X$16:X$31)*(Forecast_contrib!$F$16:$F$31=$C18))/1000 -> 0 | U18: =SUMPRODUCT((Forecast_contrib!Y$16:Y$31)*(Forecast_contrib!$F$16:$F$31=$C18))/1000 -> 0 | V18: =SUMPRODUCT((Forecast_contrib!Z$16:Z$31)*(Forecast_contrib!$F$16:$F$31=$C18))/1000 -> 0 | W18: =SUMPRODUCT((Forecast_contrib!AA$16:AA$31)*(Forecast_contrib!$F$16:$F$31=$C18))/1000 -> 0 | AB18: =IF(SUM(Y18:AA18,I18:O18)=0,"",IF(SUM(Y18:AA18)=1,"",1)) ->  | AI18: 0 | AJ18: 0 | AK18: 0 | AL18: 0 | AM18: 0 | AN18: 0 | AO18: 0 | AP18: 0 | CP18: 1
B19: 10 | C19: Conductor clearance rectification from LIDAR | D19: 10 | F19: Replacement | G19: Replacement | I19: =SUMPRODUCT((Forecast_spend!U$16:U$31)*(Forecast_spend!$F$16:$F$31=$C19))/1000 -> 0 | J19: =SUMPRODUCT((Forecast_spend!V$16:V$31)*(Forecast_spend!$F$16:$F$31=$C19))/1000 -> 0 | K19: =SUMPRODUCT((Forecast_spend!W$16:W$31)*(Forecast_spend!$F$16:$F$31=$C19))/1000 -> 0 | L19: =SUMPRODUCT((Forecast_spend!X$16:X$31)*(Forecast_spend!$F$16:$F$31=$C19))/1000 -> 0 | M19: =SUMPRODUCT((Forecast_spend!Y$16:Y$31)*(Forecast_spend!$F$16:$F$31=$C19))/1000 -> 0 | N19: =SUMPRODUCT((Forecast_spend!Z$16:Z$31)*(Forecast_spend!$F$16:$F$31=$C19))/1000 -> 0 | O19: =SUMPRODUCT((Forecast_spend!AA$16:AA$31)*(Forecast_spend!$F$16:$F$31=$C19))/1000 -> 0 | Q19: =SUMPRODUCT((Forecast_contrib!U$16:U$31)*(Forecast_contrib!$F$16:$F$31=$C19))/1000 -> 0 | R19: =SUMPRODUCT((Forecast_contrib!V$16:V$31)*(Forecast_contrib!$F$16:$F$31=$C19))/1000 -> 0 | S19: =SUMPRODUCT((Forecast_contrib!W$16:W$31)*(Forecast_contrib!$F$16:$F$31=$C19))/1000 -> 0 | T19: =SUMPRODUCT((Forecast_contrib!X$16:X$31)*(Forecast_contrib!$F$16:$F$31=$C19))/1000 -> 0 | U19: =SUMPRODUCT((Forecast_contrib!Y$16:Y$31)*(Forecast_contrib!$F$16:$F$31=$C19))/1000 -> 0 | V19: =SUMPRODUCT((Forecast_contrib!Z$16:Z$31)*(Forecast_contrib!$F$16:$F$31=$C19))/1000 -> 0 | W19: =SUMPRODUCT((Forecast_contrib!AA$16:AA$31)*(Forecast_contrib!$F$16:$F$31=$C19))/1000 -> 0 | AB19: =IF(SUM(Y19:AA19,I19:O19)=0,"",IF(SUM(Y19:AA19)=1,"",1)) ->  | AI19: 0 | AJ19: 0 | AK19: 0 | AL19: 0 | AM19: 0 | AN19: 0 | AO19: 0 | AP19: 0 | CP19: =IF(COUNT(AI19:AP19)=0,"",IF(SUM(AI19:AP19)=1,"",1)) -> 1
B20: 11 | C20: Risk-based 66kV replacement | D20: 11 | F20: Replacement | G20: Replacement | I20: =SUMPRODUCT((Forecast_spend!U$16:U$31)*(Forecast_spend!$F$16:$F$31=$C20))/1000 -> 0 | J20: =SUMPRODUCT((Forecast_spend!V$16:V$31)*(Forecast_spend!$F$16:$F$31=$C20))/1000 -> 0 | K20: =SUMPRODUCT((Forecast_spend!W$16:W$31)*(Forecast_spend!$F$16:$F$31=$C20))/1000 -> 0 | L20: =SUMPRODUCT((Forecast_spend!X$16:X$31)*(Forecast_spend!$F$16:$F$31=$C20))/1000 -> 0 | M20: =SUMPRODUCT((Forecast_spend!Y$16:Y$31)*(Forecast_spend!$F$16:$F$31=$C20))/1000 -> 0 | N20: =SUMPRODUCT((Forecast_spend!Z$16:Z$31)*(Forecast_spend!$F$16:$F$31=$C20))/1000 -> 0 | O20: =SUMPRODUCT((Forecast_spend!AA$16:AA$31)*(Forecast_spend!$F$16:$F$31=$C20))/1000 -> 0 | Q20: =SUMPRODUCT((Forecast_contrib!U$16:U$31)*(Forecast_contrib!$F$16:$F$31=$C20))/1000 -> 0 | R20: =SUMPRODUCT((Forecast_contrib!V$16:V$31)*(Forecast_contrib!$F$16:$F$31=$C20))/1000 -> 0 | S20: =SUMPRODUCT((Forecast_contrib!W$16:W$31)*(Forecast_contrib!$F$16:$F$31=$C20))/1000 -> 0 | T20: =SUMPRODUCT((Forecast_contrib!X$16:X$31)*(Forecast_contrib!$F$16:$F$31=$C20))/1000 -> 0 | U20: =SUMPRODUCT((Forecast_contrib!Y$16:Y$31)*(Forecast_contrib!$F$16:$F$31=$C20))/1000 -> 0 | V20: =SUMPRODUCT((Forecast_contrib!Z$16:Z$31)*(Forecast_contrib!$F$16:$F$31=$C20))/1000 -> 0 | W20: =SUMPRODUCT((Forecast_contrib!AA$16:AA$31)*(Forecast_contrib!$F$16:$F$31=$C20))/1000 -> 0 | AB20: =IF(SUM(Y20:AA20,I20:O20)=0,"",IF(SUM(Y20:AA20)=1,"",1)) ->  | AI20: 0 | AJ20: 0 | AK20: 0 | AL20: 0 | AM20: 0 | AN20: 0 | AO20: 0 | AP20: 0 | CP20: =IF(COUNT(AI20:AP20)=0,"",IF(SUM(AI20:AP20)=1,"",1)) -> 1
B21: 12 | C21: Bare 22kV conductor bushfire mitigation | D21: 12 | F21: Replacement | G21: Replacement | I21: =SUMPRODUCT((Forecast_spend!U$16:U$31)*(Forecast_spend!$F$16:$F$31=$C21))/1000 -> 0 | J21: =SUMPRODUCT((Forecast_spend!V$16:V$31)*(Forecast_spend!$F$16:$F$31=$C21))/1000 -> 0 | K21: =SUMPRODUCT((Forecast_spend!W$16:W$31)*(Forecast_spend!$F$16:$F$31=$C21))/1000 -> 0 | L21: =SUMPRODUCT((Forecast_spend!X$16:X$31)*(Forecast_spend!$F$16:$F$31=$C21))/1000 -> 0 | M21: =SUMPRODUCT((Forecast_spend!Y$16:Y$31)*(Forecast_spend!$F$16:$F$31=$C21))/1000 -> 0 | N21: =SUMPRODUCT((Forecast_spend!Z$16:Z$31)*(Forecast_spend!$F$16:$F$31=$C21))/1000 -> 0 | O21: =SUMPRODUCT((Forecast_spend!AA$16:AA$31)*(Forecast_spend!$F$16:$F$31=$C21))/1000 -> 0 | Q21: =SUMPRODUCT((Forecast_contrib!U$16:U$31)*(Forecast_contrib!$F$16:$F$31=$C21))/1000 -> 0 | R21: =SUMPRODUCT((Forecast_contrib!V$16:V$31)*(Forecast_contrib!$F$16:$F$31=$C21))/1000 -> 0 | S21: =SUMPRODUCT((Forecast_contrib!W$16:W$31)*(Forecast_contrib!$F$16:$F$31=$C21))/1000 -> 0 | T21: =SUMPRODUCT((Forecast_contrib!X$16:X$31)*(Forecast_contrib!$F$16:$F$31=$C21))/1000 -> 0 | U21: =SUMPRODUCT((Forecast_contrib!Y$16:Y$31)*(Forecast_contrib!$F$16:$F$31=$C21))/1000 -> 0 | V21: =SUMPRODUCT((Forecast_contrib!Z$16:Z$31)*(Forecast_contrib!$F$16:$F$31=$C21))/1000 -> 0 | W21: =SUMPRODUCT((Forecast_contrib!AA$16:AA$31)*(Forecast_contrib!$F$16:$F$31=$C21))/1000 -> 0 | AI21: 0 | AJ21: 0 | AK21: 0 | AL21: 0 | AM21: 0 | AN21: 0 | AO21: 0 | AP21: 0 | CP21: =IF(COUNT(AI21:AP21)=0,"",IF(SUM(AI21:AP21)=1,"",1)) -> 1
B22: 13 | C22: Risk-based HV cable replacement | D22: 13 | F22: Replacement | G22: Replacement | I22: =SUMPRODUCT((Forecast_spend!U$16:U$31)*(Forecast_spend!$F$16:$F$31=$C22))/1000 -> 0 | J22: =SUMPRODUCT((Forecast_spend!V$16:V$31)*(Forecast_spend!$F$16:$F$31=$C22))/1000 -> 0 | K22: =SUMPRODUCT((Forecast_spend!W$16:W$31)*(Forecast_spend!$F$16:$F$31=$C22))/1000 -> 0 | L22: =SUMPRODUCT((Forecast_spend!X$16:X$31)*(Forecast_spend!$F$16:$F$31=$C22))/1000 -> 0 | M22: =SUMPRODUCT((Forecast_spend!Y$16:Y$31)*(Forecast_spend!$F$16:$F$31=$C22))/1000 -> 0 | N22: =SUMPRODUCT((Forecast_spend!Z$16:Z$31)*(Forecast_spend!$F$16:$F$31=$C22))/1000 -> 0 | O22: =SUMPRODUCT((Forecast_spend!AA$16:AA$31)*(Forecast_spend!$F$16:$F$31=$C22))/1000 -> 0 | Q22: =SUMPRODUCT((Forecast_contrib!U$16:U$31)*(Forecast_contrib!$F$16:$F$31=$C22))/1000 -> 0 | R22: =SUMPRODUCT((Forecast_contrib!V$16:V$31)*(Forecast_contrib!$F$16:$F$31=$C22))/1000 -> 0 | S22: =SUMPRODUCT((Forecast_contrib!W$16:W$31)*(Forecast_contrib!$F$16:$F$31=$C22))/1000 -> 0 | T22: =SUMPRODUCT((Forecast_contrib!X$16:X$31)*(Forecast_contrib!$F$16:$F$31=$C22))/1000 -> 0 | U22: =SUMPRODUCT((Forecast_contrib!Y$16:Y$31)*(Forecast_contrib!$F$16:$F$31=$C22))/1000 -> 0 | V22: =SUMPRODUCT((Forecast_contrib!Z$16:Z$31)*(Forecast_contrib!$F$16:$F$31=$C22))/1000 -> 0 | W22: =SUMPRODUCT((Forecast_contrib!AA$16:AA$31)*(Forecast_contrib!$F$16:$F$31=$C22))/1000 -> 0 | AI22: 0 | AJ22: 0 | AK22: 0 | AL22: 0 | AM22: 0 | AN22: 0 | AO22: 0 | AP22: 0 | CP22: =IF(COUNT(AI22:AP22)=0,"",IF(SUM(AI22:AP22)=1,"",1)) -> 1
B23: 14 | C23: Defective SWER ISO & CBU Earth Repair | D23: 14 | F23: Replacement | G23: Replacement | I23: =SUMPRODUCT((Forecast_spend!U$16:U$31)*(Forecast_spend!$F$16:$F$31=$C23))/1000 -> 0 | J23: =SUMPRODUCT((Forecast_spend!V$16:V$31)*(Forecast_spend!$F$16:$F$31=$C23))/1000 -> 0 | K23: =SUMPRODUCT((Forecast_spend!W$16:W$31)*(Forecast_spend!$F$16:$F$31=$C23))/1000 -> 0 | L23: =SUMPRODUCT((Forecast_spend!X$16:X$31)*(Forecast_spend!$F$16:$F$31=$C23))/1000 -> 0 | M23: =SUMPRODUCT((Forecast_spend!Y$16:Y$31)*(Forecast_spend!$F$16:$F$31=$C23))/1000 -> 0 | N23: =SUMPRODUCT((Forecast_spend!Z$16:Z$31)*(Forecast_spend!$F$16:$F$31=$C23))/1000 -> 0 | O23: =SUMPRODUCT((Forecast_spend!AA$16:AA$31)*(Forecast_spend!$F$16:$F$31=$C23))/1000 -> 0 | Q23: =SUMPRODUCT((Forecast_contrib!U$16:U$31)*(Forecast_contrib!$F$16:$F$31=$C23))/1000 -> 0 | R23: =SUMPRODUCT((Forecast_contrib!V$16:V$31)*(Forecast_contrib!$F$16:$F$31=$C23))/1000 -> 0 | S23: =SUMPRODUCT((Forecast_contrib!W$16:W$31)*(Forecast_contrib!$F$16:$F$31=$C23))/1000 -> 0 | T23: =SUMPRODUCT((Forecast_contrib!X$16:X$31)*(Forecast_contrib!$F$16:$F$31=$C23))/1000 -> 0 | U23: =SUMPRODUCT((Forecast_contrib!Y$16:Y$31)*(Forecast_contrib!$F$16:$F$31=$C23))/1000 -> 0 | V23: =SUMPRODUCT((Forecast_contrib!Z$16:Z$31)*(Forecast_contrib!$F$16:$F$31=$C23))/1000 -> 0 | W23: =SUMPRODUCT((Forecast_contrib!AA$16:AA$31)*(Forecast_contrib!$F$16:$F$31=$C23))/1000 -> 0 | AI23: 0 | AJ23: 0 | AK23: 0 | AL23: 0 | AM23: 0 | AN23: 0 | AO23: 0 | AP23: 0 | CP23: =IF(COUNT(AI23:AP23)=0,"",IF(SUM(AI23:AP23)=1,"",1)) -> 1
B24: 15 | C24: Corrective HV cable replacement | D24: 15 | F24: Replacement | G24: Replacement | I24: =SUMPRODUCT((Forecast_spend!U$16:U$31)*(Forecast_spend!$F$16:$F$31=$C24))/1000 -> 0 | J24: =SUMPRODUCT((Forecast_spend!V$16:V$31)*(Forecast_spend!$F$16:$F$31=$C24))/1000 -> 0 | K24: =SUMPRODUCT((Forecast_spend!W$16:W$31)*(Forecast_spend!$F$16:$F$31=$C24))/1000 -> 0 | L24: =SUMPRODUCT((Forecast_spend!X$16:X$31)*(Forecast_spend!$F$16:$F$31=$C24))/1000 -> 0 | M24: =SUMPRODUCT((Forecast_spend!Y$16:Y$31)*(Forecast_spend!$F$16:$F$31=$C24))/1000 -> 0 | N24: =SUMPRODUCT((Forecast_spend!Z$16:Z$31)*(Forecast_spend!$F$16:$F$31=$C24))/1000 -> 0 | O24: =SUMPRODUCT((Forecast_spend!AA$16:AA$31)*(Forecast_spend!$F$16:$F$31=$C24))/1000 -> 0 | Q24: =SUMPRODUCT((Forecast_contrib!U$16:U$31)*(Forecast_contrib!$F$16:$F$31=$C24))/1000 -> 0 | R24: =SUMPRODUCT((Forecast_contrib!V$16:V$31)*(Forecast_contrib!$F$16:$F$31=$C24))/1000 -> 0 | S24: =SUMPRODUCT((Forecast_contrib!W$16:W$31)*(Forecast_contrib!$F$16:$F$31=$C24))/1000 -> 0 | T24: =SUMPRODUCT((Forecast_contrib!X$16:X$31)*(Forecast_contrib!$F$16:$F$31=$C24))/1000 -> 0 | U24: =SUMPRODUCT((Forecast_contrib!Y$16:Y$31)*(Forecast_contrib!$F$16:$F$31=$C24))/1000 -> 0 | V24: =SUMPRODUCT((Forecast_contrib!Z$16:Z$31)*(Forecast_contrib!$F$16:$F$31=$C24))/1000 -> 0 | W24: =SUMPRODUCT((Forecast_contrib!AA$16:AA$31)*(Forecast_contrib!$F$16:$F$31=$C24))/1000 -> 0 | AI24: 0 | AJ24: 0 | AK24: 0 | AL24: 0 | AM24: 0 | AN24: 0 | AO24: 0 | AP24: 0 | CP24: 1
B25: 16 | C25: Corrective LV cable replacement | D25: 16 | F25: Replacement | G25: Replacement | I25: =SUMPRODUCT((Forecast_spend!U$16:U$31)*(Forecast_spend!$F$16:$F$31=$C25))/1000 -> 0 | J25: =SUMPRODUCT((Forecast_spend!V$16:V$31)*(Forecast_spend!$F$16:$F$31=$C25))/1000 -> 0 | K25: =SUMPRODUCT((Forecast_spend!W$16:W$31)*(Forecast_spend!$F$16:$F$31=$C25))/1000 -> 0 | L25: =SUMPRODUCT((Forecast_spend!X$16:X$31)*(Forecast_spend!$F$16:$F$31=$C25))/1000 -> 0 | M25: =SUMPRODUCT((Forecast_spend!Y$16:Y$31)*(Forecast_spend!$F$16:$F$31=$C25))/1000 -> 0 | N25: =SUMPRODUCT((Forecast_spend!Z$16:Z$31)*(Forecast_spend!$F$16:$F$31=$C25))/1000 -> 0 | O25: =SUMPRODUCT((Forecast_spend!AA$16:AA$31)*(Forecast_spend!$F$16:$F$31=$C25))/1000 -> 0 | Q25: =SUMPRODUCT((Forecast_contrib!U$16:U$31)*(Forecast_contrib!$F$16:$F$31=$C25))/1000 -> 0 | R25: =SUMPRODUCT((Forecast_contrib!V$16:V$31)*(Forecast_contrib!$F$16:$F$31=$C25))/1000 -> 0 | S25: =SUMPRODUCT((Forecast_contrib!W$16:W$31)*(Forecast_contrib!$F$16:$F$31=$C25))/1000 -> 0 | T25: =SUMPRODUCT((Forecast_contrib!X$16:X$31)*(Forecast_contrib!$F$16:$F$31=$C25))/1000 -> 0 | U25: =SUMPRODUCT((Forecast_contrib!Y$16:Y$31)*(Forecast_contrib!$F$16:$F$31=$C25))/1000 -> 0 | V25: =SUMPRODUCT((Forecast_contrib!Z$16:Z$31)*(Forecast_contrib!$F$16:$F$31=$C25))/1000 -> 0 | W25: =SUMPRODUCT((Forecast_contrib!AA$16:AA$31)*(Forecast_contrib!$F$16:$F$31=$C25))/1000 -> 0 | AI25: 0 | AJ25: 0 | AK25: 0 | AL25: 0 | AM25: 0 | AN25: 0 | AO25: 0 | AP25: 0 | CP25: 1
B26: 17 | C26: Service lines | D26: 17 | F26: Replacement | G26: Replacement | I26: =SUMPRODUCT((Forecast_spend!U$16:U$31)*(Forecast_spend!$F$16:$F$31=$C26))/1000 -> 0 | J26: =SUMPRODUCT((Forecast_spend!V$16:V$31)*(Forecast_spend!$F$16:$F$31=$C26))/1000 -> 0 | K26: =SUMPRODUCT((Forecast_spend!W$16:W$31)*(Forecast_spend!$F$16:$F$31=$C26))/1000 -> 0 | L26: =SUMPRODUCT((Forecast_spend!X$16:X$31)*(Forecast_spend!$F$16:$F$31=$C26))/1000 -> 0 | M26: =SUMPRODUCT((Forecast_spend!Y$16:Y$31)*(Forecast_spend!$F$16:$F$31=$C26))/1000 -> 0 | N26: =SUMPRODUCT((Forecast_spend!Z$16:Z$31)*(Forecast_spend!$F$16:$F$31=$C26))/1000 -> 0 | O26: =SUMPRODUCT((Forecast_spend!AA$16:AA$31)*(Forecast_spend!$F$16:$F$31=$C26))/1000 -> 0 | Q26: =SUMPRODUCT((Forecast_contrib!U$16:U$31)*(Forecast_contrib!$F$16:$F$31=$C26))/1000 -> 0 | R26: =SUMPRODUCT((Forecast_contrib!V$16:V$31)*(Forecast_contrib!$F$16:$F$31=$C26))/1000 -> 0 | S26: =SUMPRODUCT((Forecast_contrib!W$16:W$31)*(Forecast_contrib!$F$16:$F$31=$C26))/1000 -> 0 | T26: =SUMPRODUCT((Forecast_contrib!X$16:X$31)*(Forecast_contrib!$F$16:$F$31=$C26))/1000 -> 0 | U26: =SUMPRODUCT((Forecast_contrib!Y$16:Y$31)*(Forecast_contrib!$F$16:$F$31=$C26))/1000 -> 0 | V26: =SUMPRODUCT((Forecast_contrib!Z$16:Z$31)*(Forecast_contrib!$F$16:$F$31=$C26))/1000 -> 0 | W26: =SUMPRODUCT((Forecast_contrib!AA$16:AA$31)*(Forecast_contrib!$F$16:$F$31=$C26))/1000 -> 0 | AI26: 0 | AJ26: 0 | AK26: 0 | AL26: 0 | AM26: 0 | AN26: 0 | AO26: 0 | AP26: 0 | CP26: 1
B27: 18 | C27: ZSS transformer replacement | D27: 18 | F27: Replacement | G27: Replacement | I27: =SUMPRODUCT((Forecast_spend!U$16:U$31)*(Forecast_spend!$F$16:$F$31=$C27))/1000 -> 0 | J27: =SUMPRODUCT((Forecast_spend!V$16:V$31)*(Forecast_spend!$F$16:$F$31=$C27))/1000 -> 0 | K27: =SUMPRODUCT((Forecast_spend!W$16:W$31)*(Forecast_spend!$F$16:$F$31=$C27))/1000 -> 0 | L27: =SUMPRODUCT((Forecast_spend!X$16:X$31)*(Forecast_spend!$F$16:$F$31=$C27))/1000 -> 0 | M27: =SUMPRODUCT((Forecast_spend!Y$16:Y$31)*(Forecast_spend!$F$16:$F$31=$C27))/1000 -> 0 | N27: =SUMPRODUCT((Forecast_spend!Z$16:Z$31)*(Forecast_spend!$F$16:$F$31=$C27))/1000 -> 0 | O27: =SUMPRODUCT((Forecast_spend!AA$16:AA$31)*(Forecast_spend!$F$16:$F$31=$C27))/1000 -> 0 | Q27: =SUMPRODUCT((Forecast_contrib!U$16:U$31)*(Forecast_contrib!$F$16:$F$31=$C27))/1000 -> 0 | R27: =SUMPRODUCT((Forecast_contrib!V$16:V$31)*(Forecast_contrib!$F$16:$F$31=$C27))/1000 -> 0 | S27: =SUMPRODUCT((Forecast_contrib!W$16:W$31)*(Forecast_contrib!$F$16:$F$31=$C27))/1000 -> 0 | T27: =SUMPRODUCT((Forecast_contrib!X$16:X$31)*(Forecast_contrib!$F$16:$F$31=$C27))/1000 -> 0 | U27: =SUMPRODUCT((Forecast_contrib!Y$16:Y$31)*(Forecast_contrib!$F$16:$F$31=$C27))/1000 -> 0 | V27: =SUMPRODUCT((Forecast_contrib!Z$16:Z$31)*(Forecast_contrib!$F$16:$F$31=$C27))/1000 -> 0 | W27: =SUMPRODUCT((Forecast_contrib!AA$16:AA$31)*(Forecast_contrib!$F$16:$F$31=$C27))/1000 -> 0 | AI27: 0 | AJ27: 0 | AK27: 0 | AL27: 0 | AM27: 0 | AN27: 0 | AO27: 0 | AP27: 0 | CP27: 1
B28: 19 | C28: Transformer refurbishment | D28: 19 | F28: Replacement | G28: Replacement | I28: =SUMPRODUCT((Forecast_spend!U$16:U$31)*(Forecast_spend!$F$16:$F$31=$C28))/1000 -> 0 | J28: =SUMPRODUCT((Forecast_spend!V$16:V$31)*(Forecast_spend!$F$16:$F$31=$C28))/1000 -> 0 | K28: =SUMPRODUCT((Forecast_spend!W$16:W$31)*(Forecast_spend!$F$16:$F$31=$C28))/1000 -> 0 | L28: =SUMPRODUCT((Forecast_spend!X$16:X$31)*(Forecast_spend!$F$16:$F$31=$C28))/1000 -> 0 | M28: =SUMPRODUCT((Forecast_spend!Y$16:Y$31)*(Forecast_spend!$F$16:$F$31=$C28))/1000 -> 0 | N28: =SUMPRODUCT((Forecast_spend!Z$16:Z$31)*(Forecast_spend!$F$16:$F$31=$C28))/1000 -> 0 | O28: =SUMPRODUCT((Forecast_spend!AA$16:AA$31)*(Forecast_spend!$F$16:$F$31=$C28))/1000 -> 0 | Q28: =SUMPRODUCT((Forecast_contrib!U$16:U$31)*(Forecast_contrib!$F$16:$F$31=$C28))/1000 -> 0 | R28: =SUMPRODUCT((Forecast_contrib!V$16:V$31)*(Forecast_contrib!$F$16:$F$31=$C28))/1000 -> 0 | S28: =SUMPRODUCT((Forecast_contrib!W$16:W$31)*(Forecast_contrib!$F$16:$F$31=$C28))/1000 -> 0 | T28: =SUMPRODUCT((Forecast_contrib!X$16:X$31)*(Forecast_contrib!$F$16:$F$31=$C28))/1000 -> 0 | U28: =SUMPRODUCT((Forecast_contrib!Y$16:Y$31)*(Forecast_contrib!$F$16:$F$31=$C28))/1000 -> 0 | V28: =SUMPRODUCT((Forecast_contrib!Z$16:Z$31)*(Forecast_contrib!$F$16:$F$31=$C28))/1000 -> 0 | W28: =SUMPRODUCT((Forecast_contrib!AA$16:AA$31)*(Forecast_contrib!$F$16:$F$31=$C28))/1000 -> 0 | AI28: 0 | AJ28: 0 | AK28: 0 | AL28: 0 | AM28: 0 | AN28: 0 | AO28: 0 | AP28: 0 | CP28: 1
